Workbook

Sheet parameters
A1: Parameter | B1: input | C1: values
A2: seed | B2: custom | C2: 3
A3: target_prevalence | B3: range | C3: 0.1 | D3: 0.5 | E3: 0.008
A4: towns | B4: custom | C4: 300
A5: town_size_min | B5: custom | C5: 400
A6: town_size_max | B6: default | C6: 250000
A7: town_size_shape | B7: custom | C7: 0.785
A8: tile_x | B8: default | C8: 10
A9: tile_y | B9: default | C9: 10
A10: tile_width | B10: default | C10: 1
A11: popdens_mx | B11: range | C11: 0 | D11: 1 | E11: 0.02
A12: popdens_my | B12: range | C12: 0 | D12: 1 | E12: 0.02
A13: mean_household_pop | B13: range | C13: 2 | D13: 5 | E13: 0.06
A14: river_probability | B14: default | C14: 0
A15: river_width | B15: default | C15: 0
A16: disease_pockets | B16: range | C16: 0 | D16: 10 | E16: 1
A17: pocket_kernel_type | B17: array | C17: exponential | D17: inverse_square | E17: gaussian
A18: pocket_scaling | B18: range | C18: 0.5 | D18: 2 | E18: 0.03
A19: mean_income_b00 | B19: array | C19: 0.75,0,0 | D19: 0.75,0,0.05 | E19: 0.75,0,0.1 | F19: 0.75,0,0.15 | G19: 0.75,0,0.2 | H19: 0.75,0,0.25 | I19: 0.75,0,0.3 | J19: 0.75,0.05,0 | K19: 0.75,0.05,0.05 | L19: 0.75,0.05,0.1 | M19: 0.75,0.05,0.15 | N19: 0.75,0.05,0.2 | O19: 0.75,0.05,0.25 | P19: 0.75,0.05,0.3 | Q19: 0.75,0.1,0 | R19: 0.75,0.1,0.05 | S19: 0.75,0.1,0.1 | T19: 0.75,0.1,0.15 | U19: 0.75,0.1,0.2 | V19: 0.75,0.1,0.25 | W19: 0.75,0.1,0.3 | X19: 0.75,0.15,0 | Y19: 0.75,0.15,0.05 | Z19: 0.75,0.15,0.1 | AA19: 0.75,0.15,0.15 | AB19: 0.75,0.15,0.2 | AC19: 0.75,0.15,0.25 | AD19: 0.75,0.15,0.3 | AE19: 0.75,0.2,0 | AF19: 0.75,0.2,0.05 | AG19: 0.75,0.2,0.1 | AH19: 0.75,0.2,0.15 | AI19: 0.75,0.2,0.2 | AJ19: 0.75,0.2,0.25 | AK19: 0.75,0.2,0.3 | AL19: 0.75,0.25,0 | AM19: 0.75,0.25,0.05 | AN19: 0.75,0.25,0.1 | AO19: 0.75,0.25,0.15 | AP19: 0.75,0.25,0.2 | AQ19: 0.75,0.25,0.25 | AR19: 0.75,0.25,0.3 | AS19: 0.75,0.3,0 | AT19: 0.75,0.3,0.05 | AU19: 0.75,0.3,0.1 | AV19: 0.75,0.3,0.15 | AW19: 0.75,0.3,0.2 | AX19: 0.75,0.3,0.25 | AY19: 0.75,0.3,0.3 | AZ19: 0.75,0.3,0.3
A20: mean_income_b01 | B20: array | C20: 0.0714,0,0 | D20: 0.0714,0,0.01 | E20: 0.0714,0,0.02 | F20: 0.0714,0,0.03 | G20: 0.0714,0,0.04 | H20: 0.0714,0,0.05 | I20: 0.0714,0,0.06 | J20: 0.0714,0.03,0 | K20: 0.0714,0.03,0.01 | L20: 0.0714,0.03,0.02 | M20: 0.0714,0.03,0.03 | N20: 0.0714,0.03,0.04 | O20: 0.0714,0.03,0.05 | P20: 0.0714,0.03,0.06 | Q20: 0.0714,0.06,0 | R20: 0.0714,0.06,0.01 | S20: 0.0714,0.06,0.02 | T20: 0.0714,0.06,0.03 | U20: 0.0714,0.06,0.04 | V20: 0.0714,0.06,0.05 | W20: 0.0714,0.06,0.06 | X20: 0.0714,0.09,0 | Y20: 0.0714,0.09,0.01 | Z20: 0.0714,0.09,0.02 | AA20: 0.0714,0.09,0.03 | AB20: 0.0714,0.09,0.04 | AC20: 0.0714,0.09,0.05 | AD20: 0.0714,0.09,0.06 | AE20: 0.0714,0.12,0 | AF20: 0.0714,0.12,0.01 | AG20: 0.0714,0.12,0.02 | AH20: 0.0714,0.12,0.03 | AI20: 0.0714,0.12,0.04 | AJ20: 0.0714,0.12,0.05 | AK20: 0.0714,0.12,0.06 | AL20: 0.0714,0.15,0 | AM20: 0.0714,0.15,0.01 | AN20: 0.0714,0.15,0.02 | AO20: 0.0714,0.15,0.03 | AP20: 0.0714,0.15,0.04 | AQ20: 0.0714,0.15,0.05 | AR20: 0.0714,0.15,0.06 | AS20: 0.0714,0.18,0 | AT20: 0.0714,0.18,0.01 | AU20: 0.0714,0.18,0.02 | AV20: 0.0714,0.18,0.03 | AW20: 0.0714,0.18,0.04 | AX20: 0.0714,0.18,0.05 | AY20: 0.0714,0.18,0.06 | AZ20: 0.0714,0.18,0.06
A21: mean_income_b10 | B21: array | C21: 0.0714,0,0 | D21: 0.0714,0,0.01 | E21: 0.0714,0,0.02 | F21: 0.0714,0,0.03 | G21: 0.0714,0,0.04 | H21: 0.0714,0,0.05 | I21: 0.0714,0,0.06 | J21: 0.0714,0.03,0 | K21: 0.0714,0.03,0.01 | L21: 0.0714,0.03,0.02 | M21: 0.0714,0.03,0.03 | N21: 0.0714,0.03,0.04 | O21: 0.0714,0.03,0.05 | P21: 0.0714,0.03,0.06 | Q21: 0.0714,0.06,0 | R21: 0.0714,0.06,0.01 | S21: 0.0714,0.06,0.02 | T21: 0.0714,0.06,0.03 | U21: 0.0714,0.06,0.04 | V21: 0.0714,0.06,0.05 | W21: 0.0714,0.06,0.06 | X21: 0.0714,0.09,0 | Y21: 0.0714,0.09,0.01 | Z21: 0.0714,0.09,0.02 | AA21: 0.0714,0.09,0.03 | AB21: 0.0714,0.09,0.04 | AC21: 0.0714,0.09,0.05 | AD21: 0.0714,0.09,0.06 | AE21: 0.0714,0.12,0 | AF21: 0.0714,0.12,0.01 | AG21: 0.0714,0.12,0.02 | AH21: 0.0714,0.12,0.03 | AI21: 0.0714,0.12,0.04 | AJ21: 0.0714,0.12,0.05 | AK21: 0.0714,0.12,0.06 | AL21: 0.0714,0.15,0 | AM21: 0.0714,0.15,0.01 | AN21: 0.0714,0.15,0.02 | AO21: 0.0714,0.15,0.03 | AP21: 0.0714,0.15,0.04 | AQ21: 0.0714,0.15,0.05 | AR21: 0.0714,0.15,0.06 | AS21: 0.0714,0.18,0 | AT21: 0.0714,0.18,0.01 | AU21: 0.0714,0.18,0.02 | AV21: 0.0714,0.18,0.03 | AW21: 0.0714,0.18,0.04 | AX21: 0.0714,0.18,0.05 | AY21: 0.0714,0.18,0.06 | AZ21: 0.0714,0.18,0.06
A22: mean_income_b02 | B22: default | C22: 0
A23: mean_income_b20 | B23: default | C23: 0
A24: mean_income_b11 | B24: default | C24: 0
A25: sd_income_b00 | B25: default | C25: 0.25
A26: sd_income_b01 | B26: default | C26: 0
A27: sd_income_b10 | B27: default | C27: 0
A28: sd_income_b02 | B28: default | C28: 0
A29: sd_income_b20 | B29: default | C29: 0
A30: sd_income_b11 | B30: default | C30: 0
A31: mean_disease_b00 | B31: array | C31: 0.75,0,0 | D31: 0.75,0,0.05 | E31: 0.75,0,0.1 | F31: 0.75,0,0.15 | G31: 0.75,0,0.2 | H31: 0.75,0,0.25 | I31: 0.75,0,0.3 | J31: 0.75,0.05,0 | K31: 0.75,0.05,0.05 | L31: 0.75,0.05,0.1 | M31: 0.75,0.05,0.15 | N31: 0.75,0.05,0.2 | O31: 0.75,0.05,0.25 | P31: 0.75,0.05,0.3 | Q31: 0.75,0.1,0 | R31: 0.75,0.1,0.05 | S31: 0.75,0.1,0.1 | T31: 0.75,0.1,0.15 | U31: 0.75,0.1,0.2 | V31: 0.75,0.1,0.25 | W31: 0.75,0.1,0.3 | X31: 0.75,0.15,0 | Y31: 0.75,0.15,0.05 | Z31: 0.75,0.15,0.1 | AA31: 0.75,0.15,0.15 | AB31: 0.75,0.15,0.2 | AC31: 0.75,0.15,0.25 | AD31: 0.75,0.15,0.3 | AE31: 0.75,0.2,0 | AF31: 0.75,0.2,0.05 | AG31: 0.75,0.2,0.1 | AH31: 0.75,0.2,0.15 | AI31: 0.75,0.2,0.2 | AJ31: 0.75,0.2,0.25 | AK31: 0.75,0.2,0.3 | AL31: 0.75,0.25,0 | AM31: 0.75,0.25,0.05 | AN31: 0.75,0.25,0.1 | AO31: 0.75,0.25,0.15 | AP31: 0.75,0.25,0.2 | AQ31: 0.75,0.25,0.25 | AR31: 0.75,0.25,0.3 | AS31: 0.75,0.3,0 | AT31: 0.75,0.3,0.05 | AU31: 0.75,0.3,0.1 | AV31: 0.75,0.3,0.15 | AW31: 0.75,0.3,0.2 | AX31: 0.75,0.3,0.25 | AY31: 0.75,0.3,0.3 | AZ31: 0.75,0.3,0.3
A32: mean_disease_b01 | B32: array | C32: -0.0714,0,0 | D32: -0.0714,0,0.01 | E32: -0.0714,0,0.02 | F32: -0.0714,0,0.03 | G32: -0.0714,0,0.04 | H32: -0.0714,0,0.05 | I32: -0.0714,0,0.06 | J32: -0.0714,0.03,0 | K32: -0.0714,0.03,0.01 | L32: -0.0714,0.03,0.02 | M32: -0.0714,0.03,0.03 | N32: -0.0714,0.03,0.04 | O32: -0.0714,0.03,0.05 | P32: -0.0714,0.03,0.06 | Q32: -0.0714,0.06,0 | R32: -0.0714,0.06,0.01 | S32: -0.0714,0.06,0.02 | T32: -0.0714,0.06,0.03 | U32: -0.0714,0.06,0.04 | V32: -0.0714,0.06,0.05 | W32: -0.0714,0.06,0.06 | X32: -0.0714,0.09,0 | Y32: -0.0714,0.09,0.01 | Z32: -0.0714,0.09,0.02 | AA32: -0.0714,0.09,0.03 | AB32: -0.0714,0.09,0.04 | AC32: -0.0714,0.09,0.05 | AD32: -0.0714,0.09,0.06 | AE32: -0.0714,0.12,0 | AF32: -0.0714,0.12,0.01 | AG32: -0.0714,0.12,0.02 | AH32: -0.0714,0.12,0.03 | AI32: -0.0714,0.12,0.04 | AJ32: -0.0714,0.12,0.05 | AK32: -0.0714,0.12,0.06 | AL32: -0.0714,0.15,0 | AM32: -0.0714,0.15,0.01 | AN32: -0.0714,0.15,0.02 | AO32: -0.0714,0.15,0.03 | AP32: -0.0714,0.15,0.04 | AQ32: -0.0714,0.15,0.05 | AR32: -0.0714,0.15,0.06 | AS32: -0.0714,0.18,0 | AT32: -0.0714,0.18,0.01 | AU32: -0.0714,0.18,0.02 | AV32: -0.0714,0.18,0.03 | AW32: -0.0714,0.18,0.04 | AX32: -0.0714,0.18,0.05 | AY32: -0.0714,0.18,0.06 | AZ32: -0.0714,0.18,0.06
A33: mean_disease_b10 | B33: array | C33: -0.0714,0,0 | D33: -0.0714,0,0.01 | E33: -0.0714,0,0.02 | F33: -0.0714,0,0.03 | G33: -0.0714,0,0.04 | H33: -0.0714,0,0.05 | I33: -0.0714,0,0.06 | J33: -0.0714,0.03,0 | K33: -0.0714,0.03,0.01 | L33: -0.0714,0.03,0.02 | M33: -0.0714,0.03,0.03 | N33: -0.0714,0.03,0.04 | O33: -0.0714,0.03,0.05 | P33: -0.0714,0.03,0.06 | Q33: -0.0714,0.06,0 | R33: -0.0714,0.06,0.01 | S33: -0.0714,0.06,0.02 | T33: -0.0714,0.06,0.03 | U33: -0.0714,0.06,0.04 | V33: -0.0714,0.06,0.05 | W33: -0.0714,0.06,0.06 | X33: -0.0714,0.09,0 | Y33: -0.0714,0.09,0.01 | Z33: -0.0714,0.09,0.02 | AA33: -0.0714,0.09,0.03 | AB33: -0.0714,0.09,0.04 | AC33: -0.0714,0.09,0.05 | AD33: -0.0714,0.09,0.06 | AE33: -0.0714,0.12,0 | AF33: -0.0714,0.12,0.01 | AG33: -0.0714,0.12,0.02 | AH33: -0.0714,0.12,0.03 | AI33: -0.0714,0.12,0.04 | AJ33: -0.0714,0.12,0.05 | AK33: -0.0714,0.12,0.06 | AL33: -0.0714,0.15,0 | AM33: -0.0714,0.15,0.01 | AN33: -0.0714,0.15,0.02 | AO33: -0.0714,0.15,0.03 | AP33: -0.0714,0.15,0.04 | AQ33: -0.0714,0.15,0.05 | AR33: -0.0714,0.15,0.06 | AS33: -0.0714,0.18,0 | AT33: -0.0714,0.18,0.01 | AU33: -0.0714,0.18,0.02 | AV33: -0.0714,0.18,0.03 | AW33: -0.0714,0.18,0.04 | AX33: -0.0714,0.18,0.05 | AY33: -0.0714,0.18,0.06 | AZ33: -0.0714,0.18,0.06
A34: mean_disease_b02 | B34: default | C34: 0
A35: mean_disease_b20 | B35: default | C35: 0
A36: mean_disease_b11 | B36: default | C36: 0
A37: sd_disease_b00 | B37: default | C37: 0
A38: sd_disease_b01 | B38: default | C38: 0
A39: sd_disease_b10 | B39: default | C39: 0
A40: sd_disease_b02 | B40: default | C40: 0
A41: sd_disease_b20 | B41: default | C41: 0
A42: sd_disease_b11 | B42: default | C42: 0
A43: mean_exposure_b00 | B43: array | C43: 0.9,0,0 | D43: 0.9,0,-0.05 | E43: 0.9,0,-0.1 | F43: 0.9,0,-0.15 | G43: 0.9,0,-0.2 | H43: 0.9,0,-0.25 | I43: 0.9,0,-0.3 | J43: 0.9,-0.05,0 | K43: 0.9,-0.05,-0.05 | L43: 0.9,-0.05,-0.1 | M43: 0.9,-0.05,-0.15 | N43: 0.9,-0.05,-0.2 | O43: 0.9,-0.05,-0.25 | P43: 0.9,-0.05,-0.3 | Q43: 0.9,-0.1,0 | R43: 0.9,-0.1,-0.05 | S43: 0.9,-0.1,-0.1 | T43: 0.9,-0.1,-0.15 | U43: 0.9,-0.1,-0.2 | V43: 0.9,-0.1,-0.25 | W43: 0.9,-0.1,-0.3 | X43: 0.9,-0.15,0 | Y43: 0.9,-0.15,-0.05 | Z43: 0.9,-0.15,-0.1 | AA43: 0.9,-0.15,-0.15 | AB43: 0.9,-0.15,-0.2 | AC43: 0.9,-0.15,-0.25 | AD43: 0.9,-0.15,-0.3 | AE43: 0.9,-0.2,0 | AF43: 0.9,-0.2,-0.05 | AG43: 0.9,-0.2,-0.1 | AH43: 0.9,-0.2,-0.15 | AI43: 0.9,-0.2,-0.2 | AJ43: 0.9,-0.2,-0.25 | AK43: 0.9,-0.2,-0.3 | AL43: 0.9,-0.25,0 | AM43: 0.9,-0.25,-0.05 | AN43: 0.9,-0.25,-0.1 | AO43: 0.9,-0.25,-0.15 | AP43: 0.9,-0.25,-0.2 | AQ43: 0.9,-0.25,-0.25 | AR43: 0.9,-0.25,-0.3 | AS43: 0.9,-0.3,0 | AT43: 0.9,-0.3,-0.05 | AU43: 0.9,-0.3,-0.1 | AV43: 0.9,-0.3,-0.15 | AW43: 0.9,-0.3,-0.2 | AX43: 0.9,-0.3,-0.25 | AY43: 0.9,-0.3,-0.3 | AZ43: 0.9,-0.3,-0.3
A44: mean_exposure_b01 | B44: array | C44: -0.0714,0,0 | D44: -0.0714,0,0.01 | E44: -0.0714,0,0.02 | F44: -0.0714,0,0.03 | G44: -0.0714,0,0.04 | H44: -0.0714,0,0.05 | I44: -0.0714,0,0.06 | J44: -0.0714,0.03,0 | K44: -0.0714,0.03,0.01 | L44: -0.0714,0.03,0.02 | M44: -0.0714,0.03,0.03 | N44: -0.0714,0.03,0.04 | O44: -0.0714,0.03,0.05 | P44: -0.0714,0.03,0.06 | Q44: -0.0714,0.06,0 | R44: -0.0714,0.06,0.01 | S44: -0.0714,0.06,0.02 | T44: -0.0714,0.06,0.03 | U44: -0.0714,0.06,0.04 | V44: -0.0714,0.06,0.05 | W44: -0.0714,0.06,0.06 | X44: -0.0714,0.09,0 | Y44: -0.0714,0.09,0.01 | Z44: -0.0714,0.09,0.02 | AA44: -0.0714,0.09,0.03 | AB44: -0.0714,0.09,0.04 | AC44: -0.0714,0.09,0.05 | AD44: -0.0714,0.09,0.06 | AE44: -0.0714,0.12,0 | AF44: -0.0714,0.12,0.01 | AG44: -0.0714,0.12,0.02 | AH44: -0.0714,0.12,0.03 | AI44: -0.0714,0.12,0.04 | AJ44: -0.0714,0.12,0.05 | AK44: -0.0714,0.12,0.06 | AL44: -0.0714,0.15,0 | AM44: -0.0714,0.15,0.01 | AN44: -0.0714,0.15,0.02 | AO44: -0.0714,0.15,0.03 | AP44: -0.0714,0.15,0.04 | AQ44: -0.0714,0.15,0.05 | AR44: -0.0714,0.15,0.06 | AS44: -0.0714,0.18,0 | AT44: -0.0714,0.18,0.01 | AU44: -0.0714,0.18,0.02 | AV44: -0.0714,0.18,0.03 | AW44: -0.0714,0.18,0.04 | AX44: -0.0714,0.18,0.05 | AY44: -0.0714,0.18,0.06 | AZ44: -0.0714,0.18,0.06
A45: mean_exposure_b10 | B45: array | C45: -0.0714,0,0 | D45: -0.0714,0,0.01 | E45: -0.0714,0,0.02 | F45: -0.0714,0,0.03 | G45: -0.0714,0,0.04 | H45: -0.0714,0,0.05 | I45: -0.0714,0,0.06 | J45: -0.0714,0.03,0 | K45: -0.0714,0.03,0.01 | L45: -0.0714,0.03,0.02 | M45: -0.0714,0.03,0.03 | N45: -0.0714,0.03,0.04 | O45: -0.0714,0.03,0.05 | P45: -0.0714,0.03,0.06 | Q45: -0.0714,0.06,0 | R45: -0.0714,0.06,0.01 | S45: -0.0714,0.06,0.02 | T45: -0.0714,0.06,0.03 | U45: -0.0714,0.06,0.04 | V45: -0.0714,0.06,0.05 | W45: -0.0714,0.06,0.06 | X45: -0.0714,0.09,0 | Y45: -0.0714,0.09,0.01 | Z45: -0.0714,0.09,0.02 | AA45: -0.0714,0.09,0.03 | AB45: -0.0714,0.09,0.04 | AC45: -0.0714,0.09,0.05 | AD45: -0.0714,0.09,0.06 | AE45: -0.0714,0.12,0 | AF45: -0.0714,0.12,0.01 | AG45: -0.0714,0.12,0.02 | AH45: -0.0714,0.12,0.03 | AI45: -0.0714,0.12,0.04 | AJ45: -0.0714,0.12,0.05 | AK45: -0.0714,0.12,0.06 | AL45: -0.0714,0.15,0 | AM45: -0.0714,0.15,0.01 | AN45: -0.0714,0.15,0.02 | AO45: -0.0714,0.15,0.03 | AP45: -0.0714,0.15,0.04 | AQ45: -0.0714,0.15,0.05 | AR45: -0.0714,0.15,0.06 | AS45: -0.0714,0.18,0 | AT45: -0.0714,0.18,0.01 | AU45: -0.0714,0.18,0.02 | AV45: -0.0714,0.18,0.03 | AW45: -0.0714,0.18,0.04 | AX45: -0.0714,0.18,0.05 | AY45: -0.0714,0.18,0.06 | AZ45: -0.0714,0.18,0.06
A46: mean_exposure_b02 | B46: default | C46: 0
A47: mean_exposure_b20 | B47: default | C47: 0
A48: mean_exposure_b11 | B48: default | C48: 0
A49: sd_exposure_b00 | B49: default | C49: 0
A50: sd_exposure_b01 | B50: default | C50: 0
A51: sd_exposure_b10 | B51: default | C51: 0
A52: sd_exposure_b02 | B52: default | C52: 0
A53: sd_exposure_b20 | B53: default | C53: 0
A54: sd_exposure_b11 | B54: default | C54: 0
A55: dweight_population | B55: default | C55: 0
A56: dweight_income | B56: range | C56: 0 | D56: 1 | E56: 0.02
A57: dweight_risk | B57: range | C57: 0 | D57: 1 | E57: 0.02
A58: dweight_age | B58: range | C58: 0 | D58: 1 | E58: 0.02
A59: dweight_sex | B59: default | C59: 0
A60: dweight_pocket | B60: custom | C60: 1

Sheet populations
A1: population | B1: target_prevalence | C1: popdens_mx | D1: popdens_my | E1: mean_household_pop | F1: disease_pockets | G1: pocket_kernel_type | H1: pocket_scaling | I1: mean_income_b00 | J1: mean_income_b01 | K1: mean_income_b10 | L1: mean_disease_b00 | M1: mean_disease_b01 | N1: mean_disease_b10 | O1: mean_exposure_b00 | P1: mean_exposure_b01 | Q1: mean_exposure_b10 | R1: dweight_income | S1: dweight_risk | T1: dweight_age | U1: Lower-left | V1: Upper-right | W1: Prob-ratio
A2: 1 | B2: 0.388 | C2: 0.82 | D2: 0.3 | E2: 5 | F2: 2 | G2: gaussian | H2: 1.61 | I2: 0.75,0.3,0.2 | J2: 0.0714,0.09,0.05 | K2: 0.0714,0.06,0.05 | L2: 0.75,0.3,0 | M2: -0.0714,0.18,0 | N2: -0.0714,0.09,0.05 | O2: 0.9,-0.25,-0.05 | P2: -0.0714,0.15,0.04 | Q2: -0.0714,0.06,0.05 | R2: 0.18 | S2: 0.2 | T2: 0.32 | U2: 0.375 | V2: 0.160 | W2: =U2/V2 -> 2.340
A3: 2 | B3: 0.492 | C3: 0.96 | D3: 0.7 | E3: 3.68 | F3: 5 | G3: inverse_square | H3: 0.86 | I3: 0.75,0.15,0.1 | J3: 0.0714,0.15,0.02 | K3: 0.0714,0.09,0.06 | L3: 0.75,0.15,0.15 | M3: -0.0714,0.12,0.05 | N3: -0.0714,0.09,0.02 | O3: 0.9,-0.1,-0.1 | P3: -0.0714,0.03,0.06 | Q3: -0.0714,0.06,0.04 | R3: 0.52 | S3: 0.58 | T3: 0.56 | U3: 0.588 | V3: 0.107 | W3: 5.516
A4: 3 | B4: 0.22 | C4: 0.26 | D4: 0.62 | E4: 4.04 | F4: 4 | G4: inverse_square | H4: 1.46 | I4: 0.75,0.05,0.2 | J4: 0.0714,0.06,0.03 | K4: 0.0714,0.18,0 | L4: 0.75,0,0.1 | M4: -0.0714,0.09,0 | N4: -0.0714,0.12,0 | O4: 0.9,0,-0.2 | P4: -0.0714,0.09,0.03 | Q4: -0.0714,0.18,0.05 | R4: 0.64 | S4: 0.18 | T4: 0.06 | U4: 0.258 | V4: 0.049 | W4: 5.312
A5: 4 | B5: 0.26 | C5: 0.7 | D5: 0.14 | E5: 4.64 | F5: 4 | G5: exponential | H5: 1.82 | I5: 0.75,0.25,0.3 | J5: 0.0714,0.15,0.04 | K5: 0.0714,0,0.06 | L5: 0.75,0.05,0.05 | M5: -0.0714,0.18,0.06 | N5: -0.0714,0.06,0.03 | O5: 0.9,-0.3,-0.15 | P5: -0.0714,0.03,0 | Q5: -0.0714,0.12,0.04 | R5: 0.7 | S5: 0.16 | T5: 1 | U5: 0.149 | V5: 0.027 | W5: 5.541
A6: 5 | B6: 0.156 | C6: 0.36 | D6: 0.4 | E6: 3.08 | F6: 1 | G6: gaussian | H6: 1.37 | I6: 0.75,0.15,0.3 | J6: 0.0714,0,0.02 | K6: 0.0714,0.06,0.01 | L6: 0.75,0,0.3 | M6: -0.0714,0.03,0.02 | N6: -0.0714,0.06,0 | O6: 0.9,0,-0.05 | P6: -0.0714,0,0.02 | Q6: -0.0714,0.12,0.02 | R6: 0.1 | S6: 0.46 | T6: 0.34 | U6: 0.118 | V6: 0.027 | W6: 4.412
A7: 6 | B7: 0.308 | C7: 0.18 | D7: 0.98 | E7: 3.2 | F7: 7 | G7: gaussian | H7: 1.73 | I7: 0.75,0.3,0.05 | J7: 0.0714,0.03,0.03 | K7: 0.0714,0,0.05 | L7: 0.75,0.1,0 | M7: -0.0714,0.03,0.06 | N7: -0.0714,0.15,0.02 | O7: 0.9,-0.2,-0.1 | P7: -0.0714,0,0.06 | Q7: -0.0714,0.09,0.06 | R7: 0.04 | S7: 0.8 | T7: 0.22 | U7: 0.366 | V7: 0.056 | W7: 6.516
A8: 7 | B8: 0.116 | C8: 0.94 | D8: 0.12 | E8: 4.1 | F8: 2 | G8: inverse_square | H8: 0.56 | I8: 0.75,0.2,0.1 | J8: 0.0714,0,0.03 | K8: 0.0714,0,0.01 | L8: 0.75,0.05,0.15 | M8: -0.0714,0.09,0.03 | N8: -0.0714,0.03,0 | O8: 0.9,-0.2,-0.15 | P8: -0.0714,0.15,0.03 | Q8: -0.0714,0.09,0.04 | R8: 0.62 | S8: 0.54 | T8: 0.3 | U8: 0.154 | V8: 0.006 | W8: 27.726
A9: 8 | B9: 0.3 | C9: 0.32 | D9: 0.24 | E9: 2.78 | F9: 10 | G9: gaussian | H9: 1.49 | I9: 0.75,0.2,0.15 | J9: 0.0714,0.15,0.01 | K9: 0.0714,0.18,0.05 | L9: 0.75,0.05,0.3 | M9: -0.0714,0.18,0.04 | N9: -0.0714,0.15,0.04 | O9: 0.9,-0.1,-0.25 | P9: -0.0714,0.12,0.01 | Q9: -0.0714,0.18,0.01 | R9: 0.34 | S9: 0.82 | T9: 0.2 | U9: 0.390 | V9: 0.048 | W9: 8.074
A10: 9 | B10: 0.196 | C10: 0.48 | D10: 0.38 | E10: 4.7 | F10: 1 | G10: inverse_square | H10: 1.76 | I10: 0.75,0.05,0.3 | J10: 0.0714,0.18,0 | K10: 0.0714,0.03,0.06 | L10: 0.75,0.15,0.2 | M10: -0.0714,0.18,0.06 | N10: -0.0714,0.09,0 | O10: 0.9,-0.15,-0.25 | P10: -0.0714,0.18,0.03 | Q10: -0.0714,0.03,0 | R10: 0.24 | S10: 0.9 | T10: 0.96 | U10: 0.222 | V10: 0.019 | W10: 11.824
A11: 10 | B11: 0.204 | C11: 0.16 | D11: 0.72 | E11: 4.34 | F11: 10 | G11: gaussian | H11: 0.95 | I11: 0.75,0.05,0.25 | J11: 0.0714,0.03,0.04 | K11: 0.0714,0.03,0.04 | L11: 0.75,0.3,0.1 | M11: -0.0714,0.06,0.01 | N11: -0.0714,0.15,0 | O11: 0.9,-0.05,-0.15 | P11: -0.0714,0.09,0 | Q11: -0.0714,0.18,0.03 | R11: 0.4 | S11: 0.44 | T11: 0.12 | U11: 0.230 | V11: 0.033 | W11: 7.076
A12: 11 | B12: 0.38 | C12: 0.02 | D12: 0.16 | E12: 4.88 | F12: 8 | G12: exponential | H12: 2 | I12: 0.75,0,0.15 | J12: 0.0714,0.15,0.05 | K12: 0.0714,0.18,0.03 | L12: 0.75,0.2,0 | M12: -0.0714,0.12,0.02 | N12: -0.0714,0.18,0.01 | O12: 0.9,-0.15,-0.15 | P12: -0.0714,0.18,0.04 | Q12: -0.0714,0.18,0.02 | R12: 0.78 | S12: 0.5 | T12: 0.64 | U12: 0.325 | V12: 0.024 | W12: 13.309
A13: 12 | B13: 0.292 | C13: 0.22 | D13: 0.96 | E13: 4.22 | F13: 0 | G13: gaussian | H13: 1.58 | I13: 0.75,0.1,0.15 | J13: 0.0714,0.09,0.04 | K13: 0.0714,0.12,0.04 | L13: 0.75,0.15,0.3 | M13: -0.0714,0,0.01 | N13: -0.0714,0.03,0.01 | O13: 0.9,0,0 | P13: -0.0714,0.03,0.02 | Q13: -0.0714,0.12,0.05 | R13: 0.2 | S13: 0.26 | T13: 0.02 | U13: 0.366 | V13: 0.097 | W13: 3.786
A14: 13 | B14: 0.46 | C14: 0.2 | D14: 0.52 | E14: 3.74 | F14: 8 | G14: inverse_square | H14: 0.62 | I14: 0.75,0.15,0.25 | J14: 0.0714,0.18,0.05 | K14: 0.0714,0.12,0.03 | L14: 0.75,0.15,0 | M14: -0.0714,0.18,0.05 | N14: -0.0714,0.18,0.05 | O14: 0.9,-0.15,-0.05 | P14: -0.0714,0.18,0.06 | Q14: -0.0714,0.18,0.06 | R14: 0.76 | S14: 0.42 | T14: 0.86 | U14: 0.496 | V14: 0.082 | W14: 6.075
A15: 14 | B15: 0.148 | C15: 0.04 | D15: 0.92 | E15: 3.26 | F15: 9 | G15: exponential | H15: 0.59 | I15: 0.75,0.25,0.05 | J15: 0.0714,0,0.06 | K15: 0.0714,0.15,0.06 | L15: 0.75,0.25,0 | M15: -0.0714,0.09,0.02 | N15: -0.0714,0.09,0.01 | O15: 0.9,-0.25,-0.15 | P15: -0.0714,0.06,0 | Q15: -0.0714,0,0.04 | R15: 0.92 | S15: 0.04 | T15: 0.66 | U15: 0.079 | V15: 0.017 | W15: 4.688
A16: 15 | B16: 0.212 | C16: 0.14 | D16: 0.06 | E16: 2.3 | F16: 0 | G16: gaussian | H16: 1.25 | I16: 0.75,0.1,0.25 | J16: 0.0714,0.18,0.06 | K16: 0.0714,0.12,0.06 | L16: 0.75,0.05,0.2 | M16: -0.0714,0.09,0.04 | N16: -0.0714,0.12,0.04 | O16: 0.9,-0.05,-0.25 | P16: -0.0714,0.06,0.05 | Q16: -0.0714,0.09,0.01 | R16: 0.98 | S16: 0.72 | T16: 0.48 | U16: 0.291 | V16: 0.008 | W16: 34.494
A17: 16 | B17: 0.428 | C17: 0.08 | D17: 0.58 | E17: 2.9 | F17: 8 | G17: exponential | H17: 0.77 | I17: 0.75,0.2,0.3 | J17: 0.0714,0.12,0.06 | K17: 0.0714,0.15,0.01 | L17: 0.75,0.1,0.1 | M17: -0.0714,0,0 | N17: -0.0714,0.18,0.06 | O17: 0.9,-0.15,-0.3 | P17: -0.0714,0.18,0.01 | Q17: -0.0714,0.03,0.02 | R17: 0.38 | S17: 0.12 | T17: 0.7 | U17: 0.258 | V17: 0.101 | W17: 2.544
A18: 17 | B18: 0.42 | C18: 0.12 | D18: 0.56 | E18: 2.42 | F18: 0 | G18: gaussian | H18: 1.31 | I18: 0.75,0,0.3 | J18: 0.0714,0.09,0.03 | K18: 0.0714,0.12,0.01 | L18: 0.75,0.2,0.2 | M18: -0.0714,0.15,0.02 | N18: -0.0714,0,0 | O18: 0.9,-0.1,-0.2 | P18: -0.0714,0.12,0.04 | Q18: -0.0714,0.15,0.05 | R18: 0.56 | S18: 0.34 | T18: 0.62 | U18: 0.429 | V18: 0.050 | W18: 8.609
A19: 18 | B19: 0.164 | C19: 0.5 | D19: 0.48 | E19: 4.94 | F19: 7 | G19: exponential | H19: 1.64 | I19: 0.75,0.2,0.25 | J19: 0.0714,0.12,0.03 | K19: 0.0714,0.03,0 | L19: 0.75,0.1,0.25 | M19: -0.0714,0.15,0 | N19: -0.0714,0,0.03 | O19: 0.9,-0.05,-0.05 | P19: -0.0714,0.12,0.05 | Q19: -0.0714,0.18,0.04 | R19: 0.54 | S19: 0.38 | T19: 0.36 | U19: 0.117 | V19: 0.008 | W19: 14.170
A20: 19 | B20: 0.332 | C20: 0.42 | D20: 0.08 | E20: 3.14 | F20: 9 | G20: inverse_square | H20: 0.71 | I20: 0.75,0.3,0.3 | J20: 0.0714,0.12,0 | K20: 0.0714,0.06,0.06 | L20: 0.75,0.2,0.3 | M20: -0.0714,0.12,0.03 | N20: -0.0714,0,0.06 | O20: 0.9,-0.05,-0.1 | P20: -0.0714,0.12,0.03 | Q20: -0.0714,0.06,0.02 | R20: 0.06 | S20: 0.48 | T20: 0.04 | U20: 0.415 | V20: 0.120 | W20: 3.449
A21: 20 | B21: 0.468 | C21: 0.68 | D21: 0.88 | E21: 4.4 | F21: 6 | G21: inverse_square | H21: 1.4 | I21: 0.75,0.2,0.05 | J21: 0.0714,0.09,0.02 | K21: 0.0714,0.18,0.06 | L21: 0.75,0,0.25 | M21: -0.0714,0.06,0.02 | N21: -0.0714,0.15,0.06 | O21: 0.9,-0.3,-0.3 | P21: -0.0714,0.09,0.02 | Q21: -0.0714,0.12,0.06 | R21: 0.28 | S21: 0.86 | T21: 0.76 | U21: 0.549 | V21: 0.092 | W21: 5.956
A22: 21 | B22: 0.188 | C22: 0.88 | D22: 1 | E22: 2.84 | F22: 4 | G22: exponential | H22: 1.94 | I22: 0.75,0.15,0.15 | J22: 0.0714,0.03,0.01 | K22: 0.0714,0.06,0.02 | L22: 0.75,0.25,0.3 | M22: -0.0714,0.18,0.02 | N22: -0.0714,0.06,0.01 | O22: 0.9,-0.2,-0.3 | P22: -0.0714,0.03,0.04 | Q22: -0.0714,0.12,0.03 | R22: 0.3 | S22: 0.7 | T22: 0.24 | U22: 0.171 | V22: 0.012 | W22: 14.702
A23: 22 | B23: 0.108 | C23: 0.78 | D23: 0.54 | E23: 3.44 | F23: 7 | G23: exponential | H23: 1.55 | I23: 0.75,0.15,0.2 | J23: 0.0714,0.06,0.05 | K23: 0.0714,0.12,0.02 | L23: 0.75,0.2,0.1 | M23: -0.0714,0.15,0.06 | N23: -0.0714,0,0.02 | O23: 0.9,-0.25,-0.3 | P23: -0.0714,0.12,0.02 | Q23: -0.0714,0,0 | R23: 0.82 | S23: 0.92 | T23: 0.4 | U23: 0.173 | V23: 0.001 | W23: 116.610
A24: 23 | B24: 0.404 | C24: 0.9 | D24: 0.64 | E24: 4.76 | F24: 7 | G24: exponential | H24: 0.65 | I24: 0.75,0.1,0.3 | J24: 0.0714,0.18,0.01 | K24: 0.0714,0.03,0.01 | L24: 0.75,0.15,0.25 | M24: -0.0714,0.15,0.03 | N24: -0.0714,0,0.04 | O24: 0.9,-0.3,-0.05 | P24: -0.0714,0.09,0.06 | Q24: -0.0714,0.15,0.01 | R24: 0.36 | S24: 0.76 | T24: 0.82 | U24: 0.499 | V24: 0.056 | W24: 8.895
A25: 24 | B25: 0.18 | C25: 0.1 | D25: 0.94 | E25: 2.24 | F25: 3 | G25: exponential | H25: 1.43 | I25: 0.75,0.1,0 | J25: 0.0714,0.12,0.01 | K25: 0.0714,0.12,0.05 | L25: 0.75,0,0.05 | M25: -0.0714,0,0.05 | N25: -0.0714,0.06,0.06 | O25: 0.9,-0.3,-0.3 | P25: -0.0714,0,0.01 | Q25: -0.0714,0.09,0.02 | R25: 0.46 | S25: 0.32 | T25: 0.98 | U25: 0.048 | V25: 0.005 | W25: 9.330
A26: 25 | B26: 0.172 | C26: 0.56 | D26: 0.84 | E26: 2.72 | F26: 6 | G26: gaussian | H26: 0.98 | I26: 0.75,0.25,0 | J26: 0.0714,0.15,0.06 | K26: 0.0714,0.18,0.06 | L26: 0.75,0.25,0.15 | M26: -0.0714,0.12,0.01 | N26: -0.0714,0.18,0.04 | O26: 0.9,-0.2,0 | P26: -0.0714,0.03,0.05 | Q26: -0.0714,0.12,0 | R26: 0.48 | S26: 0.56 | T26: 0.88 | U26: 0.096 | V26: 0.010 | W26: 9.419
A27: 26 | B27: 0.324 | C27: 0.86 | D27: 0.76 | E27: 3.38 | F27: 1 | G27: inverse_square | H27: 1.91 | I27: 0.75,0.1,0.05 | J27: 0.0714,0.18,0.03 | K27: 0.0714,0.18,0.02 | L27: 0.75,0.3,0.15 | M27: -0.0714,0.12,0 | N27: -0.0714,0.12,0.01 | O27: 0.9,-0.25,-0.2 | P27: -0.0714,0.18,0.05 | Q27: -0.0714,0,0.03 | R27: 0.74 | S27: 0.24 | T27: 0.74 | U27: 0.298 | V27: 0.056 | W27: 5.360
A28: 27 | B28: 0.244 | C28: 0.4 | D28: 0.5 | E28: 3.32 | F28: 3 | G28: inverse_square | H28: 1.19 | I28: 0.75,0,0.2 | J28: 0.0714,0.03,0 | K28: 0.0714,0.15,0.03 | L28: 0.75,0.25,0.25 | M28: -0.0714,0.12,0.06 | N28: -0.0714,0.09,0.03 | O28: 0.9,0,-0.3 | P28: -0.0714,0.15,0 | Q28: -0.0714,0.18,0 | R28: 0.26 | S28: 0.62 | T28: 0.9 | U28: 0.190 | V28: 0.026 | W28: 7.192
A29: 28 | B29: 0.348 | C29: 0.98 | D29: 0.1 | E29: 2.12 | F29: 9 | G29: inverse_square | H29: 0.89 | I29: 0.75,0.1,0.1 | J29: 0.0714,0.03,0.06 | K29: 0.0714,0.03,0.05 | L29: 0.75,0.2,0.25 | M29: -0.0714,0.15,0.04 | N29: -0.0714,0.12,0.03 | O29: 0.9,-0.1,-0.3 | P29: -0.0714,0.15,0.02 | Q29: -0.0714,0,0.06 | R29: 0.94 | S29: 0.52 | T29: 0.44 | U29: 0.474 | V29: 0.037 | W29: 12.680
A30: 29 | B30: 0.34 | C30: 0.54 | D30: 0.02 | E30: 4.28 | F30: 9 | G30: gaussian | H30: 0.8 | I30: 0.75,0.3,0.3 | J30: 0.0714,0.18,0.02 | K30: 0.0714,0,0.03 | L30: 0.75,0.1,0.15 | M30: -0.0714,0,0.02 | N30: -0.0714,0.09,0.06 | O30: 0.9,-0.05,-0.2 | P30: -0.0714,0.12,0.06 | Q30: -0.0714,0.09,0.03 | R30: 0.6 | S30: 0.78 | T30: 0.8 | U30: 0.531 | V30: 0.030 | W30: 17.754
A31: 30 | B31: 0.132 | C31: 0.34 | D31: 0.78 | E31: 2.36 | F31: 6 | G31: gaussian | H31: 1.22 | I31: 0.75,0.25,0.15 | J31: 0.0714,0.03,0.05 | K31: 0.0714,0.15,0.05 | L31: 0.75,0.15,0.1 | M31: -0.0714,0.06,0 | N31: -0.0714,0.18,0.06 | O31: 0.9,-0.1,-0.05 | P31: -0.0714,0,0 | Q31: -0.0714,0.06,0.03 | R31: 0.42 | S31: 0.64 | T31: 0.46 | U31: 0.087 | V31: 0.008 | W31: 11.296
A32: 31 | B32: 0.476 | C32: 0.76 | D32: 0.36 | E32: 3.56 | F32: 9 | G32: exponential | H32: 1.34 | I32: 0.75,0.2,0 | J32: 0.0714,0.15,0 | K32: 0.0714,0.06,0 | L32: 0.75,0.05,0 | M32: -0.0714,0.03,0 | N32: -0.0714,0.03,0.03 | O32: 0.9,-0.1,-0.15 | P32: -0.0714,0.15,0.05 | Q32: -0.0714,0.03,0.06 | R32: 0.58 | S32: 0.66 | T32: 0.14 | U32: 0.733 | V32: 0.062 | W32: 11.865
A33: 32 | B33: 0.276 | C33: 0.44 | D33: 0.04 | E33: 3.92 | F33: 4 | G33: inverse_square | H33: 1.88 | I33: 0.75,0.3,0.15 | J33: 0.0714,0,0.04 | K33: 0.0714,0.09,0.04 | L33: 0.75,0.1,0.3 | M33: -0.0714,0.18,0.03 | N33: -0.0714,0.12,0.05 | O33: 0.9,-0.15,-0.1 | P33: -0.0714,0.06,0.01 | Q33: -0.0714,0.06,0 | R33: 0.32 | S33: 0.98 | T33: 0.78 | U33: 0.388 | V33: 0.050 | W33: 7.759
A34: 33 | B34: 0.364 | C34: 0.72 | D34: 0.46 | E34: 2.06 | F34: 10 | G34: gaussian | H34: 1.85 | I34: 0.75,0.25,0.25 | J34: 0.0714,0.06,0 | K34: 0.0714,0.09,0.02 | L34: 0.75,0.1,0.2 | M34: -0.0714,0.03,0.04 | N34: -0.0714,0.18,0.03 | O34: 0.9,-0.3,-0.25 | P34: -0.0714,0.18,0.06 | Q34: -0.0714,0.09,0 | R34: 0.08 | S34: 0.02 | T34: 0.38 | U34: 0.112 | V34: 0.093 | W34: =U34/V34 -> 1.205
A35: 34 | B35: 0.444 | C35: 0.58 | D35: 0.66 | E35: 3.02 | F35: 5 | G35: gaussian | H35: 0.83 | I35: 0.75,0.25,0.1 | J35: 0.0714,0.18,0.04 | K35: 0.0714,0.03,0.03 | L35: 0.75,0,0.2 | M35: -0.0714,0.06,0.05 | N35: -0.0714,0.15,0.05 | O35: 0.9,0,-0.25 | P35: -0.0714,0.03,0.01 | Q35: -0.0714,0.15,0.03 | R35: 0.86 | S35: 0.08 | T35: 0.92 | U35: 0.336 | V35: 0.081 | W35: 4.138
A36: 35 | B36: 0.284 | C36: 0.74 | D36: 0.86 | E36: 2.18 | F36: 8 | G36: inverse_square | H36: 1.67 | I36: 0.75,0.3,0 | J36: 0.0714,0,0 | K36: 0.0714,0.15,0 | L36: 0.75,0.3,0.3 | M36: -0.0714,0.15,0.01 | N36: -0.0714,0.09,0.04 | O36: 0.9,-0.15,-0.2 | P36: -0.0714,0.18,0 | Q36: -0.0714,0.18,0.06 | R36: 0.72 | S36: 0.22 | T36: 0.84 | U36: 0.142 | V36: 0.017 | W36: 8.495
A37: 36 | B37: 0.14 | C37: 0.38 | D37: 0.22 | E37: 3.98 | F37: 5 | G37: gaussian | H37: 1.07 | I37: 0.75,0.1,0.2 | J37: 0.0714,0.12,0.04 | K37: 0.0714,0,0.04 | L37: 0.75,0.25,0.1 | M37: -0.0714,0,0.04 | N37: -0.0714,0.18,0.02 | O37: 0.9,-0.3,0 | P37: -0.0714,0.06,0.03 | Q37: -0.0714,0,0.01 | R37: 0.5 | S37: 0.74 | T37: 0.18 | U37: 0.211 | V37: 0.015 | W37: 13.634
A38: 37 | B38: 0.372 | C38: 0.66 | D38: 0.9 | E38: 4.82 | F38: 3 | G38: exponential | H38: 1.7 | I38: 0.75,0.3,0.25 | J38: 0.0714,0.06,0.02 | K38: 0.0714,0,0 | L38: 0.75,0.1,0.05 | M38: -0.0714,0.09,0.01 | N38: -0.0714,0,0.05 | O38: 0.9,-0.15,0 | P38: -0.0714,0.06,0.04 | Q38: -0.0714,0.03,0.03 | R38: 0.44 | S38: 0.3 | T38: 0.5 | U38: 0.357 | V38: 0.059 | W38: 6.023
A39: 38 | B39: 0.228 | C39: 1 | D39: 0.74 | E39: 2.96 | F39: 2 | G39: gaussian | H39: 1.28 | I39: 0.75,0,0.05 | J39: 0.0714,0.03,0.02 | K39: 0.0714,0.15,0.04 | L39: 0.75,0.3,0.2 | M39: -0.0714,0.06,0.03 | N39: -0.0714,0,0.01 | O39: 0.9,-0.1,0 | P39: -0.0714,0.09,0.01 | Q39: -0.0714,0.12,0.01 | R39: 0.22 | S39: 0.36 | T39: 0.26 | U39: 0.180 | V39: 0.037 | W39: 4.886
A40: 39 | B40: 0.268 | C40: 0.84 | D40: 0.34 | E40: 4.58 | F40: 3 | G40: inverse_square | H40: 1.16 | I40: 0.75,0.05,0.1 | J40: 0.0714,0.12,0.02 | K40: 0.0714,0.15,0.02 | L40: 0.75,0.3,0.25 | M40: -0.0714,0.03,0.01 | N40: -0.0714,0.18,0 | O40: 0.9,-0.2,-0.25 | P40: -0.0714,0.18,0.02 | Q40: -0.0714,0.03,0.04 | R40: 0.9 | S40: 0.84 | T40: 0.16 | U40: 0.622 | V40: 0.023 | W40: 26.959
A41: 40 | B41: 0.452 | C41: 0.64 | D41: 0.68 | E41: 3.62 | F41: 6 | G41: exponential | H41: 1.52 | I41: 0.75,0.15,0.05 | J41: 0.0714,0,0.01 | K41: 0.0714,0.09,0 | L41: 0.75,0,0 | M41: -0.0714,0,0.06 | N41: -0.0714,0.12,0.02 | O41: 0.9,-0.25,-0.25 | P41: -0.0714,0,0.05 | Q41: -0.0714,0.15,0.06 | R41: 0.02 | S41: 0.1 | T41: 0.54 | U41: 0.233 | V41: 0.160 | W41: 1.457
A42: 41 | B42: 0.412 | C42: 0.28 | D42: 0.32 | E42: 2.54 | F42: 10 | G42: gaussian | H42: 0.53 | I42: 0.75,0.15,0 | J42: 0.0714,0.12,0.05 | K42: 0.0714,0.12,0 | L42: 0.75,0.05,0.25 | M42: -0.0714,0.06,0.06 | N42: -0.0714,0.03,0.02 | O42: 0.9,0,-0.15 | P42: -0.0714,0.09,0.04 | Q42: -0.0714,0.06,0.01 | R42: 0.88 | S42: 0.88 | T42: 0.72 | U42: 0.676 | V42: 0.020 | W42: 34.178
A43: 42 | B43: 0.436 | C43: 0.46 | D43: 0.8 | E43: 4.46 | F43: 7 | G43: exponential | H43: 1.1 | I43: 0.75,0.2,0.2 | J43: 0.0714,0.15,0.03 | K43: 0.0714,0.18,0.01 | L43: 0.75,0.15,0.05 | M43: -0.0714,0.03,0.03 | N43: -0.0714,0.03,0.04 | O43: 0.9,-0.2,-0.05 | P43: -0.0714,0.15,0.06 | Q43: -0.0714,0,0.05 | R43: 1 | S43: 0.68 | T43: 0.58 | U43: 0.744 | V43: 0.042 | W43: 17.755
A44: 43 | B44: 0.236 | C44: 0.6 | D44: 0.42 | E44: 3.5 | F44: 0 | G44: inverse_square | H44: 1.79 | I44: 0.75,0.3,0.1 | J44: 0.0714,0.06,0.06 | K44: 0.0714,0.09,0.01 | L44: 0.75,0.3,0.05 | M44: -0.0714,0.03,0.05 | N44: -0.0714,0.12,0.06 | O44: 0.9,-0.2,-0.2 | P44: -0.0714,0.15,0.01 | Q44: -0.0714,0.15,0 | R44: 0.66 | S44: 0.28 | T44: 0.28 | U44: 0.271 | V44: 0.032 | W44: 8.443
A45: 44 | B45: 0.484 | C45: 0.24 | D45: 0.6 | E45: 4.52 | F45: 5 | G45: gaussian | H45: 0.92 | I45: 0.75,0.05,0.05 | J45: 0.0714,0.09,0 | K45: 0.0714,0.09,0.05 | L45: 0.75,0.25,0.05 | M45: -0.0714,0.06,0.04 | N45: -0.0714,0.03,0.05 | O45: 0.9,-0.3,-0.1 | P45: -0.0714,0.03,0.03 | Q45: -0.0714,0.15,0.02 | R45: 0.96 | S45: 0.6 | T45: 0.68 | U45: 0.751 | V45: 0.065 | W45: 11.526
A46: 45 | B46: 0.396 | C46: 0.92 | D46: 0.18 | E46: 4.16 | F46: 1 | G46: exponential | H46: 1.13 | I46: 0.75,0,0.1 | J46: 0.0714,0.09,0.01 | K46: 0.0714,0.06,0.04 | L46: 0.75,0,0.15 | M46: -0.0714,0.09,0.05 | N46: -0.0714,0.06,0.02 | O46: 0.9,-0.05,0 | P46: -0.0714,0.12,0 | Q46: -0.0714,0.03,0.05 | R46: 0.84 | S46: 0.14 | T46: 0.42 | U46: 0.490 | V46: 0.079 | W46: 6.213
A47: 46 | B47: 0.252 | C47: 0.06 | D47: 0.26 | E47: 2.66 | F47: 3 | G47: inverse_square | H47: 1.97 | I47: 0.75,0.05,0.15 | J47: 0.0714,0.09,0.06 | K47: 0.0714,0.06,0.03 | L47: 0.75,0.25,0.2 | M47: -0.0714,0,0.03 | N47: -0.0714,0.06,0.05 | O47: 0.9,-0.25,0 | P47: -0.0714,0.06,0.06 | Q47: -0.0714,0.03,0.01 | R47: 0.8 | S47: 0.94 | T47: 0.08 | U47: 0.666 | V47: 0.018 | W47: 36.572
A48: 47 | B48: 0.356 | C48: 0.62 | D48: 0.82 | E48: 3.8 | F48: 10 | G48: exponential | H48: 0.68 | I48: 0.75,0,0.25 | J48: 0.0714,0.06,0.01 | K48: 0.0714,0.18,0.04 | L48: 0.75,0.3,0.3 | M48: -0.0714,0.09,0.06 | N48: -0.0714,0.15,0.03 | O48: 0.9,-0.25,-0.1 | P48: -0.0714,0,0.04 | Q48: -0.0714,0,0.02 | R48: 0.68 | S48: 0.96 | T48: 0.94 | U48: 0.468 | V48: 0.022 | W48: 21.242
A49: 48 | B49: 0.316 | C49: 0.8 | D49: 0.2 | E49: 2.48 | F49: 2 | G49: inverse_square | H49: 1.01 | I49: 0.75,0.05,0 | J49: 0.0714,0.18,0.06 | K49: 0.0714,0,0.02 | L49: 0.75,0.2,0.15 | M49: -0.0714,0.12,0.04 | N49: -0.0714,0.15,0.01 | O49: 0.9,0,-0.1 | P49: -0.0714,0.06,0.02 | Q49: -0.0714,0.15,0.04 | R49: 0.12 | S49: 0.06 | T49: 0.1 | U49: 0.235 | V49: 0.152 | W49: 1.544
A50: 49 | B50: 0.124 | C50: 0.52 | D50: 0.44 | E50: 3.86 | F50: 1 | G50: exponential | H50: 0.74 | I50: 0.75,0,0 | J50: 0.0714,0.06,0.04 | K50: 0.0714,0.09,0.03 | L50: 0.75,0.05,0.1 | M50: -0.0714,0.18,0.01 | N50: -0.0714,0.03,0.06 | O50: 0.9,-0.05,-0.3 | P50: -0.0714,0,0.03 | Q50: -0.0714,0.09,0.05 | R50: 0.16 | S50: 1 | T50: 0.52 | U50: 0.146 | V50: 0.010 | W50: 14.158
A51: 50 | B51: 0.5 | C51: 0.3 | D51: 0.28 | E51: 2.6 | F51: 5 | G51: inverse_square | H51: 1.04 | I51: 0.75,0.25,0.2 | J51: 0.0714,0,0.05 | K51: 0.0714,0.03,0.02 | L51: 0.75,0.2,0.05 | M51: -0.0714,0.15,0.05 | N51: -0.0714,0.06,0.04 | O51: 0.9,-0.3,-0.2 | P51: -0.0714,0.09,0.05 | Q51: -0.0714,0.06,0.06 | R51: 0.14 | S51: 0.4 | T51: 0.6 | U51: 0.455 | V51: 0.142 | W51: 3.193
A52: vanilla-1 | B52: 0.5 | C52: 0 | D52: 0 | E52: 2.3 | F52: 0 | G52: n/a | H52: n/a | I52: 0 | J52: 0 | K52: 0 | L52: 0 | M52: 0 | N52: 0 | O52: 0.5 | P52: 0 | Q52: 0 | R52: 0 | S52: 1 | T52: 0 | U52: 0.5 | V52: 0.5 | W52: 1
A53: vanilla-2 | B53: 0.2 | C53: 0 | D53: 0 | E53: 2.3 | F53: 0 | G53: n/a | H53: n/a | I53: 0 | J53: 0 | K53: 0 | L53: 0 | M53: 0 | N53: 0 | O53: 0.5 | P53: 0 | Q53: 0 | R53: 0 | S53: 1 | T53: 0 | U53: 0.2 | V53: 0.2 | W53: 1
A54: vanilla-3 | B54: 0.3 | C54: 0 | D54: 0 | E54: 2.3 | F54: 0 | G54: n/a | H54: n/a | I54: 0 | J54: 0 | K54: 0 | L54: 0 | M54: 0 | N54: 0 | O54: 0.5 | P54: 0 | Q54: 0 | R54: 0 | S54: 1 | T54: 0 | U54: 0.3 | V54: 0.3 | W54: 1

Sheet RR=1
B1: Means of Ratios | J1: Means of Ratios of Sqrts
B2: Prevalence | E2: RR | J2: Prevalence | M2: RR
B3: n=7 | C3: n=15 | D3: n=30 | E3: n=7 | F3: n=15 | G3: n=30 | J3: n=7 | K3: n=15 | L3: n=30 | M3: n=7 | N3: n=15 | O3: n=30
A4: NewEPI | B4: =AVERAGE(AA65,AA78,AA91,AA104,AA117,AA130,AA143,AA156,AA169,AA182,AA195,AA208,AA221,AA234,AA247,AA260,AA273,AA286,AA299,AA312,AA325,AA338,AA351,AA364,AA377,AA390,AA403,AA416,AA429,AA442,AA455,AA468,AA481,AA494,AA507,AA520,AA533,AA546,AA559,AA572,AA585,AA598,AA611,AA624,AA637,AA650,AA663,AA676,AA689,AA702,AA715,AA728,AA741) -> 1.392 | C4: =AVERAGE(AC65,AC78,AC91,AC104,AC117,AC130,AC143,AC156,AC169,AC182,AC195,AC208,AC221,AC234,AC247,AC260,AC273,AC286,AC299,AC312,AC325,AC338,AC351,AC364,AC377,AC390,AC403,AC416,AC429,AC442,AC455,AC468,AC481,AC494,AC507,AC520,AC533,AC546,AC559,AC572,AC585,AC598,AC611,AC624,AC637,AC650,AC663,AC676,AC689,AC702,AC715,AC728,AC741) -> 1.979 | D4: =AVERAGE(AE65,AE78,AE91,AE104,AE117,AE130,AE143,AE156,AE169,AE182,AE195,AE208,AE221,AE234,AE247,AE260,AE273,AE286,AE299,AE312,AE325,AE338,AE351,AE364,AE377,AE390,AE403,AE416,AE429,AE442,AE455,AE468,AE481,AE494,AE507,AE520,AE533,AE546,AE559,AE572,AE585,AE598,AE611,AE624,AE637,AE650,AE663,AE676,AE689,AE702,AE715,AE728,AE741) -> 2.907 | E4: =AVERAGE(AB65,AB78,AB91,AB104,AB117,AB130,AB143,AB156,AB169,AB182,AB195,AB208,AB221,AB234,AB247,AB260,AB273,AB286,AB299,AB312,AB325,AB338,AB351,AB364,AB377,AB390,AB403,AB416,AB429,AB442,AB455,AB468,AB481,AB494,AB507,AB520,AB533,AB546,AB559,AB572,AB585,AB598,AB611,AB624,AB637,AB650,AB663,AB676,AB689,AB702,AB715,AB728,AB741) -> 1.235 | F4: =AVERAGE(AD65,AD78,AD91,AD104,AD117,AD130,AD143,AD156,AD169,AD182,AD195,AD208,AD221,AD234,AD247,AD260,AD273,AD286,AD299,AD312,AD325,AD338,AD351,AD364,AD377,AD390,AD403,AD416,AD429,AD442,AD455,AD468,AD481,AD494,AD507,AD520,AD533,AD546,AD559,AD572,AD585,AD598,AD611,AD624,AD637,AD650,AD663,AD676,AD689,AD702,AD715,AD728,AD741) -> 1.736 | G4: =AVERAGE(AF65,AF78,AF91,AF104,AF117,AF130,AF143,AF156,AF169,AF182,AF195,AF208,AF221,AF234,AF247,AF260,AF273,AF286,AF299,AF312,AF325,AF338,AF351,AF364,AF377,AF390,AF403,AF416,AF429,AF442,AF455,AF468,AF481,AF494,AF507,AF520,AF533,AF546,AF559,AF572,AF585,AF598,AF611,AF624,AF637,AF650,AF663,AF676,AF689,AF702,AF715,AF728,AF741) -> 2.498 | I4: enum | J4: =AVERAGE(AO65,AO78,AO91,AO104,AO117,AO130,AO143,AO156,AO169,AO182,AO195,AO208,AO221,AO234,AO247,AO260,AO273,AO286,AO299,AO312,AO325,AO338,AO351,AO364,AO377,AO390,AO403,AO416,AO429,AO442,AO455,AO468,AO481,AO494,AO507,AO520,AO533,AO546,AO559,AO572,AO585,AO598,AO611,AO624,AO637,AO650,AO663,AO676,AO689,AO702) -> 1.184 | K4: =AVERAGE(AQ65,AQ78,AQ91,AQ104,AQ117,AQ130,AQ143,AQ156,AQ169,AQ182,AQ195,AQ208,AQ221,AQ234,AQ247,AQ260,AQ273,AQ286,AQ299,AQ312,AQ325,AQ338,AQ351,AQ364,AQ377,AQ390,AQ403,AQ416,AQ429,AQ442,AQ455,AQ468,AQ481,AQ494,AQ507,AQ520,AQ533,AQ546,AQ559,AQ572,AQ585,AQ598,AQ611,AQ624,AQ637,AQ650,AQ663,AQ676,AQ689,AQ702) -> 1.412 | L4: =AVERAGE(AS65,AS78,AS91,AS104,AS117,AS130,AS143,AS156,AS169,AS182,AS195,AS208,AS221,AS234,AS247,AS260,AS273,AS286,AS299,AS312,AS325,AS338,AS351,AS364,AS377,AS390,AS403,AS416,AS429,AS442,AS455,AS468,AS481,AS494,AS507,AS520,AS533,AS546,AS559,AS572,AS585,AS598,AS611,AS624,AS637,AS650,AS663,AS676,AS689,AS702) -> 1.625 | M4: =AVERAGE(AP65,AP78,AP91,AP104,AP117,AP130,AP143,AP156,AP169,AP182,AP195,AP208,AP221,AP234,AP247,AP260,AP273,AP286,AP299,AP312,AP325,AP338,AP351,AP364,AP377,AP390,AP403,AP416,AP429,AP442,AP455,AP468,AP481,AP494,AP507,AP520,AP533,AP546,AP559,AP572,AP585,AP598,AP611,AP624,AP637,AP650,AP663,AP676,AP689,AP702) -> 1.077 | N4: =AVERAGE(AR65,AR78,AR91,AR104,AR117,AR130,AR143,AR156,AR169,AR182,AR195,AR208,AR221,AR234,AR247,AR260,AR273,AR286,AR299,AR312,AR325,AR338,AR351,AR364,AR377,AR390,AR403,AR416,AR429,AR442,AR455,AR468,AR481,AR494,AR507,AR520,AR533,AR546,AR559,AR572,AR585,AR598,AR611,AR624,AR637,AR650,AR663,AR676,AR689,AR702) -> 1.311 | O4: =AVERAGE(AT65,AT78,AT91,AT104,AT117,AT130,AT143,AT156,AT169,AT182,AT195,AT208,AT221,AT234,AT247,AT260,AT273,AT286,AT299,AT312,AT325,AT338,AT351,AT364,AT377,AT390,AT403,AT416,AT429,AT442,AT455,AT468,AT481,AT494,AT507,AT520,AT533,AT546,AT559,AT572,AT585,AT598,AT611,AT624,AT637,AT650,AT663,AT676,AT689,AT702) -> 1.445
A5: Grid | B5: 1.614 | C5: 2.382 | D5: 3.699 | E5: 2.943 | F5: 2.148 | G5: 2.892 | I5: grid_epi | J5: 1.277 | K5: 1.549 | L5: 1.919 | M5: 1.346 | N5: 1.458 | O5: 1.675
A6: Peri | B6: 1.468 | C6: 2.128 | D6: 3.245 | E6: 3.196 | F6: 1.499 | G6: 2.050 | I6: peri_epi | J6: 1.195 | K6: 1.429 | L6: 1.735 | M6: 1.247 | N6: 1.202 | O6: 1.352
A7: Quad | B7: 1.585 | C7: 2.232 | D7: 3.469 | E7: 4.417 | F7: 1.139 | G7: 1.381 | I7: qtr_epi | J7: 1.235 | K7: 1.435 | L7: 1.747 | M7: 1.326 | N7: 1.054 | O7: 1.162
A8: Square | B8: 1.031 | C8: 1.074 | D8: 1.145 | E8: 3.537 | F8: 1.018 | G8: 0.990 | I8: square_gps | J8: 1.015 | K8: 1.038 | L8: 1.070 | M8: 1.216 | N8: 1.005 | O8: 0.992
A9: OldEPI | B9: 1.993 | C9: 3.131 | D9: 4.985 | E9: 4.834 | F9: 1.848 | G9: 2.495 | I9: strip_epi-s1 | J9: 1.393 | K9: 1.726 | L9: 2.149 | M9: 1.488 | N9: 1.342 | O9: 1.552
A10: EPI3 | B10: 1.920 | C10: 2.820 | D10: 4.217 | E10: 1.325 | F10: 1.674 | G10: 2.143 | I10: strip_epi-s3 | J10: 1.368 | K10: 1.637 | L10: 1.969 | M10: 1.126 | N10: 1.284 | O10: 1.442
A11: EPI5 | B11: 1.810 | C11: 2.594 | D11: 3.715 | E11: 4.811 | F11: 1.627 | G11: 1.948 | I11: strip_epi-s5 | J11: 1.327 | K11: 1.569 | L11: 1.853 | M11: 1.454 | N11: 1.269 | O11: 1.383
B13: Prevalence | N13: RR
B14: n=7 | F14: n=15 | J14: n=30 | N14: n=7 | R14: n=15 | V14: n=30
B15: mean | C15: min | D15: max | E15: stdev | F15: mean | G15: min | H15: max | I15: stdev | J15: mean | K15: min | L15: max | M15: stdev | N15: mean | O15: min | P15: max | Q15: stdev | R15: mean | S15: min | T15: max | U15: stdev | V15: mean | W15: min | X15: max | Y15: stdev
A16: NewEPI | B16: =AVERAGE(AA65,AA78,AA91,AA104,AA117,AA130,AA143,AA156,AA169,AA182,AA195,AA208,AA221,AA234,AA247,AA260,AA273,AA286,AA299,AA312,AA325,AA338,AA351,AA364,AA377,AA390,AA403,AA416,AA429,AA442,AA455,AA468,AA481,AA494,AA507,AA520,AA533,AA546,AA559,AA572,AA585,AA598,AA611,AA624,AA637,AA650,AA663,AA676,AA689,AA702,AA715,AA728,AA741) -> 1.392 | C16: =MIN(AA65,AA78,AA91,AA104,AA117,AA130,AA143,AA156,AA169,AA182,AA195,AA208,AA221,AA234,AA247,AA260,AA273,AA286,AA299,AA312,AA325,AA338,AA351,AA364,AA377,AA390,AA403,AA416,AA429,AA442,AA455,AA468,AA481,AA494,AA507,AA520,AA533,AA546,AA559,AA572,AA585,AA598,AA611,AA624,AA637,AA650,AA663,AA676,AA689,AA702,AA715,AA728,AA741) -> 0.997 | D16: =MAX(AA65,AA78,AA91,AA104,AA117,AA130,AA143,AA156,AA169,AA182,AA195,AA208,AA221,AA234,AA247,AA260,AA273,AA286,AA299,AA312,AA325,AA338,AA351,AA364,AA377,AA390,AA403,AA416,AA429,AA442,AA455,AA468,AA481,AA494,AA507,AA520,AA533,AA546,AA559,AA572,AA585,AA598,AA611,AA624,AA637,AA650,AA663,AA676,AA689,AA702,AA715,AA728,AA741) -> 1.992 | E16: =STDEV(AA65,AA78,AA91,AA104,AA117,AA130,AA143,AA156,AA169,AA182,AA195,AA208,AA221,AA234,AA247,AA260,AA273,AA286,AA299,AA312,AA325,AA338,AA351,AA364,AA377,AA390,AA403,AA416,AA429,AA442,AA455,AA468,AA481,AA494,AA507,AA520,AA533,AA546,AA559,AA572,AA585,AA598,AA611,AA624,AA637,AA650,AA663,AA676,AA689,AA702,AA715,AA728,AA741) -> 0.260 | F16: =AVERAGE(AC65,AC78,AC91,AC104,AC117,AC130,AC143,AC156,AC169,AC182,AC195,AC208,AC221,AC234,AC247,AC260,AC273,AC286,AC299,AC312,AC325,AC338,AC351,AC364,AC377,AC390,AC403,AC416,AC429,AC442,AC455,AC468,AC481,AC494,AC507,AC520,AC533,AC546,AC559,AC572,AC585,AC598,AC611,AC624,AC637,AC650,AC663,AC676,AC689,AC702,AC715,AC728,AC741) -> 1.979 | G16: =MIN(AC65,AC78,AC91,AC104,AC117,AC130,AC143,AC156,AC169,AC182,AC195,AC208,AC221,AC234,AC247,AC260,AC273,AC286,AC299,AC312,AC325,AC338,AC351,AC364,AC377,AC390,AC403,AC416,AC429,AC442,AC455,AC468,AC481,AC494,AC507,AC520,AC533,AC546,AC559,AC572,AC585,AC598,AC611,AC624,AC637,AC650,AC663,AC676,AC689,AC702,AC715,AC728,AC741) -> 0.971 | H16: =MAX(AC65,AC78,AC91,AC104,AC117,AC130,AC143,AC156,AC169,AC182,AC195,AC208,AC221,AC234,AC247,AC260,AC273,AC286,AC299,AC312,AC325,AC338,AC351,AC364,AC377,AC390,AC403,AC416,AC429,AC442,AC455,AC468,AC481,AC494,AC507,AC520,AC533,AC546,AC559,AC572,AC585,AC598,AC611,AC624,AC637,AC650,AC663,AC676,AC689,AC702,AC715,AC728,AC741) -> 3.386 | I16: =STDEV(AC65,AC78,AC91,AC104,AC117,AC130,AC143,AC156,AC169,AC182,AC195,AC208,AC221,AC234,AC247,AC260,AC273,AC286,AC299,AC312,AC325,AC338,AC351,AC364,AC377,AC390,AC403,AC416,AC429,AC442,AC455,AC468,AC481,AC494,AC507,AC520,AC533,AC546,AC559,AC572,AC585,AC598,AC611,AC624,AC637,AC650,AC663,AC676,AC689,AC702,AC715,AC728,AC741) -> 0.624 | J16: =AVERAGE(AE65,AE78,AE91,AE104,AE117,AE130,AE143,AE156,AE169,AE182,AE195,AE208,AE221,AE234,AE247,AE260,AE273,AE286,AE299,AE312,AE325,AE338,AE351,AE364,AE377,AE390,AE403,AE416,AE429,AE442,AE455,AE468,AE481,AE494,AE507,AE520,AE533,AE546,AE559,AE572,AE585,AE598,AE611,AE624,AE637,AE650,AE663,AE676,AE689,AE702,AE715,AE728,AE741) -> 2.907 | K16: =MIN(AE65,AE78,AE91,AE104,AE117,AE130,AE143,AE156,AE169,AE182,AE195,AE208,AE221,AE234,AE247,AE260,AE273,AE286,AE299,AE312,AE325,AE338,AE351,AE364,AE377,AE390,AE403,AE416,AE429,AE442,AE455,AE468,AE481,AE494,AE507,AE520,AE533,AE546,AE559,AE572,AE585,AE598,AE611,AE624,AE637,AE650,AE663,AE676,AE689,AE702,AE715,AE728,AE741) -> 0.000 | L16: =MAX(AE65,AE78,AE91,AE104,AE117,AE130,AE143,AE156,AE169,AE182,AE195,AE208,AE221,AE234,AE247,AE260,AE273,AE286,AE299,AE312,AE325,AE338,AE351,AE364,AE377,AE390,AE403,AE416,AE429,AE442,AE455,AE468,AE481,AE494,AE507,AE520,AE533,AE546,AE559,AE572,AE585,AE598,AE611,AE624,AE637,AE650,AE663,AE676,AE689,AE702,AE715,AE728,AE741) -> 6.245 | M16: =STDEV(AE65,AE78,AE91,AE104,AE117,AE130,AE143,AE156,AE169,AE182,AE195,AE208,AE221,AE234,AE247,AE260,AE273,AE286,AE299,AE312,AE325,AE338,AE351,AE364,AE377,AE390,AE403,AE416,AE429,AE442,AE455,AE468,AE481,AE494,AE507,AE520,AE533,AE546,AE559,AE572,AE585,AE598,AE611,AE624,AE637,AE650,AE663,AE676,AE689,AE702,AE715,AE728,AE741) -> 1.598 | N16: =AVERAGE(AB65,AB78,AB91,AB104,AB117,AB130,AB143,AB156,AB169,AB182,AB195,AB208,AB221,AB234,AB247,AB260,AB273,AB286,AB299,AB312,AB325,AB338,AB351,AB364,AB377,AB390,AB403,AB416,AB429,AB442,AB455,AB468,AB481,AB494,AB507,AB520,AB533,AB546,AB559,AB572,AB585,AB598,AB611,AB624,AB637,AB650,AB663,AB676,AB689,AB702,AB715,AB728,AB741) -> 1.235 | O16: =MIN(AB65,AB78,AB91,AB104,AB117,AB130,AB143,AB156,AB169,AB182,AB195,AB208,AB221,AB234,AB247,AB260,AB273,AB286,AB299,AB312,AB325,AB338,AB351,AB364,AB377,AB390,AB403,AB416,AB429,AB442,AB455,AB468,AB481,AB494,AB507,AB520,AB533,AB546,AB559,AB572,AB585,AB598,AB611,AB624,AB637,AB650,AB663,AB676,AB689,AB702,AB715,AB728,AB741) -> 0.000 | P16: =MAX(AB65,AB78,AB91,AB104,AB117,AB130,AB143,AB156,AB169,AB182,AB195,AB208,AB221,AB234,AB247,AB260,AB273,AB286,AB299,AB312,AB325,AB338,AB351,AB364,AB377,AB390,AB403,AB416,AB429,AB442,AB455,AB468,AB481,AB494,AB507,AB520,AB533,AB546,AB559,AB572,AB585,AB598,AB611,AB624,AB637,AB650,AB663,AB676,AB689,AB702,AB715,AB728,AB741) -> 2.603 | Q16: =STDEV(AB65,AB78,AB91,AB104,AB117,AB130,AB143,AB156,AB169,AB182,AB195,AB208,AB221,AB234,AB247,AB260,AB273,AB286,AB299,AB312,AB325,AB338,AB351,AB364,AB377,AB390,AB403,AB416,AB429,AB442,AB455,AB468,AB481,AB494,AB507,AB520,AB533,AB546,AB559,AB572,AB585,AB598,AB611,AB624,AB637,AB650,AB663,AB676,AB689,AB702,AB715,AB728,AB741) -> 0.453 | R16: =AVERAGE(AD65,AD78,AD91,AD104,AD117,AD130,AD143,AD156,AD169,AD182,AD195,AD208,AD221,AD234,AD247,AD260,AD273,AD286,AD299,AD312,AD325,AD338,AD351,AD364,AD377,AD390,AD403,AD416,AD429,AD442,AD455,AD468,AD481,AD494,AD507,AD520,AD533,AD546,AD559,AD572,AD585,AD598,AD611,AD624,AD637,AD650,AD663,AD676,AD689,AD702,AD715,AD728,AD741) -> 1.736 | S16: =MIN(AD65,AD78,AD91,AD104,AD117,AD130,AD143,AD156,AD169,AD182,AD195,AD208,AD221,AD234,AD247,AD260,AD273,AD286,AD299,AD312,AD325,AD338,AD351,AD364,AD377,AD390,AD403,AD416,AD429,AD442,AD455,AD468,AD481,AD494,AD507,AD520,AD533,AD546,AD559,AD572,AD585,AD598,AD611,AD624,AD637,AD650,AD663,AD676,AD689,AD702,AD715,AD728,AD741) -> 0.837 | T16: =MAX(AD65,AD78,AD91,AD104,AD117,AD130,AD143,AD156,AD169,AD182,AD195,AD208,AD221,AD234,AD247,AD260,AD273,AD286,AD299,AD312,AD325,AD338,AD351,AD364,AD377,AD390,AD403,AD416,AD429,AD442,AD455,AD468,AD481,AD494,AD507,AD520,AD533,AD546,AD559,AD572,AD585,AD598,AD611,AD624,AD637,AD650,AD663,AD676,AD689,AD702,AD715,AD728,AD741) -> 5.834 | U16: =STDEV(AD65,AD78,AD91,AD104,AD117,AD130,AD143,AD156,AD169,AD182,AD195,AD208,AD221,AD234,AD247,AD260,AD273,AD286,AD299,AD312,AD325,AD338,AD351,AD364,AD377,AD390,AD403,AD416,AD429,AD442,AD455,AD468,AD481,AD494,AD507,AD520,AD533,AD546,AD559,AD572,AD585,AD598,AD611,AD624,AD637,AD650,AD663,AD676,AD689,AD702,AD715,AD728,AD741) -> 0.797 | V16: =AVERAGE(AF65,AF78,AF91,AF104,AF117,AF130,AF143,AF156,AF169,AF182,AF195,AF208,AF221,AF234,AF247,AF260,AF273,AF286,AF299,AF312,AF325,AF338,AF351,AF364,AF377,AF390,AF403,AF416,AF429,AF442,AF455,AF468,AF481,AF494,AF507,AF520,AF533,AF546,AF559,AF572,AF585,AF598,AF611,AF624,AF637,AF650,AF663,AF676,AF689,AF702,AF715,AF728,AF741) -> 2.498 | W16: =MIN(AF65,AF78,AF91,AF104,AF117,AF130,AF143,AF156,AF169,AF182,AF195,AF208,AF221,AF234,AF247,AF260,AF273,AF286,AF299,AF312,AF325,AF338,AF351,AF364,AF377,AF390,AF403,AF416,AF429,AF442,AF455,AF468,AF481,AF494,AF507,AF520,AF533,AF546,AF559,AF572,AF585,AF598,AF611,AF624,AF637,AF650,AF663,AF676,AF689,AF702,AF715,AF728,AF741) -> 0.000 | X16: =MAX(AF65,AF78,AF91,AF104,AF117,AF130,AF143,AF156,AF169,AF182,AF195,AF208,AF221,AF234,AF247,AF260,AF273,AF286,AF299,AF312,AF325,AF338,AF351,AF364,AF377,AF390,AF403,AF416,AF429,AF442,AF455,AF468,AF481,AF494,AF507,AF520,AF533,AF546,AF559,AF572,AF585,AF598,AF611,AF624,AF637,AF650,AF663,AF676,AF689,AF702,AF715,AF728,AF741) -> 21.097 | Y16: =STDEV(AF65,AF78,AF91,AF104,AF117,AF130,AF143,AF156,AF169,AF182,AF195,AF208,AF221,AF234,AF247,AF260,AF273,AF286,AF299,AF312,AF325,AF338,AF351,AF364,AF377,AF390,AF403,AF416,AF429,AF442,AF455,AF468,AF481,AF494,AF507,AF520,AF533,AF546,AF559,AF572,AF585,AF598,AF611,AF624,AF637,AF650,AF663,AF676,AF689,AF702,AF715,AF728,AF741) -> 2.926
A17: Grid | B17: 1.614 | C17: 0.956 | D17: 2.912 | E17: 0.387 | F17: 2.382 | G17: 0.951 | H17: 4.944 | I17: 0.860 | J17: 3.699 | K17: 0.939 | L17: 10.017 | M17: 1.759 | N17: 2.943 | O17: 0.000 | P17: 76.669 | Q17: 10.351 | R17: 2.148 | S17: 0.665 | T17: 5.918 | U17: 0.984 | V17: 2.892 | W17: 0.760 | X17: 10.218 | Y17: 1.718
A18: Peri | B18: 1.468 | C18: 0.848 | D18: 4.723 | E18: 0.730 | F18: 2.128 | G18: 0.949 | H18: 7.483 | I18: 1.373 | J18: 3.245 | K18: 1.042 | L18: 14.016 | M18: 2.745 | N18: 3.196 | O18: 0.449 | P18: 108.754 | Q18: 14.791 | R18: 1.499 | S18: 0.709 | T18: 5.286 | U18: 0.843 | V18: 2.050 | W18: 0.591 | X18: 21.323 | Y18: 2.782
A19: Quad | B19: 1.585 | C19: 0.924 | D19: 5.043 | E19: 0.936 | F19: 2.232 | G19: 0.870 | H19: 10.063 | I19: 1.890 | J19: 3.469 | K19: 0.977 | L19: 18.153 | M19: 3.612 | N19: 4.417 | O19: 0.402 | P19: 121.943 | Q19: 18.353 | R19: 1.139 | S19: 0.572 | T19: 2.423 | U19: 0.414 | V19: 1.381 | W19: 0.445 | X19: 2.978 | Y19: 0.558
A20: Square | B20: 1.031 | C20: 0.870 | D20: 1.175 | E20: 0.073 | F20: 1.074 | G20: 0.876 | H20: 1.404 | I20: 0.117 | J20: 1.145 | K20: 0.926 | L20: 1.740 | M20: 0.179 | N20: 3.537 | O20: 0.606 | P20: 134.016 | Q20: 18.269 | R20: 1.018 | S20: 0.725 | T20: 2.067 | U20: 0.178 | V20: 0.990 | W20: 0.664 | X20: 1.210 | Y20: 0.102
A21: OldEPI | B21: 1.993 | C21: 0.976 | D21: 5.741 | E21: 1.093 | F21: 3.131 | G21: 1.025 | H21: 11.119 | I21: 2.191 | J21: 4.985 | K21: 1.015 | L21: 19.324 | M21: 4.079 | N21: 4.834 | O21: 0.040 | P21: 125.867 | Q21: 18.705 | R21: 1.848 | S21: 0.677 | T21: 4.825 | U21: 0.922 | V21: 2.495 | W21: 0.655 | X21: 10.986 | Y21: 1.582
A22: EPI3 | B22: 1.920 | C22: 0.983 | D22: 5.368 | E22: 1.016 | F22: 2.820 | G22: 1.000 | H22: 9.910 | I22: 1.974 | J22: 4.217 | K22: 1.003 | L22: 17.385 | M22: 3.585 | N22: 1.325 | O22: 0.000 | P22: 3.560 | Q22: 0.605 | R22: 1.674 | S22: 0.648 | T22: 3.598 | U22: 0.728 | V22: 2.143 | W22: 0.491 | X22: 7.971 | Y22: 1.203
A23: EPI5 | B23: 1.810 | C23: 0.945 | D23: 5.149 | E23: 0.970 | F23: 2.594 | G23: 0.951 | H23: 9.301 | I23: 1.824 | J23: 3.715 | K23: 0.955 | L23: 14.153 | M23: 3.053 | N23: 4.811 | O23: 0.052 | P23: 124.660 | Q23: 18.946 | R23: 1.627 | S23: 0.591 | T23: 3.217 | U23: 0.656 | V23: 1.948 | W23: 0.565 | X23: 5.276 | Y23: 0.932
B25: Frequency of Rank for n=7 (1 is lowest ratio, 8 is highest ratio)
B26: Prevalence | J26: RR
A27: rank | B27: 1 | C27: 2 | D27: 3 | E27: 4 | F27: 5 | G27: 6 | H27: 7 | I27: 8 | J27: 1 | K27: 2 | L27: 3 | M27: 4 | N27: 5 | O27: 6 | P27: 7 | Q27: 8
A28: NewEPI | B28: =SUM(IF($AH65=B$51,1,0),IF($AH78=B$51,1,0),IF($AH91=B$51,1,0),IF($AH104=B$51,1,0),IF($AH117=B$51,1,0),IF($AH130=B$51,1,0),IF($AH143=B$51,1,0),IF($AH156=B$51,1,0),IF($AH169=B$51,1,0),IF($AH182=B$51,1,0),IF($AH195=B$51,1,0),IF($AH208=B$51,1,0),IF($AH221=B$51,1,0),IF($AH234=B$51,1,0),IF($AH247=B$51,1,0),IF($AH260=B$51,1,0),IF($AH273=B$51,1,0),IF($AH286=B$51,1,0),IF($AH299=B$51,1,0),IF($AH312=B$51,1,0),IF($AH325=B$51,1,0),IF($AH338=B$51,1,0),IF($AH351=B$51,1,0),IF($AH364=B$51,1,0),IF($AH377=B$51,1,0),IF($AH390=B$51,1,0),IF($AH403=B$51,1,0),IF($AH416=B$51,1,0),IF($AH429=B$51,1,0),IF($AH442=B$51,1,0),IF($AH455=B$51,1,0),IF($AH468=B$51,1,0),IF($AH481=B$51,1,0),IF($AH494=B$51,1,0),IF($AH507=B$51,1,0),IF($AH520=B$51,1,0),IF($AH533=B$51,1,0),IF($AH546=B$51,1,0),IF($AH559=B$51,1,0),IF($AH572=B$51,1,0),IF($AH585=B$51,1,0),IF($AH598=B$51,1,0),IF($AH611=B$51,1,0),IF($AH624=B$51,1,0),IF($AH637=B$51,1,0),IF($AH650=B$51,1,0),IF($AH663=B$51,1,0),IF($AH676=B$51,1,0),IF($AH689=B$51,1,0),IF($AH702=B$51,1,0),IF($AH715=B$51,1,0),IF($AH728=B$51,1,0),IF($AH741=B$51,1,0)) -> 2 | C28: 12 | D28: 8 | E28: 9 | F28: 3 | G28: 10 | H28: 8 | I28: 1 | J28: =SUM(IF($AI65=B$51,1,0),IF($AI78=B$51,1,0),IF($AI91=B$51,1,0),IF($AI104=B$51,1,0),IF($AI117=B$51,1,0),IF($AI130=B$51,1,0),IF($AI143=B$51,1,0),IF($AI156=B$51,1,0),IF($AI169=B$51,1,0),IF($AI182=B$51,1,0),IF($AI195=B$51,1,0),IF($AI208=B$51,1,0),IF($AI221=B$51,1,0),IF($AI234=B$51,1,0),IF($AI247=B$51,1,0),IF($AI260=B$51,1,0),IF($AI273=B$51,1,0),IF($AI286=B$51,1,0),IF($AI299=B$51,1,0),IF($AI312=B$51,1,0),IF($AI325=B$51,1,0),IF($AI338=B$51,1,0),IF($AI351=B$51,1,0),IF($AI364=B$51,1,0),IF($AI377=B$51,1,0),IF($AI390=B$51,1,0),IF($AI403=B$51,1,0),IF($AI416=B$51,1,0),IF($AI429=B$51,1,0),IF($AI442=B$51,1,0),IF($AI455=B$51,1,0),IF($AI468=B$51,1,0),IF($AI481=B$51,1,0),IF($AI494=B$51,1,0),IF($AI507=B$51,1,0),IF($AI520=B$51,1,0),IF($AI533=B$51,1,0),IF($AI546=B$51,1,0),IF($AI559=B$51,1,0),IF($AI572=B$51,1,0),IF($AI585=B$51,1,0),IF($AI598=B$51,1,0),IF($AI611=B$51,1,0),IF($AI624=B$51,1,0),IF($AI637=B$51,1,0),IF($AI650=B$51,1,0),IF($AI663=B$51,1,0),IF($AI676=B$51,1,0),IF($AI689=B$51,1,0),IF($AI702=B$51,1,0),IF($AI715=B$51,1,0),IF($AI728=B$51,1,0),IF($AI741=B$51,1,0)) -> 4 | K28: 5 | L28: 6 | M28: 7 | N28: 6 | O28: 4 | P28: 11 | Q28: 10
A29: Grid | B29: 0 | C29: 1 | D29: 7 | E29: 12 | F29: 4 | G29: 2 | H29: 9 | I29: 18 | J29: 1 | K29: 3 | L29: 1 | M29: 3 | N29: 4 | O29: 8 | P29: 13 | Q29: 20
A30: Peri | B30: 5 | C30: 14 | D30: 15 | E30: 4 | F30: 4 | G30: 3 | H30: 2 | I30: 6 | J30: 12 | K30: 13 | L30: 10 | M30: 6 | N30: 2 | O30: 3 | P30: 3 | Q30: 4
A31: Quad | B31: 7 | C31: 14 | D31: 10 | E31: 4 | F31: 14 | G31: 1 | H31: 2 | I31: 1 | J31: 20 | K31: 13 | L31: 12 | M31: 1 | N31: 5 | O31: 2 | P31: 0 | Q31: 0
A32: Square | B32: 37 | C32: 9 | D32: 5 | E32: 0 | F32: 1 | G32: 1 | H32: 0 | I32: 0 | J32: 14 | K32: 10 | L32: 6 | M32: 5 | N32: 6 | O32: 4 | P32: 4 | Q32: 4
A33: OldEPI | B33: 0 | C33: 0 | D33: 1 | E33: 4 | F33: 4 | G33: 11 | H33: 15 | I33: 18 | J33: 1 | K33: 2 | L33: 4 | M33: 9 | N33: 10 | O33: 9 | P33: 9 | Q33: 9
A34: EPI3 | B34: 1 | C34: 1 | D34: 0 | E34: 4 | F34: 18 | G34: 8 | H34: 12 | I34: 9 | J34: 0 | K34: 6 | L34: 5 | M34: 13 | N34: 10 | O34: 10 | P34: 7 | Q34: 2
A35: EPI5 | B35: 1 | C35: 2 | D35: 7 | E35: 16 | F35: 5 | G35: 17 | H35: 5 | I35: 0 | J35: 1 | K35: 1 | L35: 9 | M35: 9 | N35: 10 | O35: 13 | P35: 6 | Q35: 4
B37: Frequency of Rank for n=15 (1 is lowest ratio, 8 is highest ratio)
B38: Prevalence | J38: RR
A39: rank | B39: 1 | C39: 2 | D39: 3 | E39: 4 | F39: 5 | G39: 6 | H39: 7 | I39: 8 | J39: 1 | K39: 2 | L39: 3 | M39: 4 | N39: 5 | O39: 6 | P39: 7 | Q39: 8
A40: NewEPI | B40: =SUM(IF($AJ65=B$51,1,0),IF($AJ78=B$51,1,0),IF($AJ91=B$51,1,0),IF($AJ104=B$51,1,0),IF($AJ117=B$51,1,0),IF($AJ130=B$51,1,0),IF($AJ143=B$51,1,0),IF($AJ156=B$51,1,0),IF($AJ169=B$51,1,0),IF($AJ182=B$51,1,0),IF($AJ195=B$51,1,0),IF($AJ208=B$51,1,0),IF($AJ221=B$51,1,0),IF($AJ234=B$51,1,0),IF($AJ247=B$51,1,0),IF($AJ260=B$51,1,0),IF($AJ273=B$51,1,0),IF($AJ286=B$51,1,0),IF($AJ299=B$51,1,0),IF($AJ312=B$51,1,0),IF($AJ325=B$51,1,0),IF($AJ338=B$51,1,0),IF($AJ351=B$51,1,0),IF($AJ364=B$51,1,0),IF($AJ377=B$51,1,0),IF($AJ390=B$51,1,0),IF($AJ403=B$51,1,0),IF($AJ416=B$51,1,0),IF($AJ429=B$51,1,0),IF($AJ442=B$51,1,0),IF($AJ455=B$51,1,0),IF($AJ468=B$51,1,0),IF($AJ481=B$51,1,0),IF($AJ494=B$51,1,0),IF($AJ507=B$51,1,0),IF($AJ520=B$51,1,0),IF($AJ533=B$51,1,0),IF($AJ546=B$51,1,0),IF($AJ559=B$51,1,0),IF($AJ572=B$51,1,0),IF($AJ585=B$51,1,0),IF($AJ598=B$51,1,0),IF($AJ611=B$51,1,0),IF($AJ624=B$51,1,0),IF($AJ637=B$51,1,0),IF($AJ650=B$51,1,0),IF($AJ663=B$51,1,0),IF($AJ676=B$51,1,0),IF($AJ689=B$51,1,0),IF($AJ702=B$51,1,0),IF($AJ715=B$51,1,0),IF($AJ728=B$51,1,0),IF($AJ741=B$51,1,0)) -> 0 | C40: 15 | D40: 9 | E40: 6 | F40: 6 | G40: 8 | H40: 6 | I40: 3 | J40: =SUM(IF($AK65=B$51,1,0),IF($AK78=B$51,1,0),IF($AK91=B$51,1,0),IF($AK104=B$51,1,0),IF($AK117=B$51,1,0),IF($AK130=B$51,1,0),IF($AK143=B$51,1,0),IF($AK156=B$51,1,0),IF($AK169=B$51,1,0),IF($AK182=B$51,1,0),IF($AK195=B$51,1,0),IF($AK208=B$51,1,0),IF($AK221=B$51,1,0),IF($AK234=B$51,1,0),IF($AK247=B$51,1,0),IF($AK260=B$51,1,0),IF($AK273=B$51,1,0),IF($AK286=B$51,1,0),IF($AK299=B$51,1,0),IF($AK312=B$51,1,0),IF($AK325=B$51,1,0),IF($AK338=B$51,1,0),IF($AK351=B$51,1,0),IF($AK364=B$51,1,0),IF($AK377=B$51,1,0),IF($AK390=B$51,1,0),IF($AK403=B$51,1,0),IF($AK416=B$51,1,0),IF($AK429=B$51,1,0),IF($AK442=B$51,1,0),IF($AK455=B$51,1,0),IF($AK468=B$51,1,0),IF($AK481=B$51,1,0),IF($AK494=B$51,1,0),IF($AK507=B$51,1,0),IF($AK520=B$51,1,0),IF($AK533=B$51,1,0),IF($AK546=B$51,1,0),IF($AK559=B$51,1,0),IF($AK572=B$51,1,0),IF($AK585=B$51,1,0),IF($AK598=B$51,1,0),IF($AK611=B$51,1,0),IF($AK624=B$51,1,0),IF($AK637=B$51,1,0),IF($AK650=B$51,1,0),IF($AK663=B$51,1,0),IF($AK676=B$51,1,0),IF($AK689=B$51,1,0),IF($AK702=B$51,1,0),IF($AK715=B$51,1,0),IF($AK728=B$51,1,0),IF($AK741=B$51,1,0)) -> 0 | K40: 4 | L40: 7 | M40: 7 | N40: 6 | O40: 8 | P40: 13 | Q40: 8
A41: Grid | B41: 0 | C41: 0 | D41: 6 | E41: 9 | F41: 6 | G41: 4 | H41: 10 | I41: 18 | J41: 0 | K41: 1 | L41: 2 | M41: 3 | N41: 3 | O41: 5 | P41: 14 | Q41: 25
A42: Peri | B42: 1 | C42: 12 | D42: 15 | E42: 10 | F42: 2 | G42: 4 | H42: 3 | I42: 6 | J42: 3 | K42: 11 | L42: 16 | M42: 4 | N42: 9 | O42: 2 | P42: 3 | Q42: 5
A43: Quad | B43: 5 | C43: 20 | D43: 9 | E43: 5 | F43: 8 | G43: 4 | H43: 1 | I43: 1 | J43: 16 | K43: 24 | L43: 9 | M43: 2 | N43: 0 | O43: 0 | P43: 1 | Q43: 1
A44: Square | B44: 46 | C44: 4 | D44: 3 | E44: 0 | F44: 0 | G44: 0 | H44: 0 | I44: 0 | J44: 29 | K44: 9 | L44: 5 | M44: 3 | N44: 0 | O44: 4 | P44: 2 | Q44: 1
A45: OldEPI | B45: 0 | C45: 0 | D45: 1 | E45: 0 | F45: 2 | G45: 11 | H45: 17 | I45: 22 | J45: 1 | K45: 2 | L45: 3 | M45: 4 | N45: 11 | O45: 11 | P45: 16 | Q45: 5
A46: EPI3 | B46: 0 | C46: 0 | D46: 1 | E46: 8 | F46: 17 | G46: 9 | H46: 15 | I46: 3 | J46: 2 | K46: 0 | L46: 6 | M46: 17 | N46: 11 | O46: 10 | P46: 2 | Q46: 5
A47: EPI5 | B47: 1 | C47: 2 | D47: 9 | E47: 15 | F47: 12 | G47: 13 | H47: 1 | I47: 0 | J47: 2 | K47: 2 | L47: 5 | M47: 13 | N47: 13 | O47: 13 | P47: 2 | Q47: 3
B49: Frequency of Rank for n=30 (1 is lowest ratio, 8 is highest ratio)
B50: Prevalence | J50: RR
A51: rank | B51: 1 | C51: 2 | D51: 3 | E51: 4 | F51: 5 | G51: 6 | H51: 7 | I51: 8 | J51: 1 | K51: 2 | L51: 3 | M51: 4 | N51: 5 | O51: 6 | P51: 7 | Q51: 8
A52: NewEPI | B52: =SUM(IF($AL65=B$51,1,0),IF($AL78=B$51,1,0),IF($AL91=B$51,1,0),IF($AL104=B$51,1,0),IF($AL117=B$51,1,0),IF($AL130=B$51,1,0),IF($AL143=B$51,1,0),IF($AL156=B$51,1,0),IF($AL169=B$51,1,0),IF($AL182=B$51,1,0),IF($AL195=B$51,1,0),IF($AL208=B$51,1,0),IF($AL221=B$51,1,0),IF($AL234=B$51,1,0),IF($AL247=B$51,1,0),IF($AL260=B$51,1,0),IF($AL273=B$51,1,0),IF($AL286=B$51,1,0),IF($AL299=B$51,1,0),IF($AL312=B$51,1,0),IF($AL325=B$51,1,0),IF($AL338=B$51,1,0),IF($AL351=B$51,1,0),IF($AL364=B$51,1,0),IF($AL377=B$51,1,0),IF($AL390=B$51,1,0),IF($AL403=B$51,1,0),IF($AL416=B$51,1,0),IF($AL429=B$51,1,0),IF($AL442=B$51,1,0),IF($AL455=B$51,1,0),IF($AL468=B$51,1,0),IF($AL481=B$51,1,0),IF($AL494=B$51,1,0),IF($AL507=B$51,1,0),IF($AL520=B$51,1,0),IF($AL533=B$51,1,0),IF($AL546=B$51,1,0),IF($AL559=B$51,1,0),IF($AL572=B$51,1,0),IF($AL585=B$51,1,0),IF($AL598=B$51,1,0),IF($AL611=B$51,1,0),IF($AL624=B$51,1,0),IF($AL637=B$51,1,0),IF($AL650=B$51,1,0),IF($AL663=B$51,1,0),IF($AL676=B$51,1,0),IF($AL689=B$51,1,0),IF($AL702=B$51,1,0),IF($AL715=B$51,1,0),IF($AL728=B$51,1,0),IF($AL741=B$51,1,0)) -> 5 | C52: 10 | D52: 5 | E52: 4 | F52: 5 | G52: 10 | H52: 11 | I52: 3 | J52: =SUM(IF($AM65=B$51,1,0),IF($AM78=B$51,1,0),IF($AM91=B$51,1,0),IF($AM104=B$51,1,0),IF($AM117=B$51,1,0),IF($AM130=B$51,1,0),IF($AM143=B$51,1,0),IF($AM156=B$51,1,0),IF($AM169=B$51,1,0),IF($AM182=B$51,1,0),IF($AM195=B$51,1,0),IF($AM208=B$51,1,0),IF($AM221=B$51,1,0),IF($AM234=B$51,1,0),IF($AM247=B$51,1,0),IF($AM260=B$51,1,0),IF($AM273=B$51,1,0),IF($AM286=B$51,1,0),IF($AM299=B$51,1,0),IF($AM312=B$51,1,0),IF($AM325=B$51,1,0),IF($AM338=B$51,1,0),IF($AM351=B$51,1,0),IF($AM364=B$51,1,0),IF($AM377=B$51,1,0),IF($AM390=B$51,1,0),IF($AM403=B$51,1,0),IF($AM416=B$51,1,0),IF($AM429=B$51,1,0),IF($AM442=B$51,1,0),IF($AM455=B$51,1,0),IF($AM468=B$51,1,0),IF($AM481=B$51,1,0),IF($AM494=B$51,1,0),IF($AM507=B$51,1,0),IF($AM520=B$51,1,0),IF($AM533=B$51,1,0),IF($AM546=B$51,1,0),IF($AM559=B$51,1,0),IF($AM572=B$51,1,0),IF($AM585=B$51,1,0),IF($AM598=B$51,1,0),IF($AM611=B$51,1,0),IF($AM624=B$51,1,0),IF($AM637=B$51,1,0),IF($AM650=B$51,1,0),IF($AM663=B$51,1,0),IF($AM676=B$51,1,0),IF($AM689=B$51,1,0),IF($AM702=B$51,1,0),IF($AM715=B$51,1,0),IF($AM728=B$51,1,0),IF($AM741=B$51,1,0)) -> 6 | K52: 2 | L52: 3 | M52: 6 | N52: 6 | O52: 3 | P52: 14 | Q52: 13
A53: Grid | B53: 2 | C53: 1 | D53: 6 | E53: 8 | F53: 4 | G53: 1 | H53: 9 | I53: 22 | J53: 0 | K53: 0 | L53: 2 | M53: 1 | N53: 4 | O53: 2 | P53: 14 | Q53: 30
A54: Peri | B54: 0 | C54: 9 | D54: 21 | E54: 8 | F54: 4 | G54: 5 | H54: 2 | I54: 4 | J54: 2 | K54: 5 | L54: 21 | M54: 8 | N54: 9 | O54: 4 | P54: 2 | Q54: 2
A55: Quad | B55: 2 | C55: 21 | D55: 6 | E55: 6 | F55: 7 | G55: 7 | H55: 3 | I55: 1 | J55: 8 | K55: 33 | L55: 7 | M55: 3 | N55: 1 | O55: 1 | P55: 0 | Q55: 0
A56: Square | B56: 44 | C56: 6 | D56: 1 | E56: 0 | F56: 2 | G56: 0 | H56: 0 | I56: 0 | J56: 34 | K56: 9 | L56: 4 | M56: 2 | N56: 1 | O56: 0 | P56: 3 | Q56: 0
A57: OldEPI | B57: 0 | C57: 0 | D57: 1 | E57: 1 | F57: 1 | G57: 13 | H57: 15 | I57: 22 | J57: 0 | K57: 0 | L57: 1 | M57: 2 | N57: 6 | O57: 25 | P57: 13 | Q57: 6
A58: EPI3 | B58: 0 | C58: 0 | D58: 3 | E58: 8 | F58: 21 | G58: 8 | H58: 12 | I58: 1 | J58: 2 | K58: 3 | L58: 1 | M58: 13 | N58: 17 | O58: 11 | P58: 5 | Q58: 1
A59: EPI5 | B59: 0 | C59: 6 | D59: 10 | E59: 18 | F59: 9 | G59: 9 | H59: 1 | I59: 0 | J59: 1 | K59: 1 | L59: 14 | M59: 18 | N59: 9 | O59: 7 | P59: 2 | Q59: 1
AH60: 6 | AI60: 10 | AJ60: 13 | AK60: 17 | AL60: 20 | AM60: 24
D61: population 1
B62: true | C62: true | D62: 7 | K62: 15 | R62: 30
B63: mean | C63: rr | D63: mean | E63: stdev | F63: mse | G63: mrr | H63: srr | I63: prr | J63: mse_rr | K63: mean | L63: stdev | M63: mse | N63: mrr | O63: srr | P63: prr | Q63: mse_rr | R63: mean | S63: stdev | T63: mse | U63: mrr | V63: srr | W63: prr | X63: mse_rr
A64: Random | B64: 0.287 | C64: 1.046 | D64: 0.291 | E64: 0.037 | F64: 0.001 | G64: 1.014 | H64: 0.265 | I64: 0.972 | J64: 0.076 | K64: 0.290 | L64: 0.026 | M64: 0.001 | N64: 1.013 | O64: 0.190 | P64: 0.990 | Q64: 0.039 | R64: 0.290 | S64: 0.018 | T64: 0.000 | U64: 0.996 | V64: 0.122 | W64: 0.986 | X64: 0.019
A65: NewEPI | B65: 0.287 | C65: 1.046 | D65: 0.293 | E65: 0.042 | F65: 0.002 | G65: 1.044 | H65: 0.286 | I65: 1.001 | J65: 0.084 | K65: 0.294 | L65: 0.038 | M65: 0.002 | N65: 1.035 | O65: 0.231 | P65: 1.008 | Q65: 0.055 | R65: 0.292 | S65: 0.034 | T65: 0.001 | U65: 1.019 | V65: 0.194 | W65: 1.002 | X65: 0.040 | AA65: =IF("na"=F65,"",F65/F64) -> 1.33288605049 | AB65: =IF("na"=J65,"",J65/J64) -> 1.105 | AC65: =IF("na"=M65,"",M65/M64) -> 2.191 | AD65: =IF("na"=Q65,"",Q65/Q64) -> 1.395 | AE65: =IF("na"=T65,"",T65/T64) -> 3.708 | AF65: =IF("na"=X65,"",X65/X64) -> 2.138 | AG65: =ROW() -> 65.000 | AH65: =SUM(IF(INDIRECT(ADDRESS(ROW(),AH$60))>INDIRECT(ADDRESS($AG65,AH$60)),1,0), IF(INDIRECT(ADDRESS(ROW(),AH$60))>INDIRECT(ADDRESS($AG65+1,AH$60)),1,0), IF(INDIRECT(ADDRESS(ROW(),AH$60))>INDIRECT(ADDRESS($AG65+2,AH$60)),1,0), IF(INDIRECT(ADDRESS(ROW(),AH$60))>INDIRECT(ADDRESS($AG65+3,AH$60)),1,0), IF(INDIRECT(ADDRESS(ROW(),AH$60))>INDIRECT(ADDRESS($AG65+4,AH$60)),1,0), IF(INDIRECT(ADDRESS(ROW(),AH$60))>INDIRECT(ADDRESS($AG65+5,AH$60)),1,0), IF(INDIRECT(ADDRESS(ROW(),AH$60))>INDIRECT(ADDRESS($AG65+6,AH$60)),1,0), IF(INDIRECT(ADDRESS(ROW(),AH$60))>INDIRECT(ADDRESS($AG65+7,AH$60)),1,0))+1 -> 6 | AI65: 3 | AJ65: 7 | AK65: 5 | AL65: 7 | AM65: 5 | AO65: =IF("na"=F65,"",SQRT(F65)/SQRT(F64)) -> 1.155 | AP65: =IF("na"=J65,"",SQRT(J65)/SQRT(J64)) -> 1.051 | AQ65: =IF("na"=M65,"",SQRT(M65)/SQRT(M64)) -> 1.480 | AR65: =IF("na"=Q65,"",SQRT(Q65)/SQRT(Q64)) -> 1.181 | AS65: =IF("na"=T65,"",SQRT(T65)/SQRT(T64)) -> 1.926 | AT65: =IF("na"=X65,"",SQRT(X65)/SQRT(X64)) -> 1.462
A66: Grid | B66: 0.287 | C66: 1.046 | D66: 0.297 | E66: 0.046 | F66: 0.002 | G66: 1.039 | H66: 0.314 | I66: 0.981 | J66: 0.103 | K66: 0.296 | L66: 0.041 | M66: 0.002 | N66: 1.015 | O66: 0.241 | P66: 0.978 | Q66: 0.063 | R66: 0.300 | S66: 0.038 | T66: 0.002 | U66: 0.984 | V66: 0.197 | W66: 0.961 | X66: 0.046 | AA66: =IF("na"=F66,"",F66/F64) -> 1.65144150384 | AB66: =IF("na"=J66,"",J66/J64) -> 1.356 | AC66: =IF("na"=M66,"",M66/M64) -> 2.522 | AD66: =IF("na"=Q66,"",Q66/Q64) -> 1.595 | AE66: =IF("na"=T66,"",T66/T64) -> 5.027 | AF66: =IF("na"=X66,"",X66/X64) -> 2.474 | AG66: =AG65 -> 65.000 | AH66: 8 | AI66: 7 | AJ66: 8 | AK66: 7 | AL66: 8 | AM66: 7 | AO66: =IF("na"=F66,"",SQRT(F66)/SQRT(F64)) -> 1.285 | AP66: =IF("na"=J66,"",SQRT(J66)/SQRT(J64)) -> 1.165 | AQ66: =IF("na"=M66,"",SQRT(M66)/SQRT(M64)) -> 1.588 | AR66: =IF("na"=Q66,"",SQRT(Q66)/SQRT(Q64)) -> 1.263 | AS66: =IF("na"=T66,"",SQRT(T66)/SQRT(T64)) -> 2.242 | AT66: =IF("na"=X66,"",SQRT(X66)/SQRT(X64)) -> 1.573
A67: Peri | B67: 0.287 | C67: 1.046 | D67: 0.292 | E67: 0.036 | F67: 0.001 | G67: 1.078 | H67: 0.315 | I67: 1.019 | J67: 0.100 | K67: 0.294 | L67: 0.031 | M67: 0.001 | N67: 1.024 | O67: 0.217 | P67: 0.993 | Q67: 0.050 | R67: 0.291 | S67: 0.027 | T67: 0.001 | U67: 0.977 | V67: 0.165 | W67: 0.958 | X67: 0.035 | AA67: =IF("na"=F67,"",F67/F64) -> 0.95399201032 | AB67: =IF("na"=J67,"",J67/J64) -> 1.319 | AC67: =IF("na"=M67,"",M67/M64) -> 1.412 | AD67: =IF("na"=Q67,"",Q67/Q64) -> 1.271 | AE67: =IF("na"=T67,"",T67/T64) -> 2.312 | AF67: =IF("na"=X67,"",X67/X64) -> 1.886 | AG67: 65.000 | AH67: 1 | AI67: 6 | AJ67: 3 | AK67: 3 | AL67: 3 | AM67: 3 | AO67: =IF("na"=F67,"",SQRT(F67)/SQRT(F64)) -> 0.977 | AP67: =IF("na"=J67,"",SQRT(J67)/SQRT(J64)) -> 1.149 | AQ67: =IF("na"=M67,"",SQRT(M67)/SQRT(M64)) -> 1.188 | AR67: =IF("na"=Q67,"",SQRT(Q67)/SQRT(Q64)) -> 1.128 | AS67: =IF("na"=T67,"",SQRT(T67)/SQRT(T64)) -> 1.520 | AT67: =IF("na"=X67,"",SQRT(X67)/SQRT(X64)) -> 1.373
A68: Quad | B68: 0.287 | C68: 1.046 | D68: 0.291 | E68: 0.036 | F68: 0.001 | G68: 0.990 | H68: 0.243 | I68: 0.953 | J68: 0.068 | K68: 0.291 | L68: 0.027 | M68: 0.001 | N68: 0.976 | O68: 0.180 | P68: 0.954 | Q68: 0.041 | R68: 0.290 | S68: 0.023 | T68: 0.001 | U68: 0.956 | V68: 0.140 | W68: 0.942 | X68: 0.031 | AA68: =IF("na"=F68,"",F68/F64) -> 0.96345637779 | AB68: =IF("na"=J68,"",J68/J64) -> 0.899 | AC68: =IF("na"=M68,"",M68/M64) -> 1.052 | AD68: =IF("na"=Q68,"",Q68/Q64) -> 1.038 | AE68: =IF("na"=T68,"",T68/T64) -> 1.619 | AF68: =IF("na"=X68,"",X68/X64) -> 1.642 | AG68: 65.000 | AH68: 2 | AI68: 1 | AJ68: 1 | AK68: 2 | AL68: 2 | AM68: 2 | AO68: =IF("na"=F68,"",SQRT(F68)/SQRT(F64)) -> 0.982 | AP68: =IF("na"=J68,"",SQRT(J68)/SQRT(J64)) -> 0.948 | AQ68: =IF("na"=M68,"",SQRT(M68)/SQRT(M64)) -> 1.026 | AR68: =IF("na"=Q68,"",SQRT(Q68)/SQRT(Q64)) -> 1.019 | AS68: =IF("na"=T68,"",SQRT(T68)/SQRT(T64)) -> 1.272 | AT68: =IF("na"=X68,"",SQRT(X68)/SQRT(X64)) -> 1.281
A69: Square | B69: 0.287 | C69: 1.046 | D69: 0.293 | E69: 0.037 | F69: 0.0014 | G69: 1.036 | H69: 0.2616 | I69: 0.9975 | J69: 0.071 | K69: 0.293 | L69: 0.027 | M69: 0.0007 | N69: 1.008 | O69: 0.1744 | P69: 0.9885 | Q69: 0.034 | R69: 0.294 | S69: 0.019 | T69: 0.0004 | U69: 0.998 | V69: 0.1248 | W69: 0.9877 | X69: 0.019 | AA69: =IF("na"=F69,"",F69/F64) -> 1.02151219909 | AB69: =IF("na"=J69,"",J69/J64) -> 0.936 | AC69: =IF("na"=M69,"",M69/M64) -> 1.068 | AD69: =IF("na"=Q69,"",Q69/Q64) -> 0.859 | AE69: =IF("na"=T69,"",T69/T64) -> 1.236 | AF69: =IF("na"=X69,"",X69/X64) -> 1.023 | AG69: 65.000 | AH69: 3 | AI69: 2 | AJ69: 2 | AK69: 1 | AL69: 1 | AM69: 1 | AO69: =IF("na"=F69,"",SQRT(F69)/SQRT(F64)) -> 1.011 | AP69: =IF("na"=J69,"",SQRT(J69)/SQRT(J64)) -> 0.967 | AQ69: =IF("na"=M69,"",SQRT(M69)/SQRT(M64)) -> 1.034 | AR69: =IF("na"=Q69,"",SQRT(Q69)/SQRT(Q64)) -> 0.927 | AS69: =IF("na"=T69,"",SQRT(T69)/SQRT(T64)) -> 1.112 | AT69: =IF("na"=X69,"",SQRT(X69)/SQRT(X64)) -> 1.011
A70: OldEPI | B70: 0.287 | C70: 1.046 | D70: 0.289 | E70: 0.044 | F70: 0.0019 | G70: 1.003 | H70: 0.3226 | I70: 0.9405 | J70: 0.115 | K70: 0.290 | L70: 0.038 | M70: 0.0015 | N70: 0.977 | O70: 0.2466 | P70: 0.9357 | Q70: 0.073 | R70: 0.291 | S70: 0.033 | T70: 0.0011 | U70: 0.949 | V70: 0.1885 | W70: 0.9258 | X70: 0.050 | AA70: =IF("na"=F70,"",F70/F64) -> 1.42393508594 | AB70: =IF("na"=J70,"",J70/J64) -> 1.522 | AC70: =IF("na"=M70,"",M70/M64) -> 2.115 | AD70: =IF("na"=Q70,"",Q70/Q64) -> 1.858 | AE70: =IF("na"=T70,"",T70/T64) -> 3.476 | AF70: =IF("na"=X70,"",X70/X64) -> 2.693 | AG70: 65.000 | AH70: 7 | AI70: 8 | AJ70: 6 | AK70: 8 | AL70: 6 | AM70: 8 | AO70: =IF("na"=F70,"",SQRT(F70)/SQRT(F64)) -> 1.193 | AP70: =IF("na"=J70,"",SQRT(J70)/SQRT(J64)) -> 1.234 | AQ70: =IF("na"=M70,"",SQRT(M70)/SQRT(M64)) -> 1.454 | AR70: =IF("na"=Q70,"",SQRT(Q70)/SQRT(Q64)) -> 1.363 | AS70: =IF("na"=T70,"",SQRT(T70)/SQRT(T64)) -> 1.864 | AT70: =IF("na"=X70,"",SQRT(X70)/SQRT(X64)) -> 1.641
A71: EPI3 | B71: 0.287 | C71: 1.046 | D71: 0.286 | E71: 0.042 | F71: 0.0018 | G71: 1.019 | H71: 0.2888 | I71: 0.9681 | J71: 0.090 | K71: 0.286 | L71: 0.036 | M71: 0.0013 | N71: 0.968 | O71: 0.2079 | P71: 0.9416 | Q71: 0.054 | R71: 0.290 | S71: 0.030 | T71: 0.0009 | U71: 0.948 | V71: 0.1665 | W71: 0.9334 | X71: 0.040 | AA71: =IF("na"=F71,"",F71/F64) -> 1.29483462159 | AB71: =IF("na"=J71,"",J71/J64) -> 1.183 | AC71: =IF("na"=M71,"",M71/M64) -> 1.840 | AD71: =IF("na"=Q71,"",Q71/Q64) -> 1.379 | AE71: =IF("na"=T71,"",T71/T64) -> 2.870 | AF71: =IF("na"=X71,"",X71/X64) -> 2.177 | AG71: 65.000 | AH71: 5 | AI71: 5 | AJ71: 5 | AK71: 4 | AL71: 4 | AM71: 6 | AO71: =IF("na"=F71,"",SQRT(F71)/SQRT(F64)) -> 1.138 | AP71: =IF("na"=J71,"",SQRT(J71)/SQRT(J64)) -> 1.088 | AQ71: =IF("na"=M71,"",SQRT(M71)/SQRT(M64)) -> 1.356 | AR71: =IF("na"=Q71,"",SQRT(Q71)/SQRT(Q64)) -> 1.174 | AS71: =IF("na"=T71,"",SQRT(T71)/SQRT(T64)) -> 1.694 | AT71: =IF("na"=X71,"",SQRT(X71)/SQRT(X64)) -> 1.476
A72: EPI5 | B72: 0.287 | C72: 1.046 | D72: 0.294 | E72: 0.041 | F72: 0.0017 | G72: 0.964 | H72: 0.2700 | I72: 0.9203 | J72: 0.089 | K72: 0.294 | L72: 0.034 | M72: 0.0012 | N72: 0.947 | O72: 0.2068 | P72: 0.9228 | Q72: 0.058 | R72: 0.293 | S72: 0.030 | T72: 0.0009 | U72: 0.942 | V72: 0.1512 | W72: 0.9322 | X72: 0.036 | AA72: =IF("na"=F72,"",F72/F64) -> 1.24465684165 | AB72: =IF("na"=J72,"",J72/J64) -> 1.172 | AC72: =IF("na"=M72,"",M72/M64) -> 1.764 | AD72: =IF("na"=Q72,"",Q72/Q64) -> 1.477 | AE72: =IF("na"=T72,"",T72/T64) -> 2.873 | AF72: =IF("na"=X72,"",X72/X64) -> 1.930 | AG72: 65.000 | AH72: 4 | AI72: 4 | AJ72: 4 | AK72: 6 | AL72: 5 | AM72: 4 | AO72: =IF("na"=F72,"",SQRT(F72)/SQRT(F64)) -> 1.116 | AP72: =IF("na"=J72,"",SQRT(J72)/SQRT(J64)) -> 1.083 | AQ72: =IF("na"=M72,"",SQRT(M72)/SQRT(M64)) -> 1.328 | AR72: =IF("na"=Q72,"",SQRT(Q72)/SQRT(Q64)) -> 1.215 | AS72: =IF("na"=T72,"",SQRT(T72)/SQRT(T64)) -> 1.695 | AT72: =IF("na"=X72,"",SQRT(X72)/SQRT(X64)) -> 1.389
D74: population 2
B75: true | C75: true | D75: 7 | K75: 15 | R75: 30
B76: mean | C76: rr | D76: mean | E76: stdev | F76: mse | G76: mrr | H76: srr | I76: prr | J76: mse_rr | K76: mean | L76: stdev | M76: mse | N76: mrr | O76: srr | P76: prr | Q76: mse_rr | R76: mean | S76: stdev | T76: mse | U76: mrr | V76: srr | W76: prr | X76: mse_rr
A77: Random | B77: 0.351 | C77: 1.046 | D77: 0.346 | E77: 0.034 | F77: 0.001 | G77: 1.097 | H77: 0.221 | I77: 1.070 | J77: 0.050 | K77: 0.349 | L77: 0.023 | M77: 0.001 | N77: 1.079 | O77: 0.144 | P77: 1.068 | Q77: 0.021 | R77: 0.347 | S77: 0.016 | T77: 0.000 | U77: 1.080 | V77: 0.106 | W77: 1.074 | X77: 0.012
A78: NewEPI | B78: 0.351 | C78: 1.046 | D78: 0.346 | E78: 0.037 | F78: 0.001 | G78: 1.120 | H78: 0.247 | I78: 1.090 | J78: 0.063 | K78: 0.346 | L78: 0.031 | M78: 0.001 | N78: 1.091 | O78: 0.173 | P78: 1.074 | Q78: 0.031 | R78: 0.346 | S78: 0.027 | T78: 0.001 | U78: 1.093 | V78: 0.140 | W78: 1.082 | X78: 0.021 | AA78: =IF("na"=F78,"",F78/F77) -> 1.16557359288 | AB78: =IF("na"=J78,"",J78/J77) -> 1.272 | AC78: =IF("na"=M78,"",M78/M77) -> 1.951 | AD78: =IF("na"=Q78,"",Q78/Q77) -> 1.442 | AE78: =IF("na"=T78,"",T78/T77) -> 2.701 | AF78: =IF("na"=X78,"",X78/X77) -> 1.732 | AG78: =ROW() -> 78.000 | AH78: =SUM(IF(INDIRECT(ADDRESS(ROW(),AH$60))>INDIRECT(ADDRESS($AG78,AH$60)),1,0), IF(INDIRECT(ADDRESS(ROW(),AH$60))>INDIRECT(ADDRESS($AG78+1,AH$60)),1,0), IF(INDIRECT(ADDRESS(ROW(),AH$60))>INDIRECT(ADDRESS($AG78+2,AH$60)),1,0), IF(INDIRECT(ADDRESS(ROW(),AH$60))>INDIRECT(ADDRESS($AG78+3,AH$60)),1,0), IF(INDIRECT(ADDRESS(ROW(),AH$60))>INDIRECT(ADDRESS($AG78+4,AH$60)),1,0), IF(INDIRECT(ADDRESS(ROW(),AH$60))>INDIRECT(ADDRESS($AG78+5,AH$60)),1,0), IF(INDIRECT(ADDRESS(ROW(),AH$60))>INDIRECT(ADDRESS($AG78+6,AH$60)),1,0), IF(INDIRECT(ADDRESS(ROW(),AH$60))>INDIRECT(ADDRESS($AG78+7,AH$60)),1,0))+1 -> 4 | AI78: 8 | AJ78: 8 | AK78: 8 | AL78: 7 | AM78: 7 | AO78: =IF("na"=F78,"",SQRT(F78)/SQRT(F77)) -> 1.080 | AP78: =IF("na"=J78,"",SQRT(J78)/SQRT(J77)) -> 1.128 | AQ78: =IF("na"=M78,"",SQRT(M78)/SQRT(M77)) -> 1.397 | AR78: =IF("na"=Q78,"",SQRT(Q78)/SQRT(Q77)) -> 1.201 | AS78: =IF("na"=T78,"",SQRT(T78)/SQRT(T77)) -> 1.644 | AT78: =IF("na"=X78,"",SQRT(X78)/SQRT(X77)) -> 1.316
A79: Grid | B79: 0.351 | C79: 1.046 | D79: 0.349 | E79: 0.038 | F79: 0.001 | G79: 1.008 | H79: 0.206 | I79: 0.984 | J79: 0.046 | K79: 0.348 | L79: 0.032 | M79: 0.001 | N79: 0.997 | O79: 0.158 | P79: 0.982 | Q79: 0.029 | R79: 0.347 | S79: 0.028 | T79: 0.001 | U79: 0.998 | V79: 0.133 | W79: 0.987 | X79: 0.021 | AA79: =IF("na"=F79,"",F79/F77) -> 1.20599702113 | AB79: =IF("na"=J79,"",J79/J77) -> 0.935 | AC79: =IF("na"=M79,"",M79/M77) -> 1.945 | AD79: =IF("na"=Q79,"",Q79/Q77) -> 1.367 | AE79: =IF("na"=T79,"",T79/T77) -> 2.817 | AF79: =IF("na"=X79,"",X79/X77) -> 1.738 | AG79: =AG78 -> 78.000 | AH79: 5 | AI79: 6 | AJ79: 7 | AK79: 7 | AL79: 8 | AM79: 8 | AO79: =IF("na"=F79,"",SQRT(F79)/SQRT(F77)) -> 1.098 | AP79: =IF("na"=J79,"",SQRT(J79)/SQRT(J77)) -> 0.967 | AQ79: =IF("na"=M79,"",SQRT(M79)/SQRT(M77)) -> 1.395 | AR79: =IF("na"=Q79,"",SQRT(Q79)/SQRT(Q77)) -> 1.169 | AS79: =IF("na"=T79,"",SQRT(T79)/SQRT(T77)) -> 1.678 | AT79: =IF("na"=X79,"",SQRT(X79)/SQRT(X77)) -> 1.318
A80: Peri | B80: 0.351 | C80: 1.046 | D80: 0.367 | E80: 0.035 | F80: 0.001 | G80: 1.068 | H80: 0.204 | I80: 1.045 | J80: 0.041 | K80: 0.361 | L80: 0.027 | M80: 0.001 | N80: 1.007 | O80: 0.144 | P80: 0.994 | Q80: 0.023 | R80: 0.358 | S80: 0.022 | T80: 0.001 | U80: 1.016 | V80: 0.110 | W80: 1.008 | X80: 0.014 | AA80: =IF("na"=F80,"",F80/F77) -> 1.24693326591 | AB80: =IF("na"=J80,"",J80/J77) -> 0.835 | AC80: =IF("na"=M80,"",M80/M77) -> 1.545 | AD80: =IF("na"=Q80,"",Q80/Q77) -> 1.096 | AE80: =IF("na"=T80,"",T80/T77) -> 1.909 | AF80: =IF("na"=X80,"",X80/X77) -> 1.116 | AG80: 78.000 | AH80: 7 | AI80: 2 | AJ80: 3 | AK80: 4 | AL80: 4 | AM80: 3 | AO80: =IF("na"=F80,"",SQRT(F80)/SQRT(F77)) -> 1.117 | AP80: =IF("na"=J80,"",SQRT(J80)/SQRT(J77)) -> 0.914 | AQ80: =IF("na"=M80,"",SQRT(M80)/SQRT(M77)) -> 1.243 | AR80: =IF("na"=Q80,"",SQRT(Q80)/SQRT(Q77)) -> 1.047 | AS80: =IF("na"=T80,"",SQRT(T80)/SQRT(T77)) -> 1.382 | AT80: =IF("na"=X80,"",SQRT(X80)/SQRT(X77)) -> 1.057
A81: Quad | B81: 0.351 | C81: 1.046 | D81: 0.364 | E81: 0.033 | F81: 0.001 | G81: 1.009 | H81: 0.187 | I81: 0.989 | J81: 0.038 | K81: 0.366 | L81: 0.025 | M81: 0.001 | N81: 1.001 | O81: 0.134 | P81: 0.990 | Q81: 0.021 | R81: 0.362 | S81: 0.019 | T81: 0.000 | U81: 0.993 | V81: 0.098 | W81: 0.987 | X81: 0.013 | AA81: =IF("na"=F81,"",F81/F77) -> 1.07237856430 | AB81: =IF("na"=J81,"",J81/J77) -> 0.773 | AC81: =IF("na"=M81,"",M81/M77) -> 1.658 | AD81: =IF("na"=Q81,"",Q81/Q77) -> 0.987 | AE81: =IF("na"=T81,"",T81/T77) -> 1.727 | AF81: =IF("na"=X81,"",X81/X77) -> 1.076 | AG81: 78.000 | AH81: 1 | AI81: 1 | AJ81: 4 | AK81: 1 | AL81: 2 | AM81: 2 | AO81: =IF("na"=F81,"",SQRT(F81)/SQRT(F77)) -> 1.036 | AP81: =IF("na"=J81,"",SQRT(J81)/SQRT(J77)) -> 0.879 | AQ81: =IF("na"=M81,"",SQRT(M81)/SQRT(M77)) -> 1.288 | AR81: =IF("na"=Q81,"",SQRT(Q81)/SQRT(Q77)) -> 0.993 | AS81: =IF("na"=T81,"",SQRT(T81)/SQRT(T77)) -> 1.314 | AT81: =IF("na"=X81,"",SQRT(X81)/SQRT(X77)) -> 1.037
A82: Square | B82: 0.351 | C82: 1.046 | D82: 0.338 | E82: 0.033 | F82: 0.0013 | G82: 1.068 | H82: 0.2087 | I82: 1.0443 | J82: 0.044 | K82: 0.339 | L82: 0.023 | M82: 0.0007 | N82: 1.059 | O82: 0.1453 | P82: 1.0475 | Q82: 0.021 | R82: 0.339 | S82: 0.016 | T82: 0.0004 | U82: 1.052 | V82: 0.0996 | W82: 1.0465 | X82: 0.010 | AA82: =IF("na"=F82,"",F82/F77) -> 1.08661945220 | AB82: =IF("na"=J82,"",J82/J77) -> 0.877 | AC82: =IF("na"=M82,"",M82/M77) -> 1.301 | AD82: =IF("na"=Q82,"",Q82/Q77) -> 0.993 | AE82: =IF("na"=T82,"",T82/T77) -> 1.499 | AF82: =IF("na"=X82,"",X82/X77) -> 0.819 | AG82: 78.000 | AH82: 2 | AI82: 4 | AJ82: 1 | AK82: 2 | AL82: 1 | AM82: 1 | AO82: =IF("na"=F82,"",SQRT(F82)/SQRT(F77)) -> 1.042 | AP82: =IF("na"=J82,"",SQRT(J82)/SQRT(J77)) -> 0.937 | AQ82: =IF("na"=M82,"",SQRT(M82)/SQRT(M77)) -> 1.140 | AR82: =IF("na"=Q82,"",SQRT(Q82)/SQRT(Q77)) -> 0.997 | AS82: =IF("na"=T82,"",SQRT(T82)/SQRT(T77)) -> 1.224 | AT82: =IF("na"=X82,"",SQRT(X82)/SQRT(X77)) -> 0.905
A83: OldEPI | B83: 0.351 | C83: 1.046 | D83: 0.363 | E83: 0.037 | F83: 0.0015 | G83: 1.007 | H83: 0.2071 | I83: 0.9833 | J83: 0.047 | K83: 0.363 | L83: 0.029 | M83: 0.0010 | N83: 0.999 | O83: 0.1529 | P83: 0.9860 | Q83: 0.027 | R83: 0.361 | S83: 0.024 | T83: 0.0007 | U83: 1.001 | V83: 0.1209 | W83: 0.9922 | X83: 0.018 | AA83: =IF("na"=F83,"",F83/F77) -> 1.29444704764 | AB83: =IF("na"=J83,"",J83/J77) -> 0.943 | AC83: =IF("na"=M83,"",M83/M77) -> 1.905 | AD83: =IF("na"=Q83,"",Q83/Q77) -> 1.268 | AE83: =IF("na"=T83,"",T83/T77) -> 2.505 | AF83: =IF("na"=X83,"",X83/X77) -> 1.446 | AG83: 78.000 | AH83: 8 | AI83: 7 | AJ83: 6 | AK83: 6 | AL83: 6 | AM83: 6 | AO83: =IF("na"=F83,"",SQRT(F83)/SQRT(F77)) -> 1.138 | AP83: =IF("na"=J83,"",SQRT(J83)/SQRT(J77)) -> 0.971 | AQ83: =IF("na"=M83,"",SQRT(M83)/SQRT(M77)) -> 1.380 | AR83: =IF("na"=Q83,"",SQRT(Q83)/SQRT(Q77)) -> 1.126 | AS83: =IF("na"=T83,"",SQRT(T83)/SQRT(T77)) -> 1.583 | AT83: =IF("na"=X83,"",SQRT(X83)/SQRT(X77)) -> 1.203
A84: EPI3 | B84: 0.351 | C84: 1.046 | D84: 0.362 | E84: 0.037 | F84: 0.0014 | G84: 1.007 | H84: 0.2058 | I84: 0.9831 | J84: 0.046 | K84: 0.360 | L84: 0.028 | M84: 0.0009 | N84: 1.009 | O84: 0.1503 | P84: 0.9957 | Q84: 0.025 | R84: 0.358 | S84: 0.022 | T84: 0.0005 | U84: 1.010 | V84: 0.1157 | W84: 1.0019 | X84: 0.015 | AA84: =IF("na"=F84,"",F84/F77) -> 1.22827257460 | AB84: =IF("na"=J84,"",J84/J77) -> 0.932 | AC84: =IF("na"=M84,"",M84/M77) -> 1.666 | AD84: =IF("na"=Q84,"",Q84/Q77) -> 1.181 | AE84: =IF("na"=T84,"",T84/T77) -> 1.923 | AF84: =IF("na"=X84,"",X84/X77) -> 1.266 | AG84: 78.000 | AH84: 6 | AI84: 5 | AJ84: 5 | AK84: 5 | AL84: 5 | AM84: 5 | AO84: =IF("na"=F84,"",SQRT(F84)/SQRT(F77)) -> 1.108 | AP84: =IF("na"=J84,"",SQRT(J84)/SQRT(J77)) -> 0.966 | AQ84: =IF("na"=M84,"",SQRT(M84)/SQRT(M77)) -> 1.291 | AR84: =IF("na"=Q84,"",SQRT(Q84)/SQRT(Q77)) -> 1.087 | AS84: =IF("na"=T84,"",SQRT(T84)/SQRT(T77)) -> 1.387 | AT84: =IF("na"=X84,"",SQRT(X84)/SQRT(X77)) -> 1.125
A85: EPI5 | B85: 0.351 | C85: 1.046 | D85: 0.361 | E85: 0.035 | F85: 0.0013 | G85: 1.005 | H85: 0.1969 | I85: 0.9843 | J85: 0.043 | K85: 0.359 | L85: 0.027 | M85: 0.0008 | N85: 1.006 | O85: 0.1422 | P85: 0.9945 | Q85: 0.023 | R85: 0.356 | S85: 0.022 | T85: 0.0005 | U85: 1.018 | V85: 0.1110 | W85: 1.0105 | X85: 0.014 | AA85: =IF("na"=F85,"",F85/F77) -> 1.13398619129 | AB85: =IF("na"=J85,"",J85/J77) -> 0.857 | AC85: =IF("na"=M85,"",M85/M77) -> 1.521 | AD85: =IF("na"=Q85,"",Q85/Q77) -> 1.074 | AE85: =IF("na"=T85,"",T85/T77) -> 1.818 | AF85: =IF("na"=X85,"",X85/X77) -> 1.121 | AG85: 78.000 | AH85: 3 | AI85: 3 | AJ85: 2 | AK85: 3 | AL85: 3 | AM85: 4 | AO85: =IF("na"=F85,"",SQRT(F85)/SQRT(F77)) -> 1.065 | AP85: =IF("na"=J85,"",SQRT(J85)/SQRT(J77)) -> 0.926 | AQ85: =IF("na"=M85,"",SQRT(M85)/SQRT(M77)) -> 1.233 | AR85: =IF("na"=Q85,"",SQRT(Q85)/SQRT(Q77)) -> 1.036 | AS85: =IF("na"=T85,"",SQRT(T85)/SQRT(T77)) -> 1.348 | AT85: =IF("na"=X85,"",SQRT(X85)/SQRT(X77)) -> 1.059
D87: population 3
B88: true | C88: true | D88: 7 | K88: 15 | R88: 30
B89: mean | C89: rr | D89: mean | E89: stdev | F89: mse | G89: mrr | H89: srr | I89: prr | J89: mse_rr | K89: mean | L89: stdev | M89: mse | N89: mrr | O89: srr | P89: prr | Q89: mse_rr | R89: mean | S89: stdev | T89: mse | U89: mrr | V89: srr | W89: prr | X89: mse_rr
A90: Random | B90: 0.123 | C90: 1.012 | D90: 0.125 | E90: 0.021 | F90: 0.000 | G90: 1.069 | H90: 0.455 | I90: 0.970 | J90: 0.208 | K90: 0.125 | L90: 0.015 | M90: 0.000 | N90: 1.035 | O90: 0.276 | P90: 0.992 | Q90: 0.077 | R90: 0.125 | S90: 0.011 | T90: 0.000 | U90: 1.010 | V90: 0.189 | W90: 0.988 | X90: 0.036
A91: NewEPI | B91: 0.123 | C91: 1.012 | D91: 0.128 | E91: 0.024 | F91: 0.001 | G91: 1.074 | H91: 0.529 | I91: 0.959 | J91: 0.282 | K91: 0.127 | L91: 0.017 | M91: 0.000 | N91: 1.015 | O91: 0.317 | P91: 0.959 | Q91: 0.104 | R91: 0.127 | S91: 0.014 | T91: 0.000 | U91: 1.000 | V91: 0.224 | W91: 0.970 | X91: 0.052 | AA91: =IF("na"=F91,"",F91/F90) -> 1.28792837727 | AB91: =IF("na"=J91,"",J91/J90) -> 1.355 | AC91: =IF("na"=M91,"",M91/M90) -> 1.200 | AD91: =IF("na"=Q91,"",Q91/Q90) -> 1.348 | AE91: =IF("na"=T91,"",T91/T90) -> 1.628 | AF91: =IF("na"=X91,"",X91/X90) -> 1.436 | AG91: =ROW() -> 91.000 | AH91: =SUM(IF(INDIRECT(ADDRESS(ROW(),AH$60))>INDIRECT(ADDRESS($AG91,AH$60)),1,0), IF(INDIRECT(ADDRESS(ROW(),AH$60))>INDIRECT(ADDRESS($AG91+1,AH$60)),1,0), IF(INDIRECT(ADDRESS(ROW(),AH$60))>INDIRECT(ADDRESS($AG91+2,AH$60)),1,0), IF(INDIRECT(ADDRESS(ROW(),AH$60))>INDIRECT(ADDRESS($AG91+3,AH$60)),1,0), IF(INDIRECT(ADDRESS(ROW(),AH$60))>INDIRECT(ADDRESS($AG91+4,AH$60)),1,0), IF(INDIRECT(ADDRESS(ROW(),AH$60))>INDIRECT(ADDRESS($AG91+5,AH$60)),1,0), IF(INDIRECT(ADDRESS(ROW(),AH$60))>INDIRECT(ADDRESS($AG91+6,AH$60)),1,0), IF(INDIRECT(ADDRESS(ROW(),AH$60))>INDIRECT(ADDRESS($AG91+7,AH$60)),1,0))+1 -> 6 | AI91: 1 | AJ91: 2 | AK91: 2 | AL91: 5 | AM91: 2 | AO91: =IF("na"=F91,"",SQRT(F91)/SQRT(F90)) -> 1.135 | AP91: =IF("na"=J91,"",SQRT(J91)/SQRT(J90)) -> 1.164 | AQ91: =IF("na"=M91,"",SQRT(M91)/SQRT(M90)) -> 1.096 | AR91: =IF("na"=Q91,"",SQRT(Q91)/SQRT(Q90)) -> 1.161 | AS91: =IF("na"=T91,"",SQRT(T91)/SQRT(T90)) -> 1.276 | AT91: =IF("na"=X91,"",SQRT(X91)/SQRT(X90)) -> 1.199
A92: Grid | B92: 0.123 | C92: 1.012 | D92: 0.127 | E92: 0.024 | F92: 0.001 | G92: 1.272 | H92: 0.925 | I92: 1.029 | J92: 0.856 | K92: 0.127 | L92: 0.019 | M92: 0.000 | N92: 1.131 | O92: 0.423 | P92: 1.032 | Q92: 0.179 | R92: 0.127 | S92: 0.015 | T92: 0.000 | U92: 1.109 | V92: 0.324 | W92: 1.049 | X92: 0.107 | AA92: =IF("na"=F92,"",F92/F90) -> 1.32026850944 | AB92: =IF("na"=J92,"",J92/J90) -> 4.108 | AC92: =IF("na"=M92,"",M92/M90) -> 1.459 | AD92: =IF("na"=Q92,"",Q92/Q90) -> 2.331 | AE92: =IF("na"=T92,"",T92/T90) -> 1.748 | AF92: =IF("na"=X92,"",X92/X90) -> 2.954 | AG92: =AG91 -> 91.000 | AH92: 7 | AI92: 8 | AJ92: 7 | AK92: 4 | AL92: 7 | AM92: 8 | AO92: =IF("na"=F92,"",SQRT(F92)/SQRT(F90)) -> 1.149 | AP92: =IF("na"=J92,"",SQRT(J92)/SQRT(J90)) -> 2.027 | AQ92: =IF("na"=M92,"",SQRT(M92)/SQRT(M90)) -> 1.208 | AR92: =IF("na"=Q92,"",SQRT(Q92)/SQRT(Q90)) -> 1.527 | AS92: =IF("na"=T92,"",SQRT(T92)/SQRT(T90)) -> 1.322 | AT92: =IF("na"=X92,"",SQRT(X92)/SQRT(X90)) -> 1.719
A93: Peri | B93: 0.123 | C93: 1.012 | D93: 0.127 | E93: 0.024 | F93: 0.001 | G93: 1.314 | H93: 0.891 | I93: 1.069 | J93: 0.797 | K93: 0.127 | L93: 0.018 | M93: 0.000 | N93: 1.140 | O93: 0.439 | P93: 1.044 | Q93: 0.194 | R93: 0.128 | S93: 0.014 | T93: 0.000 | U93: 1.042 | V93: 0.257 | W93: 1.004 | X93: 0.066 | AA93: =IF("na"=F93,"",F93/F90) -> 1.26369536307 | AB93: =IF("na"=J93,"",J93/J90) -> 3.827 | AC93: =IF("na"=M93,"",M93/M90) -> 1.388 | AD93: =IF("na"=Q93,"",Q93/Q90) -> 2.527 | AE93: =IF("na"=T93,"",T93/T90) -> 1.676 | AF93: =IF("na"=X93,"",X93/X90) -> 1.830 | AG93: 91.000 | AH93: 5 | AI93: 6 | AJ93: 6 | AK93: 5 | AL93: 6 | AM93: 4 | AO93: =IF("na"=F93,"",SQRT(F93)/SQRT(F90)) -> 1.124 | AP93: =IF("na"=J93,"",SQRT(J93)/SQRT(J90)) -> 1.956 | AQ93: =IF("na"=M93,"",SQRT(M93)/SQRT(M90)) -> 1.178 | AR93: =IF("na"=Q93,"",SQRT(Q93)/SQRT(Q90)) -> 1.590 | AS93: =IF("na"=T93,"",SQRT(T93)/SQRT(T90)) -> 1.295 | AT93: =IF("na"=X93,"",SQRT(X93)/SQRT(X90)) -> 1.353
A94: Quad | B94: 0.123 | C94: 1.012 | D94: 0.129 | E94: 0.023 | F94: 0.001 | G94: 1.319 | H94: 0.868 | I94: 1.091 | J94: 0.760 | K94: 0.129 | L94: 0.017 | M94: 0.000 | N94: 1.157 | O94: 0.413 | P94: 1.059 | Q94: 0.173 | R94: 0.128 | S94: 0.012 | T94: 0.000 | U94: 1.104 | V94: 0.248 | W94: 1.062 | X94: 0.064 | AA94: =IF("na"=F94,"",F94/F90) -> 1.24208417649 | AB94: =IF("na"=J94,"",J94/J90) -> 3.650 | AC94: =IF("na"=M94,"",M94/M90) -> 1.300 | AD94: =IF("na"=Q94,"",Q94/Q90) -> 2.254 | AE94: =IF("na"=T94,"",T94/T90) -> 1.381 | AF94: =IF("na"=X94,"",X94/X90) -> 1.777 | AG94: 91.000 | AH94: 4 | AI94: 5 | AJ94: 3 | AK94: 3 | AL94: 2 | AM94: 3 | AO94: =IF("na"=F94,"",SQRT(F94)/SQRT(F90)) -> 1.114 | AP94: =IF("na"=J94,"",SQRT(J94)/SQRT(J90)) -> 1.911 | AQ94: =IF("na"=M94,"",SQRT(M94)/SQRT(M90)) -> 1.140 | AR94: =IF("na"=Q94,"",SQRT(Q94)/SQRT(Q90)) -> 1.501 | AS94: =IF("na"=T94,"",SQRT(T94)/SQRT(T90)) -> 1.175 | AT94: =IF("na"=X94,"",SQRT(X94)/SQRT(X90)) -> 1.333
A95: Square | B95: 0.123 | C95: 1.012 | D95: 0.126 | E95: 0.022 | F95: 0.0005 | G95: 1.122 | H95: 0.5368 | I95: 1.0063 | J95: 0.288 | K95: 0.126 | L95: 0.016 | M95: 0.0003 | N95: 1.036 | O95: 0.2779 | P95: 0.9934 | Q95: 0.078 | R95: 0.126 | S95: 0.011 | T95: 0.0001 | U95: 1.032 | V95: 0.2032 | W95: 1.0082 | X95: 0.041 | AA95: =IF("na"=F95,"",F95/F90) -> 1.07482287670 | AB95: =IF("na"=J95,"",J95/J90) -> 1.383 | AC95: =IF("na"=M95,"",M95/M90) -> 1.073 | AD95: =IF("na"=Q95,"",Q95/Q90) -> 1.009 | AE95: =IF("na"=T95,"",T95/T90) -> 1.002 | AF95: =IF("na"=X95,"",X95/X90) -> 1.143 | AG95: 91.000 | AH95: 1 | AI95: 2 | AJ95: 1 | AK95: 1 | AL95: 1 | AM95: 1 | AO95: =IF("na"=F95,"",SQRT(F95)/SQRT(F90)) -> 1.037 | AP95: =IF("na"=J95,"",SQRT(J95)/SQRT(J90)) -> 1.176 | AQ95: =IF("na"=M95,"",SQRT(M95)/SQRT(M90)) -> 1.036 | AR95: =IF("na"=Q95,"",SQRT(Q95)/SQRT(Q90)) -> 1.005 | AS95: =IF("na"=T95,"",SQRT(T95)/SQRT(T90)) -> 1.001 | AT95: =IF("na"=X95,"",SQRT(X95)/SQRT(X90)) -> 1.069
A96: OldEPI | B96: 0.123 | C96: 1.012 | D96: 0.128 | E96: 0.025 | F96: 0.0006 | G96: 1.283 | H96: 0.8965 | I96: 1.0451 | J96: 0.805 | K96: 0.129 | L96: 0.018 | M96: 0.0004 | N96: 1.130 | O96: 0.4848 | P96: 1.0226 | Q96: 0.235 | R96: 0.129 | S96: 0.014 | T96: 0.0002 | U96: 1.089 | V96: 0.2956 | W96: 1.0352 | X96: 0.088 | AA96: =IF("na"=F96,"",F96/F90) -> 1.36414000633 | AB96: =IF("na"=J96,"",J96/J90) -> 3.863 | AC96: =IF("na"=M96,"",M96/M90) -> 1.531 | AD96: =IF("na"=Q96,"",Q96/Q90) -> 3.061 | AE96: =IF("na"=T96,"",T96/T90) -> 1.773 | AF96: =IF("na"=X96,"",X96/X90) -> 2.434 | AG96: 91.000 | AH96: 8 | AI96: 7 | AJ96: 8 | AK96: 8 | AL96: 8 | AM96: 6 | AO96: =IF("na"=F96,"",SQRT(F96)/SQRT(F90)) -> 1.168 | AP96: =IF("na"=J96,"",SQRT(J96)/SQRT(J90)) -> 1.965 | AQ96: =IF("na"=M96,"",SQRT(M96)/SQRT(M90)) -> 1.237 | AR96: =IF("na"=Q96,"",SQRT(Q96)/SQRT(Q90)) -> 1.750 | AS96: =IF("na"=T96,"",SQRT(T96)/SQRT(T90)) -> 1.332 | AT96: =IF("na"=X96,"",SQRT(X96)/SQRT(X90)) -> 1.560
A97: EPI3 | B97: 0.123 | C97: 1.012 | D97: 0.128 | E97: 0.023 | F97: 0.0006 | G97: 1.300 | H97: 0.8604 | I97: 1.0490 | J97: 0.742 | K97: 0.129 | L97: 0.017 | M97: 0.0003 | N97: 1.157 | O97: 0.4647 | P97: 1.0502 | Q97: 0.217 | R97: 0.128 | S97: 0.013 | T97: 0.0002 | U97: 1.150 | V97: 0.3087 | W97: 1.0950 | X97: 0.102 | AA97: =IF("na"=F97,"",F97/F90) -> 1.19752804678 | AB97: =IF("na"=J97,"",J97/J90) -> 3.560 | AC97: =IF("na"=M97,"",M97/M90) -> 1.306 | AD97: =IF("na"=Q97,"",Q97/Q90) -> 2.830 | AE97: =IF("na"=T97,"",T97/T90) -> 1.499 | AF97: =IF("na"=X97,"",X97/X90) -> 2.830 | AG97: 91.000 | AH97: 2 | AI97: 4 | AJ97: 4 | AK97: 7 | AL97: 4 | AM97: 7 | AO97: =IF("na"=F97,"",SQRT(F97)/SQRT(F90)) -> 1.094 | AP97: =IF("na"=J97,"",SQRT(J97)/SQRT(J90)) -> 1.887 | AQ97: =IF("na"=M97,"",SQRT(M97)/SQRT(M90)) -> 1.143 | AR97: =IF("na"=Q97,"",SQRT(Q97)/SQRT(Q90)) -> 1.682 | AS97: =IF("na"=T97,"",SQRT(T97)/SQRT(T90)) -> 1.224 | AT97: =IF("na"=X97,"",SQRT(X97)/SQRT(X90)) -> 1.682
A98: EPI5 | B98: 0.123 | C98: 1.012 | D98: 0.128 | E98: 0.023 | F98: 0.0006 | G98: 1.232 | H98: 0.6762 | I98: 1.0558 | J98: 0.459 | K98: 0.128 | L98: 0.017 | M98: 0.0003 | N98: 1.175 | O98: 0.4351 | P98: 1.0873 | Q98: 0.195 | R98: 0.128 | S98: 0.013 | T98: 0.0002 | U98: 1.150 | V98: 0.2687 | W98: 1.1106 | X98: 0.082 | AA98: =IF("na"=F98,"",F98/F90) -> 1.22336698182 | AB98: =IF("na"=J98,"",J98/J90) -> 2.204 | AC98: =IF("na"=M98,"",M98/M90) -> 1.348 | AD98: =IF("na"=Q98,"",Q98/Q90) -> 2.539 | AE98: =IF("na"=T98,"",T98/T90) -> 1.458 | AF98: =IF("na"=X98,"",X98/X90) -> 2.270 | AG98: 91.000 | AH98: 3 | AI98: 3 | AJ98: 5 | AK98: 6 | AL98: 3 | AM98: 5 | AO98: =IF("na"=F98,"",SQRT(F98)/SQRT(F90)) -> 1.106 | AP98: =IF("na"=J98,"",SQRT(J98)/SQRT(J90)) -> 1.485 | AQ98: =IF("na"=M98,"",SQRT(M98)/SQRT(M90)) -> 1.161 | AR98: =IF("na"=Q98,"",SQRT(Q98)/SQRT(Q90)) -> 1.593 | AS98: =IF("na"=T98,"",SQRT(T98)/SQRT(T90)) -> 1.207 | AT98: =IF("na"=X98,"",SQRT(X98)/SQRT(X90)) -> 1.507
D100: population 4
B101: true | C101: true | D101: 7 | K101: 15 | R101: 30
B102: mean | C102: rr | D102: mean | E102: stdev | F102: mse | G102: mrr | H102: srr | I102: prr | J102: mse_rr | K102: mean | L102: stdev | M102: mse | N102: mrr | O102: srr | P102: prr | Q102: mse_rr | R102: mean | S102: stdev | T102: mse | U102: mrr | V102: srr | W102: prr | X102: mse_rr
A103: Random | B103: 0.118 | C103: 1.095 | D103: 0.118 | E103: 0.024 | F103: 0.001 | G103: 1.327 | H103: 0.582 | I103: 1.212 | J103: 0.353 | K103: 0.119 | L103: 0.018 | M103: 0.000 | N103: 1.242 | O103: 0.337 | P103: 1.196 | Q103: 0.124 | R103: 0.119 | S103: 0.013 | T103: 0.000 | U103: 1.248 | V103: 0.239 | W103: 1.224 | X103: 0.074
A104: NewEPI | B104: 0.118 | C104: 1.095 | D104: 0.122 | E104: 0.029 | F104: 0.001 | G104: 1.351 | H104: 0.644 | I104: 1.220 | J104: 0.431 | K104: 0.120 | L104: 0.025 | M104: 0.001 | N104: 1.298 | O104: 0.435 | P104: 1.231 | Q104: 0.208 | R104: 0.122 | S104: 0.022 | T104: 0.001 | U104: 1.254 | V104: 0.323 | W104: 1.216 | X104: 0.119 | AA104: =IF("na"=F104,"",F104/F103) -> 1.39394417804 | AB104: =IF("na"=J104,"",J104/J103) -> 1.221 | AC104: =IF("na"=M104,"",M104/M103) -> 1.967 | AD104: =IF("na"=Q104,"",Q104/Q103) -> 1.680 | AE104: =IF("na"=T104,"",T104/T103) -> 3.255 | AF104: =IF("na"=X104,"",X104/X103) -> 1.616 | AG104: =ROW() -> 104.000 | AH104: =SUM(IF(INDIRECT(ADDRESS(ROW(),AH$60))>INDIRECT(ADDRESS($AG104,AH$60)),1,0), IF(INDIRECT(ADDRESS(ROW(),AH$60))>INDIRECT(ADDRESS($AG104+1,AH$60)),1,0), IF(INDIRECT(ADDRESS(ROW(),AH$60))>INDIRECT(ADDRESS($AG104+2,AH$60)),1,0), IF(INDIRECT(ADDRESS(ROW(),AH$60))>INDIRECT(ADDRESS($AG104+3,AH$60)),1,0), IF(INDIRECT(ADDRESS(ROW(),AH$60))>INDIRECT(ADDRESS($AG104+4,AH$60)),1,0), IF(INDIRECT(ADDRESS(ROW(),AH$60))>INDIRECT(ADDRESS($AG104+5,AH$60)),1,0), IF(INDIRECT(ADDRESS(ROW(),AH$60))>INDIRECT(ADDRESS($AG104+6,AH$60)),1,0), IF(INDIRECT(ADDRESS(ROW(),AH$60))>INDIRECT(ADDRESS($AG104+7,AH$60)),1,0))+1 -> 3 | AI104: 7 | AJ104: 3 | AK104: 7 | AL104: 3 | AM104: 7 | AO104: =IF("na"=F104,"",SQRT(F104)/SQRT(F103)) -> 1.181 | AP104: =IF("na"=J104,"",SQRT(J104)/SQRT(J103)) -> 1.105 | AQ104: =IF("na"=M104,"",SQRT(M104)/SQRT(M103)) -> 1.402 | AR104: =IF("na"=Q104,"",SQRT(Q104)/SQRT(Q103)) -> 1.296 | AS104: =IF("na"=T104,"",SQRT(T104)/SQRT(T103)) -> 1.804 | AT104: =IF("na"=X104,"",SQRT(X104)/SQRT(X103)) -> 1.271
A105: Grid | B105: 0.118 | C105: 1.095 | D105: 0.124 | E105: 0.031 | F105: 0.001 | G105: 1.379 | H105: 0.647 | I105: 1.237 | J105: 0.439 | K105: 0.125 | L105: 0.027 | M105: 0.001 | N105: 1.313 | O105: 0.464 | P105: 1.228 | Q105: 0.233 | R105: 0.126 | S105: 0.025 | T105: 0.001 | U105: 1.252 | V105: 0.365 | W105: 1.197 | X105: 0.143 | AA105: =IF("na"=F105,"",F105/F103) -> 1.65451868690 | AB105: =IF("na"=J105,"",J105/J103) -> 1.243 | AC105: =IF("na"=M105,"",M105/M103) -> 2.523 | AD105: =IF("na"=Q105,"",Q105/Q103) -> 1.882 | AE105: =IF("na"=T105,"",T105/T103) -> 4.454 | AF105: =IF("na"=X105,"",X105/X103) -> 1.942 | AG105: =AG104 -> 104.000 | AH105: 4 | AI105: 8 | AJ105: 5 | AK105: 8 | AL105: 5 | AM105: 8 | AO105: =IF("na"=F105,"",SQRT(F105)/SQRT(F103)) -> 1.286 | AP105: =IF("na"=J105,"",SQRT(J105)/SQRT(J103)) -> 1.115 | AQ105: =IF("na"=M105,"",SQRT(M105)/SQRT(M103)) -> 1.588 | AR105: =IF("na"=Q105,"",SQRT(Q105)/SQRT(Q103)) -> 1.372 | AS105: =IF("na"=T105,"",SQRT(T105)/SQRT(T103)) -> 2.111 | AT105: =IF("na"=X105,"",SQRT(X105)/SQRT(X103)) -> 1.394
A106: Peri | B106: 0.118 | C106: 1.095 | D106: 0.132 | E106: 0.025 | F106: 0.001 | G106: 1.303 | H106: 0.512 | I106: 1.198 | J106: 0.273 | K106: 0.131 | L106: 0.020 | M106: 0.001 | N106: 1.194 | O106: 0.326 | P106: 1.146 | Q106: 0.109 | R106: 0.131 | S106: 0.017 | T106: 0.000 | U106: 1.172 | V106: 0.228 | W106: 1.144 | X106: 0.054 | AA106: =IF("na"=F106,"",F106/F103) -> 1.35150214829 | AB106: =IF("na"=J106,"",J106/J103) -> 0.774 | AC106: =IF("na"=M106,"",M106/M103) -> 1.894 | AD106: =IF("na"=Q106,"",Q106/Q103) -> 0.882 | AE106: =IF("na"=T106,"",T106/T103) -> 2.980 | AF106: =IF("na"=X106,"",X106/X103) -> 0.738 | AG106: 104.000 | AH106: 2 | AI106: 1 | AJ106: 2 | AK106: 2 | AL106: 2 | AM106: 1 | AO106: =IF("na"=F106,"",SQRT(F106)/SQRT(F103)) -> 1.163 | AP106: =IF("na"=J106,"",SQRT(J106)/SQRT(J103)) -> 0.880 | AQ106: =IF("na"=M106,"",SQRT(M106)/SQRT(M103)) -> 1.376 | AR106: =IF("na"=Q106,"",SQRT(Q106)/SQRT(Q103)) -> 0.939 | AS106: =IF("na"=T106,"",SQRT(T106)/SQRT(T103)) -> 1.726 | AT106: =IF("na"=X106,"",SQRT(X106)/SQRT(X103)) -> 0.859
A107: Quad | B107: 0.118 | C107: 1.095 | D107: 0.139 | E107: 0.025 | F107: 0.001 | G107: 1.331 | H107: 0.545 | I107: 1.228 | J107: 0.315 | K107: 0.137 | L107: 0.020 | M107: 0.001 | N107: 1.238 | O107: 0.308 | P107: 1.195 | Q107: 0.105 | R107: 0.137 | S107: 0.015 | T107: 0.001 | U107: 1.237 | V107: 0.226 | W107: 1.213 | X107: 0.065 | AA107: =IF("na"=F107,"",F107/F103) -> 1.76624305135 | AB107: =IF("na"=J107,"",J107/J103) -> 0.891 | AC107: =IF("na"=M107,"",M107/M103) -> 2.470 | AD107: =IF("na"=Q107,"",Q107/Q103) -> 0.850 | AE107: =IF("na"=T107,"",T107/T103) -> 3.880 | AF107: =IF("na"=X107,"",X107/X103) -> 0.880 | AG107: 104.000 | AH107: 5 | AI107: 3 | AJ107: 4 | AK107: 1 | AL107: 4 | AM107: 2 | AO107: =IF("na"=F107,"",SQRT(F107)/SQRT(F103)) -> 1.329 | AP107: =IF("na"=J107,"",SQRT(J107)/SQRT(J103)) -> 0.944 | AQ107: =IF("na"=M107,"",SQRT(M107)/SQRT(M103)) -> 1.572 | AR107: =IF("na"=Q107,"",SQRT(Q107)/SQRT(Q103)) -> 0.922 | AS107: =IF("na"=T107,"",SQRT(T107)/SQRT(T103)) -> 1.970 | AT107: =IF("na"=X107,"",SQRT(X107)/SQRT(X103)) -> 0.938
A108: Square | B108: 0.118 | C108: 1.095 | D108: 0.121 | E108: 0.025 | F108: 0.0006 | G108: 1.316 | H108: 0.5282 | I108: 1.2153 | J108: 0.293 | K108: 0.123 | L108: 0.018 | M108: 0.0004 | N108: 1.262 | O108: 0.3486 | P108: 1.2084 | Q108: 0.134 | R108: 0.122 | S108: 0.013 | T108: 0.0002 | U108: 1.246 | V108: 0.2431 | W108: 1.2216 | X108: 0.075 | AA108: =IF("na"=F108,"",F108/F103) -> 1.07292065780 | AB108: =IF("na"=J108,"",J108/J103) -> 0.831 | AC108: =IF("na"=M108,"",M108/M103) -> 1.160 | AD108: =IF("na"=Q108,"",Q108/Q103) -> 1.087 | AE108: =IF("na"=T108,"",T108/T103) -> 1.198 | AF108: =IF("na"=X108,"",X108/X103) -> 1.017 | AG108: 104.000 | AH108: 1 | AI108: 2 | AJ108: 1 | AK108: 3 | AL108: 1 | AM108: 3 | AO108: =IF("na"=F108,"",SQRT(F108)/SQRT(F103)) -> 1.036 | AP108: =IF("na"=J108,"",SQRT(J108)/SQRT(J103)) -> 0.912 | AQ108: =IF("na"=M108,"",SQRT(M108)/SQRT(M103)) -> 1.077 | AR108: =IF("na"=Q108,"",SQRT(Q108)/SQRT(Q103)) -> 1.043 | AS108: =IF("na"=T108,"",SQRT(T108)/SQRT(T103)) -> 1.094 | AT108: =IF("na"=X108,"",SQRT(X108)/SQRT(X103)) -> 1.009
A109: OldEPI | B109: 0.118 | C109: 1.095 | D109: 0.136 | E109: 0.030 | F109: 0.0012 | G109: 1.318 | H109: 0.5559 | I109: 1.2115 | J109: 0.323 | K109: 0.139 | L109: 0.027 | M109: 0.0012 | N109: 1.278 | O109: 0.4177 | P109: 1.2084 | Q109: 0.187 | R109: 0.141 | S109: 0.024 | T109: 0.0012 | U109: 1.254 | V109: 0.3252 | W109: 1.2089 | X109: 0.119 | AA109: =IF("na"=F109,"",F109/F103) -> 2.02962469665 | AB109: =IF("na"=J109,"",J109/J103) -> 0.914 | AC109: =IF("na"=M109,"",M109/M103) -> 3.688 | AD109: =IF("na"=Q109,"",Q109/Q103) -> 1.516 | AE109: =IF("na"=T109,"",T109/T103) -> 7.238 | AF109: =IF("na"=X109,"",X109/X103) -> 1.609 | AG109: 104.000 | AH109: 6 | AI109: 4 | AJ109: 7 | AK109: 5 | AL109: 8 | AM109: 6 | AO109: =IF("na"=F109,"",SQRT(F109)/SQRT(F103)) -> 1.425 | AP109: =IF("na"=J109,"",SQRT(J109)/SQRT(J103)) -> 0.956 | AQ109: =IF("na"=M109,"",SQRT(M109)/SQRT(M103)) -> 1.920 | AR109: =IF("na"=Q109,"",SQRT(Q109)/SQRT(Q103)) -> 1.231 | AS109: =IF("na"=T109,"",SQRT(T109)/SQRT(T103)) -> 2.690 | AT109: =IF("na"=X109,"",SQRT(X109)/SQRT(X103)) -> 1.268
A110: EPI3 | B110: 0.118 | C110: 1.095 | D110: 0.142 | E110: 0.030 | F110: 0.0015 | G110: 1.321 | H110: 0.6193 | I110: 1.2011 | J110: 0.395 | K110: 0.142 | L110: 0.026 | M110: 0.0013 | N110: 1.277 | O110: 0.3847 | P110: 1.2164 | Q110: 0.163 | R110: 0.143 | S110: 0.022 | T110: 0.0011 | U110: 1.225 | V110: 0.2845 | W110: 1.1944 | X110: 0.091 | AA110: =IF("na"=F110,"",F110/F103) -> 2.50295472642 | AB110: =IF("na"=J110,"",J110/J103) -> 1.118 | AC110: =IF("na"=M110,"",M110/M103) -> 4.103 | AD110: =IF("na"=Q110,"",Q110/Q103) -> 1.317 | AE110: =IF("na"=T110,"",T110/T103) -> 6.964 | AF110: =IF("na"=X110,"",X110/X103) -> 1.230 | AG110: 104.000 | AH110: 8 | AI110: 6 | AJ110: 8 | AK110: 4 | AL110: 7 | AM110: 4 | AO110: =IF("na"=F110,"",SQRT(F110)/SQRT(F103)) -> 1.582 | AP110: =IF("na"=J110,"",SQRT(J110)/SQRT(J103)) -> 1.057 | AQ110: =IF("na"=M110,"",SQRT(M110)/SQRT(M103)) -> 2.026 | AR110: =IF("na"=Q110,"",SQRT(Q110)/SQRT(Q103)) -> 1.148 | AS110: =IF("na"=T110,"",SQRT(T110)/SQRT(T103)) -> 2.639 | AT110: =IF("na"=X110,"",SQRT(X110)/SQRT(X103)) -> 1.109
A111: EPI5 | B111: 0.118 | C111: 1.095 | D111: 0.139 | E111: 0.030 | F111: 0.0014 | G111: 1.370 | H111: 0.5694 | I111: 1.2558 | J111: 0.350 | K111: 0.140 | L111: 0.024 | M111: 0.0011 | N111: 1.301 | O111: 0.4106 | P111: 1.2359 | Q111: 0.188 | R111: 0.142 | S111: 0.021 | T111: 0.0010 | U111: 1.263 | V111: 0.2926 | W111: 1.2308 | X111: 0.104 | AA111: =IF("na"=F111,"",F111/F103) -> 2.29174501200 | AB111: =IF("na"=J111,"",J111/J103) -> 0.992 | AC111: =IF("na"=M111,"",M111/M103) -> 3.488 | AD111: =IF("na"=Q111,"",Q111/Q103) -> 1.524 | AE111: =IF("na"=T111,"",T111/T103) -> 6.492 | AF111: =IF("na"=X111,"",X111/X103) -> 1.409 | AG111: 104.000 | AH111: 7 | AI111: 5 | AJ111: 6 | AK111: 6 | AL111: 6 | AM111: 5 | AO111: =IF("na"=F111,"",SQRT(F111)/SQRT(F103)) -> 1.514 | AP111: =IF("na"=J111,"",SQRT(J111)/SQRT(J103)) -> 0.996 | AQ111: =IF("na"=M111,"",SQRT(M111)/SQRT(M103)) -> 1.868 | AR111: =IF("na"=Q111,"",SQRT(Q111)/SQRT(Q103)) -> 1.235 | AS111: =IF("na"=T111,"",SQRT(T111)/SQRT(T103)) -> 2.548 | AT111: =IF("na"=X111,"",SQRT(X111)/SQRT(X103)) -> 1.187
D113: population 5
B114: true | C114: true | D114: 7 | K114: 15 | R114: 30
B115: mean | C115: rr | D115: mean | E115: stdev | F115: mse | G115: mrr | H115: srr | I115: prr | J115: mse_rr | K115: mean | L115: stdev | M115: mse | N115: mrr | O115: srr | P115: prr | Q115: mse_rr | R115: mean | S115: stdev | T115: mse | U115: mrr | V115: srr | W115: prr | X115: mse_rr
A116: Random | B116: 0.066 | C116: 1.145 | D116: 0.067 | E116: 0.020 | F116: 0.000 | G116: 1.515 | H116: 1.256 | I116: 1.149 | J116: 1.578 | K116: 0.067 | L116: 0.014 | M116: 0.000 | N116: 1.372 | O116: 0.675 | P116: 1.200 | Q116: 0.459 | R116: 0.067 | S116: 0.010 | T116: 0.000 | U116: 1.262 | V116: 0.407 | W116: 1.186 | X116: 0.167
A117: NewEPI | B117: 0.066 | C117: 1.145 | D117: 0.069 | E117: 0.027 | F117: 0.001 | G117: 1.558 | H117: 1.455 | I117: 1.136 | J117: 2.116 | K117: 0.068 | L117: 0.025 | M117: 0.001 | N117: 1.663 | O117: 1.637 | P117: 1.175 | Q117: 2.679 | R117: 0.067 | S117: 0.023 | T117: 0.001 | U117: 1.379 | V117: 1.025 | W117: 1.118 | X117: 1.051 | AA117: =IF("na"=F117,"",F117/F116) -> 1.89225753206 | AB117: =IF("na"=J117,"",J117/J116) -> 1.341 | AC117: =IF("na"=M117,"",M117/M116) -> 3.364 | AD117: =IF("na"=Q117,"",Q117/Q116) -> 5.834 | AE117: =IF("na"=T117,"",T117/T116) -> 5.325 | AF117: =IF("na"=X117,"",X117/X116) -> 6.291 | AG117: =ROW() -> 117.000 | AH117: =SUM(IF(INDIRECT(ADDRESS(ROW(),AH$60))>INDIRECT(ADDRESS($AG117,AH$60)),1,0), IF(INDIRECT(ADDRESS(ROW(),AH$60))>INDIRECT(ADDRESS($AG117+1,AH$60)),1,0), IF(INDIRECT(ADDRESS(ROW(),AH$60))>INDIRECT(ADDRESS($AG117+2,AH$60)),1,0), IF(INDIRECT(ADDRESS(ROW(),AH$60))>INDIRECT(ADDRESS($AG117+3,AH$60)),1,0), IF(INDIRECT(ADDRESS(ROW(),AH$60))>INDIRECT(ADDRESS($AG117+4,AH$60)),1,0), IF(INDIRECT(ADDRESS(ROW(),AH$60))>INDIRECT(ADDRESS($AG117+5,AH$60)),1,0), IF(INDIRECT(ADDRESS(ROW(),AH$60))>INDIRECT(ADDRESS($AG117+6,AH$60)),1,0), IF(INDIRECT(ADDRESS(ROW(),AH$60))>INDIRECT(ADDRESS($AG117+7,AH$60)),1,0))+1 -> 7 | AI117: 7 | AJ117: 7 | AK117: 7 | AL117: 7 | AM117: 7 | AO117: =IF("na"=F117,"",SQRT(F117)/SQRT(F116)) -> 1.376 | AP117: =IF("na"=J117,"",SQRT(J117)/SQRT(J116)) -> 1.158 | AQ117: =IF("na"=M117,"",SQRT(M117)/SQRT(M116)) -> 1.834 | AR117: =IF("na"=Q117,"",SQRT(Q117)/SQRT(Q116)) -> 2.415 | AS117: =IF("na"=T117,"",SQRT(T117)/SQRT(T116)) -> 2.308 | AT117: =IF("na"=X117,"",SQRT(X117)/SQRT(X116)) -> 2.508
A118: Grid | B118: 0.066 | C118: 1.145 | D118: 0.068 | E118: 0.029 | F118: 0.001 | G118: 1.646 | H118: 1.531 | I118: 1.133 | J118: 2.343 | K118: 0.068 | L118: 0.026 | M118: 0.001 | N118: 1.681 | O118: 1.648 | P118: 1.123 | Q118: 2.718 | R118: 0.067 | S118: 0.024 | T118: 0.001 | U118: 1.509 | V118: 1.306 | W118: 1.134 | X118: 1.707 | AA118: =IF("na"=F118,"",F118/F116) -> 2.06210114927 | AB118: =IF("na"=J118,"",J118/J116) -> 1.485 | AC118: =IF("na"=M118,"",M118/M116) -> 3.598 | AD118: =IF("na"=Q118,"",Q118/Q116) -> 5.918 | AE118: =IF("na"=T118,"",T118/T116) -> 5.735 | AF118: =IF("na"=X118,"",X118/X116) -> 10.218 | AG118: =AG117 -> 117.000 | AH118: 8 | AI118: 8 | AJ118: 8 | AK118: 8 | AL118: 8 | AM118: 8 | AO118: =IF("na"=F118,"",SQRT(F118)/SQRT(F116)) -> 1.436 | AP118: =IF("na"=J118,"",SQRT(J118)/SQRT(J116)) -> 1.219 | AQ118: =IF("na"=M118,"",SQRT(M118)/SQRT(M116)) -> 1.897 | AR118: =IF("na"=Q118,"",SQRT(Q118)/SQRT(Q116)) -> 2.433 | AS118: =IF("na"=T118,"",SQRT(T118)/SQRT(T116)) -> 2.395 | AT118: =IF("na"=X118,"",SQRT(X118)/SQRT(X116)) -> 3.197
A119: Peri | B119: 0.066 | C119: 1.145 | D119: 0.064 | E119: 0.023 | F119: 0.001 | G119: 1.347 | H119: 1.153 | I119: 0.968 | J119: 1.361 | K119: 0.065 | L119: 0.021 | M119: 0.000 | N119: 1.272 | O119: 0.941 | P119: 0.994 | Q119: 0.908 | R119: 0.065 | S119: 0.019 | T119: 0.000 | U119: 1.190 | V119: 0.799 | W119: 0.991 | X119: 0.662 | AA119: =IF("na"=F119,"",F119/F116) -> 1.34932124952 | AB119: =IF("na"=J119,"",J119/J116) -> 0.863 | AC119: =IF("na"=M119,"",M119/M116) -> 2.160 | AD119: =IF("na"=Q119,"",Q119/Q116) -> 1.976 | AE119: =IF("na"=T119,"",T119/T116) -> 3.445 | AF119: =IF("na"=X119,"",X119/X116) -> 3.966 | AG119: 117.000 | AH119: 3 | AI119: 2 | AJ119: 3 | AK119: 3 | AL119: 3 | AM119: 5 | AO119: =IF("na"=F119,"",SQRT(F119)/SQRT(F116)) -> 1.162 | AP119: =IF("na"=J119,"",SQRT(J119)/SQRT(J116)) -> 0.929 | AQ119: =IF("na"=M119,"",SQRT(M119)/SQRT(M116)) -> 1.470 | AR119: =IF("na"=Q119,"",SQRT(Q119)/SQRT(Q116)) -> 1.406 | AS119: =IF("na"=T119,"",SQRT(T119)/SQRT(T116)) -> 1.856 | AT119: =IF("na"=X119,"",SQRT(X119)/SQRT(X116)) -> 1.991
A120: Quad | B120: 0.066 | C120: 1.145 | D120: 0.063 | E120: 0.020 | F120: 0.000 | G120: 1.329 | H120: 1.110 | I120: 0.976 | J120: 1.260 | K120: 0.062 | L120: 0.016 | M120: 0.000 | N120: 1.166 | O120: 0.862 | P120: 0.938 | Q120: 0.786 | R120: 0.064 | S120: 0.014 | T120: 0.000 | U120: 1.086 | V120: 0.587 | W120: 0.943 | X120: 0.385 | AA120: =IF("na"=F120,"",F120/F116) -> 1.00930699694 | AB120: =IF("na"=J120,"",J120/J116) -> 0.799 | AC120: =IF("na"=M120,"",M120/M116) -> 1.288 | AD120: =IF("na"=Q120,"",Q120/Q116) -> 1.711 | AE120: =IF("na"=T120,"",T120/T116) -> 1.852 | AF120: =IF("na"=X120,"",X120/X116) -> 2.303 | AG120: 117.000 | AH120: 2 | AI120: 1 | AJ120: 2 | AK120: 2 | AL120: 2 | AM120: 2 | AO120: =IF("na"=F120,"",SQRT(F120)/SQRT(F116)) -> 1.005 | AP120: =IF("na"=J120,"",SQRT(J120)/SQRT(J116)) -> 0.894 | AQ120: =IF("na"=M120,"",SQRT(M120)/SQRT(M116)) -> 1.135 | AR120: =IF("na"=Q120,"",SQRT(Q120)/SQRT(Q116)) -> 1.308 | AS120: =IF("na"=T120,"",SQRT(T120)/SQRT(T116)) -> 1.361 | AT120: =IF("na"=X120,"",SQRT(X120)/SQRT(X116)) -> 1.518
A121: Square | B121: 0.066 | C121: 1.145 | D121: 0.067 | E121: 0.019 | F121: 0.0003 | G121: 1.516 | H121: 1.2695 | I121: 1.1484 | J121: 1.612 | K121: 0.066 | L121: 0.014 | M121: 0.0002 | N121: 1.326 | O121: 0.7080 | P121: 1.1626 | Q121: 0.502 | R121: 0.067 | S121: 0.010 | T121: 0.0001 | U121: 1.227 | V121: 0.3868 | W121: 1.1527 | X121: 0.150 | AA121: =IF("na"=F121,"",F121/F116) -> 0.86997572654 | AB121: =IF("na"=J121,"",J121/J116) -> 1.022 | AC121: =IF("na"=M121,"",M121/M116) -> 1.018 | AD121: =IF("na"=Q121,"",Q121/Q116) -> 1.092 | AE121: =IF("na"=T121,"",T121/T116) -> 1.043 | AF121: =IF("na"=X121,"",X121/X116) -> 0.896 | AG121: 117.000 | AH121: 1 | AI121: 4 | AJ121: 1 | AK121: 1 | AL121: 1 | AM121: 1 | AO121: =IF("na"=F121,"",SQRT(F121)/SQRT(F116)) -> 0.933 | AP121: =IF("na"=J121,"",SQRT(J121)/SQRT(J116)) -> 1.011 | AQ121: =IF("na"=M121,"",SQRT(M121)/SQRT(M116)) -> 1.009 | AR121: =IF("na"=Q121,"",SQRT(Q121)/SQRT(Q116)) -> 1.045 | AS121: =IF("na"=T121,"",SQRT(T121)/SQRT(T116)) -> 1.021 | AT121: =IF("na"=X121,"",SQRT(X121)/SQRT(X116)) -> 0.947
A122: OldEPI | B122: 0.066 | C122: 1.145 | D122: 0.061 | E122: 0.025 | F122: 0.0007 | G122: 1.367 | H122: 1.2798 | I122: 0.9472 | J122: 1.677 | K122: 0.061 | L122: 0.023 | M122: 0.0006 | N122: 1.375 | O122: 1.2679 | P122: 0.9379 | Q122: 1.650 | R122: 0.061 | S122: 0.021 | T122: 0.0005 | U122: 1.220 | V122: 0.8303 | W122: 0.9590 | X122: 0.724 | AA122: =IF("na"=F122,"",F122/F116) -> 1.65918623058 | AB122: =IF("na"=J122,"",J122/J116) -> 1.063 | AC122: =IF("na"=M122,"",M122/M116) -> 2.857 | AD122: =IF("na"=Q122,"",Q122/Q116) -> 3.594 | AE122: =IF("na"=T122,"",T122/T116) -> 4.726 | AF122: =IF("na"=X122,"",X122/X116) -> 4.333 | AG122: 117.000 | AH122: 6 | AI122: 5 | AJ122: 6 | AK122: 6 | AL122: 6 | AM122: 6 | AO122: =IF("na"=F122,"",SQRT(F122)/SQRT(F116)) -> 1.288 | AP122: =IF("na"=J122,"",SQRT(J122)/SQRT(J116)) -> 1.031 | AQ122: =IF("na"=M122,"",SQRT(M122)/SQRT(M116)) -> 1.690 | AR122: =IF("na"=Q122,"",SQRT(Q122)/SQRT(Q116)) -> 1.896 | AS122: =IF("na"=T122,"",SQRT(T122)/SQRT(T116)) -> 2.174 | AT122: =IF("na"=X122,"",SQRT(X122)/SQRT(X116)) -> 2.082
A123: EPI3 | B123: 0.066 | C123: 1.145 | D123: 0.061 | E123: 0.025 | F123: 0.0006 | G123: 1.344 | H123: 1.2907 | I123: 0.9288 | J123: 1.712 | K123: 0.061 | L123: 0.022 | M123: 0.0005 | N123: 1.298 | O123: 1.1181 | P123: 0.9517 | Q123: 1.287 | R123: 0.062 | S123: 0.020 | T123: 0.0004 | U123: 1.164 | V123: 0.7820 | W123: 0.9710 | X123: 0.642 | AA123: =IF("na"=F123,"",F123/F116) -> 1.61836605101 | AB123: =IF("na"=J123,"",J123/J116) -> 1.085 | AC123: =IF("na"=M123,"",M123/M116) -> 2.554 | AD123: =IF("na"=Q123,"",Q123/Q116) -> 2.803 | AE123: =IF("na"=T123,"",T123/T116) -> 4.103 | AF123: =IF("na"=X123,"",X123/X116) -> 3.842 | AG123: 117.000 | AH123: 5 | AI123: 6 | AJ123: 5 | AK123: 4 | AL123: 5 | AM123: 4 | AO123: =IF("na"=F123,"",SQRT(F123)/SQRT(F116)) -> 1.272 | AP123: =IF("na"=J123,"",SQRT(J123)/SQRT(J116)) -> 1.042 | AQ123: =IF("na"=M123,"",SQRT(M123)/SQRT(M116)) -> 1.598 | AR123: =IF("na"=Q123,"",SQRT(Q123)/SQRT(Q116)) -> 1.674 | AS123: =IF("na"=T123,"",SQRT(T123)/SQRT(T116)) -> 2.026 | AT123: =IF("na"=X123,"",SQRT(X123)/SQRT(X116)) -> 1.960
A124: EPI5 | B124: 0.066 | C124: 1.145 | D124: 0.059 | E124: 0.024 | F124: 0.0006 | G124: 1.367 | H124: 1.1866 | I124: 0.9987 | J124: 1.429 | K124: 0.060 | L124: 0.021 | M124: 0.0005 | N124: 1.331 | O124: 1.2045 | P124: 0.9812 | Q124: 1.478 | R124: 0.061 | S124: 0.019 | T124: 0.0004 | U124: 1.168 | V124: 0.7546 | W124: 0.9954 | X124: 0.592 | AA124: =IF("na"=F124,"",F124/F116) -> 1.51295127129 | AB124: =IF("na"=J124,"",J124/J116) -> 0.906 | AC124: =IF("na"=M124,"",M124/M116) -> 2.352 | AD124: =IF("na"=Q124,"",Q124/Q116) -> 3.217 | AE124: =IF("na"=T124,"",T124/T116) -> 3.769 | AF124: =IF("na"=X124,"",X124/X116) -> 3.542 | AG124: 117.000 | AH124: 4 | AI124: 3 | AJ124: 4 | AK124: 5 | AL124: 4 | AM124: 3 | AO124: =IF("na"=F124,"",SQRT(F124)/SQRT(F116)) -> 1.230 | AP124: =IF("na"=J124,"",SQRT(J124)/SQRT(J116)) -> 0.952 | AQ124: =IF("na"=M124,"",SQRT(M124)/SQRT(M116)) -> 1.534 | AR124: =IF("na"=Q124,"",SQRT(Q124)/SQRT(Q116)) -> 1.794 | AS124: =IF("na"=T124,"",SQRT(T124)/SQRT(T116)) -> 1.941 | AT124: =IF("na"=X124,"",SQRT(X124)/SQRT(X116)) -> 1.882
D126: population 6
B127: true | C127: true | D127: 7 | K127: 15 | R127: 30
B128: mean | C128: rr | D128: mean | E128: stdev | F128: mse | G128: mrr | H128: srr | I128: prr | J128: mse_rr | K128: mean | L128: stdev | M128: mse | N128: mrr | O128: srr | P128: prr | Q128: mse_rr | R128: mean | S128: stdev | T128: mse | U128: mrr | V128: srr | W128: prr | X128: mse_rr
A129: Random | B129: 0.231 | C129: 1.216 | D129: 0.231 | E129: 0.032 | F129: 0.001 | G129: 1.255 | H129: 0.356 | I129: 1.206 | J129: 0.127 | K129: 0.232 | L129: 0.023 | M129: 0.001 | N129: 1.224 | O129: 0.219 | P129: 1.202 | Q129: 0.048 | R129: 0.232 | S129: 0.016 | T129: 0.000 | U129: 1.222 | V129: 0.157 | W129: 1.211 | X129: 0.025
A130: NewEPI | B130: 0.231 | C130: 1.216 | D130: 0.232 | E130: 0.042 | F130: 0.002 | G130: 1.262 | H130: 0.408 | I130: 1.194 | J130: 0.167 | K130: 0.232 | L130: 0.037 | M130: 0.001 | N130: 1.236 | O130: 0.334 | P130: 1.189 | Q130: 0.112 | R130: 0.233 | S130: 0.035 | T130: 0.001 | U130: 1.228 | V130: 0.298 | W130: 1.187 | X130: 0.090 | AA130: =IF("na"=F130,"",F130/F129) -> 1.75394820611 | AB130: =IF("na"=J130,"",J130/J129) -> 1.312 | AC130: =IF("na"=M130,"",M130/M129) -> 2.611 | AD130: =IF("na"=Q130,"",Q130/Q129) -> 2.326 | AE130: =IF("na"=T130,"",T130/T129) -> 4.690 | AF130: =IF("na"=X130,"",X130/X129) -> 3.622 | AG130: =ROW() -> 130.000 | AH130: =SUM(IF(INDIRECT(ADDRESS(ROW(),AH$60))>INDIRECT(ADDRESS($AG130,AH$60)),1,0), IF(INDIRECT(ADDRESS(ROW(),AH$60))>INDIRECT(ADDRESS($AG130+1,AH$60)),1,0), IF(INDIRECT(ADDRESS(ROW(),AH$60))>INDIRECT(ADDRESS($AG130+2,AH$60)),1,0), IF(INDIRECT(ADDRESS(ROW(),AH$60))>INDIRECT(ADDRESS($AG130+3,AH$60)),1,0), IF(INDIRECT(ADDRESS(ROW(),AH$60))>INDIRECT(ADDRESS($AG130+4,AH$60)),1,0), IF(INDIRECT(ADDRESS(ROW(),AH$60))>INDIRECT(ADDRESS($AG130+5,AH$60)),1,0), IF(INDIRECT(ADDRESS(ROW(),AH$60))>INDIRECT(ADDRESS($AG130+6,AH$60)),1,0), IF(INDIRECT(ADDRESS(ROW(),AH$60))>INDIRECT(ADDRESS($AG130+7,AH$60)),1,0))+1 -> 6 | AI130: 5 | AJ130: 6 | AK130: 6 | AL130: 7 | AM130: 8 | AO130: =IF("na"=F130,"",SQRT(F130)/SQRT(F129)) -> 1.324 | AP130: =IF("na"=J130,"",SQRT(J130)/SQRT(J129)) -> 1.145 | AQ130: =IF("na"=M130,"",SQRT(M130)/SQRT(M129)) -> 1.616 | AR130: =IF("na"=Q130,"",SQRT(Q130)/SQRT(Q129)) -> 1.525 | AS130: =IF("na"=T130,"",SQRT(T130)/SQRT(T129)) -> 2.166 | AT130: =IF("na"=X130,"",SQRT(X130)/SQRT(X129)) -> 1.903
A131: Grid | B131: 0.231 | C131: 1.216 | D131: 0.222 | E131: 0.042 | F131: 0.002 | G131: 1.290 | H131: 0.436 | I131: 1.214 | J131: 0.190 | K131: 0.221 | L131: 0.038 | M131: 0.002 | N131: 1.269 | O131: 0.360 | P131: 1.215 | Q131: 0.129 | R131: 0.220 | S131: 0.035 | T131: 0.001 | U131: 1.251 | V131: 0.298 | W131: 1.214 | X131: 0.089 | AA131: =IF("na"=F131,"",F131/F129) -> 1.85678411911 | AB131: =IF("na"=J131,"",J131/J129) -> 1.498 | AC131: =IF("na"=M131,"",M131/M129) -> 2.868 | AD131: =IF("na"=Q131,"",Q131/Q129) -> 2.685 | AE131: =IF("na"=T131,"",T131/T129) -> 5.282 | AF131: =IF("na"=X131,"",X131/X129) -> 3.570 | AG131: =AG130 -> 130.000 | AH131: 7 | AI131: 7 | AJ131: 8 | AK131: 8 | AL131: 8 | AM131: 7 | AO131: =IF("na"=F131,"",SQRT(F131)/SQRT(F129)) -> 1.363 | AP131: =IF("na"=J131,"",SQRT(J131)/SQRT(J129)) -> 1.224 | AQ131: =IF("na"=M131,"",SQRT(M131)/SQRT(M129)) -> 1.694 | AR131: =IF("na"=Q131,"",SQRT(Q131)/SQRT(Q129)) -> 1.639 | AS131: =IF("na"=T131,"",SQRT(T131)/SQRT(T129)) -> 2.298 | AT131: =IF("na"=X131,"",SQRT(X131)/SQRT(X129)) -> 1.890
A132: Peri | B132: 0.231 | C132: 1.216 | D132: 0.216 | E132: 0.034 | F132: 0.001 | G132: 1.159 | H132: 0.384 | I132: 1.103 | J132: 0.160 | K132: 0.214 | L132: 0.027 | M132: 0.001 | N132: 1.102 | O132: 0.276 | P132: 1.068 | Q132: 0.098 | R132: 0.220 | S132: 0.024 | T132: 0.001 | U132: 1.114 | V132: 0.225 | W132: 1.090 | X132: 0.066 | AA132: =IF("na"=F132,"",F132/F129) -> 1.40694818836 | AB132: =IF("na"=J132,"",J132/J129) -> 1.261 | AC132: =IF("na"=M132,"",M132/M129) -> 1.925 | AD132: =IF("na"=Q132,"",Q132/Q129) -> 2.035 | AE132: =IF("na"=T132,"",T132/T129) -> 2.722 | AF132: =IF("na"=X132,"",X132/X129) -> 2.669 | AG132: 130.000 | AH132: 3 | AI132: 3 | AJ132: 3 | AK132: 5 | AL132: 3 | AM132: 5 | AO132: =IF("na"=F132,"",SQRT(F132)/SQRT(F129)) -> 1.186 | AP132: =IF("na"=J132,"",SQRT(J132)/SQRT(J129)) -> 1.123 | AQ132: =IF("na"=M132,"",SQRT(M132)/SQRT(M129)) -> 1.387 | AR132: =IF("na"=Q132,"",SQRT(Q132)/SQRT(Q129)) -> 1.427 | AS132: =IF("na"=T132,"",SQRT(T132)/SQRT(T129)) -> 1.650 | AT132: =IF("na"=X132,"",SQRT(X132)/SQRT(X129)) -> 1.634
A133: Quad | B133: 0.231 | C133: 1.216 | D133: 0.235 | E133: 0.034 | F133: 0.001 | G133: 1.151 | H133: 0.305 | I133: 1.109 | J133: 0.105 | K133: 0.236 | L133: 0.026 | M133: 0.001 | N133: 1.157 | O133: 0.242 | P133: 1.131 | Q133: 0.066 | R133: 0.237 | S133: 0.022 | T133: 0.000 | U133: 1.145 | V133: 0.178 | W133: 1.130 | X133: 0.039 | AA133: =IF("na"=F133,"",F133/F129) -> 1.16793649831 | AB133: =IF("na"=J133,"",J133/J129) -> 0.823 | AC133: =IF("na"=M133,"",M133/M129) -> 1.352 | AD133: =IF("na"=Q133,"",Q133/Q129) -> 1.369 | AE133: =IF("na"=T133,"",T133/T129) -> 1.946 | AF133: =IF("na"=X133,"",X133/X129) -> 1.575 | AG133: 130.000 | AH133: 2 | AI133: 1 | AJ133: 2 | AK133: 2 | AL133: 2 | AM133: 2 | AO133: =IF("na"=F133,"",SQRT(F133)/SQRT(F129)) -> 1.081 | AP133: =IF("na"=J133,"",SQRT(J133)/SQRT(J129)) -> 0.907 | AQ133: =IF("na"=M133,"",SQRT(M133)/SQRT(M129)) -> 1.163 | AR133: =IF("na"=Q133,"",SQRT(Q133)/SQRT(Q129)) -> 1.170 | AS133: =IF("na"=T133,"",SQRT(T133)/SQRT(T129)) -> 1.395 | AT133: =IF("na"=X133,"",SQRT(X133)/SQRT(X129)) -> 1.255
A134: Square | B134: 0.231 | C134: 1.216 | D134: 0.220 | E134: 0.031 | F134: 0.0011 | G134: 1.238 | H134: 0.3334 | I134: 1.1908 | J134: 0.112 | K134: 0.220 | L134: 0.022 | M134: 0.0006 | N134: 1.218 | O134: 0.2259 | P134: 1.1964 | Q134: 0.051 | R134: 0.220 | S134: 0.016 | T134: 0.0004 | U134: 1.213 | V134: 0.1680 | W134: 1.2009 | X134: 0.028 | AA134: =IF("na"=F134,"",F134/F129) -> 1.08533865181 | AB134: =IF("na"=J134,"",J134/J129) -> 0.880 | AC134: =IF("na"=M134,"",M134/M129) -> 1.159 | AD134: =IF("na"=Q134,"",Q134/Q129) -> 1.067 | AE134: =IF("na"=T134,"",T134/T129) -> 1.442 | AF134: =IF("na"=X134,"",X134/X129) -> 1.146 | AG134: 130.000 | AH134: 1 | AI134: 2 | AJ134: 1 | AK134: 1 | AL134: 1 | AM134: 1 | AO134: =IF("na"=F134,"",SQRT(F134)/SQRT(F129)) -> 1.042 | AP134: =IF("na"=J134,"",SQRT(J134)/SQRT(J129)) -> 0.938 | AQ134: =IF("na"=M134,"",SQRT(M134)/SQRT(M129)) -> 1.077 | AR134: =IF("na"=Q134,"",SQRT(Q134)/SQRT(Q129)) -> 1.033 | AS134: =IF("na"=T134,"",SQRT(T134)/SQRT(T129)) -> 1.201 | AT134: =IF("na"=X134,"",SQRT(X134)/SQRT(X129)) -> 1.071
A135: OldEPI | B135: 0.231 | C135: 1.216 | D135: 0.237 | E135: 0.043 | F135: 0.0019 | G135: 1.202 | H135: 0.4279 | I135: 1.1293 | J135: 0.191 | K135: 0.235 | L135: 0.038 | M135: 0.0014 | N135: 1.187 | O135: 0.3261 | P135: 1.1382 | Q135: 0.112 | R135: 0.233 | S135: 0.035 | T135: 0.0012 | U135: 1.189 | V135: 0.2708 | W135: 1.1548 | X135: 0.077 | AA135: =IF("na"=F135,"",F135/F129) -> 1.89907561790 | AB135: =IF("na"=J135,"",J135/J129) -> 1.500 | AC135: =IF("na"=M135,"",M135/M129) -> 2.741 | AD135: =IF("na"=Q135,"",Q135/Q129) -> 2.333 | AE135: =IF("na"=T135,"",T135/T129) -> 4.660 | AF135: =IF("na"=X135,"",X135/X129) -> 3.105 | AG135: 130.000 | AH135: 8 | AI135: 8 | AJ135: 7 | AK135: 7 | AL135: 6 | AM135: 6 | AO135: =IF("na"=F135,"",SQRT(F135)/SQRT(F129)) -> 1.378 | AP135: =IF("na"=J135,"",SQRT(J135)/SQRT(J129)) -> 1.225 | AQ135: =IF("na"=M135,"",SQRT(M135)/SQRT(M129)) -> 1.656 | AR135: =IF("na"=Q135,"",SQRT(Q135)/SQRT(Q129)) -> 1.528 | AS135: =IF("na"=T135,"",SQRT(T135)/SQRT(T129)) -> 2.159 | AT135: =IF("na"=X135,"",SQRT(X135)/SQRT(X129)) -> 1.762
A136: EPI3 | B136: 0.231 | C136: 1.216 | D136: 0.235 | E136: 0.041 | F136: 0.0017 | G136: 1.204 | H136: 0.3984 | I136: 1.1374 | J136: 0.165 | K136: 0.232 | L136: 0.036 | M136: 0.0013 | N136: 1.205 | O136: 0.3038 | P136: 1.1645 | Q136: 0.095 | R136: 0.230 | S136: 0.031 | T136: 0.0010 | U136: 1.213 | V136: 0.2507 | W136: 1.1851 | X136: 0.064 | AA136: =IF("na"=F136,"",F136/F129) -> 1.71888614869 | AB136: =IF("na"=J136,"",J136/J129) -> 1.298 | AC136: =IF("na"=M136,"",M136/M129) -> 2.442 | AD136: =IF("na"=Q136,"",Q136/Q129) -> 1.971 | AE136: =IF("na"=T136,"",T136/T129) -> 3.840 | AF136: =IF("na"=X136,"",X136/X129) -> 2.570 | AG136: 130.000 | AH136: 5 | AI136: 4 | AJ136: 5 | AK136: 4 | AL136: 5 | AM136: 4 | AO136: =IF("na"=F136,"",SQRT(F136)/SQRT(F129)) -> 1.311 | AP136: =IF("na"=J136,"",SQRT(J136)/SQRT(J129)) -> 1.139 | AQ136: =IF("na"=M136,"",SQRT(M136)/SQRT(M129)) -> 1.563 | AR136: =IF("na"=Q136,"",SQRT(Q136)/SQRT(Q129)) -> 1.404 | AS136: =IF("na"=T136,"",SQRT(T136)/SQRT(T129)) -> 1.960 | AT136: =IF("na"=X136,"",SQRT(X136)/SQRT(X129)) -> 1.603
A137: EPI5 | B137: 0.231 | C137: 1.216 | D137: 0.232 | E137: 0.041 | F137: 0.0017 | G137: 1.231 | H137: 0.4218 | I137: 1.1595 | J137: 0.181 | K137: 0.231 | L137: 0.035 | M137: 0.0012 | N137: 1.216 | O137: 0.3031 | P137: 1.1758 | Q137: 0.093 | R137: 0.230 | S137: 0.029 | T137: 0.0009 | U137: 1.222 | V137: 0.2460 | W137: 1.1965 | X137: 0.061 | AA137: =IF("na"=F137,"",F137/F129) -> 1.68487771769 | AB137: =IF("na"=J137,"",J137/J129) -> 1.425 | AC137: =IF("na"=M137,"",M137/M129) -> 2.315 | AD137: =IF("na"=Q137,"",Q137/Q129) -> 1.941 | AE137: =IF("na"=T137,"",T137/T129) -> 3.395 | AF137: =IF("na"=X137,"",X137/X129) -> 2.452 | AG137: 130.000 | AH137: 4 | AI137: 6 | AJ137: 4 | AK137: 3 | AL137: 4 | AM137: 3 | AO137: =IF("na"=F137,"",SQRT(F137)/SQRT(F129)) -> 1.298 | AP137: =IF("na"=J137,"",SQRT(J137)/SQRT(J129)) -> 1.194 | AQ137: =IF("na"=M137,"",SQRT(M137)/SQRT(M129)) -> 1.521 | AR137: =IF("na"=Q137,"",SQRT(Q137)/SQRT(Q129)) -> 1.393 | AS137: =IF("na"=T137,"",SQRT(T137)/SQRT(T129)) -> 1.843 | AT137: =IF("na"=X137,"",SQRT(X137)/SQRT(X129)) -> 1.566
D139: population 7
B140: true | C140: true | D140: 7 | K140: 15 | R140: 30
B141: mean | C141: rr | D141: mean | E141: stdev | F141: mse | G141: mrr | H141: srr | I141: prr | J141: mse_rr | K141: mean | L141: stdev | M141: mse | N141: mrr | O141: srr | P141: prr | Q141: mse_rr | R141: mean | S141: stdev | T141: mse | U141: mrr | V141: srr | W141: prr | X141: mse_rr
A142: Random | B142: 0.035 | C142: 0.888 | D142: 0.034 | E142: 0.013 | F142: 0.000 | G142: -nan | H142: -nan | I142: 0.968 | J142: 0.006 | K142: 0.034 | L142: 0.009 | M142: 0.000 | N142: 1.323 | O142: 0.942 | P142: 0.983 | Q142: 0.897 | R142: 0.034 | S142: 0.006 | T142: 0.000 | U142: 1.223 | V142: 0.956 | W142: 0.935 | X142: 0.916
A143: NewEPI | B143: 0.035 | C143: 0.888 | D143: 0.034 | E143: 0.014 | F143: 0.000 | G143: -nan | H143: -nan | I143: 0.895 | J143: 0.000 | K143: 0.034 | L143: 0.010 | M143: 0.000 | N143: 1.248 | O143: 0.979 | P143: 0.909 | Q143: 0.958 | R143: 0.035 | S143: 0.008 | T143: 0.000 | U143: 1.184 | V143: 0.895 | W143: 0.879 | X143: 0.802 | AA143: =IF("na"=F143,"",F143/F142) -> 1.11777471181 | AB143: =IF("na"=J143,"",J143/J142) -> 0.007 | AC143: =IF("na"=M143,"",M143/M142) -> 1.233 | AD143: =IF("na"=Q143,"",Q143/Q142) -> 1.068 | AE143: =IF("na"=T143,"",T143/T142) -> 1.487 | AF143: =IF("na"=X143,"",X143/X142) -> 0.876 | AG143: =ROW() -> 143.000 | AH143: =SUM(IF(INDIRECT(ADDRESS(ROW(),AH$60))>INDIRECT(ADDRESS($AG143,AH$60)),1,0), IF(INDIRECT(ADDRESS(ROW(),AH$60))>INDIRECT(ADDRESS($AG143+1,AH$60)),1,0), IF(INDIRECT(ADDRESS(ROW(),AH$60))>INDIRECT(ADDRESS($AG143+2,AH$60)),1,0), IF(INDIRECT(ADDRESS(ROW(),AH$60))>INDIRECT(ADDRESS($AG143+3,AH$60)),1,0), IF(INDIRECT(ADDRESS(ROW(),AH$60))>INDIRECT(ADDRESS($AG143+4,AH$60)),1,0), IF(INDIRECT(ADDRESS(ROW(),AH$60))>INDIRECT(ADDRESS($AG143+5,AH$60)),1,0), IF(INDIRECT(ADDRESS(ROW(),AH$60))>INDIRECT(ADDRESS($AG143+6,AH$60)),1,0), IF(INDIRECT(ADDRESS(ROW(),AH$60))>INDIRECT(ADDRESS($AG143+7,AH$60)),1,0))+1 -> 6 | AI143: 1 | AJ143: 4 | AK143: 5 | AL143: 6 | AM143: 7 | AO143: =IF("na"=F143,"",SQRT(F143)/SQRT(F142)) -> 1.057 | AP143: =IF("na"=J143,"",SQRT(J143)/SQRT(J142)) -> 0.085 | AQ143: =IF("na"=M143,"",SQRT(M143)/SQRT(M142)) -> 1.110 | AR143: =IF("na"=Q143,"",SQRT(Q143)/SQRT(Q142)) -> 1.034 | AS143: =IF("na"=T143,"",SQRT(T143)/SQRT(T142)) -> 1.219 | AT143: =IF("na"=X143,"",SQRT(X143)/SQRT(X142)) -> 0.936
A144: Grid | B144: 0.035 | C144: 0.888 | D144: 0.036 | E144: 0.014 | F144: 0.000 | G144: 0.947 | H144: 0.697 | I144: 0.860 | J144: 0.487 | K144: 0.035 | L144: 0.011 | M144: 0.000 | N144: 1.240 | O144: 1.004 | P144: 0.869 | Q144: 1.008 | R144: 0.035 | S144: 0.009 | T144: 0.000 | U144: 1.197 | V144: 0.942 | W144: 0.875 | X144: 0.887 | AA144: =IF("na"=F144,"",F144/F142) -> 1.14172545129 | AB144: =IF("na"=J144,"",J144/J142) -> 76.669 | AC144: =IF("na"=M144,"",M144/M142) -> 1.384 | AD144: =IF("na"=Q144,"",Q144/Q142) -> 1.124 | AE144: =IF("na"=T144,"",T144/T142) -> 1.704 | AF144: =IF("na"=X144,"",X144/X142) -> 0.969 | AG144: =AG143 -> 143.000 | AH144: 7 | AI144: 7 | AJ144: 7 | AK144: 8 | AL144: 8 | AM144: 8 | AO144: =IF("na"=F144,"",SQRT(F144)/SQRT(F142)) -> 1.069 | AP144: =IF("na"=J144,"",SQRT(J144)/SQRT(J142)) -> 8.756 | AQ144: =IF("na"=M144,"",SQRT(M144)/SQRT(M142)) -> 1.177 | AR144: =IF("na"=Q144,"",SQRT(Q144)/SQRT(Q142)) -> 1.060 | AS144: =IF("na"=T144,"",SQRT(T144)/SQRT(T142)) -> 1.306 | AT144: =IF("na"=X144,"",SQRT(X144)/SQRT(X142)) -> 0.984
A145: Peri | B145: 0.035 | C145: 0.888 | D145: 0.043 | E145: 0.013 | F145: 0.000 | G145: 1.224 | H145: 0.792 | I145: 1.139 | J145: 0.691 | K145: 0.040 | L145: 0.010 | M145: 0.000 | N145: 1.353 | O145: 0.987 | P145: 1.020 | Q145: 0.992 | R145: 0.036 | S145: 0.007 | T145: 0.000 | U145: 1.149 | V145: 0.854 | W145: 0.886 | X145: 0.729 | AA145: =IF("na"=F145,"",F145/F142) -> 1.41181716886 | AB145: =IF("na"=J145,"",J145/J142) -> 108.754 | AC145: =IF("na"=M145,"",M145/M142) -> 1.510 | AD145: =IF("na"=Q145,"",Q145/Q142) -> 1.106 | AE145: =IF("na"=T145,"",T145/T142) -> 1.275 | AF145: =IF("na"=X145,"",X145/X142) -> 0.796 | AG145: 143.000 | AH145: 8 | AI145: 8 | AJ145: 8 | AK145: 7 | AL145: 4 | AM145: 5 | AO145: =IF("na"=F145,"",SQRT(F145)/SQRT(F142)) -> 1.188 | AP145: =IF("na"=J145,"",SQRT(J145)/SQRT(J142)) -> 10.429 | AQ145: =IF("na"=M145,"",SQRT(M145)/SQRT(M142)) -> 1.229 | AR145: =IF("na"=Q145,"",SQRT(Q145)/SQRT(Q142)) -> 1.052 | AS145: =IF("na"=T145,"",SQRT(T145)/SQRT(T142)) -> 1.129 | AT145: =IF("na"=X145,"",SQRT(X145)/SQRT(X142)) -> 0.892
A146: Quad | B146: 0.035 | C146: 0.888 | D146: 0.035 | E146: 0.013 | F146: 0.000 | G146: 0.846 | H146: 0.613 | I146: 0.813 | J146: 0.382 | K146: 0.034 | L146: 0.009 | M146: 0.000 | N146: 1.007 | O146: 0.736 | P146: 0.773 | Q146: 0.555 | R146: 0.034 | S146: 0.007 | T146: 0.000 | U146: 1.003 | V146: 0.686 | W146: 0.778 | X146: 0.483 | AA146: =IF("na"=F146,"",F146/F142) -> 1.01677743284 | AB146: =IF("na"=J146,"",J146/J142) -> 60.110 | AC146: =IF("na"=M146,"",M146/M142) -> 1.038 | AD146: =IF("na"=Q146,"",Q146/Q142) -> 0.619 | AE146: =IF("na"=T146,"",T146/T142) -> 1.166 | AF146: =IF("na"=X146,"",X146/X142) -> 0.528 | AG146: 143.000 | AH146: 2 | AI146: 5 | AJ146: 2 | AK146: 1 | AL146: 2 | AM146: 2 | AO146: =IF("na"=F146,"",SQRT(F146)/SQRT(F142)) -> 1.008 | AP146: =IF("na"=J146,"",SQRT(J146)/SQRT(J142)) -> 7.753 | AQ146: =IF("na"=M146,"",SQRT(M146)/SQRT(M142)) -> 1.019 | AR146: =IF("na"=Q146,"",SQRT(Q146)/SQRT(Q142)) -> 0.787 | AS146: =IF("na"=T146,"",SQRT(T146)/SQRT(T142)) -> 1.080 | AT146: =IF("na"=X146,"",SQRT(X146)/SQRT(X142)) -> 0.726
A147: Square | B147: 0.035 | C147: 0.888 | D147: 0.033 | E147: 0.013 | F147: 0.0002 | G147: -nan | H147: -nan | I147: 0.9565 | J147: 0.005 | K147: 0.033 | L147: 0.009 | M147: 0.0001 | N147: 1.289 | O147: 0.9797 | P147: 0.9477 | Q147: 0.963 | R147: 0.033 | S147: 0.006 | T147: 0.0000 | U147: 1.198 | V147: 0.7769 | W147: 0.9575 | X147: 0.608 | AA147: =IF("na"=F147,"",F147/F142) -> 1.03019442427 | AB147: =IF("na"=J147,"",J147/J142) -> 0.734 | AC147: =IF("na"=M147,"",M147/M142) -> 1.014 | AD147: =IF("na"=Q147,"",Q147/Q142) -> 1.074 | AE147: =IF("na"=T147,"",T147/T142) -> 1.046 | AF147: =IF("na"=X147,"",X147/X142) -> 0.664 | AG147: 143.000 | AH147: 3 | AI147: 2 | AJ147: 1 | AK147: 6 | AL147: 1 | AM147: 3 | AO147: =IF("na"=F147,"",SQRT(F147)/SQRT(F142)) -> 1.015 | AP147: =IF("na"=J147,"",SQRT(J147)/SQRT(J142)) -> 0.857 | AQ147: =IF("na"=M147,"",SQRT(M147)/SQRT(M142)) -> 1.007 | AR147: =IF("na"=Q147,"",SQRT(Q147)/SQRT(Q142)) -> 1.036 | AS147: =IF("na"=T147,"",SQRT(T147)/SQRT(T142)) -> 1.023 | AT147: =IF("na"=X147,"",SQRT(X147)/SQRT(X142)) -> 0.815
A148: OldEPI | B148: 0.035 | C148: 0.888 | D148: 0.034 | E148: 0.013 | F148: 0.0002 | G148: 0.824 | H148: 0.6020 | I148: 0.7807 | J148: 0.374 | K148: 0.034 | L148: 0.010 | M148: 0.0001 | N148: 1.054 | O148: 0.8247 | P148: 0.7858 | Q148: 0.691 | R148: 0.034 | S148: 0.008 | T148: 0.0001 | U148: 1.043 | V148: 0.8466 | W148: 0.7756 | X148: 0.729 | AA148: =IF("na"=F148,"",F148/F142) -> 1.04239984003 | AB148: =IF("na"=J148,"",J148/J142) -> 58.848 | AC148: =IF("na"=M148,"",M148/M142) -> 1.324 | AD148: =IF("na"=Q148,"",Q148/Q142) -> 0.770 | AE148: =IF("na"=T148,"",T148/T142) -> 1.543 | AF148: =IF("na"=X148,"",X148/X142) -> 0.797 | AG148: 143.000 | AH148: 4 | AI148: 4 | AJ148: 6 | AK148: 2 | AL148: 7 | AM148: 6 | AO148: =IF("na"=F148,"",SQRT(F148)/SQRT(F142)) -> 1.021 | AP148: =IF("na"=J148,"",SQRT(J148)/SQRT(J142)) -> 7.671 | AQ148: =IF("na"=M148,"",SQRT(M148)/SQRT(M142)) -> 1.150 | AR148: =IF("na"=Q148,"",SQRT(Q148)/SQRT(Q142)) -> 0.878 | AS148: =IF("na"=T148,"",SQRT(T148)/SQRT(T142)) -> 1.242 | AT148: =IF("na"=X148,"",SQRT(X148)/SQRT(X142)) -> 0.893
A149: EPI3 | B149: 0.035 | C149: 0.888 | D149: 0.035 | E149: 0.013 | F149: 0.0002 | G149: -nan | H149: -nan | I149: 0.7582 | J149: 0.017 | K149: 0.034 | L149: 0.010 | M149: 0.0001 | N149: 1.023 | O149: 0.8354 | P149: 0.7553 | Q149: 0.716 | R149: 0.034 | S149: 0.008 | T149: 0.0001 | U149: 0.990 | V149: 0.6609 | W149: 0.7768 | X149: 0.449 | AA149: =IF("na"=F149,"",F149/F142) -> 1.06684134434 | AB149: =IF("na"=J149,"",J149/J142) -> 2.657 | AC149: =IF("na"=M149,"",M149/M142) -> 1.270 | AD149: =IF("na"=Q149,"",Q149/Q142) -> 0.798 | AE149: =IF("na"=T149,"",T149/T142) -> 1.452 | AF149: =IF("na"=X149,"",X149/X142) -> 0.491 | AG149: 143.000 | AH149: 5 | AI149: 3 | AJ149: 5 | AK149: 4 | AL149: 5 | AM149: 1 | AO149: =IF("na"=F149,"",SQRT(F149)/SQRT(F142)) -> 1.033 | AP149: =IF("na"=J149,"",SQRT(J149)/SQRT(J142)) -> 1.630 | AQ149: =IF("na"=M149,"",SQRT(M149)/SQRT(M142)) -> 1.127 | AR149: =IF("na"=Q149,"",SQRT(Q149)/SQRT(Q142)) -> 0.893 | AS149: =IF("na"=T149,"",SQRT(T149)/SQRT(T142)) -> 1.205 | AT149: =IF("na"=X149,"",SQRT(X149)/SQRT(X142)) -> 0.700
A150: EPI5 | B150: 0.035 | C150: 0.888 | D150: 0.033 | E150: 0.012 | F150: 0.0002 | G150: 0.850 | H150: 0.6347 | I150: 0.7800 | J150: 0.415 | K150: 0.033 | L150: 0.009 | M150: 0.0001 | N150: 1.072 | O150: 0.8336 | P150: 0.8087 | Q150: 0.701 | R150: 0.033 | S150: 0.007 | T150: 0.0001 | U150: 1.095 | V150: 0.8096 | W150: 0.8462 | X150: 0.657 | AA150: =IF("na"=F150,"",F150/F142) -> 0.94491754620 | AB150: =IF("na"=J150,"",J150/J142) -> 65.238 | AC150: =IF("na"=M150,"",M150/M142) -> 1.147 | AD150: =IF("na"=Q150,"",Q150/Q142) -> 0.782 | AE150: =IF("na"=T150,"",T150/T142) -> 1.240 | AF150: =IF("na"=X150,"",X150/X142) -> 0.718 | AG150: 143.000 | AH150: 1 | AI150: 6 | AJ150: 3 | AK150: 3 | AL150: 3 | AM150: 4 | AO150: =IF("na"=F150,"",SQRT(F150)/SQRT(F142)) -> 0.972 | AP150: =IF("na"=J150,"",SQRT(J150)/SQRT(J142)) -> 8.077 | AQ150: =IF("na"=M150,"",SQRT(M150)/SQRT(M142)) -> 1.071 | AR150: =IF("na"=Q150,"",SQRT(Q150)/SQRT(Q142)) -> 0.884 | AS150: =IF("na"=T150,"",SQRT(T150)/SQRT(T142)) -> 1.114 | AT150: =IF("na"=X150,"",SQRT(X150)/SQRT(X142)) -> 0.847
D152: population 8
B153: true | C153: true | D153: 7 | K153: 15 | R153: 30
B154: mean | C154: rr | D154: mean | E154: stdev | F154: mse | G154: mrr | H154: srr | I154: prr | J154: mse_rr | K154: mean | L154: stdev | M154: mse | N154: mrr | O154: srr | P154: prr | Q154: mse_rr | R154: mean | S154: stdev | T154: mse | U154: mrr | V154: srr | W154: prr | X154: mse_rr
A155: Random | B155: 0.218 | C155: 1.092 | D155: 0.218 | E155: 0.030 | F155: 0.001 | G155: 1.147 | H155: 0.546 | I155: 1.034 | J155: 0.302 | K155: 0.220 | L155: 0.022 | M155: 0.000 | N155: 1.097 | O155: 0.276 | P155: 1.049 | Q155: 0.078 | R155: 0.220 | S155: 0.015 | T155: 0.000 | U155: 1.073 | V155: 0.183 | W155: 1.050 | X155: 0.035
A156: NewEPI | B156: 0.218 | C156: 1.092 | D156: 0.223 | E156: 0.040 | F156: 0.002 | G156: 1.165 | H156: 0.709 | I156: 1.011 | J156: 0.508 | K156: 0.221 | L156: 0.034 | M156: 0.001 | N156: 1.074 | O156: 0.393 | P156: 0.993 | Q156: 0.164 | R156: 0.221 | S156: 0.034 | T156: 0.001 | U156: 1.176 | V156: 0.403 | W156: 1.096 | X156: 0.162 | AA156: =IF("na"=F156,"",F156/F155) -> 1.76832925644 | AB156: =IF("na"=J156,"",J156/J155) -> 1.685 | AC156: =IF("na"=M156,"",M156/M155) -> 2.460 | AD156: =IF("na"=Q156,"",Q156/Q155) -> 2.104 | AE156: =IF("na"=T156,"",T156/T155) -> 5.380 | AF156: =IF("na"=X156,"",X156/X155) -> 4.633 | AG156: =ROW() -> 156.000 | AH156: =SUM(IF(INDIRECT(ADDRESS(ROW(),AH$60))>INDIRECT(ADDRESS($AG156,AH$60)),1,0), IF(INDIRECT(ADDRESS(ROW(),AH$60))>INDIRECT(ADDRESS($AG156+1,AH$60)),1,0), IF(INDIRECT(ADDRESS(ROW(),AH$60))>INDIRECT(ADDRESS($AG156+2,AH$60)),1,0), IF(INDIRECT(ADDRESS(ROW(),AH$60))>INDIRECT(ADDRESS($AG156+3,AH$60)),1,0), IF(INDIRECT(ADDRESS(ROW(),AH$60))>INDIRECT(ADDRESS($AG156+4,AH$60)),1,0), IF(INDIRECT(ADDRESS(ROW(),AH$60))>INDIRECT(ADDRESS($AG156+5,AH$60)),1,0), IF(INDIRECT(ADDRESS(ROW(),AH$60))>INDIRECT(ADDRESS($AG156+6,AH$60)),1,0), IF(INDIRECT(ADDRESS(ROW(),AH$60))>INDIRECT(ADDRESS($AG156+7,AH$60)),1,0))+1 -> 6 | AI156: 6 | AJ156: 6 | AK156: 6 | AL156: 7 | AM156: 8 | AO156: =IF("na"=F156,"",SQRT(F156)/SQRT(F155)) -> 1.330 | AP156: =IF("na"=J156,"",SQRT(J156)/SQRT(J155)) -> 1.298 | AQ156: =IF("na"=M156,"",SQRT(M156)/SQRT(M155)) -> 1.568 | AR156: =IF("na"=Q156,"",SQRT(Q156)/SQRT(Q155)) -> 1.451 | AS156: =IF("na"=T156,"",SQRT(T156)/SQRT(T155)) -> 2.320 | AT156: =IF("na"=X156,"",SQRT(X156)/SQRT(X155)) -> 2.152
A157: Grid | B157: 0.218 | C157: 1.092 | D157: 0.214 | E157: 0.043 | F157: 0.002 | G157: 1.244 | H157: 0.809 | I157: 1.034 | J157: 0.657 | K157: 0.214 | L157: 0.038 | M157: 0.001 | N157: 1.155 | O157: 0.500 | P157: 1.039 | Q157: 0.253 | R157: 0.214 | S157: 0.034 | T157: 0.001 | U157: 1.122 | V157: 0.361 | W157: 1.051 | X157: 0.132 | AA157: =IF("na"=F157,"",F157/F155) -> 2.02819657404 | AB157: =IF("na"=J157,"",J157/J155) -> 2.178 | AC157: =IF("na"=M157,"",M157/M155) -> 3.102 | AD157: =IF("na"=Q157,"",Q157/Q155) -> 3.233 | AE157: =IF("na"=T157,"",T157/T155) -> 5.463 | AF157: =IF("na"=X157,"",X157/X155) -> 3.761 | AG157: =AG156 -> 156.000 | AH157: 8 | AI157: 8 | AJ157: 8 | AK157: 8 | AL157: 8 | AM157: 7 | AO157: =IF("na"=F157,"",SQRT(F157)/SQRT(F155)) -> 1.424 | AP157: =IF("na"=J157,"",SQRT(J157)/SQRT(J155)) -> 1.476 | AQ157: =IF("na"=M157,"",SQRT(M157)/SQRT(M155)) -> 1.761 | AR157: =IF("na"=Q157,"",SQRT(Q157)/SQRT(Q155)) -> 1.798 | AS157: =IF("na"=T157,"",SQRT(T157)/SQRT(T155)) -> 2.337 | AT157: =IF("na"=X157,"",SQRT(X157)/SQRT(X155)) -> 1.939
A158: Peri | B158: 0.218 | C158: 1.092 | D158: 0.206 | E158: 0.031 | F158: 0.001 | G158: 1.052 | H158: 0.523 | I158: 0.921 | J158: 0.303 | K158: 0.203 | L158: 0.026 | M158: 0.001 | N158: 0.942 | O158: 0.298 | P158: 0.878 | Q158: 0.134 | R158: 0.201 | S158: 0.022 | T158: 0.001 | U158: 0.920 | V158: 0.232 | W158: 0.876 | X158: 0.101 | AA158: =IF("na"=F158,"",F158/F155) -> 1.18925990984 | AB158: =IF("na"=J158,"",J158/J155) -> 1.003 | AC158: =IF("na"=M158,"",M158/M155) -> 1.870 | AD158: =IF("na"=Q158,"",Q158/Q155) -> 1.718 | AE158: =IF("na"=T158,"",T158/T155) -> 3.479 | AF158: =IF("na"=X158,"",X158/X155) -> 2.869 | AG158: 156.000 | AH158: 2 | AI158: 2 | AJ158: 3 | AK158: 3 | AL158: 4 | AM158: 5 | AO158: =IF("na"=F158,"",SQRT(F158)/SQRT(F155)) -> 1.091 | AP158: =IF("na"=J158,"",SQRT(J158)/SQRT(J155)) -> 1.002 | AQ158: =IF("na"=M158,"",SQRT(M158)/SQRT(M155)) -> 1.367 | AR158: =IF("na"=Q158,"",SQRT(Q158)/SQRT(Q155)) -> 1.311 | AS158: =IF("na"=T158,"",SQRT(T158)/SQRT(T155)) -> 1.865 | AT158: =IF("na"=X158,"",SQRT(X158)/SQRT(X155)) -> 1.694
A159: Quad | B159: 0.218 | C159: 1.092 | D159: 0.225 | E159: 0.032 | F159: 0.001 | G159: 1.133 | H159: 0.534 | I159: 1.016 | J159: 0.291 | K159: 0.226 | L159: 0.025 | M159: 0.001 | N159: 1.067 | O159: 0.311 | P159: 1.008 | Q159: 0.103 | R159: 0.226 | S159: 0.019 | T159: 0.000 | U159: 1.028 | V159: 0.216 | W159: 0.992 | X159: 0.057 | AA159: =IF("na"=F159,"",F159/F155) -> 1.20541235780 | AB159: =IF("na"=J159,"",J159/J155) -> 0.965 | AC159: =IF("na"=M159,"",M159/M155) -> 1.439 | AD159: =IF("na"=Q159,"",Q159/Q155) -> 1.324 | AE159: =IF("na"=T159,"",T159/T155) -> 2.046 | AF159: =IF("na"=X159,"",X159/X155) -> 1.614 | AG159: 156.000 | AH159: 3 | AI159: 1 | AJ159: 2 | AK159: 2 | AL159: 2 | AM159: 2 | AO159: =IF("na"=F159,"",SQRT(F159)/SQRT(F155)) -> 1.098 | AP159: =IF("na"=J159,"",SQRT(J159)/SQRT(J155)) -> 0.982 | AQ159: =IF("na"=M159,"",SQRT(M159)/SQRT(M155)) -> 1.200 | AR159: =IF("na"=Q159,"",SQRT(Q159)/SQRT(Q155)) -> 1.150 | AS159: =IF("na"=T159,"",SQRT(T159)/SQRT(T155)) -> 1.430 | AT159: =IF("na"=X159,"",SQRT(X159)/SQRT(X155)) -> 1.270
A160: Square | B160: 0.218 | C160: 1.092 | D160: 0.216 | E160: 0.031 | F160: 0.0009 | G160: 1.159 | H160: 0.5515 | I160: 1.0293 | J160: 0.308 | K160: 0.219 | L160: 0.022 | M160: 0.0005 | N160: 1.077 | O160: 0.2694 | P160: 1.0300 | Q160: 0.076 | R160: 0.217 | S160: 0.015 | T160: 0.0002 | U160: 1.047 | V160: 0.1806 | W160: 1.0243 | X160: 0.037 | AA160: =IF("na"=F160,"",F160/F155) -> 1.02835940823 | AB160: =IF("na"=J160,"",J160/J155) -> 1.021 | AC160: =IF("na"=M160,"",M160/M155) -> 1.050 | AD160: =IF("na"=Q160,"",Q160/Q155) -> 0.978 | AE160: =IF("na"=T160,"",T160/T155) -> 1.012 | AF160: =IF("na"=X160,"",X160/X155) -> 1.060 | AG160: 156.000 | AH160: 1 | AI160: 3 | AJ160: 1 | AK160: 1 | AL160: 1 | AM160: 1 | AO160: =IF("na"=F160,"",SQRT(F160)/SQRT(F155)) -> 1.014 | AP160: =IF("na"=J160,"",SQRT(J160)/SQRT(J155)) -> 1.010 | AQ160: =IF("na"=M160,"",SQRT(M160)/SQRT(M155)) -> 1.025 | AR160: =IF("na"=Q160,"",SQRT(Q160)/SQRT(Q155)) -> 0.989 | AS160: =IF("na"=T160,"",SQRT(T160)/SQRT(T155)) -> 1.006 | AT160: =IF("na"=X160,"",SQRT(X160)/SQRT(X155)) -> 1.029
A161: OldEPI | B161: 0.218 | C161: 1.092 | D161: 0.225 | E161: 0.039 | F161: 0.0016 | G161: 1.169 | H161: 0.7418 | I161: 0.9840 | J161: 0.562 | K161: 0.224 | L161: 0.035 | M161: 0.0012 | N161: 1.113 | O161: 0.4451 | P161: 1.0092 | Q161: 0.205 | R161: 0.224 | S161: 0.031 | T161: 0.0010 | U161: 1.091 | V161: 0.3486 | W161: 1.0250 | X161: 0.126 | AA161: =IF("na"=F161,"",F161/F155) -> 1.77004791522 | AB161: =IF("na"=J161,"",J161/J155) -> 1.862 | AC161: =IF("na"=M161,"",M161/M155) -> 2.622 | AD161: =IF("na"=Q161,"",Q161/Q155) -> 2.623 | AE161: =IF("na"=T161,"",T161/T155) -> 4.670 | AF161: =IF("na"=X161,"",X161/X155) -> 3.595 | AG161: 156.000 | AH161: 7 | AI161: 7 | AJ161: 7 | AK161: 7 | AL161: 6 | AM161: 6 | AO161: =IF("na"=F161,"",SQRT(F161)/SQRT(F155)) -> 1.330 | AP161: =IF("na"=J161,"",SQRT(J161)/SQRT(J155)) -> 1.365 | AQ161: =IF("na"=M161,"",SQRT(M161)/SQRT(M155)) -> 1.619 | AR161: =IF("na"=Q161,"",SQRT(Q161)/SQRT(Q155)) -> 1.620 | AS161: =IF("na"=T161,"",SQRT(T161)/SQRT(T155)) -> 2.161 | AT161: =IF("na"=X161,"",SQRT(X161)/SQRT(X155)) -> 1.896
A162: EPI3 | B162: 0.218 | C162: 1.092 | D162: 0.225 | E162: 0.039 | F162: 0.0016 | G162: 1.187 | H162: 0.6107 | I162: 1.0249 | J162: 0.377 | K162: 0.224 | L162: 0.033 | M162: 0.0011 | N162: 1.138 | O162: 0.3844 | P162: 1.0589 | Q162: 0.149 | R162: 0.223 | S162: 0.028 | T162: 0.0008 | U162: 1.141 | V162: 0.2973 | W162: 1.0926 | X162: 0.088 | AA162: =IF("na"=F162,"",F162/F155) -> 1.72169978672 | AB162: =IF("na"=J162,"",J162/J155) -> 1.251 | AC162: =IF("na"=M162,"",M162/M155) -> 2.380 | AD162: =IF("na"=Q162,"",Q162/Q155) -> 1.905 | AE162: =IF("na"=T162,"",T162/T155) -> 3.724 | AF162: =IF("na"=X162,"",X162/X155) -> 2.522 | AG162: 156.000 | AH162: 5 | AI162: 4 | AJ162: 5 | AK162: 4 | AL162: 5 | AM162: 4 | AO162: =IF("na"=F162,"",SQRT(F162)/SQRT(F155)) -> 1.312 | AP162: =IF("na"=J162,"",SQRT(J162)/SQRT(J155)) -> 1.118 | AQ162: =IF("na"=M162,"",SQRT(M162)/SQRT(M155)) -> 1.543 | AR162: =IF("na"=Q162,"",SQRT(Q162)/SQRT(Q155)) -> 1.380 | AS162: =IF("na"=T162,"",SQRT(T162)/SQRT(T155)) -> 1.930 | AT162: =IF("na"=X162,"",SQRT(X162)/SQRT(X155)) -> 1.588
A163: EPI5 | B163: 0.218 | C163: 1.092 | D163: 0.224 | E163: 0.038 | F163: 0.0015 | G163: 1.199 | H163: 0.6591 | I163: 1.0342 | J163: 0.438 | K163: 0.223 | L163: 0.031 | M163: 0.0010 | N163: 1.160 | O163: 0.3907 | P163: 1.0796 | Q163: 0.153 | R163: 0.222 | S163: 0.026 | T163: 0.0007 | U163: 1.136 | V163: 0.2696 | W163: 1.0954 | X163: 0.073 | AA163: =IF("na"=F163,"",F163/F155) -> 1.65055267483 | AB163: =IF("na"=J163,"",J163/J155) -> 1.451 | AC163: =IF("na"=M163,"",M163/M155) -> 2.113 | AD163: =IF("na"=Q163,"",Q163/Q155) -> 1.956 | AE163: =IF("na"=T163,"",T163/T155) -> 3.212 | AF163: =IF("na"=X163,"",X163/X155) -> 2.074 | AG163: 156.000 | AH163: 4 | AI163: 5 | AJ163: 4 | AK163: 5 | AL163: 3 | AM163: 3 | AO163: =IF("na"=F163,"",SQRT(F163)/SQRT(F155)) -> 1.285 | AP163: =IF("na"=J163,"",SQRT(J163)/SQRT(J155)) -> 1.204 | AQ163: =IF("na"=M163,"",SQRT(M163)/SQRT(M155)) -> 1.454 | AR163: =IF("na"=Q163,"",SQRT(Q163)/SQRT(Q155)) -> 1.398 | AS163: =IF("na"=T163,"",SQRT(T163)/SQRT(T155)) -> 1.792 | AT163: =IF("na"=X163,"",SQRT(X163)/SQRT(X155)) -> 1.440
D165: population 9
B166: true | C166: true | D166: 7 | K166: 15 | R166: 30
B167: mean | C167: rr | D167: mean | E167: stdev | F167: mse | G167: mrr | H167: srr | I167: prr | J167: mse_rr | K167: mean | L167: stdev | M167: mse | N167: mrr | O167: srr | P167: prr | Q167: mse_rr | R167: mean | S167: stdev | T167: mse | U167: mrr | V167: srr | W167: prr | X167: mse_rr
A168: Random | B168: 0.057 | C168: 1.134 | D168: 0.054 | E168: 0.016 | F168: 0.000 | G168: 1.430 | H168: 0.831 | I168: 1.374 | J168: 0.748 | K168: 0.054 | L168: 0.011 | M168: 0.000 | N168: 1.773 | O168: 1.201 | P168: 1.349 | Q168: 1.489 | R168: 0.054 | S168: 0.008 | T168: 0.000 | U168: 1.763 | V168: 1.218 | W168: 1.376 | X168: 1.542
A169: NewEPI | B169: 0.057 | C169: 1.134 | D169: 0.056 | E169: 0.016 | F169: 0.000 | G169: 1.384 | H169: 0.892 | I169: 1.304 | J169: 0.825 | K169: 0.054 | L169: 0.013 | M169: 0.000 | N169: 1.790 | O169: 1.279 | P169: 1.372 | Q169: 1.694 | R169: 0.055 | S169: 0.011 | T169: 0.000 | U169: 1.793 | V169: 1.472 | W169: 1.352 | X169: 2.215 | AA169: =IF("na"=F169,"",F169/F168) -> 1.01429207610 | AB169: =IF("na"=J169,"",J169/J168) -> 1.104 | AC169: =IF("na"=M169,"",M169/M168) -> 1.318 | AD169: =IF("na"=Q169,"",Q169/Q168) -> 1.137 | AE169: =IF("na"=T169,"",T169/T168) -> 1.696 | AF169: =IF("na"=X169,"",X169/X168) -> 1.436 | AG169: =ROW() -> 169.000 | AH169: =SUM(IF(INDIRECT(ADDRESS(ROW(),AH$60))>INDIRECT(ADDRESS($AG169,AH$60)),1,0), IF(INDIRECT(ADDRESS(ROW(),AH$60))>INDIRECT(ADDRESS($AG169+1,AH$60)),1,0), IF(INDIRECT(ADDRESS(ROW(),AH$60))>INDIRECT(ADDRESS($AG169+2,AH$60)),1,0), IF(INDIRECT(ADDRESS(ROW(),AH$60))>INDIRECT(ADDRESS($AG169+3,AH$60)),1,0), IF(INDIRECT(ADDRESS(ROW(),AH$60))>INDIRECT(ADDRESS($AG169+4,AH$60)),1,0), IF(INDIRECT(ADDRESS(ROW(),AH$60))>INDIRECT(ADDRESS($AG169+5,AH$60)),1,0), IF(INDIRECT(ADDRESS(ROW(),AH$60))>INDIRECT(ADDRESS($AG169+6,AH$60)),1,0), IF(INDIRECT(ADDRESS(ROW(),AH$60))>INDIRECT(ADDRESS($AG169+7,AH$60)),1,0))+1 -> 4 | AI169: 6 | AJ169: 3 | AK169: 8 | AL169: 4 | AM169: 8 | AO169: =IF("na"=F169,"",SQRT(F169)/SQRT(F168)) -> 1.007 | AP169: =IF("na"=J169,"",SQRT(J169)/SQRT(J168)) -> 1.051 | AQ169: =IF("na"=M169,"",SQRT(M169)/SQRT(M168)) -> 1.148 | AR169: =IF("na"=Q169,"",SQRT(Q169)/SQRT(Q168)) -> 1.067 | AS169: =IF("na"=T169,"",SQRT(T169)/SQRT(T168)) -> 1.302 | AT169: =IF("na"=X169,"",SQRT(X169)/SQRT(X168)) -> 1.198
A170: Grid | B170: 0.057 | C170: 1.134 | D170: 0.053 | E170: 0.017 | F170: 0.000 | G170: 1.318 | H170: 0.918 | I170: 1.057 | J170: 0.849 | K170: 0.054 | L170: 0.014 | M170: 0.000 | N170: 1.528 | O170: 1.224 | P170: 1.033 | Q170: 1.509 | R170: 0.053 | S170: 0.012 | T170: 0.000 | U170: 1.473 | V170: 1.107 | W170: 1.076 | X170: 1.230 | AA170: =IF("na"=F170,"",F170/F168) -> 1.22930075921 | AB170: =IF("na"=J170,"",J170/J168) -> 1.136 | AC170: =IF("na"=M170,"",M170/M168) -> 1.697 | AD170: =IF("na"=Q170,"",Q170/Q168) -> 1.013 | AE170: =IF("na"=T170,"",T170/T168) -> 2.191 | AF170: =IF("na"=X170,"",X170/X168) -> 0.798 | AG170: =AG169 -> 169.000 | AH170: 8 | AI170: 7 | AJ170: 7 | AK170: 6 | AL170: 8 | AM170: 6 | AO170: =IF("na"=F170,"",SQRT(F170)/SQRT(F168)) -> 1.109 | AP170: =IF("na"=J170,"",SQRT(J170)/SQRT(J168)) -> 1.066 | AQ170: =IF("na"=M170,"",SQRT(M170)/SQRT(M168)) -> 1.303 | AR170: =IF("na"=Q170,"",SQRT(Q170)/SQRT(Q168)) -> 1.006 | AS170: =IF("na"=T170,"",SQRT(T170)/SQRT(T168)) -> 1.480 | AT170: =IF("na"=X170,"",SQRT(X170)/SQRT(X168)) -> 0.893
A171: Peri | B171: 0.057 | C171: 1.134 | D171: 0.057 | E171: 0.016 | F171: 0.000 | G171: 1.385 | H171: 0.947 | I171: 1.101 | J171: 0.898 | K171: 0.055 | L171: 0.013 | M171: 0.000 | N171: 1.591 | O171: 1.203 | P171: 1.128 | Q171: 1.447 | R171: 0.053 | S171: 0.010 | T171: 0.000 | U171: 1.338 | V171: 0.951 | W171: 1.048 | X171: 0.911 | AA171: =IF("na"=F171,"",F171/F168) -> 0.97973144765 | AB171: =IF("na"=J171,"",J171/J168) -> 1.200 | AC171: =IF("na"=M171,"",M171/M168) -> 1.357 | AD171: =IF("na"=Q171,"",Q171/Q168) -> 0.972 | AE171: =IF("na"=T171,"",T171/T168) -> 1.685 | AF171: =IF("na"=X171,"",X171/X168) -> 0.591 | AG171: 169.000 | AH171: 2 | AI171: 8 | AJ171: 4 | AK171: 5 | AL171: 3 | AM171: 4 | AO171: =IF("na"=F171,"",SQRT(F171)/SQRT(F168)) -> 0.990 | AP171: =IF("na"=J171,"",SQRT(J171)/SQRT(J168)) -> 1.096 | AQ171: =IF("na"=M171,"",SQRT(M171)/SQRT(M168)) -> 1.165 | AR171: =IF("na"=Q171,"",SQRT(Q171)/SQRT(Q168)) -> 0.986 | AS171: =IF("na"=T171,"",SQRT(T171)/SQRT(T168)) -> 1.298 | AT171: =IF("na"=X171,"",SQRT(X171)/SQRT(X168)) -> 0.769
A172: Quad | B172: 0.057 | C172: 1.134 | D172: 0.052 | E172: 0.015 | F172: 0.000 | G172: 1.062 | H172: 0.732 | I172: 0.866 | J172: 0.607 | K172: 0.052 | L172: 0.011 | M172: 0.000 | N172: 1.212 | O172: 0.895 | P172: 0.881 | Q172: 0.866 | R172: 0.052 | S172: 0.009 | T172: 0.000 | U172: 1.144 | V172: 0.793 | W172: 0.894 | X172: 0.687 | AA172: =IF("na"=F172,"",F172/F168) -> 0.98070762342 | AB172: =IF("na"=J172,"",J172/J168) -> 0.812 | AC172: =IF("na"=M172,"",M172/M168) -> 1.242 | AD172: =IF("na"=Q172,"",Q172/Q168) -> 0.582 | AE172: =IF("na"=T172,"",T172/T168) -> 1.430 | AF172: =IF("na"=X172,"",X172/X168) -> 0.445 | AG172: 169.000 | AH172: 3 | AI172: 2 | AJ172: 2 | AK172: 1 | AL172: 2 | AM172: 1 | AO172: =IF("na"=F172,"",SQRT(F172)/SQRT(F168)) -> 0.990 | AP172: =IF("na"=J172,"",SQRT(J172)/SQRT(J168)) -> 0.901 | AQ172: =IF("na"=M172,"",SQRT(M172)/SQRT(M168)) -> 1.114 | AR172: =IF("na"=Q172,"",SQRT(Q172)/SQRT(Q168)) -> 0.763 | AS172: =IF("na"=T172,"",SQRT(T172)/SQRT(T168)) -> 1.196 | AT172: =IF("na"=X172,"",SQRT(X172)/SQRT(X168)) -> 0.667
A173: Square | B173: 0.057 | C173: 1.134 | D173: 0.051 | E173: 0.014 | F173: 0.0002 | G173: 1.408 | H173: 0.8510 | I173: 1.3515 | J173: 0.772 | K173: 0.051 | L173: 0.010 | M173: 0.0001 | N173: 1.783 | O173: 1.2176 | P173: 1.3512 | Q173: 1.530 | R173: 0.051 | S173: 0.008 | T173: 0.0001 | U173: 1.712 | V173: 1.2050 | W173: 1.3435 | X173: 1.496 | AA173: =IF("na"=F173,"",F173/F168) -> 0.94217333553 | AB173: =IF("na"=J173,"",J173/J168) -> 1.032 | AC173: =IF("na"=M173,"",M173/M168) -> 1.102 | AD173: =IF("na"=Q173,"",Q173/Q168) -> 1.027 | AE173: =IF("na"=T173,"",T173/T168) -> 1.355 | AF173: =IF("na"=X173,"",X173/X168) -> 0.970 | AG173: 169.000 | AH173: 1 | AI173: 5 | AJ173: 1 | AK173: 7 | AL173: 1 | AM173: 7 | AO173: =IF("na"=F173,"",SQRT(F173)/SQRT(F168)) -> 0.971 | AP173: =IF("na"=J173,"",SQRT(J173)/SQRT(J168)) -> 1.016 | AQ173: =IF("na"=M173,"",SQRT(M173)/SQRT(M168)) -> 1.050 | AR173: =IF("na"=Q173,"",SQRT(Q173)/SQRT(Q168)) -> 1.014 | AS173: =IF("na"=T173,"",SQRT(T173)/SQRT(T168)) -> 1.164 | AT173: =IF("na"=X173,"",SQRT(X173)/SQRT(X168)) -> 0.985
A174: OldEPI | B174: 0.057 | C174: 1.134 | D174: 0.052 | E174: 0.017 | F174: 0.0003 | G174: 1.077 | H174: 0.7619 | I174: 0.8743 | J174: 0.648 | K174: 0.052 | L174: 0.014 | M174: 0.0002 | N174: 1.254 | O174: 0.9744 | P174: 0.8915 | Q174: 1.008 | R174: 0.051 | S174: 0.011 | T174: 0.0001 | U174: 1.229 | V174: 0.9816 | W174: 0.9191 | X174: 1.010 | AA174: =IF("na"=F174,"",F174/F168) -> 1.21878664511 | AB174: =IF("na"=J174,"",J174/J168) -> 0.866 | AC174: =IF("na"=M174,"",M174/M168) -> 1.699 | AD174: =IF("na"=Q174,"",Q174/Q168) -> 0.677 | AE174: =IF("na"=T174,"",T174/T168) -> 2.096 | AF174: =IF("na"=X174,"",X174/X168) -> 0.655 | AG174: 169.000 | AH174: 7 | AI174: 4 | AJ174: 8 | AK174: 4 | AL174: 7 | AM174: 5 | AO174: =IF("na"=F174,"",SQRT(F174)/SQRT(F168)) -> 1.104 | AP174: =IF("na"=J174,"",SQRT(J174)/SQRT(J168)) -> 0.931 | AQ174: =IF("na"=M174,"",SQRT(M174)/SQRT(M168)) -> 1.303 | AR174: =IF("na"=Q174,"",SQRT(Q174)/SQRT(Q168)) -> 0.823 | AS174: =IF("na"=T174,"",SQRT(T174)/SQRT(T168)) -> 1.448 | AT174: =IF("na"=X174,"",SQRT(X174)/SQRT(X168)) -> 0.809
A175: EPI3 | B175: 0.057 | C175: 1.134 | D175: 0.052 | E175: 0.016 | F175: 0.0003 | G175: 1.103 | H175: 0.7480 | I175: 0.9144 | J175: 0.608 | K175: 0.052 | L175: 0.012 | M175: 0.0002 | N175: 1.276 | O175: 0.9765 | P175: 0.9209 | Q175: 0.999 | R175: 0.051 | S175: 0.010 | T175: 0.0001 | U175: 1.226 | V175: 0.8758 | W175: 0.9369 | X175: 0.806 | AA175: =IF("na"=F175,"",F175/F168) -> 1.07344278007 | AB175: =IF("na"=J175,"",J175/J168) -> 0.813 | AC175: =IF("na"=M175,"",M175/M168) -> 1.445 | AD175: =IF("na"=Q175,"",Q175/Q168) -> 0.671 | AE175: =IF("na"=T175,"",T175/T168) -> 1.882 | AF175: =IF("na"=X175,"",X175/X168) -> 0.523 | AG175: 169.000 | AH175: 5 | AI175: 3 | AJ175: 5 | AK175: 3 | AL175: 6 | AM175: 2 | AO175: =IF("na"=F175,"",SQRT(F175)/SQRT(F168)) -> 1.036 | AP175: =IF("na"=J175,"",SQRT(J175)/SQRT(J168)) -> 0.901 | AQ175: =IF("na"=M175,"",SQRT(M175)/SQRT(M168)) -> 1.202 | AR175: =IF("na"=Q175,"",SQRT(Q175)/SQRT(Q168)) -> 0.819 | AS175: =IF("na"=T175,"",SQRT(T175)/SQRT(T168)) -> 1.372 | AT175: =IF("na"=X175,"",SQRT(X175)/SQRT(X168)) -> 0.723
A176: EPI5 | B176: 0.057 | C176: 1.134 | D176: 0.051 | E176: 0.017 | F176: 0.0003 | G176: 1.098 | H176: 0.7198 | I176: 0.9083 | J176: 0.569 | K176: 0.051 | L176: 0.013 | M176: 0.0002 | N176: 1.208 | O176: 0.9073 | P176: 0.8947 | Q176: 0.880 | R176: 0.051 | S176: 0.010 | T176: 0.0001 | U176: 1.243 | V176: 0.9167 | W176: 0.9564 | X176: 0.872 | AA176: =IF("na"=F176,"",F176/F168) -> 1.16809484699 | AB176: =IF("na"=J176,"",J176/J168) -> 0.761 | AC176: =IF("na"=M176,"",M176/M168) -> 1.477 | AD176: =IF("na"=Q176,"",Q176/Q168) -> 0.591 | AE176: =IF("na"=T176,"",T176/T168) -> 1.785 | AF176: =IF("na"=X176,"",X176/X168) -> 0.565 | AG176: 169.000 | AH176: 6 | AI176: 1 | AJ176: 6 | AK176: 2 | AL176: 5 | AM176: 3 | AO176: =IF("na"=F176,"",SQRT(F176)/SQRT(F168)) -> 1.081 | AP176: =IF("na"=J176,"",SQRT(J176)/SQRT(J168)) -> 0.872 | AQ176: =IF("na"=M176,"",SQRT(M176)/SQRT(M168)) -> 1.215 | AR176: =IF("na"=Q176,"",SQRT(Q176)/SQRT(Q168)) -> 0.769 | AS176: =IF("na"=T176,"",SQRT(T176)/SQRT(T168)) -> 1.336 | AT176: =IF("na"=X176,"",SQRT(X176)/SQRT(X168)) -> 0.752
D178: population 10
B179: true | C179: true | D179: 7 | K179: 15 | R179: 30
B180: mean | C180: rr | D180: mean | E180: stdev | F180: mse | G180: mrr | H180: srr | I180: prr | J180: mse_rr | K180: mean | L180: stdev | M180: mse | N180: mrr | O180: srr | P180: prr | Q180: mse_rr | R180: mean | S180: stdev | T180: mse | U180: mrr | V180: srr | W180: prr | X180: mse_rr
A181: Random | B181: 0.133 | C181: 1.078 | D181: 0.134 | E181: 0.028 | F181: 0.001 | G181: 1.217 | H181: 0.661 | I181: 1.042 | J181: 0.439 | K181: 0.134 | L181: 0.019 | M181: 0.000 | N181: 1.119 | O181: 0.397 | P181: 1.031 | Q181: 0.160 | R181: 0.134 | S181: 0.014 | T181: 0.000 | U181: 1.079 | V181: 0.266 | W181: 1.037 | X181: 0.072
A182: NewEPI | B182: 0.133 | C182: 1.078 | D182: 0.133 | E182: 0.031 | F182: 0.001 | G182: 1.270 | H182: 0.914 | I182: 1.035 | J182: 0.838 | K182: 0.134 | L182: 0.027 | M182: 0.001 | N182: 1.101 | O182: 0.442 | P182: 1.012 | Q182: 0.200 | R182: 0.135 | S182: 0.024 | T182: 0.001 | U182: 1.102 | V182: 0.374 | W182: 1.039 | X182: 0.141 | AA182: =IF("na"=F182,"",F182/F181) -> 1.22272425549 | AB182: =IF("na"=J182,"",J182/J181) -> 1.911 | AC182: =IF("na"=M182,"",M182/M181) -> 2.105 | AD182: =IF("na"=Q182,"",Q182/Q181) -> 1.252 | AE182: =IF("na"=T182,"",T182/T181) -> 2.937 | AF182: =IF("na"=X182,"",X182/X181) -> 1.955 | AG182: =ROW() -> 182.000 | AH182: =SUM(IF(INDIRECT(ADDRESS(ROW(),AH$60))>INDIRECT(ADDRESS($AG182,AH$60)),1,0), IF(INDIRECT(ADDRESS(ROW(),AH$60))>INDIRECT(ADDRESS($AG182+1,AH$60)),1,0), IF(INDIRECT(ADDRESS(ROW(),AH$60))>INDIRECT(ADDRESS($AG182+2,AH$60)),1,0), IF(INDIRECT(ADDRESS(ROW(),AH$60))>INDIRECT(ADDRESS($AG182+3,AH$60)),1,0), IF(INDIRECT(ADDRESS(ROW(),AH$60))>INDIRECT(ADDRESS($AG182+4,AH$60)),1,0), IF(INDIRECT(ADDRESS(ROW(),AH$60))>INDIRECT(ADDRESS($AG182+5,AH$60)),1,0), IF(INDIRECT(ADDRESS(ROW(),AH$60))>INDIRECT(ADDRESS($AG182+6,AH$60)),1,0), IF(INDIRECT(ADDRESS(ROW(),AH$60))>INDIRECT(ADDRESS($AG182+7,AH$60)),1,0))+1 -> 4 | AI182: 4 | AJ182: 5 | AK182: 2 | AL182: 5 | AM182: 3 | AO182: =IF("na"=F182,"",SQRT(F182)/SQRT(F181)) -> 1.106 | AP182: =IF("na"=J182,"",SQRT(J182)/SQRT(J181)) -> 1.382 | AQ182: =IF("na"=M182,"",SQRT(M182)/SQRT(M181)) -> 1.451 | AR182: =IF("na"=Q182,"",SQRT(Q182)/SQRT(Q181)) -> 1.119 | AS182: =IF("na"=T182,"",SQRT(T182)/SQRT(T181)) -> 1.714 | AT182: =IF("na"=X182,"",SQRT(X182)/SQRT(X181)) -> 1.398
A183: Grid | B183: 0.133 | C183: 1.078 | D183: 0.134 | E183: 0.035 | F183: 0.001 | G183: 1.415 | H183: 1.267 | I183: 1.022 | J183: 1.608 | K183: 0.134 | L183: 0.030 | M183: 0.001 | N183: 1.301 | O183: 0.860 | P183: 1.044 | Q183: 0.741 | R183: 0.133 | S183: 0.028 | T183: 0.001 | U183: 1.223 | V183: 0.745 | W183: 1.060 | X183: 0.556 | AA183: =IF("na"=F183,"",F183/F181) -> 1.61970999253 | AB183: =IF("na"=J183,"",J183/J181) -> 3.667 | AC183: =IF("na"=M183,"",M183/M181) -> 2.591 | AD183: =IF("na"=Q183,"",Q183/Q181) -> 4.639 | AE183: =IF("na"=T183,"",T183/T181) -> 4.152 | AF183: =IF("na"=X183,"",X183/X181) -> 7.680 | AG183: =AG182 -> 182.000 | AH183: 8 | AI183: 8 | AJ183: 8 | AK183: 8 | AL183: 8 | AM183: 8 | AO183: =IF("na"=F183,"",SQRT(F183)/SQRT(F181)) -> 1.273 | AP183: =IF("na"=J183,"",SQRT(J183)/SQRT(J181)) -> 1.915 | AQ183: =IF("na"=M183,"",SQRT(M183)/SQRT(M181)) -> 1.610 | AR183: =IF("na"=Q183,"",SQRT(Q183)/SQRT(Q181)) -> 2.154 | AS183: =IF("na"=T183,"",SQRT(T183)/SQRT(T181)) -> 2.038 | AT183: =IF("na"=X183,"",SQRT(X183)/SQRT(X181)) -> 2.771
A184: Peri | B184: 0.133 | C184: 1.078 | D184: 0.117 | E184: 0.026 | F184: 0.001 | G184: 1.065 | H184: 0.816 | I184: 0.816 | J184: 0.734 | K184: 0.123 | L184: 0.021 | M184: 0.001 | N184: 1.049 | O184: 0.673 | P184: 0.875 | Q184: 0.494 | R184: 0.121 | S184: 0.019 | T184: 0.000 | U184: 0.954 | V184: 0.439 | W184: 0.869 | X184: 0.237 | AA184: =IF("na"=F184,"",F184/F181) -> 1.21873197444 | AB184: =IF("na"=J184,"",J184/J181) -> 1.674 | AC184: =IF("na"=M184,"",M184/M181) -> 1.552 | AD184: =IF("na"=Q184,"",Q184/Q181) -> 3.095 | AE184: =IF("na"=T184,"",T184/T181) -> 2.598 | AF184: =IF("na"=X184,"",X184/X181) -> 3.271 | AG184: 182.000 | AH184: 3 | AI184: 3 | AJ184: 3 | AK184: 6 | AL184: 3 | AM184: 6 | AO184: =IF("na"=F184,"",SQRT(F184)/SQRT(F181)) -> 1.104 | AP184: =IF("na"=J184,"",SQRT(J184)/SQRT(J181)) -> 1.294 | AQ184: =IF("na"=M184,"",SQRT(M184)/SQRT(M181)) -> 1.246 | AR184: =IF("na"=Q184,"",SQRT(Q184)/SQRT(Q181)) -> 1.759 | AS184: =IF("na"=T184,"",SQRT(T184)/SQRT(T181)) -> 1.612 | AT184: =IF("na"=X184,"",SQRT(X184)/SQRT(X181)) -> 1.809
A185: Quad | B185: 0.133 | C185: 1.078 | D185: 0.131 | E185: 0.027 | F185: 0.001 | G185: 1.162 | H185: 0.794 | I185: 0.925 | J185: 0.653 | K185: 0.129 | L185: 0.022 | M185: 0.000 | N185: 1.103 | O185: 0.608 | P185: 0.944 | Q185: 0.387 | R185: 0.131 | S185: 0.017 | T185: 0.000 | U185: 1.013 | V185: 0.345 | W185: 0.934 | X185: 0.140 | AA185: =IF("na"=F185,"",F185/F181) -> 0.97924486587 | AB185: =IF("na"=J185,"",J185/J181) -> 1.490 | AC185: =IF("na"=M185,"",M185/M181) -> 1.382 | AD185: =IF("na"=Q185,"",Q185/Q181) -> 2.423 | AE185: =IF("na"=T185,"",T185/T181) -> 1.575 | AF185: =IF("na"=X185,"",X185/X181) -> 1.931 | AG185: 182.000 | AH185: 2 | AI185: 2 | AJ185: 2 | AK185: 3 | AL185: 2 | AM185: 2 | AO185: =IF("na"=F185,"",SQRT(F185)/SQRT(F181)) -> 0.990 | AP185: =IF("na"=J185,"",SQRT(J185)/SQRT(J181)) -> 1.221 | AQ185: =IF("na"=M185,"",SQRT(M185)/SQRT(M181)) -> 1.175 | AR185: =IF("na"=Q185,"",SQRT(Q185)/SQRT(Q181)) -> 1.557 | AS185: =IF("na"=T185,"",SQRT(T185)/SQRT(T181)) -> 1.255 | AT185: =IF("na"=X185,"",SQRT(X185)/SQRT(X181)) -> 1.390
A186: Square | B186: 0.133 | C186: 1.078 | D186: 0.134 | E186: 0.026 | F186: 0.0007 | G186: 1.229 | H186: 0.7781 | I186: 1.0304 | J186: 0.608 | K186: 0.133 | L186: 0.018 | M186: 0.0003 | N186: 1.079 | O186: 0.3693 | P186: 1.0018 | Q186: 0.142 | R186: 0.133 | S186: 0.014 | T186: 0.0002 | U186: 1.054 | V186: 0.2347 | W186: 1.0183 | X186: 0.059 | AA186: =IF("na"=F186,"",F186/F181) -> 0.87766925275 | AB186: =IF("na"=J186,"",J186/J181) -> 1.386 | AC186: =IF("na"=M186,"",M186/M181) -> 0.892 | AD186: =IF("na"=Q186,"",Q186/Q181) -> 0.890 | AE186: =IF("na"=T186,"",T186/T181) -> 0.983 | AF186: =IF("na"=X186,"",X186/X181) -> 0.810 | AG186: 182.000 | AH186: 1 | AI186: 1 | AJ186: 1 | AK186: 1 | AL186: 1 | AM186: 1 | AO186: =IF("na"=F186,"",SQRT(F186)/SQRT(F181)) -> 0.937 | AP186: =IF("na"=J186,"",SQRT(J186)/SQRT(J181)) -> 1.177 | AQ186: =IF("na"=M186,"",SQRT(M186)/SQRT(M181)) -> 0.944 | AR186: =IF("na"=Q186,"",SQRT(Q186)/SQRT(Q181)) -> 0.943 | AS186: =IF("na"=T186,"",SQRT(T186)/SQRT(T181)) -> 0.992 | AT186: =IF("na"=X186,"",SQRT(X186)/SQRT(X181)) -> 0.900
A187: OldEPI | B187: 0.133 | C187: 1.078 | D187: 0.133 | E187: 0.033 | F187: 0.0011 | G187: 1.270 | H187: 1.0326 | I187: 0.9351 | J187: 1.087 | K187: 0.132 | L187: 0.029 | M187: 0.0009 | N187: 1.178 | O187: 0.7650 | P187: 0.9547 | Q187: 0.600 | R187: 0.132 | S187: 0.027 | T187: 0.0007 | U187: 1.109 | V187: 0.5521 | W187: 0.9639 | X187: 0.318 | AA187: =IF("na"=F187,"",F187/F181) -> 1.44720808689 | AB187: =IF("na"=J187,"",J187/J181) -> 2.478 | AC187: =IF("na"=M187,"",M187/M181) -> 2.406 | AD187: =IF("na"=Q187,"",Q187/Q181) -> 3.758 | AE187: =IF("na"=T187,"",T187/T181) -> 3.851 | AF187: =IF("na"=X187,"",X187/X181) -> 4.391 | AG187: 182.000 | AH187: 7 | AI187: 7 | AJ187: 7 | AK187: 7 | AL187: 7 | AM187: 7 | AO187: =IF("na"=F187,"",SQRT(F187)/SQRT(F181)) -> 1.203 | AP187: =IF("na"=J187,"",SQRT(J187)/SQRT(J181)) -> 1.574 | AQ187: =IF("na"=M187,"",SQRT(M187)/SQRT(M181)) -> 1.551 | AR187: =IF("na"=Q187,"",SQRT(Q187)/SQRT(Q181)) -> 1.939 | AS187: =IF("na"=T187,"",SQRT(T187)/SQRT(T181)) -> 1.962 | AT187: =IF("na"=X187,"",SQRT(X187)/SQRT(X181)) -> 2.095
A188: EPI3 | B188: 0.133 | C188: 1.078 | D188: 0.133 | E188: 0.032 | F188: 0.0010 | G188: 1.276 | H188: 1.0019 | I188: 0.9570 | J188: 1.018 | K188: 0.133 | L188: 0.028 | M188: 0.0008 | N188: 1.128 | O188: 0.6181 | P188: 0.9648 | Q188: 0.395 | R188: 0.132 | S188: 0.024 | T188: 0.0006 | U188: 1.070 | V188: 0.4221 | W188: 0.9852 | X188: 0.187 | AA188: =IF("na"=F188,"",F188/F181) -> 1.31468109744 | AB188: =IF("na"=J188,"",J188/J181) -> 2.322 | AC188: =IF("na"=M188,"",M188/M181) -> 2.127 | AD188: =IF("na"=Q188,"",Q188/Q181) -> 2.472 | AE188: =IF("na"=T188,"",T188/T181) -> 3.091 | AF188: =IF("na"=X188,"",X188/X181) -> 2.581 | AG188: 182.000 | AH188: 6 | AI188: 6 | AJ188: 6 | AK188: 4 | AL188: 6 | AM188: 5 | AO188: =IF("na"=F188,"",SQRT(F188)/SQRT(F181)) -> 1.147 | AP188: =IF("na"=J188,"",SQRT(J188)/SQRT(J181)) -> 1.524 | AQ188: =IF("na"=M188,"",SQRT(M188)/SQRT(M181)) -> 1.459 | AR188: =IF("na"=Q188,"",SQRT(Q188)/SQRT(Q181)) -> 1.572 | AS188: =IF("na"=T188,"",SQRT(T188)/SQRT(T181)) -> 1.758 | AT188: =IF("na"=X188,"",SQRT(X188)/SQRT(X181)) -> 1.606
A189: EPI5 | B189: 0.133 | C189: 1.078 | D189: 0.132 | E189: 0.032 | F189: 0.0010 | G189: 1.240 | H189: 0.9376 | I189: 0.9539 | J189: 0.895 | K189: 0.132 | L189: 0.027 | M189: 0.0007 | N189: 1.157 | O189: 0.6773 | P189: 0.9835 | Q189: 0.468 | R189: 0.132 | S189: 0.023 | T189: 0.0005 | U189: 1.073 | V189: 0.3807 | W189: 0.9999 | X189: 0.151 | AA189: =IF("na"=F189,"",F189/F181) -> 1.31450414736 | AB189: =IF("na"=J189,"",J189/J181) -> 2.040 | AC189: =IF("na"=M189,"",M189/M181) -> 2.033 | AD189: =IF("na"=Q189,"",Q189/Q181) -> 2.928 | AE189: =IF("na"=T189,"",T189/T181) -> 2.875 | AF189: =IF("na"=X189,"",X189/X181) -> 2.087 | AG189: 182.000 | AH189: 5 | AI189: 5 | AJ189: 4 | AK189: 5 | AL189: 4 | AM189: 4 | AO189: =IF("na"=F189,"",SQRT(F189)/SQRT(F181)) -> 1.147 | AP189: =IF("na"=J189,"",SQRT(J189)/SQRT(J181)) -> 1.428 | AQ189: =IF("na"=M189,"",SQRT(M189)/SQRT(M181)) -> 1.426 | AR189: =IF("na"=Q189,"",SQRT(Q189)/SQRT(Q181)) -> 1.711 | AS189: =IF("na"=T189,"",SQRT(T189)/SQRT(T181)) -> 1.696 | AT189: =IF("na"=X189,"",SQRT(X189)/SQRT(X181)) -> 1.445
D191: population 11
B192: true | C192: true | D192: 7 | K192: 15 | R192: 30
B193: mean | C193: rr | D193: mean | E193: stdev | F193: mse | G193: mrr | H193: srr | I193: prr | J193: mse_rr | K193: mean | L193: stdev | M193: mse | N193: mrr | O193: srr | P193: prr | Q193: mse_rr | R193: mean | S193: stdev | T193: mse | U193: mrr | V193: srr | W193: prr | X193: mse_rr
A194: Random | B194: 0.272 | C194: 1.053 | D194: 0.270 | E194: 0.035 | F194: 0.001 | G194: 1.387 | H194: 0.886 | I194: 1.146 | J194: 0.794 | K194: 0.270 | L194: 0.025 | M194: 0.001 | N194: 1.220 | O194: 0.401 | P194: 1.127 | Q194: 0.166 | R194: 0.270 | S194: 0.018 | T194: 0.000 | U194: 1.163 | V194: 0.243 | W194: 1.122 | X194: 0.064
A195: NewEPI | B195: 0.272 | C195: 1.053 | D195: 0.271 | E195: 0.042 | F195: 0.002 | G195: 1.389 | H195: 0.915 | I195: 1.136 | J195: 0.845 | K195: 0.268 | L195: 0.037 | M195: 0.001 | N195: 1.212 | O195: 0.481 | P195: 1.091 | Q195: 0.232 | R195: 0.270 | S195: 0.035 | T195: 0.001 | U195: 1.179 | V195: 0.357 | W195: 1.112 | X195: 0.131 | AA195: =IF("na"=F195,"",F195/F194) -> 1.40692911076 | AB195: =IF("na"=J195,"",J195/J194) -> 1.064 | AC195: =IF("na"=M195,"",M195/M194) -> 2.237 | AD195: =IF("na"=Q195,"",Q195/Q194) -> 1.396 | AE195: =IF("na"=T195,"",T195/T194) -> 3.701 | AF195: =IF("na"=X195,"",X195/X194) -> 2.043 | AG195: =ROW() -> 195.000 | AH195: =SUM(IF(INDIRECT(ADDRESS(ROW(),AH$60))>INDIRECT(ADDRESS($AG195,AH$60)),1,0), IF(INDIRECT(ADDRESS(ROW(),AH$60))>INDIRECT(ADDRESS($AG195+1,AH$60)),1,0), IF(INDIRECT(ADDRESS(ROW(),AH$60))>INDIRECT(ADDRESS($AG195+2,AH$60)),1,0), IF(INDIRECT(ADDRESS(ROW(),AH$60))>INDIRECT(ADDRESS($AG195+3,AH$60)),1,0), IF(INDIRECT(ADDRESS(ROW(),AH$60))>INDIRECT(ADDRESS($AG195+4,AH$60)),1,0), IF(INDIRECT(ADDRESS(ROW(),AH$60))>INDIRECT(ADDRESS($AG195+5,AH$60)),1,0), IF(INDIRECT(ADDRESS(ROW(),AH$60))>INDIRECT(ADDRESS($AG195+6,AH$60)),1,0), IF(INDIRECT(ADDRESS(ROW(),AH$60))>INDIRECT(ADDRESS($AG195+7,AH$60)),1,0))+1 -> 2 | AI195: 5 | AJ195: 2 | AK195: 4 | AL195: 2 | AM195: 4 | AO195: =IF("na"=F195,"",SQRT(F195)/SQRT(F194)) -> 1.186 | AP195: =IF("na"=J195,"",SQRT(J195)/SQRT(J194)) -> 1.032 | AQ195: =IF("na"=M195,"",SQRT(M195)/SQRT(M194)) -> 1.495 | AR195: =IF("na"=Q195,"",SQRT(Q195)/SQRT(Q194)) -> 1.182 | AS195: =IF("na"=T195,"",SQRT(T195)/SQRT(T194)) -> 1.924 | AT195: =IF("na"=X195,"",SQRT(X195)/SQRT(X194)) -> 1.429
A196: Grid | B196: 0.272 | C196: 1.053 | D196: 0.273 | E196: 0.046 | F196: 0.002 | G196: 1.300 | H196: 0.968 | I196: 1.016 | J196: 0.939 | K196: 0.274 | L196: 0.042 | M196: 0.002 | N196: 1.197 | O196: 0.701 | P196: 1.014 | Q196: 0.492 | R196: 0.272 | S196: 0.039 | T196: 0.002 | U196: 1.159 | V196: 0.630 | W196: 1.013 | X196: 0.399 | AA196: =IF("na"=F196,"",F196/F194) -> 1.70706588737 | AB196: =IF("na"=J196,"",J196/J194) -> 1.183 | AC196: =IF("na"=M196,"",M196/M194) -> 2.851 | AD196: =IF("na"=Q196,"",Q196/Q194) -> 2.958 | AE196: =IF("na"=T196,"",T196/T194) -> 4.472 | AF196: =IF("na"=X196,"",X196/X194) -> 6.232 | AG196: =AG195 -> 195.000 | AH196: 4 | AI196: 8 | AJ196: 3 | AK196: 6 | AL196: 3 | AM196: 8 | AO196: =IF("na"=F196,"",SQRT(F196)/SQRT(F194)) -> 1.307 | AP196: =IF("na"=J196,"",SQRT(J196)/SQRT(J194)) -> 1.087 | AQ196: =IF("na"=M196,"",SQRT(M196)/SQRT(M194)) -> 1.688 | AR196: =IF("na"=Q196,"",SQRT(Q196)/SQRT(Q194)) -> 1.720 | AS196: =IF("na"=T196,"",SQRT(T196)/SQRT(T194)) -> 2.115 | AT196: =IF("na"=X196,"",SQRT(X196)/SQRT(X194)) -> 2.496
A197: Peri | B197: 0.272 | C197: 1.053 | D197: 0.298 | E197: 0.034 | F197: 0.002 | G197: 1.203 | H197: 0.597 | I197: 1.033 | J197: 0.356 | K197: 0.315 | L197: 0.028 | M197: 0.003 | N197: 1.210 | O197: 0.476 | P197: 1.095 | Q197: 0.229 | R197: 0.312 | S197: 0.024 | T197: 0.002 | U197: 1.148 | V197: 0.354 | W197: 1.081 | X197: 0.126 | AA197: =IF("na"=F197,"",F197/F194) -> 1.49414390089 | AB197: =IF("na"=J197,"",J197/J194) -> 0.449 | AC197: =IF("na"=M197,"",M197/M194) -> 4.299 | AD197: =IF("na"=Q197,"",Q197/Q194) -> 1.374 | AE197: =IF("na"=T197,"",T197/T194) -> 6.391 | AF197: =IF("na"=X197,"",X197/X194) -> 1.966 | AG197: 195.000 | AH197: 3 | AI197: 1 | AJ197: 4 | AK197: 3 | AL197: 4 | AM197: 3 | AO197: =IF("na"=F197,"",SQRT(F197)/SQRT(F194)) -> 1.222 | AP197: =IF("na"=J197,"",SQRT(J197)/SQRT(J194)) -> 0.670 | AQ197: =IF("na"=M197,"",SQRT(M197)/SQRT(M194)) -> 2.073 | AR197: =IF("na"=Q197,"",SQRT(Q197)/SQRT(Q194)) -> 1.172 | AS197: =IF("na"=T197,"",SQRT(T197)/SQRT(T194)) -> 2.528 | AT197: =IF("na"=X197,"",SQRT(X197)/SQRT(X194)) -> 1.402
A198: Quad | B198: 0.272 | C198: 1.053 | D198: 0.335 | E198: 0.038 | F198: 0.005 | G198: 1.302 | H198: 0.606 | I198: 1.154 | J198: 0.378 | K198: 0.333 | L198: 0.029 | M198: 0.005 | N198: 1.241 | O198: 0.410 | P198: 1.158 | Q198: 0.179 | R198: 0.334 | S198: 0.024 | T198: 0.004 | U198: 1.217 | V198: 0.296 | W198: 1.164 | X198: 0.100 | AA198: =IF("na"=F198,"",F198/F194) -> 4.45209219969 | AB198: =IF("na"=J198,"",J198/J194) -> 0.476 | AC198: =IF("na"=M198,"",M198/M194) -> 7.536 | AD198: =IF("na"=Q198,"",Q198/Q194) -> 1.076 | AE198: =IF("na"=T198,"",T198/T194) -> 12.943 | AF198: =IF("na"=X198,"",X198/X194) -> 1.560 | AG198: 195.000 | AH198: 5 | AI198: 2 | AJ198: 5 | AK198: 2 | AL198: 5 | AM198: 2 | AO198: =IF("na"=F198,"",SQRT(F198)/SQRT(F194)) -> 2.110 | AP198: =IF("na"=J198,"",SQRT(J198)/SQRT(J194)) -> 0.690 | AQ198: =IF("na"=M198,"",SQRT(M198)/SQRT(M194)) -> 2.745 | AR198: =IF("na"=Q198,"",SQRT(Q198)/SQRT(Q194)) -> 1.038 | AS198: =IF("na"=T198,"",SQRT(T198)/SQRT(T194)) -> 3.598 | AT198: =IF("na"=X198,"",SQRT(X198)/SQRT(X194)) -> 1.249
A199: Square | B199: 0.272 | C199: 1.053 | D199: 0.271 | E199: 0.036 | F199: 0.0013 | G199: 1.319 | H199: 0.7954 | I199: 1.1050 | J199: 0.635 | K199: 0.271 | L199: 0.025 | M199: 0.0006 | N199: 1.199 | O199: 0.4138 | P199: 1.1030 | Q199: 0.174 | R199: 0.269 | S199: 0.019 | T199: 0.0004 | U199: 1.185 | V199: 0.2644 | W199: 1.1397 | X199: 0.077 | AA199: =IF("na"=F199,"",F199/F194) -> 1.03765369701 | AB199: =IF("na"=J199,"",J199/J194) -> 0.800 | AC199: =IF("na"=M199,"",M199/M194) -> 1.056 | AD199: =IF("na"=Q199,"",Q199/Q194) -> 1.043 | AE199: =IF("na"=T199,"",T199/T194) -> 1.060 | AF199: =IF("na"=X199,"",X199/X194) -> 1.210 | AG199: 195.000 | AH199: 1 | AI199: 3 | AJ199: 1 | AK199: 1 | AL199: 1 | AM199: 1 | AO199: =IF("na"=F199,"",SQRT(F199)/SQRT(F194)) -> 1.019 | AP199: =IF("na"=J199,"",SQRT(J199)/SQRT(J194)) -> 0.895 | AQ199: =IF("na"=M199,"",SQRT(M199)/SQRT(M194)) -> 1.028 | AR199: =IF("na"=Q199,"",SQRT(Q199)/SQRT(Q194)) -> 1.021 | AS199: =IF("na"=T199,"",SQRT(T199)/SQRT(T194)) -> 1.029 | AT199: =IF("na"=X199,"",SQRT(X199)/SQRT(X194)) -> 1.100
A200: OldEPI | B200: 0.272 | C200: 1.053 | D200: 0.336 | E200: 0.048 | F200: 0.0063 | G200: 1.431 | H200: 0.9486 | I200: 1.1643 | J200: 0.912 | K200: 0.336 | L200: 0.042 | M200: 0.0059 | N200: 1.343 | O200: 0.7077 | P200: 1.1651 | Q200: 0.513 | R200: 0.335 | S200: 0.039 | T200: 0.0055 | U200: 1.288 | V200: 0.5148 | W200: 1.1671 | X200: 0.278 | AA200: =IF("na"=F200,"",F200/F194) -> 5.14315722146 | AB200: =IF("na"=J200,"",J200/J194) -> 1.149 | AC200: =IF("na"=M200,"",M200/M194) -> 9.705 | AD200: =IF("na"=Q200,"",Q200/Q194) -> 3.085 | AE200: =IF("na"=T200,"",T200/T194) -> 16.115 | AF200: =IF("na"=X200,"",X200/X194) -> 4.344 | AG200: 195.000 | AH200: 8 | AI200: 7 | AJ200: 8 | AK200: 7 | AL200: 8 | AM200: 7 | AO200: =IF("na"=F200,"",SQRT(F200)/SQRT(F194)) -> 2.268 | AP200: =IF("na"=J200,"",SQRT(J200)/SQRT(J194)) -> 1.072 | AQ200: =IF("na"=M200,"",SQRT(M200)/SQRT(M194)) -> 3.115 | AR200: =IF("na"=Q200,"",SQRT(Q200)/SQRT(Q194)) -> 1.756 | AS200: =IF("na"=T200,"",SQRT(T200)/SQRT(T194)) -> 4.014 | AT200: =IF("na"=X200,"",SQRT(X200)/SQRT(X194)) -> 2.084
A201: EPI3 | B201: 0.272 | C201: 1.053 | D201: 0.336 | E201: 0.047 | F201: 0.0062 | G201: 1.430 | H201: 0.9308 | I201: 1.1734 | J201: 0.881 | K201: 0.335 | L201: 0.042 | M201: 0.0057 | N201: 1.310 | O201: 0.7659 | P201: 1.1636 | Q201: 0.599 | R201: 0.332 | S201: 0.038 | T201: 0.0051 | U201: 1.261 | V201: 0.3898 | W201: 1.1831 | X201: 0.169 | AA201: =IF("na"=F201,"",F201/F194) -> 5.05833070145 | AB201: =IF("na"=J201,"",J201/J194) -> 1.109 | AC201: =IF("na"=M201,"",M201/M194) -> 9.390 | AD201: =IF("na"=Q201,"",Q201/Q194) -> 3.598 | AE201: =IF("na"=T201,"",T201/T194) -> 14.992 | AF201: =IF("na"=X201,"",X201/X194) -> 2.638 | AG201: 195.000 | AH201: 6 | AI201: 6 | AJ201: 7 | AK201: 8 | AL201: 7 | AM201: 6 | AO201: =IF("na"=F201,"",SQRT(F201)/SQRT(F194)) -> 2.249 | AP201: =IF("na"=J201,"",SQRT(J201)/SQRT(J194)) -> 1.053 | AQ201: =IF("na"=M201,"",SQRT(M201)/SQRT(M194)) -> 3.064 | AR201: =IF("na"=Q201,"",SQRT(Q201)/SQRT(Q194)) -> 1.897 | AS201: =IF("na"=T201,"",SQRT(T201)/SQRT(T194)) -> 3.872 | AT201: =IF("na"=X201,"",SQRT(X201)/SQRT(X194)) -> 1.624
A202: EPI5 | B202: 0.272 | C202: 1.053 | D202: 0.336 | E202: 0.047 | F202: 0.0063 | G202: 1.382 | H202: 0.8010 | I202: 1.1521 | J202: 0.651 | K202: 0.335 | L202: 0.041 | M202: 0.0056 | N202: 1.296 | O202: 0.5615 | P202: 1.1629 | Q202: 0.327 | R202: 0.331 | S202: 0.037 | T202: 0.0048 | U202: 1.261 | V202: 0.3534 | W202: 1.1956 | X202: 0.145 | AA202: =IF("na"=F202,"",F202/F194) -> 5.09757368131 | AB202: =IF("na"=J202,"",J202/J194) -> 0.820 | AC202: =IF("na"=M202,"",M202/M194) -> 9.301 | AD202: =IF("na"=Q202,"",Q202/Q194) -> 1.967 | AE202: =IF("na"=T202,"",T202/T194) -> 14.153 | AF202: =IF("na"=X202,"",X202/X194) -> 2.269 | AG202: 195.000 | AH202: 7 | AI202: 4 | AJ202: 6 | AK202: 5 | AL202: 6 | AM202: 5 | AO202: =IF("na"=F202,"",SQRT(F202)/SQRT(F194)) -> 2.258 | AP202: =IF("na"=J202,"",SQRT(J202)/SQRT(J194)) -> 0.906 | AQ202: =IF("na"=M202,"",SQRT(M202)/SQRT(M194)) -> 3.050 | AR202: =IF("na"=Q202,"",SQRT(Q202)/SQRT(Q194)) -> 1.402 | AS202: =IF("na"=T202,"",SQRT(T202)/SQRT(T194)) -> 3.762 | AT202: =IF("na"=X202,"",SQRT(X202)/SQRT(X194)) -> 1.506
D204: population 12
B205: true | C205: true | D205: 7 | K205: 15 | R205: 30
B206: mean | C206: rr | D206: mean | E206: stdev | F206: mse | G206: mrr | H206: srr | I206: prr | J206: mse_rr | K206: mean | L206: stdev | M206: mse | N206: mrr | O206: srr | P206: prr | Q206: mse_rr | R206: mean | S206: stdev | T206: mse | U206: mrr | V206: srr | W206: prr | X206: mse_rr
A207: Random | B207: 0.201 | C207: 1.089 | D207: 0.200 | E207: 0.026 | F207: 0.001 | G207: 1.181 | H207: 0.358 | I207: 1.116 | J207: 0.129 | K207: 0.199 | L207: 0.018 | M207: 0.000 | N207: 1.165 | O207: 0.252 | P207: 1.130 | Q207: 0.065 | R207: 0.200 | S207: 0.013 | T207: 0.000 | U207: 1.141 | V207: 0.173 | W207: 1.124 | X207: 0.031
A208: NewEPI | B208: 0.201 | C208: 1.089 | D208: 0.201 | E208: 0.028 | F208: 0.001 | G208: 1.177 | H208: 0.390 | I208: 1.101 | J208: 0.152 | K208: 0.202 | L208: 0.021 | M208: 0.000 | N208: 1.124 | O208: 0.262 | P208: 1.087 | Q208: 0.068 | R208: 0.202 | S208: 0.017 | T208: 0.000 | U208: 1.120 | V208: 0.195 | W208: 1.100 | X208: 0.038 | AA208: =IF("na"=F208,"",F208/F207) -> 1.20888903629 | AB208: =IF("na"=J208,"",J208/J207) -> 1.186 | AC208: =IF("na"=M208,"",M208/M207) -> 1.281 | AD208: =IF("na"=Q208,"",Q208/Q207) -> 1.050 | AE208: =IF("na"=T208,"",T208/T207) -> 1.600 | AF208: =IF("na"=X208,"",X208/X207) -> 1.217 | AG208: =ROW() -> 208.000 | AH208: =SUM(IF(INDIRECT(ADDRESS(ROW(),AH$60))>INDIRECT(ADDRESS($AG208,AH$60)),1,0), IF(INDIRECT(ADDRESS(ROW(),AH$60))>INDIRECT(ADDRESS($AG208+1,AH$60)),1,0), IF(INDIRECT(ADDRESS(ROW(),AH$60))>INDIRECT(ADDRESS($AG208+2,AH$60)),1,0), IF(INDIRECT(ADDRESS(ROW(),AH$60))>INDIRECT(ADDRESS($AG208+3,AH$60)),1,0), IF(INDIRECT(ADDRESS(ROW(),AH$60))>INDIRECT(ADDRESS($AG208+4,AH$60)),1,0), IF(INDIRECT(ADDRESS(ROW(),AH$60))>INDIRECT(ADDRESS($AG208+5,AH$60)),1,0), IF(INDIRECT(ADDRESS(ROW(),AH$60))>INDIRECT(ADDRESS($AG208+6,AH$60)),1,0), IF(INDIRECT(ADDRESS(ROW(),AH$60))>INDIRECT(ADDRESS($AG208+7,AH$60)),1,0))+1 -> 3 | AI208: 4 | AJ208: 2 | AK208: 5 | AL208: 4 | AM208: 7 | AO208: =IF("na"=F208,"",SQRT(F208)/SQRT(F207)) -> 1.099 | AP208: =IF("na"=J208,"",SQRT(J208)/SQRT(J207)) -> 1.089 | AQ208: =IF("na"=M208,"",SQRT(M208)/SQRT(M207)) -> 1.132 | AR208: =IF("na"=Q208,"",SQRT(Q208)/SQRT(Q207)) -> 1.025 | AS208: =IF("na"=T208,"",SQRT(T208)/SQRT(T207)) -> 1.265 | AT208: =IF("na"=X208,"",SQRT(X208)/SQRT(X207)) -> 1.103
A209: Grid | B209: 0.201 | C209: 1.089 | D209: 0.209 | E209: 0.028 | F209: 0.001 | G209: 1.207 | H209: 0.452 | I209: 1.119 | J209: 0.205 | K209: 0.209 | L209: 0.021 | M209: 0.000 | N209: 1.155 | O209: 0.274 | P209: 1.117 | Q209: 0.076 | R209: 0.209 | S209: 0.017 | T209: 0.000 | U209: 1.138 | V209: 0.194 | W209: 1.119 | X209: 0.038 | AA209: =IF("na"=F209,"",F209/F207) -> 1.25854818236 | AB209: =IF("na"=J209,"",J209/J207) -> 1.595 | AC209: =IF("na"=M209,"",M209/M207) -> 1.483 | AD209: =IF("na"=Q209,"",Q209/Q207) -> 1.167 | AE209: =IF("na"=T209,"",T209/T207) -> 1.880 | AF209: =IF("na"=X209,"",X209/X207) -> 1.231 | AG209: =AG208 -> 208.000 | AH209: 4 | AI209: 7 | AJ209: 6 | AK209: 8 | AL209: 8 | AM209: 8 | AO209: =IF("na"=F209,"",SQRT(F209)/SQRT(F207)) -> 1.122 | AP209: =IF("na"=J209,"",SQRT(J209)/SQRT(J207)) -> 1.263 | AQ209: =IF("na"=M209,"",SQRT(M209)/SQRT(M207)) -> 1.218 | AR209: =IF("na"=Q209,"",SQRT(Q209)/SQRT(Q207)) -> 1.080 | AS209: =IF("na"=T209,"",SQRT(T209)/SQRT(T207)) -> 1.371 | AT209: =IF("na"=X209,"",SQRT(X209)/SQRT(X207)) -> 1.109
A210: Peri | B210: 0.201 | C210: 1.089 | D210: 0.213 | E210: 0.027 | F210: 0.001 | G210: 1.103 | H210: 0.350 | I210: 1.037 | J210: 0.125 | K210: 0.213 | L210: 0.019 | M210: 0.000 | N210: 1.067 | O210: 0.232 | P210: 1.034 | Q210: 0.057 | R210: 0.209 | S210: 0.015 | T210: 0.000 | U210: 1.056 | V210: 0.168 | W210: 1.038 | X210: 0.031 | AA210: =IF("na"=F210,"",F210/F207) -> 1.32012696470 | AB210: =IF("na"=J210,"",J210/J207) -> 0.972 | AC210: =IF("na"=M210,"",M210/M207) -> 1.501 | AD210: =IF("na"=Q210,"",Q210/Q207) -> 0.870 | AE210: =IF("na"=T210,"",T210/T207) -> 1.581 | AF210: =IF("na"=X210,"",X210/X207) -> 0.990 | AG210: 208.000 | AH210: 8 | AI210: 1 | AJ210: 7 | AK210: 1 | AL210: 3 | AM210: 2 | AO210: =IF("na"=F210,"",SQRT(F210)/SQRT(F207)) -> 1.149 | AP210: =IF("na"=J210,"",SQRT(J210)/SQRT(J207)) -> 0.986 | AQ210: =IF("na"=M210,"",SQRT(M210)/SQRT(M207)) -> 1.225 | AR210: =IF("na"=Q210,"",SQRT(Q210)/SQRT(Q207)) -> 0.933 | AS210: =IF("na"=T210,"",SQRT(T210)/SQRT(T207)) -> 1.257 | AT210: =IF("na"=X210,"",SQRT(X210)/SQRT(X207)) -> 0.995
A211: Quad | B211: 0.201 | C211: 1.089 | D211: 0.213 | E211: 0.027 | F211: 0.001 | G211: 1.136 | H211: 0.376 | I211: 1.057 | J211: 0.143 | K211: 0.211 | L211: 0.019 | M211: 0.000 | N211: 1.085 | O211: 0.235 | P211: 1.049 | Q211: 0.057 | R211: 0.212 | S211: 0.014 | T211: 0.000 | U211: 1.068 | V211: 0.155 | W211: 1.051 | X211: 0.025 | AA211: =IF("na"=F211,"",F211/F207) -> 1.30824320780 | AB211: =IF("na"=J211,"",J211/J207) -> 1.110 | AC211: =IF("na"=M211,"",M211/M207) -> 1.350 | AD211: =IF("na"=Q211,"",Q211/Q207) -> 0.871 | AE211: =IF("na"=T211,"",T211/T207) -> 1.714 | AF211: =IF("na"=X211,"",X211/X207) -> 0.815 | AG211: 208.000 | AH211: 7 | AI211: 3 | AJ211: 3 | AK211: 2 | AL211: 6 | AM211: 1 | AO211: =IF("na"=F211,"",SQRT(F211)/SQRT(F207)) -> 1.144 | AP211: =IF("na"=J211,"",SQRT(J211)/SQRT(J207)) -> 1.054 | AQ211: =IF("na"=M211,"",SQRT(M211)/SQRT(M207)) -> 1.162 | AR211: =IF("na"=Q211,"",SQRT(Q211)/SQRT(Q207)) -> 0.933 | AS211: =IF("na"=T211,"",SQRT(T211)/SQRT(T207)) -> 1.309 | AT211: =IF("na"=X211,"",SQRT(X211)/SQRT(X207)) -> 0.903
A212: Square | B212: 0.201 | C212: 1.089 | D212: 0.205 | E212: 0.026 | F212: 0.0007 | G212: 1.231 | H212: 0.4115 | I212: 1.1554 | J212: 0.174 | K212: 0.205 | L212: 0.019 | M212: 0.0004 | N212: 1.199 | O212: 0.2545 | P212: 1.1637 | Q212: 0.070 | R212: 0.205 | S212: 0.014 | T212: 0.0002 | U212: 1.174 | V212: 0.1712 | W212: 1.1571 | X212: 0.034 | AA212: =IF("na"=F212,"",F212/F207) -> 1.00200562613 | AB212: =IF("na"=J212,"",J212/J207) -> 1.352 | AC212: =IF("na"=M212,"",M212/M207) -> 1.124 | AD212: =IF("na"=Q212,"",Q212/Q207) -> 1.080 | AE212: =IF("na"=T212,"",T212/T207) -> 1.140 | AF212: =IF("na"=X212,"",X212/X207) -> 1.090 | AG212: 208.000 | AH212: 1 | AI212: 6 | AJ212: 1 | AK212: 6 | AL212: 1 | AM212: 4 | AO212: =IF("na"=F212,"",SQRT(F212)/SQRT(F207)) -> 1.001 | AP212: =IF("na"=J212,"",SQRT(J212)/SQRT(J207)) -> 1.163 | AQ212: =IF("na"=M212,"",SQRT(M212)/SQRT(M207)) -> 1.060 | AR212: =IF("na"=Q212,"",SQRT(Q212)/SQRT(Q207)) -> 1.039 | AS212: =IF("na"=T212,"",SQRT(T212)/SQRT(T207)) -> 1.068 | AT212: =IF("na"=X212,"",SQRT(X212)/SQRT(X207)) -> 1.044
A213: OldEPI | B213: 0.201 | C213: 1.089 | D213: 0.211 | E213: 0.028 | F213: 0.0009 | G213: 1.116 | H213: 0.3628 | I213: 1.0437 | J213: 0.134 | K213: 0.210 | L213: 0.020 | M213: 0.0005 | N213: 1.086 | O213: 0.2434 | P213: 1.0514 | Q213: 0.061 | R213: 0.210 | S213: 0.016 | T213: 0.0003 | U213: 1.079 | V213: 0.1861 | W213: 1.0578 | X213: 0.036 | AA213: =IF("na"=F213,"",F213/F207) -> 1.30043839152 | AB213: =IF("na"=J213,"",J213/J207) -> 1.040 | AC213: =IF("na"=M213,"",M213/M207) -> 1.478 | AD213: =IF("na"=Q213,"",Q213/Q207) -> 0.930 | AE213: =IF("na"=T213,"",T213/T207) -> 1.719 | AF213: =IF("na"=X213,"",X213/X207) -> 1.141 | AG213: 208.000 | AH213: 6 | AI213: 2 | AJ213: 5 | AK213: 3 | AL213: 7 | AM213: 5 | AO213: =IF("na"=F213,"",SQRT(F213)/SQRT(F207)) -> 1.140 | AP213: =IF("na"=J213,"",SQRT(J213)/SQRT(J207)) -> 1.020 | AQ213: =IF("na"=M213,"",SQRT(M213)/SQRT(M207)) -> 1.216 | AR213: =IF("na"=Q213,"",SQRT(Q213)/SQRT(Q207)) -> 0.964 | AS213: =IF("na"=T213,"",SQRT(T213)/SQRT(T207)) -> 1.311 | AT213: =IF("na"=X213,"",SQRT(X213)/SQRT(X207)) -> 1.068
A214: EPI3 | B214: 0.201 | C214: 1.089 | D214: 0.210 | E214: 0.028 | F214: 0.0009 | G214: 1.139 | H214: 0.3939 | I214: 1.0560 | J214: 0.156 | K214: 0.210 | L214: 0.021 | M214: 0.0005 | N214: 1.100 | O214: 0.2492 | P214: 1.0609 | Q214: 0.063 | R214: 0.208 | S214: 0.016 | T214: 0.0003 | U214: 1.105 | V214: 0.1915 | W214: 1.0821 | X214: 0.037 | AA214: =IF("na"=F214,"",F214/F207) -> 1.29209297277 | AB214: =IF("na"=J214,"",J214/J207) -> 1.215 | AC214: =IF("na"=M214,"",M214/M207) -> 1.504 | AD214: =IF("na"=Q214,"",Q214/Q207) -> 0.964 | AE214: =IF("na"=T214,"",T214/T207) -> 1.690 | AF214: =IF("na"=X214,"",X214/X207) -> 1.177 | AG214: 208.000 | AH214: 5 | AI214: 5 | AJ214: 8 | AK214: 4 | AL214: 5 | AM214: 6 | AO214: =IF("na"=F214,"",SQRT(F214)/SQRT(F207)) -> 1.137 | AP214: =IF("na"=J214,"",SQRT(J214)/SQRT(J207)) -> 1.102 | AQ214: =IF("na"=M214,"",SQRT(M214)/SQRT(M207)) -> 1.226 | AR214: =IF("na"=Q214,"",SQRT(Q214)/SQRT(Q207)) -> 0.982 | AS214: =IF("na"=T214,"",SQRT(T214)/SQRT(T207)) -> 1.300 | AT214: =IF("na"=X214,"",SQRT(X214)/SQRT(X207)) -> 1.085
A215: EPI5 | B215: 0.201 | C215: 1.089 | D215: 0.208 | E215: 0.026 | F215: 0.0007 | G215: 1.173 | H215: 0.5273 | I215: 1.0735 | J215: 0.278 | K215: 0.208 | L215: 0.020 | M215: 0.0004 | N215: 1.120 | O215: 0.2668 | P215: 1.0793 | Q215: 0.071 | R215: 0.207 | S215: 0.015 | T215: 0.0003 | U215: 1.113 | V215: 0.1775 | W215: 1.0950 | X215: 0.032 | AA215: =IF("na"=F215,"",F215/F207) -> 1.06809661498 | AB215: =IF("na"=J215,"",J215/J207) -> 2.165 | AC215: =IF("na"=M215,"",M215/M207) -> 1.352 | AD215: =IF("na"=Q215,"",Q215/Q207) -> 1.092 | AE215: =IF("na"=T215,"",T215/T207) -> 1.446 | AF215: =IF("na"=X215,"",X215/X207) -> 1.011 | AG215: 208.000 | AH215: 2 | AI215: 8 | AJ215: 4 | AK215: 7 | AL215: 2 | AM215: 3 | AO215: =IF("na"=F215,"",SQRT(F215)/SQRT(F207)) -> 1.033 | AP215: =IF("na"=J215,"",SQRT(J215)/SQRT(J207)) -> 1.471 | AQ215: =IF("na"=M215,"",SQRT(M215)/SQRT(M207)) -> 1.163 | AR215: =IF("na"=Q215,"",SQRT(Q215)/SQRT(Q207)) -> 1.045 | AS215: =IF("na"=T215,"",SQRT(T215)/SQRT(T207)) -> 1.202 | AT215: =IF("na"=X215,"",SQRT(X215)/SQRT(X207)) -> 1.005
... 492 more rows

Sheet RR=1.5
B1: Means of Ratios | J1: Means of Ratios of Sqrts
B2: Prevalence | E2: RR | J2: Prevalence | M2: RR
B3: n=7 | C3: n=15 | D3: n=30 | E3: n=7 | F3: n=15 | G3: n=30 | J3: n=7 | K3: n=15 | L3: n=30 | M3: n=7 | N3: n=15 | O3: n=30
A4: NewEPI | B4: =AVERAGE(AA65,AA78,AA91,AA104,AA117,AA130,AA143,AA156,AA169,AA182,AA195,AA208,AA221,AA234,AA247,AA260,AA273,AA286,AA299,AA312,AA325,AA338,AA351,AA364,AA377,AA390,AA403,AA416,AA429,AA442,AA455,AA468,AA481,AA494,AA507,AA520,AA533,AA546,AA559,AA572,AA585,AA598,AA611,AA624,AA637,AA650,AA663,AA676,AA689,AA702,AA715,AA728,AA741) -> 1.468 | C4: =AVERAGE(AC65,AC78,AC91,AC104,AC117,AC130,AC143,AC156,AC169,AC182,AC195,AC208,AC221,AC234,AC247,AC260,AC273,AC286,AC299,AC312,AC325,AC338,AC351,AC364,AC377,AC390,AC403,AC416,AC429,AC442,AC455,AC468,AC481,AC494,AC507,AC520,AC533,AC546,AC559,AC572,AC585,AC598,AC611,AC624,AC637,AC650,AC663,AC676,AC689,AC702,AC715,AC728,AC741) -> 2.170 | D4: =AVERAGE(AE65,AE78,AE91,AE104,AE117,AE130,AE143,AE156,AE169,AE182,AE195,AE208,AE221,AE234,AE247,AE260,AE273,AE286,AE299,AE312,AE325,AE338,AE351,AE364,AE377,AE390,AE403,AE416,AE429,AE442,AE455,AE468,AE481,AE494,AE507,AE520,AE533,AE546,AE559,AE572,AE585,AE598,AE611,AE624,AE637,AE650,AE663,AE676,AE689,AE702,AE715,AE728,AE741) -> 3.674 | E4: =AVERAGE(AB65,AB78,AB91,AB104,AB117,AB130,AB143,AB156,AB169,AB182,AB195,AB208,AB221,AB234,AB247,AB260,AB273,AB286,AB299,AB312,AB325,AB338,AB351,AB364,AB377,AB390,AB403,AB416,AB429,AB442,AB455,AB468,AB481,AB494,AB507,AB520,AB533,AB546,AB559,AB572,AB585,AB598,AB611,AB624,AB637,AB650,AB663,AB676,AB689,AB702,AB715,AB728,AB741) -> 1.226 | F4: =AVERAGE(AD65,AD78,AD91,AD104,AD117,AD130,AD143,AD156,AD169,AD182,AD195,AD208,AD221,AD234,AD247,AD260,AD273,AD286,AD299,AD312,AD325,AD338,AD351,AD364,AD377,AD390,AD403,AD416,AD429,AD442,AD455,AD468,AD481,AD494,AD507,AD520,AD533,AD546,AD559,AD572,AD585,AD598,AD611,AD624,AD637,AD650,AD663,AD676,AD689,AD702,AD715,AD728,AD741) -> 1.628 | G4: =AVERAGE(AF65,AF78,AF91,AF104,AF117,AF130,AF143,AF156,AF169,AF182,AF195,AF208,AF221,AF234,AF247,AF260,AF273,AF286,AF299,AF312,AF325,AF338,AF351,AF364,AF377,AF390,AF403,AF416,AF429,AF442,AF455,AF468,AF481,AF494,AF507,AF520,AF533,AF546,AF559,AF572,AF585,AF598,AF611,AF624,AF637,AF650,AF663,AF676,AF689,AF702,AF715,AF728,AF741) -> 2.186 | I4: enum | J4: =AVERAGE(AO65,AO78,AO91,AO104,AO117,AO130,AO143,AO156,AO169,AO182,AO195,AO208,AO221,AO234,AO247,AO260,AO273,AO286,AO299,AO312,AO325,AO338,AO351,AO364,AO377,AO390,AO403,AO416,AO429,AO442,AO455,AO468,AO481,AO494,AO507,AO520,AO533,AO546,AO559,AO572,AO585,AO598,AO611,AO624,AO637,AO650,AO663,AO676,AO689,AO702) -> 1.219 | K4: =AVERAGE(AQ65,AQ78,AQ91,AQ104,AQ117,AQ130,AQ143,AQ156,AQ169,AQ182,AQ195,AQ208,AQ221,AQ234,AQ247,AQ260,AQ273,AQ286,AQ299,AQ312,AQ325,AQ338,AQ351,AQ364,AQ377,AQ390,AQ403,AQ416,AQ429,AQ442,AQ455,AQ468,AQ481,AQ494,AQ507,AQ520,AQ533,AQ546,AQ559,AQ572,AQ585,AQ598,AQ611,AQ624,AQ637,AQ650,AQ663,AQ676,AQ689,AQ702) -> 1.479 | L4: =AVERAGE(AS65,AS78,AS91,AS104,AS117,AS130,AS143,AS156,AS169,AS182,AS195,AS208,AS221,AS234,AS247,AS260,AS273,AS286,AS299,AS312,AS325,AS338,AS351,AS364,AS377,AS390,AS403,AS416,AS429,AS442,AS455,AS468,AS481,AS494,AS507,AS520,AS533,AS546,AS559,AS572,AS585,AS598,AS611,AS624,AS637,AS650,AS663,AS676,AS689,AS702) -> 1.809 | M4: =AVERAGE(AP65,AP78,AP91,AP104,AP117,AP130,AP143,AP156,AP169,AP182,AP195,AP208,AP221,AP234,AP247,AP260,AP273,AP286,AP299,AP312,AP325,AP338,AP351,AP364,AP377,AP390,AP403,AP416,AP429,AP442,AP455,AP468,AP481,AP494,AP507,AP520,AP533,AP546,AP559,AP572,AP585,AP598,AP611,AP624,AP637,AP650,AP663,AP676,AP689,AP702) -> 1.092 | N4: =AVERAGE(AR65,AR78,AR91,AR104,AR117,AR130,AR143,AR156,AR169,AR182,AR195,AR208,AR221,AR234,AR247,AR260,AR273,AR286,AR299,AR312,AR325,AR338,AR351,AR364,AR377,AR390,AR403,AR416,AR429,AR442,AR455,AR468,AR481,AR494,AR507,AR520,AR533,AR546,AR559,AR572,AR585,AR598,AR611,AR624,AR637,AR650,AR663,AR676,AR689,AR702) -> 1.272 | O4: =AVERAGE(AT65,AT78,AT91,AT104,AT117,AT130,AT143,AT156,AT169,AT182,AT195,AT208,AT221,AT234,AT247,AT260,AT273,AT286,AT299,AT312,AT325,AT338,AT351,AT364,AT377,AT390,AT403,AT416,AT429,AT442,AT455,AT468,AT481,AT494,AT507,AT520,AT533,AT546,AT559,AT572,AT585,AT598,AT611,AT624,AT637,AT650,AT663,AT676,AT689,AT702) -> 1.395
A5: Grid | B5: 1.719 | C5: 2.618 | D5: 4.220 | E5: 1.439 | F5: 2.141 | G5: 2.826 | I5: grid_epi | J5: 1.321 | K5: 1.626 | L5: 2.057 | M5: 1.171 | N5: 1.448 | O5: 1.658
A6: Peri | B6: 1.556 | C6: 2.210 | D6: 3.442 | E6: 1.110 | F6: 1.315 | G6: 1.716 | I6: peri_epi | J6: 1.232 | K6: 1.464 | L6: 1.812 | M6: 1.038 | N6: 1.137 | O6: 1.299
A7: Quad | B7: 1.683 | C7: 2.465 | D7: 3.933 | E7: 0.990 | F7: 1.082 | G7: 1.398 | I7: qtr_epi | J7: 1.267 | K7: 1.502 | L7: 1.862 | M7: 0.977 | N7: 1.029 | O7: 1.168
A8: Square | B8: 1.041 | C8: 1.083 | D8: 1.170 | E8: 0.970 | F8: 0.987 | G8: 1.013 | I8: square_gps | J8: 1.022 | K8: 1.038 | L8: 1.081 | M8: 0.969 | N8: 0.993 | O8: 1.006
A9: OldEPI | B9: 2.145 | C9: 3.463 | D9: 5.736 | E9: 1.359 | F9: 1.732 | G9: 2.538 | I9: strip_epi-s1 | J9: 1.449 | K9: 1.815 | L9: 2.312 | M9: 1.141 | N9: 1.299 | O9: 1.562
A10: EPI3 | B10: 2.063 | C10: 3.128 | D10: 4.834 | E10: 1.273 | F10: 1.606 | G10: 2.172 | I10: strip_epi-s3 | J10: 1.417 | K10: 1.724 | L10: 2.115 | M10: 1.107 | N10: 1.248 | O10: 1.445
A11: EPI5 | B11: 1.979 | C11: 2.934 | D11: 4.370 | E11: 1.262 | F11: 1.492 | G11: 1.965 | I11: strip_epi-s5 | J11: 1.389 | K11: 1.668 | L11: 2.015 | M11: 1.117 | N11: 1.213 | O11: 1.387
B13: Prevalence | N13: RR
B14: n=7 | F14: n=15 | J14: n=30 | N14: n=7 | R14: n=15 | V14: n=30
B15: mean | C15: min | D15: max | E15: stdev | F15: mean | G15: min | H15: max | I15: stdev | J15: mean | K15: min | L15: max | M15: stdev | N15: mean | O15: min | P15: max | Q15: stdev | R15: mean | S15: min | T15: max | U15: stdev | V15: mean | W15: min | X15: max | Y15: stdev
A16: NewEPI | B16: =AVERAGE(AA65,AA78,AA91,AA104,AA117,AA130,AA143,AA156,AA169,AA182,AA195,AA208,AA221,AA234,AA247,AA260,AA273,AA286,AA299,AA312,AA325,AA338,AA351,AA364,AA377,AA390,AA403,AA416,AA429,AA442,AA455,AA468,AA481,AA494,AA507,AA520,AA533,AA546,AA559,AA572,AA585,AA598,AA611,AA624,AA637,AA650,AA663,AA676,AA689,AA702,AA715,AA728,AA741) -> 1.468 | C16: =MIN(AA65,AA78,AA91,AA104,AA117,AA130,AA143,AA156,AA169,AA182,AA195,AA208,AA221,AA234,AA247,AA260,AA273,AA286,AA299,AA312,AA325,AA338,AA351,AA364,AA377,AA390,AA403,AA416,AA429,AA442,AA455,AA468,AA481,AA494,AA507,AA520,AA533,AA546,AA559,AA572,AA585,AA598,AA611,AA624,AA637,AA650,AA663,AA676,AA689,AA702,AA715,AA728,AA741) -> 0.955 | D16: =MAX(AA65,AA78,AA91,AA104,AA117,AA130,AA143,AA156,AA169,AA182,AA195,AA208,AA221,AA234,AA247,AA260,AA273,AA286,AA299,AA312,AA325,AA338,AA351,AA364,AA377,AA390,AA403,AA416,AA429,AA442,AA455,AA468,AA481,AA494,AA507,AA520,AA533,AA546,AA559,AA572,AA585,AA598,AA611,AA624,AA637,AA650,AA663,AA676,AA689,AA702,AA715,AA728,AA741) -> 2.137 | E16: =STDEV(AA65,AA78,AA91,AA104,AA117,AA130,AA143,AA156,AA169,AA182,AA195,AA208,AA221,AA234,AA247,AA260,AA273,AA286,AA299,AA312,AA325,AA338,AA351,AA364,AA377,AA390,AA403,AA416,AA429,AA442,AA455,AA468,AA481,AA494,AA507,AA520,AA533,AA546,AA559,AA572,AA585,AA598,AA611,AA624,AA637,AA650,AA663,AA676,AA689,AA702,AA715,AA728,AA741) -> 0.294 | F16: =AVERAGE(AC65,AC78,AC91,AC104,AC117,AC130,AC143,AC156,AC169,AC182,AC195,AC208,AC221,AC234,AC247,AC260,AC273,AC286,AC299,AC312,AC325,AC338,AC351,AC364,AC377,AC390,AC403,AC416,AC429,AC442,AC455,AC468,AC481,AC494,AC507,AC520,AC533,AC546,AC559,AC572,AC585,AC598,AC611,AC624,AC637,AC650,AC663,AC676,AC689,AC702,AC715,AC728,AC741) -> 2.170 | G16: =MIN(AC65,AC78,AC91,AC104,AC117,AC130,AC143,AC156,AC169,AC182,AC195,AC208,AC221,AC234,AC247,AC260,AC273,AC286,AC299,AC312,AC325,AC338,AC351,AC364,AC377,AC390,AC403,AC416,AC429,AC442,AC455,AC468,AC481,AC494,AC507,AC520,AC533,AC546,AC559,AC572,AC585,AC598,AC611,AC624,AC637,AC650,AC663,AC676,AC689,AC702,AC715,AC728,AC741) -> 1.043 | H16: =MAX(AC65,AC78,AC91,AC104,AC117,AC130,AC143,AC156,AC169,AC182,AC195,AC208,AC221,AC234,AC247,AC260,AC273,AC286,AC299,AC312,AC325,AC338,AC351,AC364,AC377,AC390,AC403,AC416,AC429,AC442,AC455,AC468,AC481,AC494,AC507,AC520,AC533,AC546,AC559,AC572,AC585,AC598,AC611,AC624,AC637,AC650,AC663,AC676,AC689,AC702,AC715,AC728,AC741) -> 3.716 | I16: =STDEV(AC65,AC78,AC91,AC104,AC117,AC130,AC143,AC156,AC169,AC182,AC195,AC208,AC221,AC234,AC247,AC260,AC273,AC286,AC299,AC312,AC325,AC338,AC351,AC364,AC377,AC390,AC403,AC416,AC429,AC442,AC455,AC468,AC481,AC494,AC507,AC520,AC533,AC546,AC559,AC572,AC585,AC598,AC611,AC624,AC637,AC650,AC663,AC676,AC689,AC702,AC715,AC728,AC741) -> 0.686 | J16: =AVERAGE(AE65,AE78,AE91,AE104,AE117,AE130,AE143,AE156,AE169,AE182,AE195,AE208,AE221,AE234,AE247,AE260,AE273,AE286,AE299,AE312,AE325,AE338,AE351,AE364,AE377,AE390,AE403,AE416,AE429,AE442,AE455,AE468,AE481,AE494,AE507,AE520,AE533,AE546,AE559,AE572,AE585,AE598,AE611,AE624,AE637,AE650,AE663,AE676,AE689,AE702,AE715,AE728,AE741) -> 3.674 | K16: =MIN(AE65,AE78,AE91,AE104,AE117,AE130,AE143,AE156,AE169,AE182,AE195,AE208,AE221,AE234,AE247,AE260,AE273,AE286,AE299,AE312,AE325,AE338,AE351,AE364,AE377,AE390,AE403,AE416,AE429,AE442,AE455,AE468,AE481,AE494,AE507,AE520,AE533,AE546,AE559,AE572,AE585,AE598,AE611,AE624,AE637,AE650,AE663,AE676,AE689,AE702,AE715,AE728,AE741) -> 0.000 | L16: =MAX(AE65,AE78,AE91,AE104,AE117,AE130,AE143,AE156,AE169,AE182,AE195,AE208,AE221,AE234,AE247,AE260,AE273,AE286,AE299,AE312,AE325,AE338,AE351,AE364,AE377,AE390,AE403,AE416,AE429,AE442,AE455,AE468,AE481,AE494,AE507,AE520,AE533,AE546,AE559,AE572,AE585,AE598,AE611,AE624,AE637,AE650,AE663,AE676,AE689,AE702,AE715,AE728,AE741) -> 22.856 | M16: =STDEV(AE65,AE78,AE91,AE104,AE117,AE130,AE143,AE156,AE169,AE182,AE195,AE208,AE221,AE234,AE247,AE260,AE273,AE286,AE299,AE312,AE325,AE338,AE351,AE364,AE377,AE390,AE403,AE416,AE429,AE442,AE455,AE468,AE481,AE494,AE507,AE520,AE533,AE546,AE559,AE572,AE585,AE598,AE611,AE624,AE637,AE650,AE663,AE676,AE689,AE702,AE715,AE728,AE741) -> 3.189 | N16: =AVERAGE(AB65,AB78,AB91,AB104,AB117,AB130,AB143,AB156,AB169,AB182,AB195,AB208,AB221,AB234,AB247,AB260,AB273,AB286,AB299,AB312,AB325,AB338,AB351,AB364,AB377,AB390,AB403,AB416,AB429,AB442,AB455,AB468,AB481,AB494,AB507,AB520,AB533,AB546,AB559,AB572,AB585,AB598,AB611,AB624,AB637,AB650,AB663,AB676,AB689,AB702,AB715,AB728,AB741) -> 1.226 | O16: =MIN(AB65,AB78,AB91,AB104,AB117,AB130,AB143,AB156,AB169,AB182,AB195,AB208,AB221,AB234,AB247,AB260,AB273,AB286,AB299,AB312,AB325,AB338,AB351,AB364,AB377,AB390,AB403,AB416,AB429,AB442,AB455,AB468,AB481,AB494,AB507,AB520,AB533,AB546,AB559,AB572,AB585,AB598,AB611,AB624,AB637,AB650,AB663,AB676,AB689,AB702,AB715,AB728,AB741) -> 0.000 | P16: =MAX(AB65,AB78,AB91,AB104,AB117,AB130,AB143,AB156,AB169,AB182,AB195,AB208,AB221,AB234,AB247,AB260,AB273,AB286,AB299,AB312,AB325,AB338,AB351,AB364,AB377,AB390,AB403,AB416,AB429,AB442,AB455,AB468,AB481,AB494,AB507,AB520,AB533,AB546,AB559,AB572,AB585,AB598,AB611,AB624,AB637,AB650,AB663,AB676,AB689,AB702,AB715,AB728,AB741) -> 2.571 | Q16: =STDEV(AB65,AB78,AB91,AB104,AB117,AB130,AB143,AB156,AB169,AB182,AB195,AB208,AB221,AB234,AB247,AB260,AB273,AB286,AB299,AB312,AB325,AB338,AB351,AB364,AB377,AB390,AB403,AB416,AB429,AB442,AB455,AB468,AB481,AB494,AB507,AB520,AB533,AB546,AB559,AB572,AB585,AB598,AB611,AB624,AB637,AB650,AB663,AB676,AB689,AB702,AB715,AB728,AB741) -> 0.394 | R16: =AVERAGE(AD65,AD78,AD91,AD104,AD117,AD130,AD143,AD156,AD169,AD182,AD195,AD208,AD221,AD234,AD247,AD260,AD273,AD286,AD299,AD312,AD325,AD338,AD351,AD364,AD377,AD390,AD403,AD416,AD429,AD442,AD455,AD468,AD481,AD494,AD507,AD520,AD533,AD546,AD559,AD572,AD585,AD598,AD611,AD624,AD637,AD650,AD663,AD676,AD689,AD702,AD715,AD728,AD741) -> 1.628 | S16: =MIN(AD65,AD78,AD91,AD104,AD117,AD130,AD143,AD156,AD169,AD182,AD195,AD208,AD221,AD234,AD247,AD260,AD273,AD286,AD299,AD312,AD325,AD338,AD351,AD364,AD377,AD390,AD403,AD416,AD429,AD442,AD455,AD468,AD481,AD494,AD507,AD520,AD533,AD546,AD559,AD572,AD585,AD598,AD611,AD624,AD637,AD650,AD663,AD676,AD689,AD702,AD715,AD728,AD741) -> 0.793 | T16: =MAX(AD65,AD78,AD91,AD104,AD117,AD130,AD143,AD156,AD169,AD182,AD195,AD208,AD221,AD234,AD247,AD260,AD273,AD286,AD299,AD312,AD325,AD338,AD351,AD364,AD377,AD390,AD403,AD416,AD429,AD442,AD455,AD468,AD481,AD494,AD507,AD520,AD533,AD546,AD559,AD572,AD585,AD598,AD611,AD624,AD637,AD650,AD663,AD676,AD689,AD702,AD715,AD728,AD741) -> 3.676 | U16: =STDEV(AD65,AD78,AD91,AD104,AD117,AD130,AD143,AD156,AD169,AD182,AD195,AD208,AD221,AD234,AD247,AD260,AD273,AD286,AD299,AD312,AD325,AD338,AD351,AD364,AD377,AD390,AD403,AD416,AD429,AD442,AD455,AD468,AD481,AD494,AD507,AD520,AD533,AD546,AD559,AD572,AD585,AD598,AD611,AD624,AD637,AD650,AD663,AD676,AD689,AD702,AD715,AD728,AD741) -> 0.592 | V16: =AVERAGE(AF65,AF78,AF91,AF104,AF117,AF130,AF143,AF156,AF169,AF182,AF195,AF208,AF221,AF234,AF247,AF260,AF273,AF286,AF299,AF312,AF325,AF338,AF351,AF364,AF377,AF390,AF403,AF416,AF429,AF442,AF455,AF468,AF481,AF494,AF507,AF520,AF533,AF546,AF559,AF572,AF585,AF598,AF611,AF624,AF637,AF650,AF663,AF676,AF689,AF702,AF715,AF728,AF741) -> 2.186 | W16: =MIN(AF65,AF78,AF91,AF104,AF117,AF130,AF143,AF156,AF169,AF182,AF195,AF208,AF221,AF234,AF247,AF260,AF273,AF286,AF299,AF312,AF325,AF338,AF351,AF364,AF377,AF390,AF403,AF416,AF429,AF442,AF455,AF468,AF481,AF494,AF507,AF520,AF533,AF546,AF559,AF572,AF585,AF598,AF611,AF624,AF637,AF650,AF663,AF676,AF689,AF702,AF715,AF728,AF741) -> 0.000 | X16: =MAX(AF65,AF78,AF91,AF104,AF117,AF130,AF143,AF156,AF169,AF182,AF195,AF208,AF221,AF234,AF247,AF260,AF273,AF286,AF299,AF312,AF325,AF338,AF351,AF364,AF377,AF390,AF403,AF416,AF429,AF442,AF455,AF468,AF481,AF494,AF507,AF520,AF533,AF546,AF559,AF572,AF585,AF598,AF611,AF624,AF637,AF650,AF663,AF676,AF689,AF702,AF715,AF728,AF741) -> 7.791 | Y16: =STDEV(AF65,AF78,AF91,AF104,AF117,AF130,AF143,AF156,AF169,AF182,AF195,AF208,AF221,AF234,AF247,AF260,AF273,AF286,AF299,AF312,AF325,AF338,AF351,AF364,AF377,AF390,AF403,AF416,AF429,AF442,AF455,AF468,AF481,AF494,AF507,AF520,AF533,AF546,AF559,AF572,AF585,AF598,AF611,AF624,AF637,AF650,AF663,AF676,AF689,AF702,AF715,AF728,AF741) -> 1.354
A17: Grid | B17: 1.719 | C17: 0.943 | D17: 3.208 | E17: 0.403 | F17: 2.618 | G17: 1.044 | H17: 5.592 | I17: 0.924 | J17: 4.220 | K17: 0.943 | L17: 10.477 | M17: 1.907 | N17: 1.439 | O17: 0.002 | P17: 3.538 | Q17: 0.622 | R17: 2.141 | S17: 0.892 | T17: 8.114 | U17: 1.230 | V17: 2.826 | W17: 0.961 | X17: 10.392 | Y17: 1.764
A18: Peri | B18: 1.556 | C18: 0.975 | D18: 4.972 | E18: 0.735 | F18: 2.210 | G18: 0.907 | H18: 6.532 | I18: 1.293 | J18: 3.442 | K18: 0.909 | L18: 12.981 | M18: 2.459 | N18: 1.110 | O18: 0.146 | P18: 3.189 | Q18: 0.518 | R18: 1.315 | S18: 0.603 | T18: 2.839 | U18: 0.511 | V18: 1.716 | W18: 0.629 | X18: 4.797 | Y18: 0.781
A19: Quad | B19: 1.683 | C19: 0.858 | D19: 5.439 | E19: 1.044 | F19: 2.465 | G19: 0.987 | H19: 10.237 | I19: 2.104 | J19: 3.933 | K19: 0.913 | L19: 18.586 | M19: 4.069 | N19: 0.990 | O19: 0.369 | P19: 2.802 | Q19: 0.414 | R19: 1.082 | S19: 0.483 | T19: 2.461 | U19: 0.377 | V19: 1.398 | W19: 0.452 | X19: 4.695 | Y19: 0.651
A20: Square | B20: 1.041 | C20: 0.864 | D20: 1.431 | E20: 0.093 | F20: 1.083 | G20: 0.839 | H20: 1.732 | I20: 0.171 | J20: 1.170 | K20: 0.791 | L20: 2.492 | M20: 0.276 | N20: 0.970 | O20: 0.012 | P20: 1.760 | Q20: 0.238 | R20: 0.987 | S20: 0.648 | T20: 1.328 | U20: 0.144 | V20: 1.013 | W20: 0.823 | X20: 1.334 | Y20: 0.097
A21: OldEPI | B21: 2.145 | C21: 0.901 | D21: 6.087 | E21: 1.180 | F21: 3.463 | G21: 1.062 | H21: 10.937 | I21: 2.414 | J21: 5.736 | K21: 0.926 | L21: 21.491 | M21: 4.643 | N21: 1.359 | O21: 0.019 | P21: 3.542 | Q21: 0.639 | R21: 1.732 | S21: 0.654 | T21: 5.032 | U21: 0.872 | V21: 2.538 | W21: 0.649 | X21: 8.066 | Y21: 1.574
A22: EPI3 | B22: 2.063 | C22: 0.951 | D22: 5.767 | E22: 1.156 | F22: 3.128 | G22: 0.989 | H22: 10.460 | I22: 2.212 | J22: 4.834 | K22: 0.977 | L22: 20.101 | M22: 4.069 | N22: 1.273 | O22: 0.514 | P22: 3.902 | Q22: 0.613 | R22: 1.606 | S22: 0.610 | T22: 5.435 | U22: 0.855 | V22: 2.172 | W22: 0.400 | X22: 9.372 | Y22: 1.410
A23: EPI5 | B23: 1.979 | C23: 0.906 | D23: 5.643 | E23: 1.104 | F23: 2.934 | G23: 0.930 | H23: 10.091 | I23: 2.084 | J23: 4.370 | K23: 0.905 | L23: 18.473 | M23: 3.591 | N23: 1.262 | O23: 0.600 | P23: 2.618 | Q23: 0.397 | R23: 1.492 | S23: 0.580 | T23: 2.979 | U23: 0.574 | V23: 1.965 | W23: 0.396 | X23: 5.000 | Y23: 0.973
B25: Frequency of Rank for n=7 (1 is lowest ratio, 8 is highest ratio)
B26: Prevalence | J26: RR
A27: rank | B27: 1 | C27: 2 | D27: 3 | E27: 4 | F27: 5 | G27: 6 | H27: 7 | I27: 8 | J27: 1 | K27: 2 | L27: 3 | M27: 4 | N27: 5 | O27: 6 | P27: 7 | Q27: 8
A28: NewEPI | B28: =SUM(IF($AH65=B$51,1,0),IF($AH78=B$51,1,0),IF($AH91=B$51,1,0),IF($AH104=B$51,1,0),IF($AH117=B$51,1,0),IF($AH130=B$51,1,0),IF($AH143=B$51,1,0),IF($AH156=B$51,1,0),IF($AH169=B$51,1,0),IF($AH182=B$51,1,0),IF($AH195=B$51,1,0),IF($AH208=B$51,1,0),IF($AH221=B$51,1,0),IF($AH234=B$51,1,0),IF($AH247=B$51,1,0),IF($AH260=B$51,1,0),IF($AH273=B$51,1,0),IF($AH286=B$51,1,0),IF($AH299=B$51,1,0),IF($AH312=B$51,1,0),IF($AH325=B$51,1,0),IF($AH338=B$51,1,0),IF($AH351=B$51,1,0),IF($AH364=B$51,1,0),IF($AH377=B$51,1,0),IF($AH390=B$51,1,0),IF($AH403=B$51,1,0),IF($AH416=B$51,1,0),IF($AH429=B$51,1,0),IF($AH442=B$51,1,0),IF($AH455=B$51,1,0),IF($AH468=B$51,1,0),IF($AH481=B$51,1,0),IF($AH494=B$51,1,0),IF($AH507=B$51,1,0),IF($AH520=B$51,1,0),IF($AH533=B$51,1,0),IF($AH546=B$51,1,0),IF($AH559=B$51,1,0),IF($AH572=B$51,1,0),IF($AH585=B$51,1,0),IF($AH598=B$51,1,0),IF($AH611=B$51,1,0),IF($AH624=B$51,1,0),IF($AH637=B$51,1,0),IF($AH650=B$51,1,0),IF($AH663=B$51,1,0),IF($AH676=B$51,1,0),IF($AH689=B$51,1,0),IF($AH702=B$51,1,0),IF($AH715=B$51,1,0),IF($AH728=B$51,1,0),IF($AH741=B$51,1,0)) -> 1 | C28: 12 | D28: 13 | E28: 10 | F28: 3 | G28: 5 | H28: 8 | I28: 1 | J28: =SUM(IF($AI65=B$51,1,0),IF($AI78=B$51,1,0),IF($AI91=B$51,1,0),IF($AI104=B$51,1,0),IF($AI117=B$51,1,0),IF($AI130=B$51,1,0),IF($AI143=B$51,1,0),IF($AI156=B$51,1,0),IF($AI169=B$51,1,0),IF($AI182=B$51,1,0),IF($AI195=B$51,1,0),IF($AI208=B$51,1,0),IF($AI221=B$51,1,0),IF($AI234=B$51,1,0),IF($AI247=B$51,1,0),IF($AI260=B$51,1,0),IF($AI273=B$51,1,0),IF($AI286=B$51,1,0),IF($AI299=B$51,1,0),IF($AI312=B$51,1,0),IF($AI325=B$51,1,0),IF($AI338=B$51,1,0),IF($AI351=B$51,1,0),IF($AI364=B$51,1,0),IF($AI377=B$51,1,0),IF($AI390=B$51,1,0),IF($AI403=B$51,1,0),IF($AI416=B$51,1,0),IF($AI429=B$51,1,0),IF($AI442=B$51,1,0),IF($AI455=B$51,1,0),IF($AI468=B$51,1,0),IF($AI481=B$51,1,0),IF($AI494=B$51,1,0),IF($AI507=B$51,1,0),IF($AI520=B$51,1,0),IF($AI533=B$51,1,0),IF($AI546=B$51,1,0),IF($AI559=B$51,1,0),IF($AI572=B$51,1,0),IF($AI585=B$51,1,0),IF($AI598=B$51,1,0),IF($AI611=B$51,1,0),IF($AI624=B$51,1,0),IF($AI637=B$51,1,0),IF($AI650=B$51,1,0),IF($AI663=B$51,1,0),IF($AI676=B$51,1,0),IF($AI689=B$51,1,0),IF($AI702=B$51,1,0),IF($AI715=B$51,1,0),IF($AI728=B$51,1,0),IF($AI741=B$51,1,0)) -> 5 | K28: 9 | L28: 4 | M28: 4 | N28: 4 | O28: 10 | P28: 12 | Q28: 5
A29: Grid | B29: 1 | C29: 0 | D29: 9 | E29: 6 | F29: 4 | G29: 5 | H29: 6 | I29: 22 | J29: 1 | K29: 1 | L29: 3 | M29: 1 | N29: 6 | O29: 6 | P29: 13 | Q29: 22
A30: Peri | B30: 7 | C30: 9 | D30: 15 | E30: 11 | F30: 2 | G30: 2 | H30: 1 | I30: 6 | J30: 11 | K30: 10 | L30: 10 | M30: 6 | N30: 5 | O30: 3 | P30: 4 | Q30: 4
A31: Quad | B31: 8 | C31: 16 | D31: 6 | E31: 3 | F31: 14 | G31: 2 | H31: 3 | I31: 1 | J31: 17 | K31: 13 | L31: 7 | M31: 11 | N31: 4 | O31: 0 | P31: 0 | Q31: 1
A32: Square | B32: 34 | C32: 11 | D32: 5 | E32: 1 | F32: 1 | G32: 1 | H32: 0 | I32: 0 | J32: 13 | K32: 12 | L32: 9 | M32: 3 | N32: 8 | O32: 3 | P32: 5 | Q32: 0
A33: OldEPI | B33: 1 | C33: 2 | D33: 0 | E33: 1 | F33: 5 | G33: 11 | H33: 18 | I33: 15 | J33: 2 | K33: 3 | L33: 3 | M33: 9 | N33: 9 | O33: 10 | P33: 6 | Q33: 11
A34: EPI3 | B34: 0 | C34: 1 | D34: 1 | E34: 8 | F34: 11 | G34: 13 | H34: 14 | I34: 5 | J34: 3 | K34: 4 | L34: 8 | M34: 12 | N34: 5 | O34: 11 | P34: 5 | Q34: 5
A35: EPI5 | B35: 1 | C35: 2 | D35: 4 | E35: 13 | F35: 13 | G35: 14 | H35: 3 | I35: 3 | J35: 1 | K35: 1 | L35: 9 | M35: 7 | N35: 12 | O35: 10 | P35: 8 | Q35: 5
B37: Frequency of Rank for n=15 (1 is lowest ratio, 8 is highest ratio)
B38: Prevalence | J38: RR
A39: rank | B39: 1 | C39: 2 | D39: 3 | E39: 4 | F39: 5 | G39: 6 | H39: 7 | I39: 8 | J39: 1 | K39: 2 | L39: 3 | M39: 4 | N39: 5 | O39: 6 | P39: 7 | Q39: 8
A40: NewEPI | B40: =SUM(IF($AJ65=B$51,1,0),IF($AJ78=B$51,1,0),IF($AJ91=B$51,1,0),IF($AJ104=B$51,1,0),IF($AJ117=B$51,1,0),IF($AJ130=B$51,1,0),IF($AJ143=B$51,1,0),IF($AJ156=B$51,1,0),IF($AJ169=B$51,1,0),IF($AJ182=B$51,1,0),IF($AJ195=B$51,1,0),IF($AJ208=B$51,1,0),IF($AJ221=B$51,1,0),IF($AJ234=B$51,1,0),IF($AJ247=B$51,1,0),IF($AJ260=B$51,1,0),IF($AJ273=B$51,1,0),IF($AJ286=B$51,1,0),IF($AJ299=B$51,1,0),IF($AJ312=B$51,1,0),IF($AJ325=B$51,1,0),IF($AJ338=B$51,1,0),IF($AJ351=B$51,1,0),IF($AJ364=B$51,1,0),IF($AJ377=B$51,1,0),IF($AJ390=B$51,1,0),IF($AJ403=B$51,1,0),IF($AJ416=B$51,1,0),IF($AJ429=B$51,1,0),IF($AJ442=B$51,1,0),IF($AJ455=B$51,1,0),IF($AJ468=B$51,1,0),IF($AJ481=B$51,1,0),IF($AJ494=B$51,1,0),IF($AJ507=B$51,1,0),IF($AJ520=B$51,1,0),IF($AJ533=B$51,1,0),IF($AJ546=B$51,1,0),IF($AJ559=B$51,1,0),IF($AJ572=B$51,1,0),IF($AJ585=B$51,1,0),IF($AJ598=B$51,1,0),IF($AJ611=B$51,1,0),IF($AJ624=B$51,1,0),IF($AJ637=B$51,1,0),IF($AJ650=B$51,1,0),IF($AJ663=B$51,1,0),IF($AJ676=B$51,1,0),IF($AJ689=B$51,1,0),IF($AJ702=B$51,1,0),IF($AJ715=B$51,1,0),IF($AJ728=B$51,1,0),IF($AJ741=B$51,1,0)) -> 0 | C40: 13 | D40: 10 | E40: 9 | F40: 4 | G40: 9 | H40: 5 | I40: 3 | J40: =SUM(IF($AK65=B$51,1,0),IF($AK78=B$51,1,0),IF($AK91=B$51,1,0),IF($AK104=B$51,1,0),IF($AK117=B$51,1,0),IF($AK130=B$51,1,0),IF($AK143=B$51,1,0),IF($AK156=B$51,1,0),IF($AK169=B$51,1,0),IF($AK182=B$51,1,0),IF($AK195=B$51,1,0),IF($AK208=B$51,1,0),IF($AK221=B$51,1,0),IF($AK234=B$51,1,0),IF($AK247=B$51,1,0),IF($AK260=B$51,1,0),IF($AK273=B$51,1,0),IF($AK286=B$51,1,0),IF($AK299=B$51,1,0),IF($AK312=B$51,1,0),IF($AK325=B$51,1,0),IF($AK338=B$51,1,0),IF($AK351=B$51,1,0),IF($AK364=B$51,1,0),IF($AK377=B$51,1,0),IF($AK390=B$51,1,0),IF($AK403=B$51,1,0),IF($AK416=B$51,1,0),IF($AK429=B$51,1,0),IF($AK442=B$51,1,0),IF($AK455=B$51,1,0),IF($AK468=B$51,1,0),IF($AK481=B$51,1,0),IF($AK494=B$51,1,0),IF($AK507=B$51,1,0),IF($AK520=B$51,1,0),IF($AK533=B$51,1,0),IF($AK546=B$51,1,0),IF($AK559=B$51,1,0),IF($AK572=B$51,1,0),IF($AK585=B$51,1,0),IF($AK598=B$51,1,0),IF($AK611=B$51,1,0),IF($AK624=B$51,1,0),IF($AK637=B$51,1,0),IF($AK650=B$51,1,0),IF($AK663=B$51,1,0),IF($AK676=B$51,1,0),IF($AK689=B$51,1,0),IF($AK702=B$51,1,0),IF($AK715=B$51,1,0),IF($AK728=B$51,1,0),IF($AK741=B$51,1,0)) -> 0 | K40: 3 | L40: 4 | M40: 12 | N40: 6 | O40: 4 | P40: 13 | Q40: 11
A41: Grid | B41: 0 | C41: 0 | D41: 10 | E41: 6 | F41: 3 | G41: 5 | H41: 8 | I41: 21 | J41: 1 | K41: 0 | L41: 0 | M41: 2 | N41: 1 | O41: 8 | P41: 13 | Q41: 28
A42: Peri | B42: 2 | C42: 15 | D42: 12 | E42: 14 | F42: 4 | G42: 3 | H42: 0 | I42: 3 | J42: 6 | K42: 11 | L42: 14 | M42: 5 | N42: 4 | O42: 10 | P42: 2 | Q42: 1
A43: Quad | B43: 3 | C43: 20 | D43: 7 | E43: 6 | F43: 10 | G43: 1 | H43: 6 | I43: 0 | J43: 18 | K43: 22 | L43: 9 | M43: 1 | N43: 2 | O43: 1 | P43: 0 | Q43: 0
A44: Square | B44: 46 | C44: 4 | D44: 1 | E44: 0 | F44: 0 | G44: 0 | H44: 1 | I44: 1 | J44: 26 | K44: 12 | L44: 6 | M44: 3 | N44: 2 | O44: 3 | P44: 1 | Q44: 0
A45: OldEPI | B45: 0 | C45: 0 | D45: 0 | E45: 2 | F45: 3 | G45: 9 | H45: 15 | I45: 24 | J45: 0 | K45: 3 | L45: 2 | M45: 5 | N45: 9 | O45: 14 | P45: 12 | Q45: 8
A46: EPI3 | B46: 0 | C46: 1 | D46: 3 | E46: 1 | F46: 18 | G46: 15 | H46: 15 | I46: 0 | J46: 1 | K46: 1 | L46: 8 | M46: 12 | N46: 15 | O46: 4 | P46: 9 | Q46: 3
A47: EPI5 | B47: 2 | C47: 0 | D47: 10 | E47: 15 | F47: 11 | G47: 11 | H47: 3 | I47: 1 | J47: 1 | K47: 1 | L47: 10 | M47: 13 | N47: 14 | O47: 9 | P47: 3 | Q47: 2
B49: Frequency of Rank for n=30 (1 is lowest ratio, 8 is highest ratio)
B50: Prevalence | J50: RR
A51: rank | B51: 1 | C51: 2 | D51: 3 | E51: 4 | F51: 5 | G51: 6 | H51: 7 | I51: 8 | J51: 1 | K51: 2 | L51: 3 | M51: 4 | N51: 5 | O51: 6 | P51: 7 | Q51: 8
A52: NewEPI | B52: =SUM(IF($AL65=B$51,1,0),IF($AL78=B$51,1,0),IF($AL91=B$51,1,0),IF($AL104=B$51,1,0),IF($AL117=B$51,1,0),IF($AL130=B$51,1,0),IF($AL143=B$51,1,0),IF($AL156=B$51,1,0),IF($AL169=B$51,1,0),IF($AL182=B$51,1,0),IF($AL195=B$51,1,0),IF($AL208=B$51,1,0),IF($AL221=B$51,1,0),IF($AL234=B$51,1,0),IF($AL247=B$51,1,0),IF($AL260=B$51,1,0),IF($AL273=B$51,1,0),IF($AL286=B$51,1,0),IF($AL299=B$51,1,0),IF($AL312=B$51,1,0),IF($AL325=B$51,1,0),IF($AL338=B$51,1,0),IF($AL351=B$51,1,0),IF($AL364=B$51,1,0),IF($AL377=B$51,1,0),IF($AL390=B$51,1,0),IF($AL403=B$51,1,0),IF($AL416=B$51,1,0),IF($AL429=B$51,1,0),IF($AL442=B$51,1,0),IF($AL455=B$51,1,0),IF($AL468=B$51,1,0),IF($AL481=B$51,1,0),IF($AL494=B$51,1,0),IF($AL507=B$51,1,0),IF($AL520=B$51,1,0),IF($AL533=B$51,1,0),IF($AL546=B$51,1,0),IF($AL559=B$51,1,0),IF($AL572=B$51,1,0),IF($AL585=B$51,1,0),IF($AL598=B$51,1,0),IF($AL611=B$51,1,0),IF($AL624=B$51,1,0),IF($AL637=B$51,1,0),IF($AL650=B$51,1,0),IF($AL663=B$51,1,0),IF($AL676=B$51,1,0),IF($AL689=B$51,1,0),IF($AL702=B$51,1,0),IF($AL715=B$51,1,0),IF($AL728=B$51,1,0),IF($AL741=B$51,1,0)) -> 5 | C52: 10 | D52: 6 | E52: 6 | F52: 5 | G52: 7 | H52: 10 | I52: 4 | J52: =SUM(IF($AM65=B$51,1,0),IF($AM78=B$51,1,0),IF($AM91=B$51,1,0),IF($AM104=B$51,1,0),IF($AM117=B$51,1,0),IF($AM130=B$51,1,0),IF($AM143=B$51,1,0),IF($AM156=B$51,1,0),IF($AM169=B$51,1,0),IF($AM182=B$51,1,0),IF($AM195=B$51,1,0),IF($AM208=B$51,1,0),IF($AM221=B$51,1,0),IF($AM234=B$51,1,0),IF($AM247=B$51,1,0),IF($AM260=B$51,1,0),IF($AM273=B$51,1,0),IF($AM286=B$51,1,0),IF($AM299=B$51,1,0),IF($AM312=B$51,1,0),IF($AM325=B$51,1,0),IF($AM338=B$51,1,0),IF($AM351=B$51,1,0),IF($AM364=B$51,1,0),IF($AM377=B$51,1,0),IF($AM390=B$51,1,0),IF($AM403=B$51,1,0),IF($AM416=B$51,1,0),IF($AM429=B$51,1,0),IF($AM442=B$51,1,0),IF($AM455=B$51,1,0),IF($AM468=B$51,1,0),IF($AM481=B$51,1,0),IF($AM494=B$51,1,0),IF($AM507=B$51,1,0),IF($AM520=B$51,1,0),IF($AM533=B$51,1,0),IF($AM546=B$51,1,0),IF($AM559=B$51,1,0),IF($AM572=B$51,1,0),IF($AM585=B$51,1,0),IF($AM598=B$51,1,0),IF($AM611=B$51,1,0),IF($AM624=B$51,1,0),IF($AM637=B$51,1,0),IF($AM650=B$51,1,0),IF($AM663=B$51,1,0),IF($AM676=B$51,1,0),IF($AM689=B$51,1,0),IF($AM702=B$51,1,0),IF($AM715=B$51,1,0),IF($AM728=B$51,1,0),IF($AM741=B$51,1,0)) -> 5 | K52: 2 | L52: 5 | M52: 3 | N52: 8 | O52: 7 | P52: 5 | Q52: 18
A53: Grid | B53: 0 | C53: 0 | D53: 8 | E53: 7 | F53: 3 | G53: 3 | H53: 10 | I53: 22 | J53: 0 | K53: 0 | L53: 2 | M53: 0 | N53: 3 | O53: 5 | P53: 22 | Q53: 21
A54: Peri | B54: 1 | C54: 11 | D54: 17 | E54: 12 | F54: 6 | G54: 4 | H54: 0 | I54: 2 | J54: 2 | K54: 4 | L54: 17 | M54: 16 | N54: 11 | O54: 2 | P54: 1 | Q54: 0
A55: Quad | B55: 1 | C55: 21 | D55: 7 | E55: 6 | F55: 8 | G55: 3 | H55: 5 | I55: 2 | J55: 5 | K55: 34 | L55: 6 | M55: 3 | N55: 2 | O55: 2 | P55: 1 | Q55: 0
A56: Square | B56: 45 | C56: 4 | D56: 1 | E56: 2 | F56: 0 | G56: 1 | H56: 0 | I56: 0 | J56: 36 | K56: 5 | L56: 6 | M56: 3 | N56: 1 | O56: 0 | P56: 1 | Q56: 1
A57: OldEPI | B57: 0 | C57: 1 | D57: 0 | E57: 0 | F57: 5 | G57: 12 | H57: 13 | I57: 22 | J57: 0 | K57: 0 | L57: 1 | M57: 5 | N57: 7 | O57: 15 | P57: 16 | Q57: 9
A58: EPI3 | B58: 0 | C58: 0 | D58: 4 | E58: 6 | F58: 16 | G58: 14 | H58: 13 | I58: 0 | J58: 2 | K58: 2 | L58: 3 | M58: 14 | N58: 13 | O58: 13 | P58: 5 | Q58: 1
A59: EPI5 | B59: 1 | C59: 6 | D59: 10 | E59: 14 | F59: 10 | G59: 9 | H59: 2 | I59: 1 | J59: 3 | K59: 6 | L59: 13 | M59: 9 | N59: 8 | O59: 9 | P59: 2 | Q59: 3
AH60: 6 | AI60: 10 | AJ60: 13 | AK60: 17 | AL60: 20 | AM60: 24
D61: population 1
B62: true | C62: true | D62: 7 | K62: 15 | R62: 30
B63: mean | C63: rr | D63: mean | E63: stdev | F63: mse | G63: mrr | H63: srr | I63: prr | J63: mse_rr | K63: mean | L63: stdev | M63: mse | N63: mrr | O63: srr | P63: prr | Q63: mse_rr | R63: mean | S63: stdev | T63: mse | U63: mrr | V63: srr | W63: prr | X63: mse_rr
A64: Random | B64: 0.355 | C64: 1.440 | D64: 0.363 | E64: 0.038 | F64: 0.002 | G64: 1.438 | H64: 0.354 | I64: 1.377 | J64: 0.130 | K64: 0.363 | L64: 0.028 | M64: 0.001 | N64: 1.428 | O64: 0.242 | P64: 1.398 | Q64: 0.060 | R64: 0.363 | S64: 0.019 | T64: 0.000 | U64: 1.420 | V64: 0.168 | W64: 1.405 | X64: 0.029
A65: NewEPI | B65: 0.355 | C65: 1.440 | D65: 0.365 | E65: 0.044 | F65: 0.002 | G65: 1.495 | H65: 0.391 | I65: 1.427 | J65: 0.153 | K65: 0.368 | L65: 0.040 | M65: 0.002 | N65: 1.463 | O65: 0.286 | P65: 1.427 | Q65: 0.082 | R65: 0.366 | S65: 0.036 | T65: 0.001 | U65: 1.446 | V65: 0.247 | W65: 1.420 | X65: 0.062 | AA65: =IF("na"=F65,"",F65/F64) -> 1.29557363616 | AB65: =IF("na"=J65,"",J65/J64) -> 1.180 | AC65: =IF("na"=M65,"",M65/M64) -> 2.038 | AD65: =IF("na"=Q65,"",Q65/Q64) -> 1.357 | AE65: =IF("na"=T65,"",T65/T64) -> 3.361 | AF65: =IF("na"=X65,"",X65/X64) -> 2.099 | AG65: =ROW() -> 65.000 | AH65: =SUM(IF(INDIRECT(ADDRESS(ROW(),AH$60))>INDIRECT(ADDRESS($AG65,AH$60)),1,0), IF(INDIRECT(ADDRESS(ROW(),AH$60))>INDIRECT(ADDRESS($AG65+1,AH$60)),1,0), IF(INDIRECT(ADDRESS(ROW(),AH$60))>INDIRECT(ADDRESS($AG65+2,AH$60)),1,0), IF(INDIRECT(ADDRESS(ROW(),AH$60))>INDIRECT(ADDRESS($AG65+3,AH$60)),1,0), IF(INDIRECT(ADDRESS(ROW(),AH$60))>INDIRECT(ADDRESS($AG65+4,AH$60)),1,0), IF(INDIRECT(ADDRESS(ROW(),AH$60))>INDIRECT(ADDRESS($AG65+5,AH$60)),1,0), IF(INDIRECT(ADDRESS(ROW(),AH$60))>INDIRECT(ADDRESS($AG65+6,AH$60)),1,0), IF(INDIRECT(ADDRESS(ROW(),AH$60))>INDIRECT(ADDRESS($AG65+7,AH$60)),1,0))+1 -> 6 | AI65: 6 | AJ65: 7 | AK65: 5 | AL65: 7 | AM65: 6 | AO65: =IF("na"=F65,"",SQRT(F65)/SQRT(F64)) -> 1.138 | AP65: =IF("na"=J65,"",SQRT(J65)/SQRT(J64)) -> 1.086 | AQ65: =IF("na"=M65,"",SQRT(M65)/SQRT(M64)) -> 1.427 | AR65: =IF("na"=Q65,"",SQRT(Q65)/SQRT(Q64)) -> 1.165 | AS65: =IF("na"=T65,"",SQRT(T65)/SQRT(T64)) -> 1.833 | AT65: =IF("na"=X65,"",SQRT(X65)/SQRT(X64)) -> 1.449
A66: Grid | B66: 0.355 | C66: 1.440 | D66: 0.369 | E66: 0.047 | F66: 0.002 | G66: 1.466 | H66: 0.365 | I66: 1.399 | J66: 0.135 | K66: 0.367 | L66: 0.043 | M66: 0.002 | N66: 1.451 | O66: 0.305 | P66: 1.405 | Q66: 0.094 | R66: 0.369 | S66: 0.038 | T66: 0.002 | U66: 1.413 | V66: 0.249 | W66: 1.381 | X66: 0.065 | AA66: =IF("na"=F66,"",F66/F64) -> 1.54259903488 | AB66: =IF("na"=J66,"",J66/J64) -> 1.041 | AC66: =IF("na"=M66,"",M66/M64) -> 2.323 | AD66: =IF("na"=Q66,"",Q66/Q64) -> 1.562 | AE66: =IF("na"=T66,"",T66/T64) -> 3.993 | AF66: =IF("na"=X66,"",X66/X64) -> 2.231 | AG66: =AG65 -> 65.000 | AH66: 8 | AI66: 3 | AJ66: 8 | AK66: 7 | AL66: 8 | AM66: 7 | AO66: =IF("na"=F66,"",SQRT(F66)/SQRT(F64)) -> 1.242 | AP66: =IF("na"=J66,"",SQRT(J66)/SQRT(J64)) -> 1.020 | AQ66: =IF("na"=M66,"",SQRT(M66)/SQRT(M64)) -> 1.524 | AR66: =IF("na"=Q66,"",SQRT(Q66)/SQRT(Q64)) -> 1.250 | AS66: =IF("na"=T66,"",SQRT(T66)/SQRT(T64)) -> 1.998 | AT66: =IF("na"=X66,"",SQRT(X66)/SQRT(X64)) -> 1.494
A67: Peri | B67: 0.355 | C67: 1.440 | D67: 0.344 | E67: 0.039 | F67: 0.002 | G67: 1.433 | H67: 0.378 | I67: 1.363 | J67: 0.149 | K67: 0.353 | L67: 0.032 | M67: 0.001 | N67: 1.389 | O67: 0.264 | P67: 1.351 | Q67: 0.077 | R67: 0.348 | S67: 0.027 | T67: 0.001 | U67: 1.372 | V67: 0.219 | W67: 1.345 | X67: 0.057 | AA67: =IF("na"=F67,"",F67/F64) -> 1.03183346200 | AB67: =IF("na"=J67,"",J67/J64) -> 1.151 | AC67: =IF("na"=M67,"",M67/M64) -> 1.186 | AD67: =IF("na"=Q67,"",Q67/Q64) -> 1.283 | AE67: =IF("na"=T67,"",T67/T64) -> 1.797 | AF67: =IF("na"=X67,"",X67/X64) -> 1.947 | AG67: 65.000 | AH67: 3 | AI67: 5 | AJ67: 3 | AK67: 3 | AL67: 3 | AM67: 5 | AO67: =IF("na"=F67,"",SQRT(F67)/SQRT(F64)) -> 1.016 | AP67: =IF("na"=J67,"",SQRT(J67)/SQRT(J64)) -> 1.073 | AQ67: =IF("na"=M67,"",SQRT(M67)/SQRT(M64)) -> 1.089 | AR67: =IF("na"=Q67,"",SQRT(Q67)/SQRT(Q64)) -> 1.133 | AS67: =IF("na"=T67,"",SQRT(T67)/SQRT(T64)) -> 1.341 | AT67: =IF("na"=X67,"",SQRT(X67)/SQRT(X64)) -> 1.395
A68: Quad | B68: 0.355 | C68: 1.440 | D68: 0.360 | E68: 0.036 | F68: 0.001 | G68: 1.421 | H68: 0.331 | I68: 1.365 | J68: 0.115 | K68: 0.362 | L68: 0.028 | M68: 0.001 | N68: 1.407 | O68: 0.239 | P68: 1.376 | Q68: 0.061 | R68: 0.362 | S68: 0.023 | T68: 0.001 | U68: 1.373 | V68: 0.182 | W68: 1.354 | X68: 0.040 | AA68: =IF("na"=F68,"",F68/F64) -> 0.85773482260 | AB68: =IF("na"=J68,"",J68/J64) -> 0.890 | AC68: =IF("na"=M68,"",M68/M64) -> 0.989 | AD68: =IF("na"=Q68,"",Q68/Q64) -> 1.013 | AE68: =IF("na"=T68,"",T68/T64) -> 1.445 | AF68: =IF("na"=X68,"",X68/X64) -> 1.375 | AG68: 65.000 | AH68: 1 | AI68: 2 | AJ68: 2 | AK68: 2 | AL68: 2 | AM68: 2 | AO68: =IF("na"=F68,"",SQRT(F68)/SQRT(F64)) -> 0.926 | AP68: =IF("na"=J68,"",SQRT(J68)/SQRT(J64)) -> 0.943 | AQ68: =IF("na"=M68,"",SQRT(M68)/SQRT(M64)) -> 0.995 | AR68: =IF("na"=Q68,"",SQRT(Q68)/SQRT(Q64)) -> 1.006 | AS68: =IF("na"=T68,"",SQRT(T68)/SQRT(T64)) -> 1.202 | AT68: =IF("na"=X68,"",SQRT(X68)/SQRT(X64)) -> 1.172
A69: Square | B69: 0.355 | C69: 1.440 | D69: 0.366 | E69: 0.038 | F69: 0.0016 | G69: 1.443 | H69: 0.3175 | I69: 1.3944 | J69: 0.103 | K69: 0.365 | L69: 0.027 | M69: 0.0008 | N69: 1.439 | O69: 0.2364 | P69: 1.4107 | Q69: 0.057 | R69: 0.364 | S69: 0.020 | T69: 0.0005 | U69: 1.426 | V69: 0.1603 | W69: 1.4129 | X69: 0.026 | AA69: =IF("na"=F69,"",F69/F64) -> 1.02892555016 | AB69: =IF("na"=J69,"",J69/J64) -> 0.794 | AC69: =IF("na"=M69,"",M69/M64) -> 0.976 | AD69: =IF("na"=Q69,"",Q69/Q64) -> 0.940 | AE69: =IF("na"=T69,"",T69/T64) -> 1.173 | AF69: =IF("na"=X69,"",X69/X64) -> 0.901 | AG69: 65.000 | AH69: 2 | AI69: 1 | AJ69: 1 | AK69: 1 | AL69: 1 | AM69: 1 | AO69: =IF("na"=F69,"",SQRT(F69)/SQRT(F64)) -> 1.014 | AP69: =IF("na"=J69,"",SQRT(J69)/SQRT(J64)) -> 0.891 | AQ69: =IF("na"=M69,"",SQRT(M69)/SQRT(M64)) -> 0.988 | AR69: =IF("na"=Q69,"",SQRT(Q69)/SQRT(Q64)) -> 0.969 | AS69: =IF("na"=T69,"",SQRT(T69)/SQRT(T64)) -> 1.083 | AT69: =IF("na"=X69,"",SQRT(X69)/SQRT(X64)) -> 0.949
A70: OldEPI | B70: 0.355 | C70: 1.440 | D70: 0.363 | E70: 0.044 | F70: 0.0020 | G70: 1.425 | H70: 0.3988 | I70: 1.3454 | J70: 0.168 | K70: 0.359 | L70: 0.039 | M70: 0.0015 | N70: 1.410 | O70: 0.3204 | P70: 1.3559 | Q70: 0.110 | R70: 0.359 | S70: 0.034 | T70: 0.0012 | U70: 1.387 | V70: 0.2510 | W70: 1.3538 | X70: 0.070 | AA70: =IF("na"=F70,"",F70/F64) -> 1.30781128692 | AB70: =IF("na"=J70,"",J70/J64) -> 1.296 | AC70: =IF("na"=M70,"",M70/M64) -> 1.753 | AD70: =IF("na"=Q70,"",Q70/Q64) -> 1.818 | AE70: =IF("na"=T70,"",T70/T64) -> 2.834 | AF70: =IF("na"=X70,"",X70/X64) -> 2.401 | AG70: 65.000 | AH70: 7 | AI70: 8 | AJ70: 6 | AK70: 8 | AL70: 6 | AM70: 8 | AO70: =IF("na"=F70,"",SQRT(F70)/SQRT(F64)) -> 1.144 | AP70: =IF("na"=J70,"",SQRT(J70)/SQRT(J64)) -> 1.138 | AQ70: =IF("na"=M70,"",SQRT(M70)/SQRT(M64)) -> 1.324 | AR70: =IF("na"=Q70,"",SQRT(Q70)/SQRT(Q64)) -> 1.348 | AS70: =IF("na"=T70,"",SQRT(T70)/SQRT(T64)) -> 1.683 | AT70: =IF("na"=X70,"",SQRT(X70)/SQRT(X64)) -> 1.549
A71: EPI3 | B71: 0.355 | C71: 1.440 | D71: 0.359 | E71: 0.042 | F71: 0.0018 | G71: 1.422 | H71: 0.3661 | I71: 1.3594 | J71: 0.140 | K71: 0.359 | L71: 0.036 | M71: 0.0013 | N71: 1.386 | O71: 0.2675 | P71: 1.3490 | Q71: 0.080 | R71: 0.360 | S71: 0.031 | T71: 0.0010 | U71: 1.383 | V71: 0.2075 | W71: 1.3629 | X71: 0.049 | AA71: =IF("na"=F71,"",F71/F64) -> 1.14776430292 | AB71: =IF("na"=J71,"",J71/J64) -> 1.084 | AC71: =IF("na"=M71,"",M71/M64) -> 1.511 | AD71: =IF("na"=Q71,"",Q71/Q64) -> 1.323 | AE71: =IF("na"=T71,"",T71/T64) -> 2.390 | AF71: =IF("na"=X71,"",X71/X64) -> 1.670 | AG71: 65.000 | AH71: 5 | AI71: 4 | AJ71: 5 | AK71: 4 | AL71: 5 | AM71: 4 | AO71: =IF("na"=F71,"",SQRT(F71)/SQRT(F64)) -> 1.071 | AP71: =IF("na"=J71,"",SQRT(J71)/SQRT(J64)) -> 1.041 | AQ71: =IF("na"=M71,"",SQRT(M71)/SQRT(M64)) -> 1.229 | AR71: =IF("na"=Q71,"",SQRT(Q71)/SQRT(Q64)) -> 1.150 | AS71: =IF("na"=T71,"",SQRT(T71)/SQRT(T64)) -> 1.546 | AT71: =IF("na"=X71,"",SQRT(X71)/SQRT(X64)) -> 1.292
A72: EPI5 | B72: 0.355 | C72: 1.440 | D72: 0.360 | E72: 0.042 | F72: 0.0018 | G72: 1.403 | H72: 0.3839 | I72: 1.3381 | J72: 0.158 | K72: 0.360 | L72: 0.035 | M72: 0.0013 | N72: 1.385 | O72: 0.2745 | P72: 1.3492 | Q72: 0.084 | R72: 0.358 | S72: 0.030 | T72: 0.0009 | U72: 1.409 | V72: 0.2042 | W72: 1.3924 | X72: 0.044 | AA72: =IF("na"=F72,"",F72/F64) -> 1.13569805163 | AB72: =IF("na"=J72,"",J72/J64) -> 1.217 | AC72: =IF("na"=M72,"",M72/M64) -> 1.491 | AD72: =IF("na"=Q72,"",Q72/Q64) -> 1.384 | AE72: =IF("na"=T72,"",T72/T64) -> 2.184 | AF72: =IF("na"=X72,"",X72/X64) -> 1.499 | AG72: 65.000 | AH72: 4 | AI72: 7 | AJ72: 4 | AK72: 6 | AL72: 4 | AM72: 3 | AO72: =IF("na"=F72,"",SQRT(F72)/SQRT(F64)) -> 1.066 | AP72: =IF("na"=J72,"",SQRT(J72)/SQRT(J64)) -> 1.103 | AQ72: =IF("na"=M72,"",SQRT(M72)/SQRT(M64)) -> 1.221 | AR72: =IF("na"=Q72,"",SQRT(Q72)/SQRT(Q64)) -> 1.177 | AS72: =IF("na"=T72,"",SQRT(T72)/SQRT(T64)) -> 1.478 | AT72: =IF("na"=X72,"",SQRT(X72)/SQRT(X64)) -> 1.224
D74: population 2
B75: true | C75: true | D75: 7 | K75: 15 | R75: 30
B76: mean | C76: rr | D76: mean | E76: stdev | F76: mse | G76: mrr | H76: srr | I76: prr | J76: mse_rr | K76: mean | L76: stdev | M76: mse | N76: mrr | O76: srr | P76: prr | Q76: mse_rr | R76: mean | S76: stdev | T76: mse | U76: mrr | V76: srr | W76: prr | X76: mse_rr
A77: Random | B77: 0.449 | C77: 1.544 | D77: 0.449 | E77: 0.036 | F77: 0.001 | G77: 1.576 | H77: 0.260 | I77: 1.545 | J77: 0.067 | K77: 0.449 | L77: 0.025 | M77: 0.001 | N77: 1.555 | O77: 0.190 | P77: 1.539 | Q77: 0.036 | R77: 0.448 | S77: 0.018 | T77: 0.000 | U77: 1.550 | V77: 0.128 | W77: 1.542 | X77: 0.016
A78: NewEPI | B78: 0.449 | C78: 1.544 | D78: 0.447 | E78: 0.042 | F78: 0.002 | G78: 1.577 | H78: 0.298 | I78: 1.539 | J78: 0.089 | K78: 0.447 | L78: 0.035 | M78: 0.001 | N78: 1.568 | O78: 0.221 | P78: 1.545 | Q78: 0.049 | R78: 0.447 | S78: 0.032 | T78: 0.001 | U78: 1.560 | V78: 0.184 | W78: 1.545 | X78: 0.034 | AA78: =IF("na"=F78,"",F78/F77) -> 1.38294192830 | AB78: =IF("na"=J78,"",J78/J77) -> 1.323 | AC78: =IF("na"=M78,"",M78/M77) -> 1.941 | AD78: =IF("na"=Q78,"",Q78/Q77) -> 1.358 | AE78: =IF("na"=T78,"",T78/T77) -> 3.292 | AF78: =IF("na"=X78,"",X78/X77) -> 2.073 | AG78: =ROW() -> 78.000 | AH78: =SUM(IF(INDIRECT(ADDRESS(ROW(),AH$60))>INDIRECT(ADDRESS($AG78,AH$60)),1,0), IF(INDIRECT(ADDRESS(ROW(),AH$60))>INDIRECT(ADDRESS($AG78+1,AH$60)),1,0), IF(INDIRECT(ADDRESS(ROW(),AH$60))>INDIRECT(ADDRESS($AG78+2,AH$60)),1,0), IF(INDIRECT(ADDRESS(ROW(),AH$60))>INDIRECT(ADDRESS($AG78+3,AH$60)),1,0), IF(INDIRECT(ADDRESS(ROW(),AH$60))>INDIRECT(ADDRESS($AG78+4,AH$60)),1,0), IF(INDIRECT(ADDRESS(ROW(),AH$60))>INDIRECT(ADDRESS($AG78+5,AH$60)),1,0), IF(INDIRECT(ADDRESS(ROW(),AH$60))>INDIRECT(ADDRESS($AG78+6,AH$60)),1,0), IF(INDIRECT(ADDRESS(ROW(),AH$60))>INDIRECT(ADDRESS($AG78+7,AH$60)),1,0))+1 -> 5 | AI78: 6 | AJ78: 6 | AK78: 5 | AL78: 7 | AM78: 6 | AO78: =IF("na"=F78,"",SQRT(F78)/SQRT(F77)) -> 1.176 | AP78: =IF("na"=J78,"",SQRT(J78)/SQRT(J77)) -> 1.150 | AQ78: =IF("na"=M78,"",SQRT(M78)/SQRT(M77)) -> 1.393 | AR78: =IF("na"=Q78,"",SQRT(Q78)/SQRT(Q77)) -> 1.165 | AS78: =IF("na"=T78,"",SQRT(T78)/SQRT(T77)) -> 1.814 | AT78: =IF("na"=X78,"",SQRT(X78)/SQRT(X77)) -> 1.440
A79: Grid | B79: 0.449 | C79: 1.544 | D79: 0.442 | E79: 0.045 | F79: 0.002 | G79: 1.487 | H79: 0.285 | I79: 1.451 | J79: 0.090 | K79: 0.441 | L79: 0.037 | M79: 0.001 | N79: 1.473 | O79: 0.220 | P79: 1.450 | Q79: 0.057 | R79: 0.441 | S79: 0.033 | T79: 0.001 | U79: 1.465 | V79: 0.185 | W79: 1.449 | X79: 0.043 | AA79: =IF("na"=F79,"",F79/F77) -> 1.57674785150 | AB79: =IF("na"=J79,"",J79/J77) -> 1.339 | AC79: =IF("na"=M79,"",M79/M77) -> 2.248 | AD79: =IF("na"=Q79,"",Q79/Q77) -> 1.594 | AE79: =IF("na"=T79,"",T79/T77) -> 3.565 | AF79: =IF("na"=X79,"",X79/X77) -> 2.642 | AG79: =AG78 -> 78.000 | AH79: 8 | AI79: 7 | AJ79: 8 | AK79: 8 | AL79: 8 | AM79: 8 | AO79: =IF("na"=F79,"",SQRT(F79)/SQRT(F77)) -> 1.256 | AP79: =IF("na"=J79,"",SQRT(J79)/SQRT(J77)) -> 1.157 | AQ79: =IF("na"=M79,"",SQRT(M79)/SQRT(M77)) -> 1.499 | AR79: =IF("na"=Q79,"",SQRT(Q79)/SQRT(Q77)) -> 1.263 | AS79: =IF("na"=T79,"",SQRT(T79)/SQRT(T77)) -> 1.888 | AT79: =IF("na"=X79,"",SQRT(X79)/SQRT(X77)) -> 1.625
A80: Peri | B80: 0.449 | C80: 1.544 | D80: 0.449 | E80: 0.037 | F80: 0.001 | G80: 1.462 | H80: 0.250 | I80: 1.432 | J80: 0.075 | K80: 0.441 | L80: 0.029 | M80: 0.001 | N80: 1.429 | O80: 0.183 | P80: 1.413 | Q80: 0.051 | R80: 0.437 | S80: 0.025 | T80: 0.001 | U80: 1.418 | V80: 0.141 | W80: 1.408 | X80: 0.038 | AA80: =IF("na"=F80,"",F80/F77) -> 1.02121050226 | AB80: =IF("na"=J80,"",J80/J77) -> 1.114 | AC80: =IF("na"=M80,"",M80/M77) -> 1.448 | AD80: =IF("na"=Q80,"",Q80/Q77) -> 1.407 | AE80: =IF("na"=T80,"",T80/T77) -> 2.467 | AF80: =IF("na"=X80,"",X80/X77) -> 2.353 | AG80: 78.000 | AH80: 1 | AI80: 3 | AJ80: 2 | AK80: 7 | AL80: 4 | AM80: 7 | AO80: =IF("na"=F80,"",SQRT(F80)/SQRT(F77)) -> 1.011 | AP80: =IF("na"=J80,"",SQRT(J80)/SQRT(J77)) -> 1.056 | AQ80: =IF("na"=M80,"",SQRT(M80)/SQRT(M77)) -> 1.203 | AR80: =IF("na"=Q80,"",SQRT(Q80)/SQRT(Q77)) -> 1.186 | AS80: =IF("na"=T80,"",SQRT(T80)/SQRT(T77)) -> 1.571 | AT80: =IF("na"=X80,"",SQRT(X80)/SQRT(X77)) -> 1.534
A81: Quad | B81: 0.449 | C81: 1.544 | D81: 0.464 | E81: 0.036 | F81: 0.002 | G81: 1.477 | H81: 0.247 | I81: 1.449 | J81: 0.070 | K81: 0.467 | L81: 0.028 | M81: 0.001 | N81: 1.462 | O81: 0.168 | P81: 1.448 | Q81: 0.037 | R81: 0.465 | S81: 0.021 | T81: 0.001 | U81: 1.457 | V81: 0.130 | W81: 1.449 | X81: 0.026 | AA81: =IF("na"=F81,"",F81/F77) -> 1.15252877974 | AB81: =IF("na"=J81,"",J81/J77) -> 1.042 | AC81: =IF("na"=M81,"",M81/M77) -> 1.786 | AD81: =IF("na"=Q81,"",Q81/Q77) -> 1.033 | AE81: =IF("na"=T81,"",T81/T77) -> 2.207 | AF81: =IF("na"=X81,"",X81/X77) -> 1.585 | AG81: 78.000 | AH81: 2 | AI81: 1 | AJ81: 4 | AK81: 2 | AL81: 2 | AM81: 2 | AO81: =IF("na"=F81,"",SQRT(F81)/SQRT(F77)) -> 1.074 | AP81: =IF("na"=J81,"",SQRT(J81)/SQRT(J77)) -> 1.021 | AQ81: =IF("na"=M81,"",SQRT(M81)/SQRT(M77)) -> 1.336 | AR81: =IF("na"=Q81,"",SQRT(Q81)/SQRT(Q77)) -> 1.016 | AS81: =IF("na"=T81,"",SQRT(T81)/SQRT(T77)) -> 1.486 | AT81: =IF("na"=X81,"",SQRT(X81)/SQRT(X77)) -> 1.259
A82: Square | B82: 0.449 | C82: 1.544 | D82: 0.436 | E82: 0.037 | F82: 0.0015 | G82: 1.535 | H82: 0.2654 | I82: 1.5028 | J82: 0.072 | K82: 0.437 | L82: 0.024 | M82: 0.0007 | N82: 1.517 | O82: 0.1818 | P82: 1.5022 | Q82: 0.035 | R82: 0.437 | S82: 0.018 | T82: 0.0005 | U82: 1.510 | V82: 0.1259 | W82: 1.5027 | X82: 0.018 | AA82: =IF("na"=F82,"",F82/F77) -> 1.15680741520 | AB82: =IF("na"=J82,"",J82/J77) -> 1.071 | AC82: =IF("na"=M82,"",M82/M77) -> 1.103 | AD82: =IF("na"=Q82,"",Q82/Q77) -> 0.966 | AE82: =IF("na"=T82,"",T82/T77) -> 1.450 | AF82: =IF("na"=X82,"",X82/X77) -> 1.076 | AG82: 78.000 | AH82: 3 | AI82: 2 | AJ82: 1 | AK82: 1 | AL82: 1 | AM82: 1 | AO82: =IF("na"=F82,"",SQRT(F82)/SQRT(F77)) -> 1.076 | AP82: =IF("na"=J82,"",SQRT(J82)/SQRT(J77)) -> 1.035 | AQ82: =IF("na"=M82,"",SQRT(M82)/SQRT(M77)) -> 1.050 | AR82: =IF("na"=Q82,"",SQRT(Q82)/SQRT(Q77)) -> 0.983 | AS82: =IF("na"=T82,"",SQRT(T82)/SQRT(T77)) -> 1.204 | AT82: =IF("na"=X82,"",SQRT(X82)/SQRT(X77)) -> 1.038
A83: OldEPI | B83: 0.449 | C83: 1.544 | D83: 0.464 | E83: 0.041 | F83: 0.0019 | G83: 1.489 | H83: 0.2852 | I83: 1.4502 | J83: 0.090 | K83: 0.464 | L83: 0.034 | M83: 0.0014 | N83: 1.464 | O83: 0.1982 | P83: 1.4446 | Q83: 0.049 | R83: 0.463 | S83: 0.028 | T83: 0.0010 | U83: 1.463 | V83: 0.1582 | W83: 1.4509 | X83: 0.034 | AA83: =IF("na"=F83,"",F83/F77) -> 1.46726329810 | AB83: =IF("na"=J83,"",J83/J77) -> 1.339 | AC83: =IF("na"=M83,"",M83/M77) -> 2.182 | AD83: =IF("na"=Q83,"",Q83/Q77) -> 1.364 | AE83: =IF("na"=T83,"",T83/T77) -> 3.107 | AF83: =IF("na"=X83,"",X83/X77) -> 2.067 | AG83: 78.000 | AH83: 7 | AI83: 8 | AJ83: 7 | AK83: 6 | AL83: 6 | AM83: 5 | AO83: =IF("na"=F83,"",SQRT(F83)/SQRT(F77)) -> 1.211 | AP83: =IF("na"=J83,"",SQRT(J83)/SQRT(J77)) -> 1.157 | AQ83: =IF("na"=M83,"",SQRT(M83)/SQRT(M77)) -> 1.477 | AR83: =IF("na"=Q83,"",SQRT(Q83)/SQRT(Q77)) -> 1.168 | AS83: =IF("na"=T83,"",SQRT(T83)/SQRT(T77)) -> 1.763 | AT83: =IF("na"=X83,"",SQRT(X83)/SQRT(X77)) -> 1.438
A84: EPI3 | B84: 0.449 | C84: 1.544 | D84: 0.463 | E84: 0.040 | F84: 0.0018 | G84: 1.479 | H84: 0.2699 | I84: 1.4451 | J84: 0.083 | K84: 0.459 | L84: 0.032 | M84: 0.0012 | N84: 1.481 | O84: 0.2016 | P84: 1.4619 | Q84: 0.047 | R84: 0.457 | S84: 0.028 | T84: 0.0009 | U84: 1.486 | V84: 0.1581 | W84: 1.4742 | X84: 0.030 | AA84: =IF("na"=F84,"",F84/F77) -> 1.38973938358 | AB84: =IF("na"=J84,"",J84/J77) -> 1.227 | AC84: =IF("na"=M84,"",M84/M77) -> 1.841 | AD84: =IF("na"=Q84,"",Q84/Q77) -> 1.315 | AE84: =IF("na"=T84,"",T84/T77) -> 2.693 | AF84: =IF("na"=X84,"",X84/X77) -> 1.832 | AG84: 78.000 | AH84: 6 | AI84: 5 | AJ84: 5 | AK84: 4 | AL84: 5 | AM84: 4 | AO84: =IF("na"=F84,"",SQRT(F84)/SQRT(F77)) -> 1.179 | AP84: =IF("na"=J84,"",SQRT(J84)/SQRT(J77)) -> 1.108 | AQ84: =IF("na"=M84,"",SQRT(M84)/SQRT(M77)) -> 1.357 | AR84: =IF("na"=Q84,"",SQRT(Q84)/SQRT(Q77)) -> 1.147 | AS84: =IF("na"=T84,"",SQRT(T84)/SQRT(T77)) -> 1.641 | AT84: =IF("na"=X84,"",SQRT(X84)/SQRT(X77)) -> 1.353
A85: EPI5 | B85: 0.449 | C85: 1.544 | D85: 0.462 | E85: 0.039 | F85: 0.0017 | G85: 1.490 | H85: 0.2623 | I85: 1.4579 | J85: 0.076 | K85: 0.459 | L85: 0.032 | M85: 0.0011 | N85: 1.495 | O85: 0.1943 | P85: 1.4778 | Q85: 0.042 | R85: 0.455 | S85: 0.027 | T85: 0.0008 | U85: 1.508 | V85: 0.1547 | W85: 1.4975 | X85: 0.026 | AA85: =IF("na"=F85,"",F85/F77) -> 1.29324518420 | AB85: =IF("na"=J85,"",J85/J77) -> 1.132 | AC85: =IF("na"=M85,"",M85/M77) -> 1.773 | AD85: =IF("na"=Q85,"",Q85/Q77) -> 1.170 | AE85: =IF("na"=T85,"",T85/T77) -> 2.372 | AF85: =IF("na"=X85,"",X85/X77) -> 1.600 | AG85: 78.000 | AH85: 4 | AI85: 4 | AJ85: 3 | AK85: 3 | AL85: 3 | AM85: 3 | AO85: =IF("na"=F85,"",SQRT(F85)/SQRT(F77)) -> 1.137 | AP85: =IF("na"=J85,"",SQRT(J85)/SQRT(J77)) -> 1.064 | AQ85: =IF("na"=M85,"",SQRT(M85)/SQRT(M77)) -> 1.332 | AR85: =IF("na"=Q85,"",SQRT(Q85)/SQRT(Q77)) -> 1.081 | AS85: =IF("na"=T85,"",SQRT(T85)/SQRT(T77)) -> 1.540 | AT85: =IF("na"=X85,"",SQRT(X85)/SQRT(X77)) -> 1.265
D87: population 3
B88: true | C88: true | D88: 7 | K88: 15 | R88: 30
B89: mean | C89: rr | D89: mean | E89: stdev | F89: mse | G89: mrr | H89: srr | I89: prr | J89: mse_rr | K89: mean | L89: stdev | M89: mse | N89: mrr | O89: srr | P89: prr | Q89: mse_rr | R89: mean | S89: stdev | T89: mse | U89: mrr | V89: srr | W89: prr | X89: mse_rr
A90: Random | B90: 0.167 | C90: 1.538 | D90: 0.159 | E90: 0.026 | F90: 0.001 | G90: 1.679 | H90: 0.810 | I90: 1.485 | J90: 0.659 | K90: 0.159 | L90: 0.019 | M90: 0.000 | N90: 1.590 | O90: 0.451 | P90: 1.508 | Q90: 0.204 | R90: 0.160 | S90: 0.012 | T90: 0.000 | U90: 1.534 | V90: 0.283 | W90: 1.496 | X90: 0.082
A91: NewEPI | B91: 0.167 | C91: 1.538 | D91: 0.163 | E91: 0.027 | F91: 0.001 | G91: 1.630 | H91: 0.758 | I91: 1.442 | J91: 0.584 | K91: 0.162 | L91: 0.021 | M91: 0.000 | N91: 1.522 | O91: 0.460 | P91: 1.430 | Q91: 0.223 | R91: 0.163 | S91: 0.017 | T91: 0.000 | U91: 1.498 | V91: 0.336 | W91: 1.446 | X91: 0.121 | AA91: =IF("na"=F91,"",F91/F90) -> 1.02071711539 | AB91: =IF("na"=J91,"",J91/J90) -> 0.885 | AC91: =IF("na"=M91,"",M91/M90) -> 1.156 | AD91: =IF("na"=Q91,"",Q91/Q90) -> 1.094 | AE91: =IF("na"=T91,"",T91/T90) -> 1.466 | AF91: =IF("na"=X91,"",X91/X90) -> 1.477 | AG91: =ROW() -> 91.000 | AH91: =SUM(IF(INDIRECT(ADDRESS(ROW(),AH$60))>INDIRECT(ADDRESS($AG91,AH$60)),1,0), IF(INDIRECT(ADDRESS(ROW(),AH$60))>INDIRECT(ADDRESS($AG91+1,AH$60)),1,0), IF(INDIRECT(ADDRESS(ROW(),AH$60))>INDIRECT(ADDRESS($AG91+2,AH$60)),1,0), IF(INDIRECT(ADDRESS(ROW(),AH$60))>INDIRECT(ADDRESS($AG91+3,AH$60)),1,0), IF(INDIRECT(ADDRESS(ROW(),AH$60))>INDIRECT(ADDRESS($AG91+4,AH$60)),1,0), IF(INDIRECT(ADDRESS(ROW(),AH$60))>INDIRECT(ADDRESS($AG91+5,AH$60)),1,0), IF(INDIRECT(ADDRESS(ROW(),AH$60))>INDIRECT(ADDRESS($AG91+6,AH$60)),1,0), IF(INDIRECT(ADDRESS(ROW(),AH$60))>INDIRECT(ADDRESS($AG91+7,AH$60)),1,0))+1 -> 3 | AI91: 2 | AJ91: 3 | AK91: 2 | AL91: 3 | AM91: 2 | AO91: =IF("na"=F91,"",SQRT(F91)/SQRT(F90)) -> 1.010 | AP91: =IF("na"=J91,"",SQRT(J91)/SQRT(J90)) -> 0.941 | AQ91: =IF("na"=M91,"",SQRT(M91)/SQRT(M90)) -> 1.075 | AR91: =IF("na"=Q91,"",SQRT(Q91)/SQRT(Q90)) -> 1.046 | AS91: =IF("na"=T91,"",SQRT(T91)/SQRT(T90)) -> 1.211 | AT91: =IF("na"=X91,"",SQRT(X91)/SQRT(X90)) -> 1.215
A92: Grid | B92: 0.167 | C92: 1.538 | D92: 0.174 | E92: 0.030 | F92: 0.001 | G92: 1.912 | H92: 1.119 | I92: 1.572 | J92: 1.254 | K92: 0.173 | L92: 0.024 | M92: 0.001 | N92: 1.722 | O92: 0.802 | P92: 1.567 | Q92: 0.644 | R92: 0.173 | S92: 0.019 | T92: 0.000 | U92: 1.644 | V92: 0.448 | W92: 1.561 | X92: 0.201 | AA92: =IF("na"=F92,"",F92/F90) -> 1.30115465964 | AB92: =IF("na"=J92,"",J92/J90) -> 1.902 | AC92: =IF("na"=M92,"",M92/M90) -> 1.552 | AD92: =IF("na"=Q92,"",Q92/Q90) -> 3.160 | AE92: =IF("na"=T92,"",T92/T90) -> 2.099 | AF92: =IF("na"=X92,"",X92/X90) -> 2.446 | AG92: =AG91 -> 91.000 | AH92: 8 | AI92: 5 | AJ92: 7 | AK92: 8 | AL92: 7 | AM92: 8 | AO92: =IF("na"=F92,"",SQRT(F92)/SQRT(F90)) -> 1.141 | AP92: =IF("na"=J92,"",SQRT(J92)/SQRT(J90)) -> 1.379 | AQ92: =IF("na"=M92,"",SQRT(M92)/SQRT(M90)) -> 1.246 | AR92: =IF("na"=Q92,"",SQRT(Q92)/SQRT(Q90)) -> 1.778 | AS92: =IF("na"=T92,"",SQRT(T92)/SQRT(T90)) -> 1.449 | AT92: =IF("na"=X92,"",SQRT(X92)/SQRT(X90)) -> 1.564
A93: Peri | B93: 0.167 | C93: 1.538 | D93: 0.165 | E93: 0.027 | F93: 0.001 | G93: 1.739 | H93: 1.127 | I93: 1.440 | J93: 1.281 | K93: 0.166 | L93: 0.020 | M93: 0.000 | N93: 1.533 | O93: 0.529 | P93: 1.422 | Q93: 0.294 | R93: 0.171 | S93: 0.016 | T93: 0.000 | U93: 1.512 | V93: 0.340 | W93: 1.457 | X93: 0.122 | AA93: =IF("na"=F93,"",F93/F90) -> 1.00265343514 | AB93: =IF("na"=J93,"",J93/J90) -> 1.943 | AC93: =IF("na"=M93,"",M93/M90) -> 0.991 | AD93: =IF("na"=Q93,"",Q93/Q90) -> 1.441 | AE93: =IF("na"=T93,"",T93/T90) -> 1.416 | AF93: =IF("na"=X93,"",X93/X90) -> 1.486 | AG93: 91.000 | AH93: 2 | AI93: 6 | AJ93: 2 | AK93: 3 | AL93: 2 | AM93: 3 | AO93: =IF("na"=F93,"",SQRT(F93)/SQRT(F90)) -> 1.001 | AP93: =IF("na"=J93,"",SQRT(J93)/SQRT(J90)) -> 1.394 | AQ93: =IF("na"=M93,"",SQRT(M93)/SQRT(M90)) -> 0.995 | AR93: =IF("na"=Q93,"",SQRT(Q93)/SQRT(Q90)) -> 1.200 | AS93: =IF("na"=T93,"",SQRT(T93)/SQRT(T90)) -> 1.190 | AT93: =IF("na"=X93,"",SQRT(X93)/SQRT(X90)) -> 1.219
A94: Quad | B94: 0.167 | C94: 1.538 | D94: 0.178 | E94: 0.026 | F94: 0.001 | G94: 1.843 | H94: 1.196 | I94: 1.564 | J94: 1.431 | K94: 0.177 | L94: 0.019 | M94: 0.000 | N94: 1.689 | O94: 0.567 | P94: 1.557 | Q94: 0.322 | R94: 0.177 | S94: 0.014 | T94: 0.000 | U94: 1.634 | V94: 0.373 | W94: 1.573 | X94: 0.140 | AA94: =IF("na"=F94,"",F94/F90) -> 1.11182159249 | AB94: =IF("na"=J94,"",J94/J90) -> 2.171 | AC94: =IF("na"=M94,"",M94/M90) -> 1.183 | AD94: =IF("na"=Q94,"",Q94/Q90) -> 1.580 | AE94: =IF("na"=T94,"",T94/T90) -> 1.624 | AF94: =IF("na"=X94,"",X94/X90) -> 1.711 | AG94: 91.000 | AH94: 4 | AI94: 8 | AJ94: 4 | AK94: 5 | AL94: 4 | AM94: 4 | AO94: =IF("na"=F94,"",SQRT(F94)/SQRT(F90)) -> 1.054 | AP94: =IF("na"=J94,"",SQRT(J94)/SQRT(J90)) -> 1.474 | AQ94: =IF("na"=M94,"",SQRT(M94)/SQRT(M90)) -> 1.087 | AR94: =IF("na"=Q94,"",SQRT(Q94)/SQRT(Q90)) -> 1.257 | AS94: =IF("na"=T94,"",SQRT(T94)/SQRT(T90)) -> 1.274 | AT94: =IF("na"=X94,"",SQRT(X94)/SQRT(X90)) -> 1.308
A95: Square | B95: 0.167 | C95: 1.538 | D95: 0.162 | E95: 0.025 | F95: 0.0006 | G95: 1.688 | H95: 0.6806 | I95: 1.5229 | J95: 0.463 | K95: 0.161 | L95: 0.017 | M95: 0.0003 | N95: 1.610 | O95: 0.4474 | P95: 1.5276 | Q95: 0.200 | R95: 0.162 | S95: 0.012 | T95: 0.0002 | U95: 1.590 | V95: 0.2943 | W95: 1.5504 | X95: 0.087 | AA95: =IF("na"=F95,"",F95/F90) -> 0.86440445244 | AB95: =IF("na"=J95,"",J95/J90) -> 0.703 | AC95: =IF("na"=M95,"",M95/M90) -> 0.839 | AD95: =IF("na"=Q95,"",Q95/Q90) -> 0.983 | AE95: =IF("na"=T95,"",T95/T90) -> 0.874 | AF95: =IF("na"=X95,"",X95/X90) -> 1.057 | AG95: 91.000 | AH95: 1 | AI95: 1 | AJ95: 1 | AK95: 1 | AL95: 1 | AM95: 1 | AO95: =IF("na"=F95,"",SQRT(F95)/SQRT(F90)) -> 0.930 | AP95: =IF("na"=J95,"",SQRT(J95)/SQRT(J90)) -> 0.838 | AQ95: =IF("na"=M95,"",SQRT(M95)/SQRT(M90)) -> 0.916 | AR95: =IF("na"=Q95,"",SQRT(Q95)/SQRT(Q90)) -> 0.991 | AS95: =IF("na"=T95,"",SQRT(T95)/SQRT(T90)) -> 0.935 | AT95: =IF("na"=X95,"",SQRT(X95)/SQRT(X90)) -> 1.028
A96: OldEPI | B96: 0.167 | C96: 1.538 | D96: 0.177 | E96: 0.028 | F96: 0.0009 | G96: 1.867 | H96: 1.1930 | I96: 1.5307 | J96: 1.423 | K96: 0.178 | L96: 0.023 | M96: 0.0006 | N96: 1.649 | O96: 0.5745 | P96: 1.5218 | Q96: 0.330 | R96: 0.179 | S96: 0.019 | T96: 0.0005 | U96: 1.624 | V96: 0.4049 | W96: 1.5525 | X96: 0.164 | AA96: =IF("na"=F96,"",F96/F90) -> 1.25520498936 | AB96: =IF("na"=J96,"",J96/J90) -> 2.159 | AC96: =IF("na"=M96,"",M96/M90) -> 1.630 | AD96: =IF("na"=Q96,"",Q96/Q90) -> 1.620 | AE96: =IF("na"=T96,"",T96/T90) -> 2.476 | AF96: =IF("na"=X96,"",X96/X90) -> 1.999 | AG96: 91.000 | AH96: 7 | AI96: 7 | AJ96: 8 | AK96: 6 | AL96: 8 | AM96: 7 | AO96: =IF("na"=F96,"",SQRT(F96)/SQRT(F90)) -> 1.120 | AP96: =IF("na"=J96,"",SQRT(J96)/SQRT(J90)) -> 1.469 | AQ96: =IF("na"=M96,"",SQRT(M96)/SQRT(M90)) -> 1.277 | AR96: =IF("na"=Q96,"",SQRT(Q96)/SQRT(Q90)) -> 1.273 | AS96: =IF("na"=T96,"",SQRT(T96)/SQRT(T90)) -> 1.574 | AT96: =IF("na"=X96,"",SQRT(X96)/SQRT(X90)) -> 1.414
A97: EPI3 | B97: 0.167 | C97: 1.538 | D97: 0.178 | E97: 0.028 | F97: 0.0009 | G97: 1.808 | H97: 0.9743 | I97: 1.5258 | J97: 0.949 | K97: 0.179 | L97: 0.021 | M97: 0.0006 | N97: 1.651 | O97: 0.5499 | P97: 1.5262 | Q97: 0.303 | R97: 0.177 | S97: 0.016 | T97: 0.0004 | U97: 1.628 | V97: 0.3910 | W97: 1.5612 | X97: 0.153 | AA97: =IF("na"=F97,"",F97/F90) -> 1.22410975020 | AB97: =IF("na"=J97,"",J97/J90) -> 1.440 | AC97: =IF("na"=M97,"",M97/M90) -> 1.518 | AD97: =IF("na"=Q97,"",Q97/Q90) -> 1.484 | AE97: =IF("na"=T97,"",T97/T90) -> 1.813 | AF97: =IF("na"=X97,"",X97/X90) -> 1.869 | AG97: 91.000 | AH97: 6 | AI97: 3 | AJ97: 6 | AK97: 4 | AL97: 6 | AM97: 5 | AO97: =IF("na"=F97,"",SQRT(F97)/SQRT(F90)) -> 1.106 | AP97: =IF("na"=J97,"",SQRT(J97)/SQRT(J90)) -> 1.200 | AQ97: =IF("na"=M97,"",SQRT(M97)/SQRT(M90)) -> 1.232 | AR97: =IF("na"=Q97,"",SQRT(Q97)/SQRT(Q90)) -> 1.218 | AS97: =IF("na"=T97,"",SQRT(T97)/SQRT(T90)) -> 1.347 | AT97: =IF("na"=X97,"",SQRT(X97)/SQRT(X90)) -> 1.367
A98: EPI5 | B98: 0.167 | C98: 1.538 | D98: 0.177 | E98: 0.027 | F98: 0.0009 | G98: 1.807 | H98: 1.0215 | I98: 1.5453 | J98: 1.043 | K98: 0.177 | L98: 0.021 | M98: 0.0005 | N98: 1.721 | O98: 0.5897 | P98: 1.5964 | Q98: 0.351 | R98: 0.176 | S98: 0.016 | T98: 0.0003 | U98: 1.675 | V98: 0.3888 | W98: 1.6182 | X98: 0.158 | AA98: =IF("na"=F98,"",F98/F90) -> 1.19187253845 | AB98: =IF("na"=J98,"",J98/J90) -> 1.583 | AC98: =IF("na"=M98,"",M98/M90) -> 1.324 | AD98: =IF("na"=Q98,"",Q98/Q90) -> 1.723 | AE98: =IF("na"=T98,"",T98/T90) -> 1.760 | AF98: =IF("na"=X98,"",X98/X90) -> 1.920 | AG98: 91.000 | AH98: 5 | AI98: 4 | AJ98: 5 | AK98: 7 | AL98: 5 | AM98: 6 | AO98: =IF("na"=F98,"",SQRT(F98)/SQRT(F90)) -> 1.092 | AP98: =IF("na"=J98,"",SQRT(J98)/SQRT(J90)) -> 1.258 | AQ98: =IF("na"=M98,"",SQRT(M98)/SQRT(M90)) -> 1.151 | AR98: =IF("na"=Q98,"",SQRT(Q98)/SQRT(Q90)) -> 1.313 | AS98: =IF("na"=T98,"",SQRT(T98)/SQRT(T90)) -> 1.327 | AT98: =IF("na"=X98,"",SQRT(X98)/SQRT(X90)) -> 1.386
D100: population 4
B101: true | C101: true | D101: 7 | K101: 15 | R101: 30
B102: mean | C102: rr | D102: mean | E102: stdev | F102: mse | G102: mrr | H102: srr | I102: prr | J102: mse_rr | K102: mean | L102: stdev | M102: mse | N102: mrr | O102: srr | P102: prr | Q102: mse_rr | R102: mean | S102: stdev | T102: mse | U102: mrr | V102: srr | W102: prr | X102: mse_rr
A103: Random | B103: 0.148 | C103: 1.627 | D103: 0.150 | E103: 0.028 | F103: 0.001 | G103: 1.901 | H103: 0.764 | I103: 1.747 | J103: 0.598 | K103: 0.149 | L103: 0.020 | M103: 0.000 | N103: 1.817 | O103: 0.469 | P103: 1.744 | Q103: 0.234 | R103: 0.150 | S103: 0.015 | T103: 0.000 | U103: 1.821 | V103: 0.331 | W103: 1.785 | X103: 0.134
A104: NewEPI | B104: 0.148 | C104: 1.627 | D104: 0.152 | E104: 0.035 | F104: 0.001 | G104: 1.964 | H104: 0.817 | I104: 1.790 | J104: 0.694 | K104: 0.153 | L104: 0.031 | M104: 0.001 | N104: 1.885 | O104: 0.591 | P104: 1.790 | Q104: 0.376 | R104: 0.153 | S104: 0.028 | T104: 0.001 | U104: 1.820 | V104: 0.444 | W104: 1.767 | X104: 0.217 | AA104: =IF("na"=F104,"",F104/F103) -> 1.54293306045 | AB104: =IF("na"=J104,"",J104/J103) -> 1.160 | AC104: =IF("na"=M104,"",M104/M103) -> 2.289 | AD104: =IF("na"=Q104,"",Q104/Q103) -> 1.609 | AE104: =IF("na"=T104,"",T104/T103) -> 3.687 | AF104: =IF("na"=X104,"",X104/X103) -> 1.618 | AG104: =ROW() -> 104.000 | AH104: =SUM(IF(INDIRECT(ADDRESS(ROW(),AH$60))>INDIRECT(ADDRESS($AG104,AH$60)),1,0), IF(INDIRECT(ADDRESS(ROW(),AH$60))>INDIRECT(ADDRESS($AG104+1,AH$60)),1,0), IF(INDIRECT(ADDRESS(ROW(),AH$60))>INDIRECT(ADDRESS($AG104+2,AH$60)),1,0), IF(INDIRECT(ADDRESS(ROW(),AH$60))>INDIRECT(ADDRESS($AG104+3,AH$60)),1,0), IF(INDIRECT(ADDRESS(ROW(),AH$60))>INDIRECT(ADDRESS($AG104+4,AH$60)),1,0), IF(INDIRECT(ADDRESS(ROW(),AH$60))>INDIRECT(ADDRESS($AG104+5,AH$60)),1,0), IF(INDIRECT(ADDRESS(ROW(),AH$60))>INDIRECT(ADDRESS($AG104+6,AH$60)),1,0), IF(INDIRECT(ADDRESS(ROW(),AH$60))>INDIRECT(ADDRESS($AG104+7,AH$60)),1,0))+1 -> 3 | AI104: 6 | AJ104: 3 | AK104: 7 | AL104: 3 | AM104: 7 | AO104: =IF("na"=F104,"",SQRT(F104)/SQRT(F103)) -> 1.242 | AP104: =IF("na"=J104,"",SQRT(J104)/SQRT(J103)) -> 1.077 | AQ104: =IF("na"=M104,"",SQRT(M104)/SQRT(M103)) -> 1.513 | AR104: =IF("na"=Q104,"",SQRT(Q104)/SQRT(Q103)) -> 1.268 | AS104: =IF("na"=T104,"",SQRT(T104)/SQRT(T103)) -> 1.920 | AT104: =IF("na"=X104,"",SQRT(X104)/SQRT(X103)) -> 1.272
A105: Grid | B105: 0.148 | C105: 1.627 | D105: 0.161 | E105: 0.037 | F105: 0.002 | G105: 1.937 | H105: 0.812 | I105: 1.763 | J105: 0.678 | K105: 0.161 | L105: 0.034 | M105: 0.001 | N105: 1.897 | O105: 0.607 | P105: 1.794 | Q105: 0.396 | R105: 0.162 | S105: 0.032 | T105: 0.001 | U105: 1.829 | V105: 0.476 | W105: 1.768 | X105: 0.246 | AA105: =IF("na"=F105,"",F105/F103) -> 1.97060205571 | AB105: =IF("na"=J105,"",J105/J103) -> 1.134 | AC105: =IF("na"=M105,"",M105/M103) -> 3.143 | AD105: =IF("na"=Q105,"",Q105/Q103) -> 1.696 | AE105: =IF("na"=T105,"",T105/T103) -> 5.663 | AF105: =IF("na"=X105,"",X105/X103) -> 1.836 | AG105: =AG104 -> 104.000 | AH105: 4 | AI105: 5 | AJ105: 4 | AK105: 8 | AL105: 4 | AM105: 8 | AO105: =IF("na"=F105,"",SQRT(F105)/SQRT(F103)) -> 1.404 | AP105: =IF("na"=J105,"",SQRT(J105)/SQRT(J103)) -> 1.065 | AQ105: =IF("na"=M105,"",SQRT(M105)/SQRT(M103)) -> 1.773 | AR105: =IF("na"=Q105,"",SQRT(Q105)/SQRT(Q103)) -> 1.302 | AS105: =IF("na"=T105,"",SQRT(T105)/SQRT(T103)) -> 2.380 | AT105: =IF("na"=X105,"",SQRT(X105)/SQRT(X103)) -> 1.355
A106: Peri | B106: 0.148 | C106: 1.627 | D106: 0.159 | E106: 0.028 | F106: 0.001 | G106: 1.819 | H106: 0.687 | I106: 1.670 | J106: 0.474 | K106: 0.161 | L106: 0.022 | M106: 0.001 | N106: 1.710 | O106: 0.412 | P106: 1.649 | Q106: 0.170 | R106: 0.164 | S106: 0.020 | T106: 0.001 | U106: 1.704 | V106: 0.310 | W106: 1.670 | X106: 0.098 | AA106: =IF("na"=F106,"",F106/F103) -> 1.13227798317 | AB106: =IF("na"=J106,"",J106/J103) -> 0.792 | AC106: =IF("na"=M106,"",M106/M103) -> 1.603 | AD106: =IF("na"=Q106,"",Q106/Q103) -> 0.728 | AE106: =IF("na"=T106,"",T106/T103) -> 3.088 | AF106: =IF("na"=X106,"",X106/X103) -> 0.729 | AG106: 104.000 | AH106: 2 | AI106: 1 | AJ106: 2 | AK106: 1 | AL106: 2 | AM106: 1 | AO106: =IF("na"=F106,"",SQRT(F106)/SQRT(F103)) -> 1.064 | AP106: =IF("na"=J106,"",SQRT(J106)/SQRT(J103)) -> 0.890 | AQ106: =IF("na"=M106,"",SQRT(M106)/SQRT(M103)) -> 1.266 | AR106: =IF("na"=Q106,"",SQRT(Q106)/SQRT(Q103)) -> 0.853 | AS106: =IF("na"=T106,"",SQRT(T106)/SQRT(T103)) -> 1.757 | AT106: =IF("na"=X106,"",SQRT(X106)/SQRT(X103)) -> 0.854
A107: Quad | B107: 0.148 | C107: 1.627 | D107: 0.182 | E107: 0.030 | F107: 0.002 | G107: 1.883 | H107: 0.688 | I107: 1.745 | J107: 0.487 | K107: 0.180 | L107: 0.023 | M107: 0.002 | N107: 1.787 | O107: 0.449 | P107: 1.719 | Q107: 0.210 | R107: 0.179 | S107: 0.019 | T107: 0.001 | U107: 1.789 | V107: 0.290 | W107: 1.758 | X107: 0.101 | AA107: =IF("na"=F107,"",F107/F103) -> 2.57595897532 | AB107: =IF("na"=J107,"",J107/J103) -> 0.814 | AC107: =IF("na"=M107,"",M107/M103) -> 3.779 | AD107: =IF("na"=Q107,"",Q107/Q103) -> 0.899 | AE107: =IF("na"=T107,"",T107/T103) -> 6.114 | AF107: =IF("na"=X107,"",X107/X103) -> 0.756 | AG107: 104.000 | AH107: 5 | AI107: 2 | AJ107: 5 | AK107: 2 | AL107: 5 | AM107: 2 | AO107: =IF("na"=F107,"",SQRT(F107)/SQRT(F103)) -> 1.605 | AP107: =IF("na"=J107,"",SQRT(J107)/SQRT(J103)) -> 0.902 | AQ107: =IF("na"=M107,"",SQRT(M107)/SQRT(M103)) -> 1.944 | AR107: =IF("na"=Q107,"",SQRT(Q107)/SQRT(Q103)) -> 0.948 | AS107: =IF("na"=T107,"",SQRT(T107)/SQRT(T103)) -> 2.473 | AT107: =IF("na"=X107,"",SQRT(X107)/SQRT(X103)) -> 0.870
A108: Square | B108: 0.148 | C108: 1.627 | D108: 0.154 | E108: 0.029 | F108: 0.0009 | G108: 1.942 | H108: 0.8423 | I108: 1.7716 | J108: 0.730 | K108: 0.154 | L108: 0.021 | M108: 0.0005 | N108: 1.875 | O108: 0.4859 | P108: 1.7971 | Q108: 0.265 | R108: 0.153 | S108: 0.015 | T108: 0.0002 | U108: 1.839 | V108: 0.3322 | W108: 1.7987 | X108: 0.140 | AA108: =IF("na"=F108,"",F108/F103) -> 1.12708361475 | AB108: =IF("na"=J108,"",J108/J103) -> 1.221 | AC108: =IF("na"=M108,"",M108/M103) -> 1.140 | AD108: =IF("na"=Q108,"",Q108/Q103) -> 1.135 | AE108: =IF("na"=T108,"",T108/T103) -> 1.096 | AF108: =IF("na"=X108,"",X108/X103) -> 1.042 | AG108: 104.000 | AH108: 1 | AI108: 7 | AJ108: 1 | AK108: 3 | AL108: 1 | AM108: 3 | AO108: =IF("na"=F108,"",SQRT(F108)/SQRT(F103)) -> 1.062 | AP108: =IF("na"=J108,"",SQRT(J108)/SQRT(J103)) -> 1.105 | AQ108: =IF("na"=M108,"",SQRT(M108)/SQRT(M103)) -> 1.068 | AR108: =IF("na"=Q108,"",SQRT(Q108)/SQRT(Q103)) -> 1.065 | AS108: =IF("na"=T108,"",SQRT(T108)/SQRT(T103)) -> 1.047 | AT108: =IF("na"=X108,"",SQRT(X108)/SQRT(X103)) -> 1.021
A109: OldEPI | B109: 0.148 | C109: 1.627 | D109: 0.180 | E109: 0.036 | F109: 0.0024 | G109: 1.872 | H109: 0.7214 | I109: 1.7344 | J109: 0.532 | K109: 0.183 | L109: 0.033 | M109: 0.0023 | N109: 1.838 | O109: 0.5200 | P109: 1.7612 | Q109: 0.288 | R109: 0.184 | S109: 0.031 | T109: 0.0022 | U109: 1.781 | V109: 0.4204 | W109: 1.7285 | X109: 0.187 | AA109: =IF("na"=F109,"",F109/F103) -> 2.96609315929 | AB109: =IF("na"=J109,"",J109/J103) -> 0.889 | AC109: =IF("na"=M109,"",M109/M103) -> 5.524 | AD109: =IF("na"=Q109,"",Q109/Q103) -> 1.235 | AE109: =IF("na"=T109,"",T109/T103) -> 10.147 | AF109: =IF("na"=X109,"",X109/X103) -> 1.394 | AG109: 104.000 | AH109: 6 | AI109: 3 | AJ109: 8 | AK109: 4 | AL109: 8 | AM109: 5 | AO109: =IF("na"=F109,"",SQRT(F109)/SQRT(F103)) -> 1.722 | AP109: =IF("na"=J109,"",SQRT(J109)/SQRT(J103)) -> 0.943 | AQ109: =IF("na"=M109,"",SQRT(M109)/SQRT(M103)) -> 2.350 | AR109: =IF("na"=Q109,"",SQRT(Q109)/SQRT(Q103)) -> 1.111 | AS109: =IF("na"=T109,"",SQRT(T109)/SQRT(T103)) -> 3.185 | AT109: =IF("na"=X109,"",SQRT(X109)/SQRT(X103)) -> 1.181
A110: EPI3 | B110: 0.148 | C110: 1.627 | D110: 0.182 | E110: 0.036 | F110: 0.0025 | G110: 1.881 | H110: 0.8098 | I110: 1.7284 | J110: 0.666 | K110: 0.181 | L110: 0.032 | M110: 0.0021 | N110: 1.864 | O110: 0.5306 | P110: 1.7802 | Q110: 0.305 | R110: 0.182 | S110: 0.028 | T110: 0.0019 | U110: 1.821 | V110: 0.3913 | W110: 1.7783 | X110: 0.176 | AA110: =IF("na"=F110,"",F110/F103) -> 3.16076468992 | AB110: =IF("na"=J110,"",J110/J103) -> 1.113 | AC110: =IF("na"=M110,"",M110/M103) -> 4.956 | AD110: =IF("na"=Q110,"",Q110/Q103) -> 1.306 | AE110: =IF("na"=T110,"",T110/T103) -> 8.723 | AF110: =IF("na"=X110,"",X110/X103) -> 1.312 | AG110: 104.000 | AH110: 7 | AI110: 4 | AJ110: 6 | AK110: 5 | AL110: 6 | AM110: 4 | AO110: =IF("na"=F110,"",SQRT(F110)/SQRT(F103)) -> 1.778 | AP110: =IF("na"=J110,"",SQRT(J110)/SQRT(J103)) -> 1.055 | AQ110: =IF("na"=M110,"",SQRT(M110)/SQRT(M103)) -> 2.226 | AR110: =IF("na"=Q110,"",SQRT(Q110)/SQRT(Q103)) -> 1.143 | AS110: =IF("na"=T110,"",SQRT(T110)/SQRT(T103)) -> 2.953 | AT110: =IF("na"=X110,"",SQRT(X110)/SQRT(X103)) -> 1.145
A111: EPI5 | B111: 0.148 | C111: 1.627 | D111: 0.183 | E111: 0.036 | F111: 0.0025 | G111: 1.994 | H111: 0.8706 | I111: 1.8224 | J111: 0.796 | K111: 0.183 | L111: 0.031 | M111: 0.0022 | N111: 1.921 | O111: 0.5412 | P111: 1.8407 | Q111: 0.338 | R111: 0.182 | S111: 0.027 | T111: 0.0019 | U111: 1.856 | V111: 0.3994 | W111: 1.8134 | X111: 0.194 | AA111: =IF("na"=F111,"",F111/F103) -> 3.18151285807 | AB111: =IF("na"=J111,"",J111/J103) -> 1.331 | AC111: =IF("na"=M111,"",M111/M103) -> 5.163 | AD111: =IF("na"=Q111,"",Q111/Q103) -> 1.450 | AE111: =IF("na"=T111,"",T111/T103) -> 8.788 | AF111: =IF("na"=X111,"",X111/X103) -> 1.448 | AG111: 104.000 | AH111: 8 | AI111: 8 | AJ111: 7 | AK111: 6 | AL111: 7 | AM111: 6 | AO111: =IF("na"=F111,"",SQRT(F111)/SQRT(F103)) -> 1.784 | AP111: =IF("na"=J111,"",SQRT(J111)/SQRT(J103)) -> 1.154 | AQ111: =IF("na"=M111,"",SQRT(M111)/SQRT(M103)) -> 2.272 | AR111: =IF("na"=Q111,"",SQRT(Q111)/SQRT(Q103)) -> 1.204 | AS111: =IF("na"=T111,"",SQRT(T111)/SQRT(T103)) -> 2.964 | AT111: =IF("na"=X111,"",SQRT(X111)/SQRT(X103)) -> 1.203
D113: population 5
B114: true | C114: true | D114: 7 | K114: 15 | R114: 30
B115: mean | C115: rr | D115: mean | E115: stdev | F115: mse | G115: mrr | H115: srr | I115: prr | J115: mse_rr | K115: mean | L115: stdev | M115: mse | N115: mrr | O115: srr | P115: prr | Q115: mse_rr | R115: mean | S115: stdev | T115: mse | U115: mrr | V115: srr | W115: prr | X115: mse_rr
A116: Random | B116: 0.085 | C116: 1.592 | D116: 0.087 | E116: 0.023 | F116: 0.001 | G116: 2.000 | H116: 1.497 | I116: 1.535 | J116: 2.245 | K116: 0.086 | L116: 0.016 | M116: 0.000 | N116: 1.824 | O116: 1.176 | P116: 1.589 | Q116: 1.383 | R116: 0.086 | S116: 0.011 | T116: 0.000 | U116: 1.676 | V116: 0.464 | W116: 1.590 | X116: 0.215
A117: NewEPI | B117: 0.085 | C117: 1.592 | D117: 0.089 | E117: 0.031 | F117: 0.001 | G117: 2.095 | H117: 1.590 | I117: 1.603 | J117: 2.528 | K117: 0.088 | L117: 0.029 | M117: 0.001 | N117: 2.263 | O117: 1.953 | P117: 1.618 | Q117: 3.813 | R117: 0.086 | S117: 0.027 | T117: 0.001 | U117: 1.963 | V117: 1.295 | W117: 1.570 | X117: 1.677 | AA117: =IF("na"=F117,"",F117/F116) -> 1.90439097939 | AB117: =IF("na"=J117,"",J117/J116) -> 1.126 | AC117: =IF("na"=M117,"",M117/M116) -> 3.281 | AD117: =IF("na"=Q117,"",Q117/Q116) -> 2.758 | AE117: =IF("na"=T117,"",T117/T116) -> 5.541 | AF117: =IF("na"=X117,"",X117/X116) -> 7.791 | AG117: =ROW() -> 117.000 | AH117: =SUM(IF(INDIRECT(ADDRESS(ROW(),AH$60))>INDIRECT(ADDRESS($AG117,AH$60)),1,0), IF(INDIRECT(ADDRESS(ROW(),AH$60))>INDIRECT(ADDRESS($AG117+1,AH$60)),1,0), IF(INDIRECT(ADDRESS(ROW(),AH$60))>INDIRECT(ADDRESS($AG117+2,AH$60)),1,0), IF(INDIRECT(ADDRESS(ROW(),AH$60))>INDIRECT(ADDRESS($AG117+3,AH$60)),1,0), IF(INDIRECT(ADDRESS(ROW(),AH$60))>INDIRECT(ADDRESS($AG117+4,AH$60)),1,0), IF(INDIRECT(ADDRESS(ROW(),AH$60))>INDIRECT(ADDRESS($AG117+5,AH$60)),1,0), IF(INDIRECT(ADDRESS(ROW(),AH$60))>INDIRECT(ADDRESS($AG117+6,AH$60)),1,0), IF(INDIRECT(ADDRESS(ROW(),AH$60))>INDIRECT(ADDRESS($AG117+7,AH$60)),1,0))+1 -> 8 | AI117: 5 | AJ117: 8 | AK117: 7 | AL117: 8 | AM117: 5 | AO117: =IF("na"=F117,"",SQRT(F117)/SQRT(F116)) -> 1.380 | AP117: =IF("na"=J117,"",SQRT(J117)/SQRT(J116)) -> 1.061 | AQ117: =IF("na"=M117,"",SQRT(M117)/SQRT(M116)) -> 1.811 | AR117: =IF("na"=Q117,"",SQRT(Q117)/SQRT(Q116)) -> 1.661 | AS117: =IF("na"=T117,"",SQRT(T117)/SQRT(T116)) -> 2.354 | AT117: =IF("na"=X117,"",SQRT(X117)/SQRT(X116)) -> 2.791
A118: Grid | B118: 0.085 | C118: 1.592 | D118: 0.087 | E118: 0.031 | F118: 0.001 | G118: 2.129 | H118: 1.799 | I118: 1.536 | J118: 3.238 | K118: 0.087 | L118: 0.029 | M118: 0.001 | N118: 2.315 | O118: 2.144 | P118: 1.533 | Q118: 4.599 | R118: 0.086 | S118: 0.027 | T118: 0.001 | U118: 2.070 | V118: 1.495 | W118: 1.560 | X118: 2.237 | AA118: =IF("na"=F118,"",F118/F116) -> 1.88733533182 | AB118: =IF("na"=J118,"",J118/J116) -> 1.442 | AC118: =IF("na"=M118,"",M118/M116) -> 3.273 | AD118: =IF("na"=Q118,"",Q118/Q116) -> 3.327 | AE118: =IF("na"=T118,"",T118/T116) -> 5.488 | AF118: =IF("na"=X118,"",X118/X116) -> 10.392 | AG118: =AG117 -> 117.000 | AH118: 7 | AI118: 8 | AJ118: 7 | AK118: 8 | AL118: 7 | AM118: 8 | AO118: =IF("na"=F118,"",SQRT(F118)/SQRT(F116)) -> 1.374 | AP118: =IF("na"=J118,"",SQRT(J118)/SQRT(J116)) -> 1.201 | AQ118: =IF("na"=M118,"",SQRT(M118)/SQRT(M116)) -> 1.809 | AR118: =IF("na"=Q118,"",SQRT(Q118)/SQRT(Q116)) -> 1.824 | AS118: =IF("na"=T118,"",SQRT(T118)/SQRT(T116)) -> 2.343 | AT118: =IF("na"=X118,"",SQRT(X118)/SQRT(X116)) -> 3.224
A119: Peri | B119: 0.085 | C119: 1.592 | D119: 0.075 | E119: 0.025 | F119: 0.001 | G119: 1.586 | H119: 1.190 | I119: 1.228 | J119: 1.548 | K119: 0.072 | L119: 0.021 | M119: 0.001 | N119: 1.547 | O119: 1.157 | P119: 1.185 | Q119: 1.505 | R119: 0.075 | S119: 0.020 | T119: 0.000 | U119: 1.457 | V119: 0.937 | W119: 1.200 | X119: 1.033 | AA119: =IF("na"=F119,"",F119/F116) -> 1.32293117152 | AB119: =IF("na"=J119,"",J119/J116) -> 0.689 | AC119: =IF("na"=M119,"",M119/M116) -> 2.302 | AD119: =IF("na"=Q119,"",Q119/Q116) -> 1.089 | AE119: =IF("na"=T119,"",T119/T116) -> 3.586 | AF119: =IF("na"=X119,"",X119/X116) -> 4.797 | AG119: 117.000 | AH119: 3 | AI119: 1 | AJ119: 3 | AK119: 2 | AL119: 3 | AM119: 4 | AO119: =IF("na"=F119,"",SQRT(F119)/SQRT(F116)) -> 1.150 | AP119: =IF("na"=J119,"",SQRT(J119)/SQRT(J116)) -> 0.830 | AQ119: =IF("na"=M119,"",SQRT(M119)/SQRT(M116)) -> 1.517 | AR119: =IF("na"=Q119,"",SQRT(Q119)/SQRT(Q116)) -> 1.043 | AS119: =IF("na"=T119,"",SQRT(T119)/SQRT(T116)) -> 1.894 | AT119: =IF("na"=X119,"",SQRT(X119)/SQRT(X116)) -> 2.190
A120: Quad | B120: 0.085 | C120: 1.592 | D120: 0.080 | E120: 0.022 | F120: 0.001 | G120: 1.856 | H120: 1.446 | I120: 1.375 | J120: 2.139 | K120: 0.080 | L120: 0.018 | M120: 0.000 | N120: 1.681 | O120: 1.275 | P120: 1.315 | Q120: 1.702 | R120: 0.081 | S120: 0.015 | T120: 0.000 | U120: 1.548 | V120: 0.965 | W120: 1.310 | X120: 1.011 | AA120: =IF("na"=F120,"",F120/F116) -> 0.99393073923 | AB120: =IF("na"=J120,"",J120/J116) -> 0.953 | AC120: =IF("na"=M120,"",M120/M116) -> 1.339 | AD120: =IF("na"=Q120,"",Q120/Q116) -> 1.231 | AE120: =IF("na"=T120,"",T120/T116) -> 1.885 | AF120: =IF("na"=X120,"",X120/X116) -> 4.695 | AG120: 117.000 | AH120: 2 | AI120: 2 | AJ120: 2 | AK120: 3 | AL120: 2 | AM120: 3 | AO120: =IF("na"=F120,"",SQRT(F120)/SQRT(F116)) -> 0.997 | AP120: =IF("na"=J120,"",SQRT(J120)/SQRT(J116)) -> 0.976 | AQ120: =IF("na"=M120,"",SQRT(M120)/SQRT(M116)) -> 1.157 | AR120: =IF("na"=Q120,"",SQRT(Q120)/SQRT(Q116)) -> 1.110 | AS120: =IF("na"=T120,"",SQRT(T120)/SQRT(T116)) -> 1.373 | AT120: =IF("na"=X120,"",SQRT(X120)/SQRT(X116)) -> 2.167
A121: Square | B121: 0.085 | C121: 1.592 | D121: 0.087 | E121: 0.022 | F121: 0.0005 | G121: 2.079 | H121: 1.6895 | I121: 1.5438 | J121: 2.857 | K121: 0.086 | L121: 0.016 | M121: 0.0003 | N121: 1.816 | O121: 1.0374 | P121: 1.5675 | Q121: 1.077 | R121: 0.086 | S121: 0.011 | T121: 0.0001 | U121: 1.670 | V121: 0.5352 | W121: 1.5684 | X121: 0.287 | AA121: =IF("na"=F121,"",F121/F116) -> 0.91017918506 | AB121: =IF("na"=J121,"",J121/J116) -> 1.272 | AC121: =IF("na"=M121,"",M121/M116) -> 0.951 | AD121: =IF("na"=Q121,"",Q121/Q116) -> 0.779 | AE121: =IF("na"=T121,"",T121/T116) -> 0.949 | AF121: =IF("na"=X121,"",X121/X116) -> 1.334 | AG121: 117.000 | AH121: 1 | AI121: 7 | AJ121: 1 | AK121: 1 | AL121: 1 | AM121: 1 | AO121: =IF("na"=F121,"",SQRT(F121)/SQRT(F116)) -> 0.954 | AP121: =IF("na"=J121,"",SQRT(J121)/SQRT(J116)) -> 1.128 | AQ121: =IF("na"=M121,"",SQRT(M121)/SQRT(M116)) -> 0.975 | AR121: =IF("na"=Q121,"",SQRT(Q121)/SQRT(Q116)) -> 0.883 | AS121: =IF("na"=T121,"",SQRT(T121)/SQRT(T116)) -> 0.974 | AT121: =IF("na"=X121,"",SQRT(X121)/SQRT(X116)) -> 1.155
A122: OldEPI | B122: 0.085 | C122: 1.592 | D122: 0.079 | E122: 0.029 | F122: 0.0009 | G122: 1.815 | H122: 1.5914 | I122: 1.2892 | J122: 2.625 | K122: 0.079 | L122: 0.026 | M122: 0.0007 | N122: 1.872 | O122: 1.7750 | P122: 1.2882 | Q122: 3.243 | R122: 0.079 | S122: 0.025 | T122: 0.0006 | U122: 1.727 | V122: 1.2909 | W122: 1.3283 | X122: 1.736 | AA122: =IF("na"=F122,"",F122/F116) -> 1.65722442594 | AB122: =IF("na"=J122,"",J122/J116) -> 1.169 | AC122: =IF("na"=M122,"",M122/M116) -> 2.768 | AD122: =IF("na"=Q122,"",Q122/Q116) -> 2.346 | AE122: =IF("na"=T122,"",T122/T116) -> 4.798 | AF122: =IF("na"=X122,"",X122/X116) -> 8.066 | AG122: 117.000 | AH122: 6 | AI122: 6 | AJ122: 6 | AK122: 6 | AL122: 6 | AM122: 6 | AO122: =IF("na"=F122,"",SQRT(F122)/SQRT(F116)) -> 1.287 | AP122: =IF("na"=J122,"",SQRT(J122)/SQRT(J116)) -> 1.081 | AQ122: =IF("na"=M122,"",SQRT(M122)/SQRT(M116)) -> 1.664 | AR122: =IF("na"=Q122,"",SQRT(Q122)/SQRT(Q116)) -> 1.532 | AS122: =IF("na"=T122,"",SQRT(T122)/SQRT(T116)) -> 2.190 | AT122: =IF("na"=X122,"",SQRT(X122)/SQRT(X116)) -> 2.840
A123: EPI3 | B123: 0.085 | C123: 1.592 | D123: 0.078 | E123: 0.028 | F123: 0.0009 | G123: 1.749 | H123: 1.4311 | I123: 1.2743 | J123: 2.149 | K123: 0.078 | L123: 0.025 | M123: 0.0007 | N123: 1.807 | O123: 1.4758 | P123: 1.3334 | Q123: 2.245 | R123: 0.079 | S123: 0.023 | T123: 0.0005 | U123: 1.626 | V123: 1.3962 | W123: 1.3321 | X123: 2.017 | AA123: =IF("na"=F123,"",F123/F116) -> 1.62993493096 | AB123: =IF("na"=J123,"",J123/J116) -> 0.957 | AC123: =IF("na"=M123,"",M123/M116) -> 2.510 | AD123: =IF("na"=Q123,"",Q123/Q116) -> 1.624 | AE123: =IF("na"=T123,"",T123/T116) -> 4.105 | AF123: =IF("na"=X123,"",X123/X116) -> 9.372 | AG123: 117.000 | AH123: 5 | AI123: 3 | AJ123: 5 | AK123: 5 | AL123: 5 | AM123: 7 | AO123: =IF("na"=F123,"",SQRT(F123)/SQRT(F116)) -> 1.277 | AP123: =IF("na"=J123,"",SQRT(J123)/SQRT(J116)) -> 0.978 | AQ123: =IF("na"=M123,"",SQRT(M123)/SQRT(M116)) -> 1.584 | AR123: =IF("na"=Q123,"",SQRT(Q123)/SQRT(Q116)) -> 1.274 | AS123: =IF("na"=T123,"",SQRT(T123)/SQRT(T116)) -> 2.026 | AT123: =IF("na"=X123,"",SQRT(X123)/SQRT(X116)) -> 3.061
A124: EPI5 | B124: 0.085 | C124: 1.592 | D124: 0.078 | E124: 0.028 | F124: 0.0008 | G124: 1.887 | H124: 1.5323 | I124: 1.3933 | J124: 2.388 | K124: 0.079 | L124: 0.025 | M124: 0.0006 | N124: 1.824 | O124: 1.4562 | P124: 1.3590 | Q124: 2.175 | R124: 0.079 | S124: 0.022 | T124: 0.0005 | U124: 1.604 | V124: 0.9414 | W124: 1.3588 | X124: 0.941 | AA124: =IF("na"=F124,"",F124/F116) -> 1.52984336818 | AB124: =IF("na"=J124,"",J124/J116) -> 1.063 | AC124: =IF("na"=M124,"",M124/M116) -> 2.424 | AD124: =IF("na"=Q124,"",Q124/Q116) -> 1.573 | AE124: =IF("na"=T124,"",T124/T116) -> 3.987 | AF124: =IF("na"=X124,"",X124/X116) -> 4.371 | AG124: 117.000 | AH124: 4 | AI124: 4 | AJ124: 4 | AK124: 4 | AL124: 4 | AM124: 2 | AO124: =IF("na"=F124,"",SQRT(F124)/SQRT(F116)) -> 1.237 | AP124: =IF("na"=J124,"",SQRT(J124)/SQRT(J116)) -> 1.031 | AQ124: =IF("na"=M124,"",SQRT(M124)/SQRT(M116)) -> 1.557 | AR124: =IF("na"=Q124,"",SQRT(Q124)/SQRT(Q116)) -> 1.254 | AS124: =IF("na"=T124,"",SQRT(T124)/SQRT(T116)) -> 1.997 | AT124: =IF("na"=X124,"",SQRT(X124)/SQRT(X116)) -> 2.091
D126: population 6
B127: true | C127: true | D127: 7 | K127: 15 | R127: 30
B128: mean | C128: rr | D128: mean | E128: stdev | F128: mse | G128: mrr | H128: srr | I128: prr | J128: mse_rr | K128: mean | L128: stdev | M128: mse | N128: mrr | O128: srr | P128: prr | Q128: mse_rr | R128: mean | S128: stdev | T128: mse | U128: mrr | V128: srr | W128: prr | X128: mse_rr
A129: Random | B129: 0.290 | C129: 1.767 | D129: 0.291 | E129: 0.035 | F129: 0.001 | G129: 1.761 | H129: 0.471 | I129: 1.688 | J129: 0.228 | K129: 0.292 | L129: 0.025 | M129: 0.001 | N129: 1.739 | O129: 0.292 | P129: 1.707 | Q129: 0.089 | R129: 0.292 | S129: 0.017 | T129: 0.000 | U129: 1.728 | V129: 0.198 | W129: 1.712 | X129: 0.042
A130: NewEPI | B130: 0.290 | C130: 1.767 | D130: 0.293 | E130: 0.050 | F130: 0.003 | G130: 1.783 | H130: 0.554 | I130: 1.678 | J130: 0.315 | K130: 0.292 | L130: 0.043 | M130: 0.002 | N130: 1.749 | O130: 0.447 | P130: 1.681 | Q130: 0.207 | R130: 0.292 | S130: 0.041 | T130: 0.002 | U130: 1.736 | V130: 0.392 | W130: 1.682 | X130: 0.161 | AA130: =IF("na"=F130,"",F130/F129) -> 2.02905808565 | AB130: =IF("na"=J130,"",J130/J129) -> 1.383 | AC130: =IF("na"=M130,"",M130/M129) -> 2.894 | AD130: =IF("na"=Q130,"",Q130/Q129) -> 2.331 | AE130: =IF("na"=T130,"",T130/T129) -> 5.551 | AF130: =IF("na"=X130,"",X130/X129) -> 3.804 | AG130: =ROW() -> 130.000 | AH130: =SUM(IF(INDIRECT(ADDRESS(ROW(),AH$60))>INDIRECT(ADDRESS($AG130,AH$60)),1,0), IF(INDIRECT(ADDRESS(ROW(),AH$60))>INDIRECT(ADDRESS($AG130+1,AH$60)),1,0), IF(INDIRECT(ADDRESS(ROW(),AH$60))>INDIRECT(ADDRESS($AG130+2,AH$60)),1,0), IF(INDIRECT(ADDRESS(ROW(),AH$60))>INDIRECT(ADDRESS($AG130+3,AH$60)),1,0), IF(INDIRECT(ADDRESS(ROW(),AH$60))>INDIRECT(ADDRESS($AG130+4,AH$60)),1,0), IF(INDIRECT(ADDRESS(ROW(),AH$60))>INDIRECT(ADDRESS($AG130+5,AH$60)),1,0), IF(INDIRECT(ADDRESS(ROW(),AH$60))>INDIRECT(ADDRESS($AG130+6,AH$60)),1,0), IF(INDIRECT(ADDRESS(ROW(),AH$60))>INDIRECT(ADDRESS($AG130+7,AH$60)),1,0))+1 -> 7 | AI130: 3 | AJ130: 6 | AK130: 4 | AL130: 6 | AM130: 6 | AO130: =IF("na"=F130,"",SQRT(F130)/SQRT(F129)) -> 1.424 | AP130: =IF("na"=J130,"",SQRT(J130)/SQRT(J129)) -> 1.176 | AQ130: =IF("na"=M130,"",SQRT(M130)/SQRT(M129)) -> 1.701 | AR130: =IF("na"=Q130,"",SQRT(Q130)/SQRT(Q129)) -> 1.527 | AS130: =IF("na"=T130,"",SQRT(T130)/SQRT(T129)) -> 2.356 | AT130: =IF("na"=X130,"",SQRT(X130)/SQRT(X129)) -> 1.950
A131: Grid | B131: 0.290 | C131: 1.767 | D131: 0.275 | E131: 0.051 | F131: 0.003 | G131: 1.925 | H131: 0.647 | I131: 1.800 | J131: 0.419 | K131: 0.274 | L131: 0.046 | M131: 0.002 | N131: 1.869 | O131: 0.515 | P131: 1.783 | Q131: 0.265 | R131: 0.272 | S131: 0.044 | T131: 0.002 | U131: 1.846 | V131: 0.443 | W131: 1.782 | X131: 0.197 | AA131: =IF("na"=F131,"",F131/F129) -> 2.25424627575 | AB131: =IF("na"=J131,"",J131/J129) -> 1.839 | AC131: =IF("na"=M131,"",M131/M129) -> 3.815 | AD131: =IF("na"=Q131,"",Q131/Q129) -> 2.987 | AE131: =IF("na"=T131,"",T131/T129) -> 7.254 | AF131: =IF("na"=X131,"",X131/X129) -> 4.641 | AG131: =AG130 -> 130.000 | AH131: 8 | AI131: 8 | AJ131: 8 | AK131: 8 | AL131: 8 | AM131: 8 | AO131: =IF("na"=F131,"",SQRT(F131)/SQRT(F129)) -> 1.501 | AP131: =IF("na"=J131,"",SQRT(J131)/SQRT(J129)) -> 1.356 | AQ131: =IF("na"=M131,"",SQRT(M131)/SQRT(M129)) -> 1.953 | AR131: =IF("na"=Q131,"",SQRT(Q131)/SQRT(Q129)) -> 1.728 | AS131: =IF("na"=T131,"",SQRT(T131)/SQRT(T129)) -> 2.693 | AT131: =IF("na"=X131,"",SQRT(X131)/SQRT(X129)) -> 2.154
A132: Peri | B132: 0.290 | C132: 1.767 | D132: 0.263 | E132: 0.039 | F132: 0.002 | G132: 1.941 | H132: 0.621 | I132: 1.824 | J132: 0.389 | K132: 0.268 | L132: 0.032 | M132: 0.001 | N132: 1.850 | O132: 0.466 | P132: 1.777 | Q132: 0.217 | R132: 0.265 | S132: 0.029 | T132: 0.001 | U132: 1.755 | V132: 0.362 | W132: 1.708 | X132: 0.135 | AA132: =IF("na"=F132,"",F132/F129) -> 1.74799099069 | AB132: =IF("na"=J132,"",J132/J129) -> 1.708 | AC132: =IF("na"=M132,"",M132/M129) -> 2.327 | AD132: =IF("na"=Q132,"",Q132/Q129) -> 2.443 | AE132: =IF("na"=T132,"",T132/T129) -> 4.663 | AF132: =IF("na"=X132,"",X132/X129) -> 3.178 | AG132: 130.000 | AH132: 4 | AI132: 7 | AJ132: 3 | AK132: 6 | AL132: 4 | AM132: 4 | AO132: =IF("na"=F132,"",SQRT(F132)/SQRT(F129)) -> 1.322 | AP132: =IF("na"=J132,"",SQRT(J132)/SQRT(J129)) -> 1.307 | AQ132: =IF("na"=M132,"",SQRT(M132)/SQRT(M129)) -> 1.526 | AR132: =IF("na"=Q132,"",SQRT(Q132)/SQRT(Q129)) -> 1.563 | AS132: =IF("na"=T132,"",SQRT(T132)/SQRT(T129)) -> 2.159 | AT132: =IF("na"=X132,"",SQRT(X132)/SQRT(X129)) -> 1.783
A133: Quad | B133: 0.290 | C133: 1.767 | D133: 0.291 | E133: 0.038 | F133: 0.001 | G133: 1.745 | H133: 0.433 | I133: 1.676 | J133: 0.196 | K133: 0.291 | L133: 0.030 | M133: 0.001 | N133: 1.700 | O133: 0.321 | P133: 1.661 | Q133: 0.114 | R133: 0.294 | S133: 0.027 | T133: 0.001 | U133: 1.699 | V133: 0.254 | W133: 1.674 | X133: 0.073 | AA133: =IF("na"=F133,"",F133/F129) -> 1.14225983036 | AB133: =IF("na"=J133,"",J133/J129) -> 0.858 | AC133: =IF("na"=M133,"",M133/M129) -> 1.405 | AD133: =IF("na"=Q133,"",Q133/Q129) -> 1.286 | AE133: =IF("na"=T133,"",T133/T129) -> 2.360 | AF133: =IF("na"=X133,"",X133/X129) -> 1.729 | AG133: 130.000 | AH133: 1 | AI133: 2 | AJ133: 2 | AK133: 2 | AL133: 2 | AM133: 2 | AO133: =IF("na"=F133,"",SQRT(F133)/SQRT(F129)) -> 1.069 | AP133: =IF("na"=J133,"",SQRT(J133)/SQRT(J129)) -> 0.926 | AQ133: =IF("na"=M133,"",SQRT(M133)/SQRT(M129)) -> 1.185 | AR133: =IF("na"=Q133,"",SQRT(Q133)/SQRT(Q129)) -> 1.134 | AS133: =IF("na"=T133,"",SQRT(T133)/SQRT(T129)) -> 1.536 | AT133: =IF("na"=X133,"",SQRT(X133)/SQRT(X129)) -> 1.315
A134: Square | B134: 0.290 | C134: 1.767 | D134: 0.275 | E134: 0.036 | F134: 0.0015 | G134: 1.752 | H134: 0.4276 | I134: 1.6856 | J134: 0.189 | K134: 0.276 | L134: 0.026 | M134: 0.0009 | N134: 1.726 | O134: 0.3067 | P134: 1.6908 | Q134: 0.100 | R134: 0.277 | S134: 0.018 | T134: 0.0005 | U134: 1.706 | V134: 0.2083 | W134: 1.6903 | X134: 0.049 | AA134: =IF("na"=F134,"",F134/F129) -> 1.18721634217 | AB134: =IF("na"=J134,"",J134/J129) -> 0.831 | AC134: =IF("na"=M134,"",M134/M129) -> 1.359 | AD134: =IF("na"=Q134,"",Q134/Q129) -> 1.125 | AE134: =IF("na"=T134,"",T134/T129) -> 1.560 | AF134: =IF("na"=X134,"",X134/X129) -> 1.162 | AG134: 130.000 | AH134: 2 | AI134: 1 | AJ134: 1 | AK134: 1 | AL134: 1 | AM134: 1 | AO134: =IF("na"=F134,"",SQRT(F134)/SQRT(F129)) -> 1.090 | AP134: =IF("na"=J134,"",SQRT(J134)/SQRT(J129)) -> 0.912 | AQ134: =IF("na"=M134,"",SQRT(M134)/SQRT(M129)) -> 1.166 | AR134: =IF("na"=Q134,"",SQRT(Q134)/SQRT(Q129)) -> 1.061 | AS134: =IF("na"=T134,"",SQRT(T134)/SQRT(T129)) -> 1.249 | AT134: =IF("na"=X134,"",SQRT(X134)/SQRT(X129)) -> 1.078
A135: OldEPI | B135: 0.290 | C135: 1.767 | D135: 0.290 | E135: 0.050 | F135: 0.0025 | G135: 1.766 | H135: 0.5807 | I135: 1.6599 | J135: 0.349 | K135: 0.289 | L135: 0.044 | M135: 0.0020 | N135: 1.748 | O135: 0.4807 | P135: 1.6710 | Q135: 0.240 | R135: 0.286 | S135: 0.041 | T135: 0.0017 | U135: 1.759 | V135: 0.4250 | W135: 1.6962 | X135: 0.186 | AA135: =IF("na"=F135,"",F135/F129) -> 1.95634501399 | AB135: =IF("na"=J135,"",J135/J129) -> 1.530 | AC135: =IF("na"=M135,"",M135/M129) -> 3.091 | AD135: =IF("na"=Q135,"",Q135/Q129) -> 2.706 | AE135: =IF("na"=T135,"",T135/T129) -> 5.586 | AF135: =IF("na"=X135,"",X135/X129) -> 4.381 | AG135: 130.000 | AH135: 6 | AI135: 5 | AJ135: 7 | AK135: 7 | AL135: 7 | AM135: 7 | AO135: =IF("na"=F135,"",SQRT(F135)/SQRT(F129)) -> 1.399 | AP135: =IF("na"=J135,"",SQRT(J135)/SQRT(J129)) -> 1.237 | AQ135: =IF("na"=M135,"",SQRT(M135)/SQRT(M129)) -> 1.758 | AR135: =IF("na"=Q135,"",SQRT(Q135)/SQRT(Q129)) -> 1.645 | AS135: =IF("na"=T135,"",SQRT(T135)/SQRT(T129)) -> 2.364 | AT135: =IF("na"=X135,"",SQRT(X135)/SQRT(X129)) -> 2.093
A136: EPI3 | B136: 0.290 | C136: 1.767 | D136: 0.288 | E136: 0.048 | F136: 0.0023 | G136: 1.774 | H136: 0.5759 | I136: 1.6700 | J136: 0.341 | K136: 0.285 | L136: 0.042 | M136: 0.0018 | N136: 1.766 | O136: 0.4596 | P136: 1.6928 | Q136: 0.217 | R136: 0.284 | S136: 0.038 | T136: 0.0015 | U136: 1.764 | V136: 0.3687 | W136: 1.7175 | X136: 0.138 | AA136: =IF("na"=F136,"",F136/F129) -> 1.80370437577 | AB136: =IF("na"=J136,"",J136/J129) -> 1.496 | AC136: =IF("na"=M136,"",M136/M129) -> 2.845 | AD136: =IF("na"=Q136,"",Q136/Q129) -> 2.441 | AE136: =IF("na"=T136,"",T136/T129) -> 4.816 | AF136: =IF("na"=X136,"",X136/X129) -> 3.265 | AG136: 130.000 | AH136: 5 | AI136: 4 | AJ136: 5 | AK136: 5 | AL136: 5 | AM136: 5 | AO136: =IF("na"=F136,"",SQRT(F136)/SQRT(F129)) -> 1.343 | AP136: =IF("na"=J136,"",SQRT(J136)/SQRT(J129)) -> 1.223 | AQ136: =IF("na"=M136,"",SQRT(M136)/SQRT(M129)) -> 1.687 | AR136: =IF("na"=Q136,"",SQRT(Q136)/SQRT(Q129)) -> 1.562 | AS136: =IF("na"=T136,"",SQRT(T136)/SQRT(T129)) -> 2.194 | AT136: =IF("na"=X136,"",SQRT(X136)/SQRT(X129)) -> 1.807
A137: EPI5 | B137: 0.290 | C137: 1.767 | D137: 0.283 | E137: 0.046 | F137: 0.0022 | G137: 1.825 | H137: 0.6157 | I137: 1.7124 | J137: 0.382 | K137: 0.283 | L137: 0.041 | M137: 0.0017 | N137: 1.779 | O137: 0.4404 | P137: 1.7141 | Q137: 0.197 | R137: 0.283 | S137: 0.036 | T137: 0.0013 | U137: 1.779 | V137: 0.3414 | W137: 1.7384 | X137: 0.117 | AA137: =IF("na"=F137,"",F137/F129) -> 1.73597299533 | AB137: =IF("na"=J137,"",J137/J129) -> 1.676 | AC137: =IF("na"=M137,"",M137/M129) -> 2.727 | AD137: =IF("na"=Q137,"",Q137/Q129) -> 2.216 | AE137: =IF("na"=T137,"",T137/T129) -> 4.360 | AF137: =IF("na"=X137,"",X137/X129) -> 2.770 | AG137: 130.000 | AH137: 3 | AI137: 6 | AJ137: 4 | AK137: 3 | AL137: 3 | AM137: 3 | AO137: =IF("na"=F137,"",SQRT(F137)/SQRT(F129)) -> 1.318 | AP137: =IF("na"=J137,"",SQRT(J137)/SQRT(J129)) -> 1.295 | AQ137: =IF("na"=M137,"",SQRT(M137)/SQRT(M129)) -> 1.651 | AR137: =IF("na"=Q137,"",SQRT(Q137)/SQRT(Q129)) -> 1.489 | AS137: =IF("na"=T137,"",SQRT(T137)/SQRT(T129)) -> 2.088 | AT137: =IF("na"=X137,"",SQRT(X137)/SQRT(X129)) -> 1.664
D139: population 7
B140: true | C140: true | D140: 7 | K140: 15 | R140: 30
B141: mean | C141: rr | D141: mean | E141: stdev | F141: mse | G141: mrr | H141: srr | I141: prr | J141: mse_rr | K141: mean | L141: stdev | M141: mse | N141: mrr | O141: srr | P141: prr | Q141: mse_rr | R141: mean | S141: stdev | T141: mse | U141: mrr | V141: srr | W141: prr | X141: mse_rr
A142: Random | B142: 0.049 | C142: 1.343 | D142: 0.048 | E142: 0.015 | F142: 0.000 | G142: 1.378 | H142: 0.838 | I142: 1.288 | J142: 0.706 | K142: 0.048 | L142: 0.011 | M142: 0.000 | N142: 1.696 | O142: 1.274 | P142: 1.244 | Q142: 1.632 | R142: 0.048 | S142: 0.008 | T142: 0.000 | U142: 1.587 | V142: 1.112 | W142: 1.246 | X142: 1.245
A143: NewEPI | B143: 0.049 | C143: 1.343 | D143: 0.049 | E143: 0.016 | F143: 0.000 | G143: 1.334 | H143: 0.841 | I143: 1.204 | J143: 0.727 | K143: 0.049 | L143: 0.011 | M143: 0.000 | N143: 1.584 | O143: 1.193 | P143: 1.148 | Q143: 1.461 | R143: 0.049 | S143: 0.010 | T143: 0.000 | U143: 1.655 | V143: 1.255 | W143: 1.268 | X143: 1.582 | AA143: =IF("na"=F143,"",F143/F142) -> 1.16894940410 | AB143: =IF("na"=J143,"",J143/J142) -> 1.030 | AC143: =IF("na"=M143,"",M143/M142) -> 1.118 | AD143: =IF("na"=Q143,"",Q143/Q142) -> 0.895 | AE143: =IF("na"=T143,"",T143/T142) -> 1.692 | AF143: =IF("na"=X143,"",X143/X142) -> 1.270 | AG143: =ROW() -> 143.000 | AH143: =SUM(IF(INDIRECT(ADDRESS(ROW(),AH$60))>INDIRECT(ADDRESS($AG143,AH$60)),1,0), IF(INDIRECT(ADDRESS(ROW(),AH$60))>INDIRECT(ADDRESS($AG143+1,AH$60)),1,0), IF(INDIRECT(ADDRESS(ROW(),AH$60))>INDIRECT(ADDRESS($AG143+2,AH$60)),1,0), IF(INDIRECT(ADDRESS(ROW(),AH$60))>INDIRECT(ADDRESS($AG143+3,AH$60)),1,0), IF(INDIRECT(ADDRESS(ROW(),AH$60))>INDIRECT(ADDRESS($AG143+4,AH$60)),1,0), IF(INDIRECT(ADDRESS(ROW(),AH$60))>INDIRECT(ADDRESS($AG143+5,AH$60)),1,0), IF(INDIRECT(ADDRESS(ROW(),AH$60))>INDIRECT(ADDRESS($AG143+6,AH$60)),1,0), IF(INDIRECT(ADDRESS(ROW(),AH$60))>INDIRECT(ADDRESS($AG143+7,AH$60)),1,0))+1 -> 7 | AI143: 3 | AJ143: 4 | AK143: 4 | AL143: 6 | AM143: 8 | AO143: =IF("na"=F143,"",SQRT(F143)/SQRT(F142)) -> 1.081 | AP143: =IF("na"=J143,"",SQRT(J143)/SQRT(J142)) -> 1.015 | AQ143: =IF("na"=M143,"",SQRT(M143)/SQRT(M142)) -> 1.057 | AR143: =IF("na"=Q143,"",SQRT(Q143)/SQRT(Q142)) -> 0.946 | AS143: =IF("na"=T143,"",SQRT(T143)/SQRT(T142)) -> 1.301 | AT143: =IF("na"=X143,"",SQRT(X143)/SQRT(X142)) -> 1.127
A144: Grid | B144: 0.049 | C144: 1.343 | D144: 0.048 | E144: 0.017 | F144: 0.000 | G144: -nan | H144: -nan | I144: 1.280 | J144: 0.004 | K144: 0.048 | L144: 0.013 | M144: 0.000 | N144: 1.794 | O144: 1.418 | P144: 1.282 | Q144: 2.015 | R144: 0.048 | S144: 0.010 | T144: 0.000 | U144: 1.721 | V144: 1.233 | W144: 1.286 | X144: 1.522 | AA144: =IF("na"=F144,"",F144/F142) -> 1.28382837368 | AB144: =IF("na"=J144,"",J144/J142) -> 0.006 | AC144: =IF("na"=M144,"",M144/M142) -> 1.374 | AD144: =IF("na"=Q144,"",Q144/Q142) -> 1.235 | AE144: =IF("na"=T144,"",T144/T142) -> 1.772 | AF144: =IF("na"=X144,"",X144/X142) -> 1.223 | AG144: =AG143 -> 143.000 | AH144: 8 | AI144: 1 | AJ144: 8 | AK144: 8 | AL144: 8 | AM144: 6 | AO144: =IF("na"=F144,"",SQRT(F144)/SQRT(F142)) -> 1.133 | AP144: =IF("na"=J144,"",SQRT(J144)/SQRT(J142)) -> 0.074 | AQ144: =IF("na"=M144,"",SQRT(M144)/SQRT(M142)) -> 1.172 | AR144: =IF("na"=Q144,"",SQRT(Q144)/SQRT(Q142)) -> 1.111 | AS144: =IF("na"=T144,"",SQRT(T144)/SQRT(T142)) -> 1.331 | AT144: =IF("na"=X144,"",SQRT(X144)/SQRT(X142)) -> 1.106
A145: Peri | B145: 0.049 | C145: 1.343 | D145: 0.046 | E145: 0.015 | F145: 0.000 | G145: 1.281 | H145: 0.881 | I145: 1.137 | J145: 0.818 | K145: 0.049 | L145: 0.012 | M145: 0.000 | N145: 1.744 | O145: 1.254 | P145: 1.263 | Q145: 1.580 | R145: 0.048 | S145: 0.009 | T145: 0.000 | U145: 1.663 | V145: 1.211 | W145: 1.261 | X145: 1.473 | AA145: =IF("na"=F145,"",F145/F142) -> 1.01128691983 | AB145: =IF("na"=J145,"",J145/J142) -> 1.159 | AC145: =IF("na"=M145,"",M145/M142) -> 1.160 | AD145: =IF("na"=Q145,"",Q145/Q142) -> 0.968 | AE145: =IF("na"=T145,"",T145/T142) -> 1.470 | AF145: =IF("na"=X145,"",X145/X142) -> 1.183 | AG145: 143.000 | AH145: 2 | AI145: 8 | AJ145: 5 | AK145: 6 | AL145: 5 | AM145: 5 | AO145: =IF("na"=F145,"",SQRT(F145)/SQRT(F142)) -> 1.006 | AP145: =IF("na"=J145,"",SQRT(J145)/SQRT(J142)) -> 1.077 | AQ145: =IF("na"=M145,"",SQRT(M145)/SQRT(M142)) -> 1.077 | AR145: =IF("na"=Q145,"",SQRT(Q145)/SQRT(Q142)) -> 0.984 | AS145: =IF("na"=T145,"",SQRT(T145)/SQRT(T142)) -> 1.213 | AT145: =IF("na"=X145,"",SQRT(X145)/SQRT(X142)) -> 1.088
A146: Quad | B146: 0.049 | C146: 1.343 | D146: 0.048 | E146: 0.015 | F146: 0.000 | G146: 1.259 | H146: 0.851 | I146: 1.167 | J146: 0.755 | K146: 0.047 | L146: 0.011 | M146: 0.000 | N146: 1.541 | O146: 1.116 | P146: 1.129 | Q146: 1.291 | R146: 0.048 | S146: 0.008 | T146: 0.000 | U146: 1.539 | V146: 1.069 | W146: 1.178 | X146: 1.171 | AA146: =IF("na"=F146,"",F146/F142) -> 1.00009299356 | AB146: =IF("na"=J146,"",J146/J142) -> 1.070 | AC146: =IF("na"=M146,"",M146/M142) -> 0.987 | AD146: =IF("na"=Q146,"",Q146/Q142) -> 0.791 | AE146: =IF("na"=T146,"",T146/T142) -> 1.077 | AF146: =IF("na"=X146,"",X146/X142) -> 0.940 | AG146: 143.000 | AH146: 1 | AI146: 4 | AJ146: 2 | AK146: 1 | AL146: 2 | AM146: 1 | AO146: =IF("na"=F146,"",SQRT(F146)/SQRT(F142)) -> 1.000 | AP146: =IF("na"=J146,"",SQRT(J146)/SQRT(J142)) -> 1.034 | AQ146: =IF("na"=M146,"",SQRT(M146)/SQRT(M142)) -> 0.993 | AR146: =IF("na"=Q146,"",SQRT(Q146)/SQRT(Q142)) -> 0.890 | AS146: =IF("na"=T146,"",SQRT(T146)/SQRT(T142)) -> 1.038 | AT146: =IF("na"=X146,"",SQRT(X146)/SQRT(X142)) -> 0.970
A147: Square | B147: 0.049 | C147: 1.343 | D147: 0.047 | E147: 0.015 | F147: 0.0002 | G147: 1.341 | H147: 0.8643 | I147: 1.2310 | J147: 0.759 | K147: 0.047 | L147: 0.011 | M147: 0.0001 | N147: 1.744 | O147: 1.3326 | P147: 1.2443 | Q147: 1.786 | R147: 0.046 | S147: 0.007 | T147: 0.0001 | U147: 1.629 | V147: 1.2439 | W147: 1.2431 | X147: 1.557 | AA147: =IF("na"=F147,"",F147/F142) -> 1.02024067288 | AB147: =IF("na"=J147,"",J147/J142) -> 1.076 | AC147: =IF("na"=M147,"",M147/M142) -> 0.982 | AD147: =IF("na"=Q147,"",Q147/Q142) -> 1.094 | AE147: =IF("na"=T147,"",T147/T142) -> 1.054 | AF147: =IF("na"=X147,"",X147/X142) -> 1.250 | AG147: 143.000 | AH147: 3 | AI147: 5 | AJ147: 1 | AK147: 7 | AL147: 1 | AM147: 7 | AO147: =IF("na"=F147,"",SQRT(F147)/SQRT(F142)) -> 1.010 | AP147: =IF("na"=J147,"",SQRT(J147)/SQRT(J142)) -> 1.038 | AQ147: =IF("na"=M147,"",SQRT(M147)/SQRT(M142)) -> 0.991 | AR147: =IF("na"=Q147,"",SQRT(Q147)/SQRT(Q142)) -> 1.046 | AS147: =IF("na"=T147,"",SQRT(T147)/SQRT(T142)) -> 1.027 | AT147: =IF("na"=X147,"",SQRT(X147)/SQRT(X142)) -> 1.118
A148: OldEPI | B148: 0.049 | C148: 1.343 | D148: 0.047 | E148: 0.015 | F148: 0.0002 | G148: 1.251 | H148: 0.8430 | I148: 1.2175 | J148: 0.726 | K148: 0.047 | L148: 0.012 | M148: 0.0002 | N148: 1.570 | O148: 1.1610 | P148: 1.1723 | Q148: 1.377 | R148: 0.047 | S148: 0.010 | T148: 0.0001 | U148: 1.596 | V148: 1.1967 | W148: 1.1952 | X148: 1.454 | AA148: =IF("na"=F148,"",F148/F142) -> 1.06831880598 | AB148: =IF("na"=J148,"",J148/J142) -> 1.029 | AC148: =IF("na"=M148,"",M148/M142) -> 1.345 | AD148: =IF("na"=Q148,"",Q148/Q142) -> 0.844 | AE148: =IF("na"=T148,"",T148/T142) -> 1.704 | AF148: =IF("na"=X148,"",X148/X142) -> 1.167 | AG148: 143.000 | AH148: 5 | AI148: 2 | AJ148: 7 | AK148: 2 | AL148: 7 | AM148: 4 | AO148: =IF("na"=F148,"",SQRT(F148)/SQRT(F142)) -> 1.034 | AP148: =IF("na"=J148,"",SQRT(J148)/SQRT(J142)) -> 1.015 | AQ148: =IF("na"=M148,"",SQRT(M148)/SQRT(M142)) -> 1.160 | AR148: =IF("na"=Q148,"",SQRT(Q148)/SQRT(Q142)) -> 0.919 | AS148: =IF("na"=T148,"",SQRT(T148)/SQRT(T142)) -> 1.305 | AT148: =IF("na"=X148,"",SQRT(X148)/SQRT(X142)) -> 1.080
A149: EPI3 | B149: 0.049 | C149: 1.343 | D149: 0.046 | E149: 0.016 | F149: 0.0003 | G149: 1.243 | H149: 0.8746 | I149: 1.1670 | J149: 0.796 | K149: 0.047 | L149: 0.011 | M149: 0.0001 | N149: 1.597 | O149: 1.2349 | P149: 1.1864 | Q149: 1.549 | R149: 0.047 | S149: 0.009 | T149: 0.0001 | U149: 1.592 | V149: 1.1355 | W149: 1.2327 | X149: 1.301 | AA149: =IF("na"=F149,"",F149/F142) -> 1.15903101636 | AB149: =IF("na"=J149,"",J149/J142) -> 1.128 | AC149: =IF("na"=M149,"",M149/M142) -> 1.172 | AD149: =IF("na"=Q149,"",Q149/Q142) -> 0.950 | AE149: =IF("na"=T149,"",T149/T142) -> 1.355 | AF149: =IF("na"=X149,"",X149/X142) -> 1.045 | AG149: 143.000 | AH149: 6 | AI149: 6 | AJ149: 6 | AK149: 5 | AL149: 3 | AM149: 3 | AO149: =IF("na"=F149,"",SQRT(F149)/SQRT(F142)) -> 1.077 | AP149: =IF("na"=J149,"",SQRT(J149)/SQRT(J142)) -> 1.062 | AQ149: =IF("na"=M149,"",SQRT(M149)/SQRT(M142)) -> 1.082 | AR149: =IF("na"=Q149,"",SQRT(Q149)/SQRT(Q142)) -> 0.974 | AS149: =IF("na"=T149,"",SQRT(T149)/SQRT(T142)) -> 1.164 | AT149: =IF("na"=X149,"",SQRT(X149)/SQRT(X142)) -> 1.022
A150: EPI5 | B150: 0.049 | C150: 1.343 | D150: 0.047 | E150: 0.015 | F150: 0.0002 | G150: 1.308 | H150: 0.8880 | I150: 1.2362 | J150: 0.800 | K150: 0.047 | L150: 0.011 | M150: 0.0001 | N150: 1.695 | O150: 1.2055 | P150: 1.2808 | Q150: 1.457 | R150: 0.047 | S150: 0.009 | T150: 0.0001 | U150: 1.633 | V150: 1.1318 | W150: 1.2776 | X150: 1.285 | AA150: =IF("na"=F150,"",F150/F142) -> 1.03750693982 | AB150: =IF("na"=J150,"",J150/J142) -> 1.134 | AC150: =IF("na"=M150,"",M150/M142) -> 1.108 | AD150: =IF("na"=Q150,"",Q150/Q142) -> 0.893 | AE150: =IF("na"=T150,"",T150/T142) -> 1.358 | AF150: =IF("na"=X150,"",X150/X142) -> 1.032 | AG150: 143.000 | AH150: 4 | AI150: 7 | AJ150: 3 | AK150: 3 | AL150: 4 | AM150: 2 | AO150: =IF("na"=F150,"",SQRT(F150)/SQRT(F142)) -> 1.019 | AP150: =IF("na"=J150,"",SQRT(J150)/SQRT(J142)) -> 1.065 | AQ150: =IF("na"=M150,"",SQRT(M150)/SQRT(M142)) -> 1.053 | AR150: =IF("na"=Q150,"",SQRT(Q150)/SQRT(Q142)) -> 0.945 | AS150: =IF("na"=T150,"",SQRT(T150)/SQRT(T142)) -> 1.165 | AT150: =IF("na"=X150,"",SQRT(X150)/SQRT(X142)) -> 1.016
D152: population 8
B153: true | C153: true | D153: 7 | K153: 15 | R153: 30
B154: mean | C154: rr | D154: mean | E154: stdev | F154: mse | G154: mrr | H154: srr | I154: prr | J154: mse_rr | K154: mean | L154: stdev | M154: mse | N154: mrr | O154: srr | P154: prr | Q154: mse_rr | R154: mean | S154: stdev | T154: mse | U154: mrr | V154: srr | W154: prr | X154: mse_rr
A155: Random | B155: 0.295 | C155: 1.579 | D155: 0.291 | E155: 0.035 | F155: 0.001 | G155: 1.797 | H155: 0.713 | I155: 1.618 | J155: 0.511 | K155: 0.292 | L155: 0.024 | M155: 0.001 | N155: 1.752 | O155: 0.454 | P155: 1.668 | Q155: 0.214 | R155: 0.292 | S155: 0.017 | T155: 0.000 | U155: 1.668 | V155: 0.281 | W155: 1.630 | X155: 0.082
A156: NewEPI | B156: 0.295 | C156: 1.579 | D156: 0.297 | E156: 0.047 | F156: 0.002 | G156: 1.896 | H156: 1.145 | I156: 1.624 | J156: 1.313 | K156: 0.294 | L156: 0.043 | M156: 0.002 | N156: 1.690 | O156: 0.598 | P156: 1.562 | Q156: 0.358 | R156: 0.300 | S156: 0.043 | T156: 0.002 | U156: 1.698 | V156: 0.564 | W156: 1.581 | X156: 0.318 | AA156: =IF("na"=F156,"",F156/F155) -> 1.83352451687 | AB156: =IF("na"=J156,"",J156/J155) -> 2.571 | AC156: =IF("na"=M156,"",M156/M155) -> 3.041 | AD156: =IF("na"=Q156,"",Q156/Q155) -> 1.670 | AE156: =IF("na"=T156,"",T156/T155) -> 6.218 | AF156: =IF("na"=X156,"",X156/X155) -> 3.897 | AG156: =ROW() -> 156.000 | AH156: =SUM(IF(INDIRECT(ADDRESS(ROW(),AH$60))>INDIRECT(ADDRESS($AG156,AH$60)),1,0), IF(INDIRECT(ADDRESS(ROW(),AH$60))>INDIRECT(ADDRESS($AG156+1,AH$60)),1,0), IF(INDIRECT(ADDRESS(ROW(),AH$60))>INDIRECT(ADDRESS($AG156+2,AH$60)),1,0), IF(INDIRECT(ADDRESS(ROW(),AH$60))>INDIRECT(ADDRESS($AG156+3,AH$60)),1,0), IF(INDIRECT(ADDRESS(ROW(),AH$60))>INDIRECT(ADDRESS($AG156+4,AH$60)),1,0), IF(INDIRECT(ADDRESS(ROW(),AH$60))>INDIRECT(ADDRESS($AG156+5,AH$60)),1,0), IF(INDIRECT(ADDRESS(ROW(),AH$60))>INDIRECT(ADDRESS($AG156+6,AH$60)),1,0), IF(INDIRECT(ADDRESS(ROW(),AH$60))>INDIRECT(ADDRESS($AG156+7,AH$60)),1,0))+1 -> 5 | AI156: 7 | AJ156: 6 | AK156: 6 | AL156: 7 | AM156: 8 | AO156: =IF("na"=F156,"",SQRT(F156)/SQRT(F155)) -> 1.354 | AP156: =IF("na"=J156,"",SQRT(J156)/SQRT(J155)) -> 1.604 | AQ156: =IF("na"=M156,"",SQRT(M156)/SQRT(M155)) -> 1.744 | AR156: =IF("na"=Q156,"",SQRT(Q156)/SQRT(Q155)) -> 1.292 | AS156: =IF("na"=T156,"",SQRT(T156)/SQRT(T155)) -> 2.494 | AT156: =IF("na"=X156,"",SQRT(X156)/SQRT(X155)) -> 1.974
A157: Grid | B157: 0.295 | C157: 1.579 | D157: 0.292 | E157: 0.052 | F157: 0.003 | G157: 1.818 | H157: 1.285 | I157: 1.485 | J157: 1.659 | K157: 0.292 | L157: 0.047 | M157: 0.002 | N157: 1.678 | O157: 0.777 | P157: 1.495 | Q157: 0.611 | R157: 0.292 | S157: 0.044 | T157: 0.002 | U157: 1.615 | V157: 0.529 | W157: 1.506 | X157: 0.285 | AA157: =IF("na"=F157,"",F157/F155) -> 2.21554019406 | AB157: =IF("na"=J157,"",J157/J155) -> 3.250 | AC157: =IF("na"=M157,"",M157/M155) -> 3.714 | AD157: =IF("na"=Q157,"",Q157/Q155) -> 2.853 | AE157: =IF("na"=T157,"",T157/T155) -> 6.432 | AF157: =IF("na"=X157,"",X157/X155) -> 3.489 | AG157: =AG156 -> 156.000 | AH157: 8 | AI157: 8 | AJ157: 8 | AK157: 8 | AL157: 8 | AM157: 7 | AO157: =IF("na"=F157,"",SQRT(F157)/SQRT(F155)) -> 1.488 | AP157: =IF("na"=J157,"",SQRT(J157)/SQRT(J155)) -> 1.803 | AQ157: =IF("na"=M157,"",SQRT(M157)/SQRT(M155)) -> 1.927 | AR157: =IF("na"=Q157,"",SQRT(Q157)/SQRT(Q155)) -> 1.689 | AS157: =IF("na"=T157,"",SQRT(T157)/SQRT(T155)) -> 2.536 | AT157: =IF("na"=X157,"",SQRT(X157)/SQRT(X155)) -> 1.868
A158: Peri | B158: 0.295 | C158: 1.579 | D158: 0.273 | E158: 0.035 | F158: 0.002 | G158: 1.540 | H158: 0.860 | I158: 1.340 | J158: 0.796 | K158: 0.270 | L158: 0.033 | M158: 0.002 | N158: 1.434 | O158: 0.474 | P158: 1.321 | Q158: 0.292 | R158: 0.273 | S158: 0.028 | T158: 0.001 | U158: 1.388 | V158: 0.371 | W158: 1.314 | X158: 0.208 | AA158: =IF("na"=F158,"",F158/F155) -> 1.42068497388 | AB158: =IF("na"=J158,"",J158/J155) -> 1.559 | AC158: =IF("na"=M158,"",M158/M155) -> 2.791 | AD158: =IF("na"=Q158,"",Q158/Q155) -> 1.362 | AE158: =IF("na"=T158,"",T158/T155) -> 4.341 | AF158: =IF("na"=X158,"",X158/X155) -> 2.542 | AG158: 156.000 | AH158: 3 | AI158: 2 | AJ158: 4 | AK158: 3 | AL158: 4 | AM158: 5 | AO158: =IF("na"=F158,"",SQRT(F158)/SQRT(F155)) -> 1.192 | AP158: =IF("na"=J158,"",SQRT(J158)/SQRT(J155)) -> 1.249 | AQ158: =IF("na"=M158,"",SQRT(M158)/SQRT(M155)) -> 1.671 | AR158: =IF("na"=Q158,"",SQRT(Q158)/SQRT(Q155)) -> 1.167 | AS158: =IF("na"=T158,"",SQRT(T158)/SQRT(T155)) -> 2.083 | AT158: =IF("na"=X158,"",SQRT(X158)/SQRT(X155)) -> 1.594
A159: Quad | B159: 0.295 | C159: 1.579 | D159: 0.301 | E159: 0.037 | F159: 0.001 | G159: 1.639 | H159: 0.699 | I159: 1.456 | J159: 0.503 | K159: 0.301 | L159: 0.030 | M159: 0.001 | N159: 1.573 | O159: 0.441 | P159: 1.479 | Q159: 0.204 | R159: 0.305 | S159: 0.025 | T159: 0.001 | U159: 1.553 | V159: 0.342 | W159: 1.488 | X159: 0.125 | AA159: =IF("na"=F159,"",F159/F155) -> 1.18670293456 | AB159: =IF("na"=J159,"",J159/J155) -> 0.985 | AC159: =IF("na"=M159,"",M159/M155) -> 1.533 | AD159: =IF("na"=Q159,"",Q159/Q155) -> 0.954 | AE159: =IF("na"=T159,"",T159/T155) -> 2.337 | AF159: =IF("na"=X159,"",X159/X155) -> 1.531 | AG159: 156.000 | AH159: 2 | AI159: 1 | AJ159: 2 | AK159: 2 | AL159: 2 | AM159: 3 | AO159: =IF("na"=F159,"",SQRT(F159)/SQRT(F155)) -> 1.089 | AP159: =IF("na"=J159,"",SQRT(J159)/SQRT(J155)) -> 0.993 | AQ159: =IF("na"=M159,"",SQRT(M159)/SQRT(M155)) -> 1.238 | AR159: =IF("na"=Q159,"",SQRT(Q159)/SQRT(Q155)) -> 0.977 | AS159: =IF("na"=T159,"",SQRT(T159)/SQRT(T155)) -> 1.529 | AT159: =IF("na"=X159,"",SQRT(X159)/SQRT(X155)) -> 1.237
A160: Square | B160: 0.295 | C160: 1.579 | D160: 0.289 | E160: 0.035 | F160: 0.0012 | G160: 1.787 | H160: 0.9478 | I160: 1.5820 | J160: 0.898 | K160: 0.289 | L160: 0.024 | M160: 0.0006 | N160: 1.678 | O160: 0.4103 | P160: 1.6013 | Q160: 0.169 | R160: 0.288 | S160: 0.017 | T160: 0.0004 | U160: 1.638 | V160: 0.2728 | W160: 1.6021 | X160: 0.075 | AA160: =IF("na"=F160,"",F160/F155) -> 1.02486907189 | AB160: =IF("na"=J160,"",J160/J155) -> 1.760 | AC160: =IF("na"=M160,"",M160/M155) -> 1.054 | AD160: =IF("na"=Q160,"",Q160/Q155) -> 0.788 | AE160: =IF("na"=T160,"",T160/T155) -> 1.167 | AF160: =IF("na"=X160,"",X160/X155) -> 0.918 | AG160: 156.000 | AH160: 1 | AI160: 3 | AJ160: 1 | AK160: 1 | AL160: 1 | AM160: 1 | AO160: =IF("na"=F160,"",SQRT(F160)/SQRT(F155)) -> 1.012 | AP160: =IF("na"=J160,"",SQRT(J160)/SQRT(J155)) -> 1.326 | AQ160: =IF("na"=M160,"",SQRT(M160)/SQRT(M155)) -> 1.027 | AR160: =IF("na"=Q160,"",SQRT(Q160)/SQRT(Q155)) -> 0.888 | AS160: =IF("na"=T160,"",SQRT(T160)/SQRT(T155)) -> 1.080 | AT160: =IF("na"=X160,"",SQRT(X160)/SQRT(X155)) -> 0.958
A161: OldEPI | B161: 0.295 | C161: 1.579 | D161: 0.304 | E161: 0.048 | F161: 0.0024 | G161: 1.767 | H161: 1.1294 | I161: 1.4775 | J161: 1.286 | K161: 0.305 | L161: 0.043 | M161: 0.0020 | N161: 1.660 | O161: 0.6720 | P161: 1.4896 | Q161: 0.459 | R161: 0.304 | S161: 0.039 | T161: 0.0016 | U161: 1.596 | V161: 0.4974 | W161: 1.4933 | X161: 0.255 | AA161: =IF("na"=F161,"",F161/F155) -> 1.96170255357 | AB161: =IF("na"=J161,"",J161/J155) -> 2.518 | AC161: =IF("na"=M161,"",M161/M155) -> 3.281 | AD161: =IF("na"=Q161,"",Q161/Q155) -> 2.145 | AE161: =IF("na"=T161,"",T161/T155) -> 5.430 | AF161: =IF("na"=X161,"",X161/X155) -> 3.117 | AG161: 156.000 | AH161: 6 | AI161: 6 | AJ161: 7 | AK161: 7 | AL161: 6 | AM161: 6 | AO161: =IF("na"=F161,"",SQRT(F161)/SQRT(F155)) -> 1.401 | AP161: =IF("na"=J161,"",SQRT(J161)/SQRT(J155)) -> 1.587 | AQ161: =IF("na"=M161,"",SQRT(M161)/SQRT(M155)) -> 1.811 | AR161: =IF("na"=Q161,"",SQRT(Q161)/SQRT(Q155)) -> 1.465 | AS161: =IF("na"=T161,"",SQRT(T161)/SQRT(T155)) -> 2.330 | AT161: =IF("na"=X161,"",SQRT(X161)/SQRT(X155)) -> 1.766
A162: EPI3 | B162: 0.295 | C162: 1.579 | D162: 0.306 | E162: 0.048 | F162: 0.0024 | G162: 1.706 | H162: 0.9498 | I162: 1.4660 | J162: 0.915 | K162: 0.304 | L162: 0.041 | M162: 0.0017 | N162: 1.618 | O162: 0.5561 | P162: 1.5042 | Q162: 0.315 | R162: 0.302 | S162: 0.036 | T162: 0.0013 | U162: 1.618 | V162: 0.3871 | W162: 1.5565 | X162: 0.150 | AA162: =IF("na"=F162,"",F162/F155) -> 1.97763362699 | AB162: =IF("na"=J162,"",J162/J155) -> 1.792 | AC162: =IF("na"=M162,"",M162/M155) -> 2.858 | AD162: =IF("na"=Q162,"",Q162/Q155) -> 1.470 | AE162: =IF("na"=T162,"",T162/T155) -> 4.440 | AF162: =IF("na"=X162,"",X162/X155) -> 1.840 | AG162: 156.000 | AH162: 7 | AI162: 4 | AJ162: 5 | AK162: 5 | AL162: 5 | AM162: 4 | AO162: =IF("na"=F162,"",SQRT(F162)/SQRT(F155)) -> 1.406 | AP162: =IF("na"=J162,"",SQRT(J162)/SQRT(J155)) -> 1.339 | AQ162: =IF("na"=M162,"",SQRT(M162)/SQRT(M155)) -> 1.691 | AR162: =IF("na"=Q162,"",SQRT(Q162)/SQRT(Q155)) -> 1.212 | AS162: =IF("na"=T162,"",SQRT(T162)/SQRT(T155)) -> 2.107 | AT162: =IF("na"=X162,"",SQRT(X162)/SQRT(X155)) -> 1.356
A163: EPI5 | B163: 0.295 | C163: 1.579 | D163: 0.303 | E163: 0.045 | F163: 0.0021 | G163: 1.763 | H163: 1.0978 | I163: 1.5096 | J163: 1.210 | K163: 0.302 | L163: 0.039 | M163: 0.0015 | N163: 1.671 | O163: 0.5458 | P163: 1.5593 | Q163: 0.298 | R163: 0.301 | S163: 0.033 | T163: 0.0011 | U163: 1.651 | V163: 0.3524 | W163: 1.6003 | X163: 0.125 | AA163: =IF("na"=F163,"",F163/F155) -> 1.69406271122 | AB163: =IF("na"=J163,"",J163/J155) -> 2.370 | AC163: =IF("na"=M163,"",M163/M155) -> 2.559 | AD163: =IF("na"=Q163,"",Q163/Q155) -> 1.393 | AE163: =IF("na"=T163,"",T163/T155) -> 3.732 | AF163: =IF("na"=X163,"",X163/X155) -> 1.526 | AG163: 156.000 | AH163: 4 | AI163: 5 | AJ163: 3 | AK163: 4 | AL163: 3 | AM163: 2 | AO163: =IF("na"=F163,"",SQRT(F163)/SQRT(F155)) -> 1.302 | AP163: =IF("na"=J163,"",SQRT(J163)/SQRT(J155)) -> 1.540 | AQ163: =IF("na"=M163,"",SQRT(M163)/SQRT(M155)) -> 1.600 | AR163: =IF("na"=Q163,"",SQRT(Q163)/SQRT(Q155)) -> 1.180 | AS163: =IF("na"=T163,"",SQRT(T163)/SQRT(T155)) -> 1.932 | AT163: =IF("na"=X163,"",SQRT(X163)/SQRT(X155)) -> 1.235
D165: population 9
B166: true | C166: true | D166: 7 | K166: 15 | R166: 30
B167: mean | C167: rr | D167: mean | E167: stdev | F167: mse | G167: mrr | H167: srr | I167: prr | J167: mse_rr | K167: mean | L167: stdev | M167: mse | N167: mrr | O167: srr | P167: prr | Q167: mse_rr | R167: mean | S167: stdev | T167: mse | U167: mrr | V167: srr | W167: prr | X167: mse_rr
A168: Random | B168: 0.080 | C168: 1.639 | D168: 0.079 | E168: 0.019 | F168: 0.000 | G168: 2.047 | H168: 1.187 | I168: 1.902 | J168: 1.477 | K168: 0.080 | L168: 0.014 | M168: 0.000 | N168: 2.672 | O168: 1.834 | P168: 2.008 | Q168: 3.500 | R168: 0.080 | S168: 0.010 | T168: 0.000 | U168: 2.472 | V168: 1.782 | W168: 1.936 | X168: 3.265
A169: NewEPI | B169: 0.080 | C169: 1.639 | D169: 0.079 | E169: 0.020 | F169: 0.000 | G169: 2.015 | H169: 1.179 | I169: 1.976 | J169: 1.503 | K169: 0.080 | L169: 0.016 | M169: 0.000 | N169: 2.572 | O169: 1.774 | P169: 1.970 | Q169: 3.255 | R169: 0.080 | S169: 0.014 | T169: 0.000 | U169: 2.573 | V169: 1.842 | W169: 2.005 | X169: 3.528 | AA169: =IF("na"=F169,"",F169/F168) -> 1.18285418127 | AB169: =IF("na"=J169,"",J169/J168) -> 1.018 | AC169: =IF("na"=M169,"",M169/M168) -> 1.347 | AD169: =IF("na"=Q169,"",Q169/Q168) -> 0.930 | AE169: =IF("na"=T169,"",T169/T168) -> 2.008 | AF169: =IF("na"=X169,"",X169/X168) -> 1.081 | AG169: =ROW() -> 169.000 | AH169: =SUM(IF(INDIRECT(ADDRESS(ROW(),AH$60))>INDIRECT(ADDRESS($AG169,AH$60)),1,0), IF(INDIRECT(ADDRESS(ROW(),AH$60))>INDIRECT(ADDRESS($AG169+1,AH$60)),1,0), IF(INDIRECT(ADDRESS(ROW(),AH$60))>INDIRECT(ADDRESS($AG169+2,AH$60)),1,0), IF(INDIRECT(ADDRESS(ROW(),AH$60))>INDIRECT(ADDRESS($AG169+3,AH$60)),1,0), IF(INDIRECT(ADDRESS(ROW(),AH$60))>INDIRECT(ADDRESS($AG169+4,AH$60)),1,0), IF(INDIRECT(ADDRESS(ROW(),AH$60))>INDIRECT(ADDRESS($AG169+5,AH$60)),1,0), IF(INDIRECT(ADDRESS(ROW(),AH$60))>INDIRECT(ADDRESS($AG169+6,AH$60)),1,0), IF(INDIRECT(ADDRESS(ROW(),AH$60))>INDIRECT(ADDRESS($AG169+7,AH$60)),1,0))+1 -> 3 | AI169: 6 | AJ169: 3 | AK169: 7 | AL169: 4 | AM169: 7 | AO169: =IF("na"=F169,"",SQRT(F169)/SQRT(F168)) -> 1.088 | AP169: =IF("na"=J169,"",SQRT(J169)/SQRT(J168)) -> 1.009 | AQ169: =IF("na"=M169,"",SQRT(M169)/SQRT(M168)) -> 1.160 | AR169: =IF("na"=Q169,"",SQRT(Q169)/SQRT(Q168)) -> 0.964 | AS169: =IF("na"=T169,"",SQRT(T169)/SQRT(T168)) -> 1.417 | AT169: =IF("na"=X169,"",SQRT(X169)/SQRT(X168)) -> 1.040
A170: Grid | B170: 0.080 | C170: 1.639 | D170: 0.076 | E170: 0.021 | F170: 0.000 | G170: 1.998 | H170: 1.327 | I170: 1.645 | J170: 1.762 | K170: 0.076 | L170: 0.018 | M170: 0.000 | N170: 2.315 | O170: 1.827 | P170: 1.578 | Q170: 3.343 | R170: 0.075 | S170: 0.014 | T170: 0.000 | U170: 2.245 | V170: 1.813 | W170: 1.622 | X170: 3.289 | AA170: =IF("na"=F170,"",F170/F168) -> 1.35245192893 | AB170: =IF("na"=J170,"",J170/J168) -> 1.193 | AC170: =IF("na"=M170,"",M170/M168) -> 1.754 | AD170: =IF("na"=Q170,"",Q170/Q168) -> 0.955 | AE170: =IF("na"=T170,"",T170/T168) -> 2.411 | AF170: =IF("na"=X170,"",X170/X168) -> 1.007 | AG170: =AG169 -> 169.000 | AH170: 7 | AI170: 8 | AJ170: 7 | AK170: 8 | AL170: 8 | AM170: 6 | AO170: =IF("na"=F170,"",SQRT(F170)/SQRT(F168)) -> 1.163 | AP170: =IF("na"=J170,"",SQRT(J170)/SQRT(J168)) -> 1.092 | AQ170: =IF("na"=M170,"",SQRT(M170)/SQRT(M168)) -> 1.324 | AR170: =IF("na"=Q170,"",SQRT(Q170)/SQRT(Q168)) -> 0.977 | AS170: =IF("na"=T170,"",SQRT(T170)/SQRT(T168)) -> 1.553 | AT170: =IF("na"=X170,"",SQRT(X170)/SQRT(X168)) -> 1.004
A171: Peri | B171: 0.080 | C171: 1.639 | D171: 0.066 | E171: 0.017 | F171: 0.000 | G171: 1.619 | H171: 1.156 | I171: 1.304 | J171: 1.450 | K171: 0.068 | L171: 0.014 | M171: 0.000 | N171: 2.041 | O171: 1.511 | P171: 1.500 | Q171: 2.303 | R171: 0.071 | S171: 0.011 | T171: 0.000 | U171: 1.952 | V171: 1.426 | W171: 1.502 | X171: 2.052 | AA171: =IF("na"=F171,"",F171/F168) -> 1.38977492351 | AB171: =IF("na"=J171,"",J171/J168) -> 0.981 | AC171: =IF("na"=M171,"",M171/M168) -> 1.765 | AD171: =IF("na"=Q171,"",Q171/Q168) -> 0.658 | AE171: =IF("na"=T171,"",T171/T168) -> 2.131 | AF171: =IF("na"=X171,"",X171/X168) -> 0.629 | AG171: 169.000 | AH171: 8 | AI171: 4 | AJ171: 8 | AK171: 5 | AL171: 5 | AM171: 4 | AO171: =IF("na"=F171,"",SQRT(F171)/SQRT(F168)) -> 1.179 | AP171: =IF("na"=J171,"",SQRT(J171)/SQRT(J168)) -> 0.991 | AQ171: =IF("na"=M171,"",SQRT(M171)/SQRT(M168)) -> 1.329 | AR171: =IF("na"=Q171,"",SQRT(Q171)/SQRT(Q168)) -> 0.811 | AS171: =IF("na"=T171,"",SQRT(T171)/SQRT(T168)) -> 1.460 | AT171: =IF("na"=X171,"",SQRT(X171)/SQRT(X168)) -> 0.793
A172: Quad | B172: 0.080 | C172: 1.639 | D172: 0.073 | E172: 0.018 | F172: 0.000 | G172: 1.526 | H172: 1.042 | I172: 1.250 | J172: 1.236 | K172: 0.072 | L172: 0.014 | M172: 0.000 | N172: 1.819 | O172: 1.321 | P172: 1.371 | Q172: 1.818 | R172: 0.072 | S172: 0.011 | T172: 0.000 | U172: 1.711 | V172: 1.184 | W172: 1.367 | X172: 1.476 | AA172: =IF("na"=F172,"",F172/F168) -> 1.07642194282 | AB172: =IF("na"=J172,"",J172/J168) -> 0.837 | AC172: =IF("na"=M172,"",M172/M168) -> 1.298 | AD172: =IF("na"=Q172,"",Q172/Q168) -> 0.519 | AE172: =IF("na"=T172,"",T172/T168) -> 1.738 | AF172: =IF("na"=X172,"",X172/X168) -> 0.452 | AG172: 169.000 | AH172: 2 | AI172: 2 | AJ172: 2 | AK172: 1 | AL172: 2 | AM172: 3 | AO172: =IF("na"=F172,"",SQRT(F172)/SQRT(F168)) -> 1.038 | AP172: =IF("na"=J172,"",SQRT(J172)/SQRT(J168)) -> 0.915 | AQ172: =IF("na"=M172,"",SQRT(M172)/SQRT(M168)) -> 1.139 | AR172: =IF("na"=Q172,"",SQRT(Q172)/SQRT(Q168)) -> 0.721 | AS172: =IF("na"=T172,"",SQRT(T172)/SQRT(T168)) -> 1.318 | AT172: =IF("na"=X172,"",SQRT(X172)/SQRT(X168)) -> 0.672
A173: Square | B173: 0.080 | C173: 1.639 | D173: 0.075 | E173: 0.018 | F173: 0.0003 | G173: 1.941 | H173: 1.1303 | I173: 1.7817 | J173: 1.298 | K173: 0.075 | L173: 0.013 | M173: 0.0002 | N173: 2.499 | O173: 1.7162 | P173: 1.8975 | Q173: 3.012 | R173: 0.075 | S173: 0.010 | T173: 0.0001 | U173: 2.434 | V173: 1.8801 | W173: 1.8778 | X173: 3.592 | AA173: =IF("na"=F173,"",F173/F168) -> 1.01765465742 | AB173: =IF("na"=J173,"",J173/J168) -> 0.879 | AC173: =IF("na"=M173,"",M173/M168) -> 1.020 | AD173: =IF("na"=Q173,"",Q173/Q168) -> 0.861 | AE173: =IF("na"=T173,"",T173/T168) -> 1.213 | AF173: =IF("na"=X173,"",X173/X168) -> 1.100 | AG173: 169.000 | AH173: 1 | AI173: 3 | AJ173: 1 | AK173: 6 | AL173: 1 | AM173: 8 | AO173: =IF("na"=F173,"",SQRT(F173)/SQRT(F168)) -> 1.009 | AP173: =IF("na"=J173,"",SQRT(J173)/SQRT(J168)) -> 0.937 | AQ173: =IF("na"=M173,"",SQRT(M173)/SQRT(M168)) -> 1.010 | AR173: =IF("na"=Q173,"",SQRT(Q173)/SQRT(Q168)) -> 0.928 | AS173: =IF("na"=T173,"",SQRT(T173)/SQRT(T168)) -> 1.102 | AT173: =IF("na"=X173,"",SQRT(X173)/SQRT(X168)) -> 1.049
A174: OldEPI | B174: 0.080 | C174: 1.639 | D174: 0.071 | E174: 0.020 | F174: 0.0005 | G174: 1.630 | H174: 1.1841 | I174: 1.3320 | J174: 1.496 | K174: 0.072 | L174: 0.016 | M174: 0.0003 | N174: 1.889 | O174: 1.4866 | P174: 1.3600 | Q174: 2.288 | R174: 0.072 | S174: 0.013 | T174: 0.0002 | U174: 1.847 | V174: 1.4358 | W174: 1.3989 | X174: 2.119 | AA174: =IF("na"=F174,"",F174/F168) -> 1.31732527861 | AB174: =IF("na"=J174,"",J174/J168) -> 1.013 | AC174: =IF("na"=M174,"",M174/M168) -> 1.628 | AD174: =IF("na"=Q174,"",Q174/Q168) -> 0.654 | AE174: =IF("na"=T174,"",T174/T168) -> 2.408 | AF174: =IF("na"=X174,"",X174/X168) -> 0.649 | AG174: 169.000 | AH174: 6 | AI174: 5 | AJ174: 6 | AK174: 4 | AL174: 7 | AM174: 5 | AO174: =IF("na"=F174,"",SQRT(F174)/SQRT(F168)) -> 1.148 | AP174: =IF("na"=J174,"",SQRT(J174)/SQRT(J168)) -> 1.007 | AQ174: =IF("na"=M174,"",SQRT(M174)/SQRT(M168)) -> 1.276 | AR174: =IF("na"=Q174,"",SQRT(Q174)/SQRT(Q168)) -> 0.808 | AS174: =IF("na"=T174,"",SQRT(T174)/SQRT(T168)) -> 1.552 | AT174: =IF("na"=X174,"",SQRT(X174)/SQRT(X168)) -> 0.806
A175: EPI3 | B175: 0.080 | C175: 1.639 | D175: 0.071 | E175: 0.019 | F175: 0.0004 | G175: 1.579 | H175: 1.0712 | I175: 1.3479 | J175: 1.232 | K175: 0.071 | L175: 0.015 | M175: 0.0003 | N175: 1.925 | O175: 1.4421 | P175: 1.4005 | Q175: 2.136 | R175: 0.072 | S175: 0.012 | T175: 0.0002 | U175: 1.783 | V175: 1.1251 | W175: 1.4353 | X175: 1.307 | AA175: =IF("na"=F175,"",F175/F168) -> 1.29355995388 | AB175: =IF("na"=J175,"",J175/J168) -> 0.834 | AC175: =IF("na"=M175,"",M175/M168) -> 1.552 | AD175: =IF("na"=Q175,"",Q175/Q168) -> 0.610 | AE175: =IF("na"=T175,"",T175/T168) -> 2.212 | AF175: =IF("na"=X175,"",X175/X168) -> 0.400 | AG175: 169.000 | AH175: 5 | AI175: 1 | AJ175: 5 | AK175: 3 | AL175: 6 | AM175: 2 | AO175: =IF("na"=F175,"",SQRT(F175)/SQRT(F168)) -> 1.137 | AP175: =IF("na"=J175,"",SQRT(J175)/SQRT(J168)) -> 0.913 | AQ175: =IF("na"=M175,"",SQRT(M175)/SQRT(M168)) -> 1.246 | AR175: =IF("na"=Q175,"",SQRT(Q175)/SQRT(Q168)) -> 0.781 | AS175: =IF("na"=T175,"",SQRT(T175)/SQRT(T168)) -> 1.487 | AT175: =IF("na"=X175,"",SQRT(X175)/SQRT(X168)) -> 0.633
A176: EPI5 | B176: 0.080 | C176: 1.639 | D176: 0.071 | E176: 0.019 | F176: 0.0004 | G176: 1.668 | H176: 1.2001 | I176: 1.3540 | J176: 1.522 | K176: 0.073 | L176: 0.015 | M176: 0.0003 | N176: 1.902 | O176: 1.3992 | P176: 1.3717 | Q176: 2.029 | R176: 0.073 | S176: 0.012 | T176: 0.0002 | U176: 1.740 | V176: 1.1125 | W176: 1.4047 | X176: 1.293 | AA176: =IF("na"=F176,"",F176/F168) -> 1.20954913035 | AB176: =IF("na"=J176,"",J176/J168) -> 1.030 | AC176: =IF("na"=M176,"",M176/M168) -> 1.381 | AD176: =IF("na"=Q176,"",Q176/Q168) -> 0.580 | AE176: =IF("na"=T176,"",T176/T168) -> 1.887 | AF176: =IF("na"=X176,"",X176/X168) -> 0.396 | AG176: 169.000 | AH176: 4 | AI176: 7 | AJ176: 4 | AK176: 2 | AL176: 3 | AM176: 1 | AO176: =IF("na"=F176,"",SQRT(F176)/SQRT(F168)) -> 1.100 | AP176: =IF("na"=J176,"",SQRT(J176)/SQRT(J168)) -> 1.015 | AQ176: =IF("na"=M176,"",SQRT(M176)/SQRT(M168)) -> 1.175 | AR176: =IF("na"=Q176,"",SQRT(Q176)/SQRT(Q168)) -> 0.761 | AS176: =IF("na"=T176,"",SQRT(T176)/SQRT(T168)) -> 1.374 | AT176: =IF("na"=X176,"",SQRT(X176)/SQRT(X168)) -> 0.629
D178: population 10
B179: true | C179: true | D179: 7 | K179: 15 | R179: 30
B180: mean | C180: rr | D180: mean | E180: stdev | F180: mse | G180: mrr | H180: srr | I180: prr | J180: mse_rr | K180: mean | L180: stdev | M180: mse | N180: mrr | O180: srr | P180: prr | Q180: mse_rr | R180: mean | S180: stdev | T180: mse | U180: mrr | V180: srr | W180: prr | X180: mse_rr
A181: Random | B181: 0.182 | C181: 1.555 | D181: 0.177 | E181: 0.031 | F181: 0.001 | G181: 1.915 | H181: 1.182 | I181: 1.601 | J181: 1.398 | K181: 0.177 | L181: 0.022 | M181: 0.001 | N181: 1.740 | O181: 0.604 | P181: 1.600 | Q181: 0.367 | R181: 0.177 | S181: 0.016 | T181: 0.000 | U181: 1.675 | V181: 0.384 | W181: 1.612 | X181: 0.151
A182: NewEPI | B182: 0.182 | C182: 1.555 | D182: 0.177 | E182: 0.038 | F182: 0.001 | G182: 1.920 | H182: 1.264 | I182: 1.569 | J182: 1.598 | K182: 0.177 | L182: 0.034 | M182: 0.001 | N182: 1.715 | O182: 0.691 | P182: 1.566 | Q182: 0.477 | R182: 0.180 | S182: 0.030 | T182: 0.001 | U182: 1.677 | V182: 0.562 | W182: 1.583 | X182: 0.317 | AA182: =IF("na"=F182,"",F182/F181) -> 1.49482574537 | AB182: =IF("na"=J182,"",J182/J181) -> 1.143 | AC182: =IF("na"=M182,"",M182/M181) -> 2.274 | AD182: =IF("na"=Q182,"",Q182/Q181) -> 1.302 | AE182: =IF("na"=T182,"",T182/T181) -> 3.188 | AF182: =IF("na"=X182,"",X182/X181) -> 2.104 | AG182: =ROW() -> 182.000 | AH182: =SUM(IF(INDIRECT(ADDRESS(ROW(),AH$60))>INDIRECT(ADDRESS($AG182,AH$60)),1,0), IF(INDIRECT(ADDRESS(ROW(),AH$60))>INDIRECT(ADDRESS($AG182+1,AH$60)),1,0), IF(INDIRECT(ADDRESS(ROW(),AH$60))>INDIRECT(ADDRESS($AG182+2,AH$60)),1,0), IF(INDIRECT(ADDRESS(ROW(),AH$60))>INDIRECT(ADDRESS($AG182+3,AH$60)),1,0), IF(INDIRECT(ADDRESS(ROW(),AH$60))>INDIRECT(ADDRESS($AG182+4,AH$60)),1,0), IF(INDIRECT(ADDRESS(ROW(),AH$60))>INDIRECT(ADDRESS($AG182+5,AH$60)),1,0), IF(INDIRECT(ADDRESS(ROW(),AH$60))>INDIRECT(ADDRESS($AG182+6,AH$60)),1,0), IF(INDIRECT(ADDRESS(ROW(),AH$60))>INDIRECT(ADDRESS($AG182+7,AH$60)),1,0))+1 -> 4 | AI182: 3 | AJ182: 4 | AK182: 2 | AL182: 4 | AM182: 3 | AO182: =IF("na"=F182,"",SQRT(F182)/SQRT(F181)) -> 1.223 | AP182: =IF("na"=J182,"",SQRT(J182)/SQRT(J181)) -> 1.069 | AQ182: =IF("na"=M182,"",SQRT(M182)/SQRT(M181)) -> 1.508 | AR182: =IF("na"=Q182,"",SQRT(Q182)/SQRT(Q181)) -> 1.141 | AS182: =IF("na"=T182,"",SQRT(T182)/SQRT(T181)) -> 1.785 | AT182: =IF("na"=X182,"",SQRT(X182)/SQRT(X181)) -> 1.451
A183: Grid | B183: 0.182 | C183: 1.555 | D183: 0.183 | E183: 0.042 | F183: 0.002 | G183: 1.968 | H183: 1.507 | I183: 1.480 | J183: 2.276 | K183: 0.182 | L183: 0.039 | M183: 0.002 | N183: 1.912 | O183: 1.444 | P183: 1.501 | Q183: 2.087 | R183: 0.181 | S183: 0.036 | T183: 0.001 | U183: 1.729 | V183: 0.851 | W183: 1.516 | X183: 0.726 | AA183: =IF("na"=F183,"",F183/F181) -> 1.85551016625 | AB183: =IF("na"=J183,"",J183/J181) -> 1.628 | AC183: =IF("na"=M183,"",M183/M181) -> 2.830 | AD183: =IF("na"=Q183,"",Q183/Q181) -> 5.689 | AE183: =IF("na"=T183,"",T183/T181) -> 4.489 | AF183: =IF("na"=X183,"",X183/X181) -> 4.824 | AG183: =AG182 -> 182.000 | AH183: 8 | AI183: 7 | AJ183: 8 | AK183: 8 | AL183: 8 | AM183: 8 | AO183: =IF("na"=F183,"",SQRT(F183)/SQRT(F181)) -> 1.362 | AP183: =IF("na"=J183,"",SQRT(J183)/SQRT(J181)) -> 1.276 | AQ183: =IF("na"=M183,"",SQRT(M183)/SQRT(M181)) -> 1.682 | AR183: =IF("na"=Q183,"",SQRT(Q183)/SQRT(Q181)) -> 2.385 | AS183: =IF("na"=T183,"",SQRT(T183)/SQRT(T181)) -> 2.119 | AT183: =IF("na"=X183,"",SQRT(X183)/SQRT(X181)) -> 2.196
A184: Peri | B184: 0.182 | C184: 1.555 | D184: 0.162 | E184: 0.031 | F184: 0.001 | G184: 1.629 | H184: 1.151 | I184: 1.264 | J184: 1.410 | K184: 0.159 | L184: 0.026 | M184: 0.001 | N184: 1.445 | O184: 0.856 | P184: 1.226 | Q184: 0.841 | R184: 0.159 | S184: 0.023 | T184: 0.001 | U184: 1.363 | V184: 0.502 | W184: 1.247 | X184: 0.347 | AA184: =IF("na"=F184,"",F184/F181) -> 1.41994557873 | AB184: =IF("na"=J184,"",J184/J181) -> 1.009 | AC184: =IF("na"=M184,"",M184/M181) -> 2.295 | AD184: =IF("na"=Q184,"",Q184/Q181) -> 2.294 | AE184: =IF("na"=T184,"",T184/T181) -> 3.711 | AF184: =IF("na"=X184,"",X184/X181) -> 2.308 | AG184: 182.000 | AH184: 3 | AI184: 1 | AJ184: 6 | AK184: 4 | AL184: 6 | AM184: 4 | AO184: =IF("na"=F184,"",SQRT(F184)/SQRT(F181)) -> 1.192 | AP184: =IF("na"=J184,"",SQRT(J184)/SQRT(J181)) -> 1.004 | AQ184: =IF("na"=M184,"",SQRT(M184)/SQRT(M181)) -> 1.515 | AR184: =IF("na"=Q184,"",SQRT(Q184)/SQRT(Q181)) -> 1.515 | AS184: =IF("na"=T184,"",SQRT(T184)/SQRT(T181)) -> 1.926 | AT184: =IF("na"=X184,"",SQRT(X184)/SQRT(X181)) -> 1.519
A185: Quad | B185: 0.182 | C185: 1.555 | D185: 0.177 | E185: 0.033 | F185: 0.001 | G185: 1.732 | H185: 1.223 | I185: 1.368 | J185: 1.530 | K185: 0.175 | L185: 0.026 | M185: 0.001 | N185: 1.589 | O185: 0.931 | P185: 1.368 | Q185: 0.903 | R185: 0.175 | S185: 0.022 | T185: 0.001 | U185: 1.503 | V185: 0.604 | W185: 1.379 | X185: 0.396 | AA185: =IF("na"=F185,"",F185/F181) -> 1.12270776075 | AB185: =IF("na"=J185,"",J185/J181) -> 1.095 | AC185: =IF("na"=M185,"",M185/M181) -> 1.365 | AD185: =IF("na"=Q185,"",Q185/Q181) -> 2.461 | AE185: =IF("na"=T185,"",T185/T181) -> 1.835 | AF185: =IF("na"=X185,"",X185/X181) -> 2.629 | AG185: 182.000 | AH185: 2 | AI185: 2 | AJ185: 2 | AK185: 6 | AL185: 2 | AM185: 5 | AO185: =IF("na"=F185,"",SQRT(F185)/SQRT(F181)) -> 1.060 | AP185: =IF("na"=J185,"",SQRT(J185)/SQRT(J181)) -> 1.046 | AQ185: =IF("na"=M185,"",SQRT(M185)/SQRT(M181)) -> 1.168 | AR185: =IF("na"=Q185,"",SQRT(Q185)/SQRT(Q181)) -> 1.569 | AS185: =IF("na"=T185,"",SQRT(T185)/SQRT(T181)) -> 1.355 | AT185: =IF("na"=X185,"",SQRT(X185)/SQRT(X181)) -> 1.621
A186: Square | B186: 0.182 | C186: 1.555 | D186: 0.178 | E186: 0.031 | F186: 0.0010 | G186: 1.911 | H186: 1.2993 | I186: 1.5657 | J186: 1.688 | K186: 0.176 | L186: 0.021 | M186: 0.0005 | N186: 1.713 | O186: 0.6842 | P186: 1.5696 | Q186: 0.468 | R186: 0.176 | S186: 0.016 | T186: 0.0003 | U186: 1.655 | V186: 0.3887 | W186: 1.5890 | X186: 0.152 | AA186: =IF("na"=F186,"",F186/F181) -> 1.01032548860 | AB186: =IF("na"=J186,"",J186/J181) -> 1.208 | AC186: =IF("na"=M186,"",M186/M181) -> 0.913 | AD186: =IF("na"=Q186,"",Q186/Q181) -> 1.277 | AE186: =IF("na"=T186,"",T186/T181) -> 1.066 | AF186: =IF("na"=X186,"",X186/X181) -> 1.011 | AG186: 182.000 | AH186: 1 | AI186: 5 | AJ186: 1 | AK186: 1 | AL186: 1 | AM186: 1 | AO186: =IF("na"=F186,"",SQRT(F186)/SQRT(F181)) -> 1.005 | AP186: =IF("na"=J186,"",SQRT(J186)/SQRT(J181)) -> 1.099 | AQ186: =IF("na"=M186,"",SQRT(M186)/SQRT(M181)) -> 0.956 | AR186: =IF("na"=Q186,"",SQRT(Q186)/SQRT(Q181)) -> 1.130 | AS186: =IF("na"=T186,"",SQRT(T186)/SQRT(T181)) -> 1.033 | AT186: =IF("na"=X186,"",SQRT(X186)/SQRT(X181)) -> 1.006
A187: OldEPI | B187: 0.182 | C187: 1.555 | D187: 0.177 | E187: 0.041 | F187: 0.0017 | G187: 1.838 | H187: 1.5037 | I187: 1.3746 | J187: 2.294 | K187: 0.177 | L187: 0.038 | M187: 0.0015 | N187: 1.695 | O187: 1.0717 | P187: 1.3878 | Q187: 1.177 | R187: 0.177 | S187: 0.035 | T187: 0.0012 | U187: 1.589 | V187: 0.7834 | W187: 1.3923 | X187: 0.640 | AA187: =IF("na"=F187,"",F187/F181) -> 1.78764431466 | AB187: =IF("na"=J187,"",J187/J181) -> 1.641 | AC187: =IF("na"=M187,"",M187/M181) -> 2.724 | AD187: =IF("na"=Q187,"",Q187/Q181) -> 3.208 | AE187: =IF("na"=T187,"",T187/T181) -> 4.308 | AF187: =IF("na"=X187,"",X187/X181) -> 4.255 | AG187: 182.000 | AH187: 7 | AI187: 8 | AJ187: 7 | AK187: 7 | AL187: 7 | AM187: 7 | AO187: =IF("na"=F187,"",SQRT(F187)/SQRT(F181)) -> 1.337 | AP187: =IF("na"=J187,"",SQRT(J187)/SQRT(J181)) -> 1.281 | AQ187: =IF("na"=M187,"",SQRT(M187)/SQRT(M181)) -> 1.651 | AR187: =IF("na"=Q187,"",SQRT(Q187)/SQRT(Q181)) -> 1.791 | AS187: =IF("na"=T187,"",SQRT(T187)/SQRT(T181)) -> 2.076 | AT187: =IF("na"=X187,"",SQRT(X187)/SQRT(X181)) -> 2.063
A188: EPI3 | B188: 0.182 | C188: 1.555 | D188: 0.177 | E188: 0.040 | F188: 0.0016 | G188: 1.748 | H188: 1.3178 | I188: 1.3689 | J188: 1.771 | K188: 0.178 | L188: 0.035 | M188: 0.0012 | N188: 1.608 | O188: 0.8550 | P188: 1.3873 | Q188: 0.759 | R188: 0.178 | S188: 0.031 | T188: 0.0010 | U188: 1.573 | V188: 0.6941 | W188: 1.4481 | X188: 0.493 | AA188: =IF("na"=F188,"",F188/F181) -> 1.66138181349 | AB188: =IF("na"=J188,"",J188/J181) -> 1.267 | AC188: =IF("na"=M188,"",M188/M181) -> 2.290 | AD188: =IF("na"=Q188,"",Q188/Q181) -> 2.070 | AE188: =IF("na"=T188,"",T188/T181) -> 3.398 | AF188: =IF("na"=X188,"",X188/X181) -> 3.278 | AG188: 182.000 | AH188: 6 | AI188: 6 | AJ188: 5 | AK188: 3 | AL188: 5 | AM188: 6 | AO188: =IF("na"=F188,"",SQRT(F188)/SQRT(F181)) -> 1.289 | AP188: =IF("na"=J188,"",SQRT(J188)/SQRT(J181)) -> 1.126 | AQ188: =IF("na"=M188,"",SQRT(M188)/SQRT(M181)) -> 1.513 | AR188: =IF("na"=Q188,"",SQRT(Q188)/SQRT(Q181)) -> 1.439 | AS188: =IF("na"=T188,"",SQRT(T188)/SQRT(T181)) -> 1.843 | AT188: =IF("na"=X188,"",SQRT(X188)/SQRT(X181)) -> 1.810
A189: EPI5 | B189: 0.182 | C189: 1.555 | D189: 0.178 | E189: 0.038 | F189: 0.0015 | G189: 1.722 | H189: 1.2705 | I189: 1.3657 | J189: 1.650 | K189: 0.179 | L189: 0.033 | M189: 0.0011 | N189: 1.606 | O189: 0.9275 | P189: 1.3962 | Q189: 0.886 | R189: 0.179 | S189: 0.030 | T189: 0.0009 | U189: 1.520 | V189: 0.4852 | W189: 1.4395 | X189: 0.249 | AA189: =IF("na"=F189,"",F189/F181) -> 1.51458467171 | AB189: =IF("na"=J189,"",J189/J181) -> 1.180 | AC189: =IF("na"=M189,"",M189/M181) -> 2.037 | AD189: =IF("na"=Q189,"",Q189/Q181) -> 2.414 | AE189: =IF("na"=T189,"",T189/T181) -> 3.149 | AF189: =IF("na"=X189,"",X189/X181) -> 1.654 | AG189: 182.000 | AH189: 5 | AI189: 4 | AJ189: 3 | AK189: 5 | AL189: 3 | AM189: 2 | AO189: =IF("na"=F189,"",SQRT(F189)/SQRT(F181)) -> 1.231 | AP189: =IF("na"=J189,"",SQRT(J189)/SQRT(J181)) -> 1.086 | AQ189: =IF("na"=M189,"",SQRT(M189)/SQRT(M181)) -> 1.427 | AR189: =IF("na"=Q189,"",SQRT(Q189)/SQRT(Q181)) -> 1.554 | AS189: =IF("na"=T189,"",SQRT(T189)/SQRT(T181)) -> 1.775 | AT189: =IF("na"=X189,"",SQRT(X189)/SQRT(X181)) -> 1.286
D191: population 11
B192: true | C192: true | D192: 7 | K192: 15 | R192: 30
B193: mean | C193: rr | D193: mean | E193: stdev | F193: mse | G193: mrr | H193: srr | I193: prr | J193: mse_rr | K193: mean | L193: stdev | M193: mse | N193: mrr | O193: srr | P193: prr | Q193: mse_rr | R193: mean | S193: stdev | T193: mse | U193: mrr | V193: srr | W193: prr | X193: mse_rr
A194: Random | B194: 0.373 | C194: 1.517 | D194: 0.380 | E194: 0.044 | F194: 0.002 | G194: 1.849 | H194: 1.219 | I194: 1.537 | J194: 1.486 | K194: 0.379 | L194: 0.031 | M194: 0.001 | N194: 1.650 | O194: 0.490 | P194: 1.540 | Q194: 0.240 | R194: 0.379 | S194: 0.021 | T194: 0.000 | U194: 1.590 | V194: 0.338 | W194: 1.534 | X194: 0.114
